Workbook

Sheet AVISO LEGAL
H2: Fecha de actualización: | J2: 2018-02-09
J23: www.ree.es

Sheet Renovable mes nacional
O1: 12
M3: Concepto
M4: Sistema eléctrico
M5: Horizonte temporal
M6: Periodo
C8: Ene. | D8: Feb. | E8: Mar. | F8: Abr. | G8: May. | H8: Jun. | I8: Jul. | J8: Ago. | K8: Sep. | L8: Oct. | M8: Nov. | N8: Dic. | O8: =OFFSET(Año!B19,($O$1-1),0) -> 2018
B10: Hidráulica (2) | C10: =OFFSET(Renovable!C32,0,($O$1-1)*12) -> 2152.871 | D10: =OFFSET(Renovable!D32,0,($O$1-1)*12) -> - | E10: =OFFSET(Renovable!E32,0,($O$1-1)*12) -> - | F10: =OFFSET(Renovable!F32,0,($O$1-1)*12) -> - | G10: =OFFSET(Renovable!G32,0,($O$1-1)*12) -> - | H10: =OFFSET(Renovable!H32,0,($O$1-1)*12) -> - | I10: =OFFSET(Renovable!I32,0,($O$1-1)*12) -> - | J10: =OFFSET(Renovable!J32,0,($O$1-1)*12) -> - | K10: =OFFSET(Renovable!K32,0,($O$1-1)*12) -> - | L10: =OFFSET(Renovable!L32,0,($O$1-1)*12) -> - | M10: =OFFSET(Renovable!M32,0,($O$1-1)*12) -> - | N10: =OFFSET(Renovable!N32,0,($O$1-1)*12) -> - | O10: =IF(SUM(C10:N10)=0,"-",SUM(C10:N10)) -> 2152.871
B11: Hidroeólica | C11: =OFFSET(Renovable!C33,0,($O$1-1)*12) -> 2.27014 | D11: =OFFSET(Renovable!D33,0,($O$1-1)*12) -> - | E11: =OFFSET(Renovable!E33,0,($O$1-1)*12) -> - | F11: =OFFSET(Renovable!F33,0,($O$1-1)*12) -> - | G11: =OFFSET(Renovable!G33,0,($O$1-1)*12) -> - | H11: =OFFSET(Renovable!H33,0,($O$1-1)*12) -> - | I11: =OFFSET(Renovable!I33,0,($O$1-1)*12) -> - | J11: =OFFSET(Renovable!J33,0,($O$1-1)*12) -> - | K11: =OFFSET(Renovable!K33,0,($O$1-1)*12) -> - | L11: =OFFSET(Renovable!L33,0,($O$1-1)*12) -> - | M11: =OFFSET(Renovable!M33,0,($O$1-1)*12) -> - | N11: =OFFSET(Renovable!N33,0,($O$1-1)*12) -> - | O11: 2.27014
B12: Eólica | C12: =OFFSET(Renovable!C34,0,($O$1-1)*12) -> 5347.581532 | D12: =OFFSET(Renovable!D34,0,($O$1-1)*12) -> - | E12: =OFFSET(Renovable!E34,0,($O$1-1)*12) -> - | F12: =OFFSET(Renovable!F34,0,($O$1-1)*12) -> - | G12: =OFFSET(Renovable!G34,0,($O$1-1)*12) -> - | H12: =OFFSET(Renovable!H34,0,($O$1-1)*12) -> - | I12: =OFFSET(Renovable!I34,0,($O$1-1)*12) -> - | J12: =OFFSET(Renovable!J34,0,($O$1-1)*12) -> - | K12: =OFFSET(Renovable!K34,0,($O$1-1)*12) -> - | L12: =OFFSET(Renovable!L34,0,($O$1-1)*12) -> - | M12: =OFFSET(Renovable!M34,0,($O$1-1)*12) -> - | N12: =OFFSET(Renovable!N34,0,($O$1-1)*12) -> - | O12: 5347.581532
B13: Solar fotovoltaica | C13: =OFFSET(Renovable!C35,0,($O$1-1)*12) -> 434.381063 | D13: =OFFSET(Renovable!D35,0,($O$1-1)*12) -> - | E13: =OFFSET(Renovable!E35,0,($O$1-1)*12) -> - | F13: =OFFSET(Renovable!F35,0,($O$1-1)*12) -> - | G13: =OFFSET(Renovable!G35,0,($O$1-1)*12) -> - | H13: =OFFSET(Renovable!H35,0,($O$1-1)*12) -> - | I13: =OFFSET(Renovable!I35,0,($O$1-1)*12) -> - | J13: =OFFSET(Renovable!J35,0,($O$1-1)*12) -> - | K13: =OFFSET(Renovable!K35,0,($O$1-1)*12) -> - | L13: =OFFSET(Renovable!L35,0,($O$1-1)*12) -> - | M13: =OFFSET(Renovable!M35,0,($O$1-1)*12) -> - | N13: =OFFSET(Renovable!N35,0,($O$1-1)*12) -> - | O13: 434.381063
B14: Solar térmica | C14: =OFFSET(Renovable!C36,0,($O$1-1)*12) -> 130.0769 | D14: =OFFSET(Renovable!D36,0,($O$1-1)*12) -> - | E14: =OFFSET(Renovable!E36,0,($O$1-1)*12) -> - | F14: =OFFSET(Renovable!F36,0,($O$1-1)*12) -> - | G14: =OFFSET(Renovable!G36,0,($O$1-1)*12) -> - | H14: =OFFSET(Renovable!H36,0,($O$1-1)*12) -> - | I14: =OFFSET(Renovable!I36,0,($O$1-1)*12) -> - | J14: =OFFSET(Renovable!J36,0,($O$1-1)*12) -> - | K14: =OFFSET(Renovable!K36,0,($O$1-1)*12) -> - | L14: =OFFSET(Renovable!L36,0,($O$1-1)*12) -> - | M14: =OFFSET(Renovable!M36,0,($O$1-1)*12) -> - | N14: =OFFSET(Renovable!N36,0,($O$1-1)*12) -> - | O14: 130.0769
B15: Térmica renovable (3)/Otras renovables (4) | C15: =OFFSET(Renovable!C37,0,($O$1-1)*12) -> 302.69605 | D15: =OFFSET(Renovable!D37,0,($O$1-1)*12) -> - | E15: =OFFSET(Renovable!E37,0,($O$1-1)*12) -> - | F15: =OFFSET(Renovable!F37,0,($O$1-1)*12) -> - | G15: =OFFSET(Renovable!G37,0,($O$1-1)*12) -> - | H15: =OFFSET(Renovable!H37,0,($O$1-1)*12) -> - | I15: =OFFSET(Renovable!I37,0,($O$1-1)*12) -> - | J15: =OFFSET(Renovable!J37,0,($O$1-1)*12) -> - | K15: =OFFSET(Renovable!K37,0,($O$1-1)*12) -> - | L15: =OFFSET(Renovable!L37,0,($O$1-1)*12) -> - | M15: =OFFSET(Renovable!M37,0,($O$1-1)*12) -> - | N15: =OFFSET(Renovable!N37,0,($O$1-1)*12) -> - | O15: =IF(SUM(C15:N15)=0,"-",SUM(C15:N15)) -> 302.69605
B16: Residuos renovables (5) | C16: =OFFSET(Renovable!C38,0,($O$1-1)*12) -> 76.4180315 | D16: =OFFSET(Renovable!D38,0,($O$1-1)*12) -> - | E16: =OFFSET(Renovable!E38,0,($O$1-1)*12) -> - | F16: =OFFSET(Renovable!F38,0,($O$1-1)*12) -> - | G16: =OFFSET(Renovable!G38,0,($O$1-1)*12) -> - | H16: =OFFSET(Renovable!H38,0,($O$1-1)*12) -> - | I16: =OFFSET(Renovable!I38,0,($O$1-1)*12) -> - | J16: =OFFSET(Renovable!J38,0,($O$1-1)*12) -> - | K16: =OFFSET(Renovable!K38,0,($O$1-1)*12) -> - | L16: =OFFSET(Renovable!L38,0,($O$1-1)*12) -> - | M16: =OFFSET(Renovable!M38,0,($O$1-1)*12) -> - | N16: =OFFSET(Renovable!N38,0,($O$1-1)*12) -> - | O16: =IF(SUM(C16:N16)=0,"-",SUM(C16:N16)) -> 76.4180315
B17: Generación renovable | C17: =IF(SUM(C10:C16)=0,"-",SUM(C10:C16)) -> 8446.294716 | D17: =IF(SUM(D10:D16)=0,"-",SUM(D10:D16)) -> - | E17: - | F17: - | G17: - | H17: - | I17: - | J17: - | K17: =IF(SUM(K10:K16)=0,"-",SUM(K10:K16)) -> - | L17: - | M17: - | N17: - | O17: =IF(SUM(C17:N17)=0,"-",SUM(C17:N17)) -> 8446.294716
B18: (1) Asignación de unidades de producción según combustible principal.
B19: (2) No incluye la generación bombeo.
B20: (3) Incluye residuos hasta el 31/12/2014.
B21: (4) Otras renovables incluyen biogás, biomasa, hidráulica marina y geotérmica.
B22: (5) El 50% de la generación procedente de residuos sólidos urbanos se considera renovable.

Sheet Renovable año nacional
J1: 2
H3: Concepto
H4: Sistema eléctrico
H5: Horizonte temporal
H6: Periodo
C8: =OFFSET(Renovable!C70,0,($J$1-1)*8) -> 2015 | D8: =OFFSET(Renovable!D70,0,($J$1-1)*8) -> 2016 | E8: =OFFSET(Renovable!E70,0,($J$1-1)*8) -> 2017 | F8: =OFFSET(Renovable!F70,0,($J$1-1)*8) -> 2018 | G8: =OFFSET(Renovable!G70,0,($J$1-1)*8) -> 2019 | H8: =OFFSET(Renovable!H70,0,($J$1-1)*8) -> 2020 | I8: =OFFSET(Renovable!I70,0,($J$1-1)*8) -> 2021 | J8: =OFFSET(Renovable!J70,0,($J$1-1)*8) -> 2022
B10: Hidráulica (2) | C10: =OFFSET(Renovable!C71,0,($J$1-1)*8) -> 28315.85021 | D10: =OFFSET(Renovable!D71,0,($J$1-1)*8) -> 35963.46291 | E10: =OFFSET(Renovable!E71,0,($J$1-1)*8) -> 18362.40715 | F10: =OFFSET(Renovable!F71,0,($J$1-1)*8) -> 2152.871 | G10: =OFFSET(Renovable!G71,0,($J$1-1)*8) -> - | H10: =OFFSET(Renovable!H71,0,($J$1-1)*8) -> - | I10: =OFFSET(Renovable!I71,0,($J$1-1)*8) -> - | J10: =OFFSET(Renovable!J71,0,($J$1-1)*8) -> -
B11: Hidroeólica | C11: =OFFSET(Renovable!C72,0,($J$1-1)*8) -> 8.557066 | D11: =OFFSET(Renovable!D72,0,($J$1-1)*8) -> 18.102639 | E11: =OFFSET(Renovable!E72,0,($J$1-1)*8) -> 20.398516 | F11: =OFFSET(Renovable!F72,0,($J$1-1)*8) -> 2.27014 | G11: =OFFSET(Renovable!G72,0,($J$1-1)*8) -> - | H11: =OFFSET(Renovable!H72,0,($J$1-1)*8) -> - | I11: =OFFSET(Renovable!I72,0,($J$1-1)*8) -> - | J11: =OFFSET(Renovable!J72,0,($J$1-1)*8) -> -
B12: Eólica | C12: =OFFSET(Renovable!C73,0,($J$1-1)*8) -> 48115.12807 | D12: =OFFSET(Renovable!D73,0,($J$1-1)*8) -> 47696.67064 | E12: =OFFSET(Renovable!E73,0,($J$1-1)*8) -> 47895.572 | F12: =OFFSET(Renovable!F73,0,($J$1-1)*8) -> 5347.581532 | G12: =OFFSET(Renovable!G73,0,($J$1-1)*8) -> - | H12: =OFFSET(Renovable!H73,0,($J$1-1)*8) -> - | I12: =OFFSET(Renovable!I73,0,($J$1-1)*8) -> - | J12: =OFFSET(Renovable!J73,0,($J$1-1)*8) -> -
B13: Solar fotovoltaica | C13: =OFFSET(Renovable!C74,0,($J$1-1)*8) -> 8243.075641 | D13: =OFFSET(Renovable!D74,0,($J$1-1)*8) -> 7977.5988 | E13: =OFFSET(Renovable!E74,0,($J$1-1)*8) -> 8373.832 | F13: =OFFSET(Renovable!F74,0,($J$1-1)*8) -> 434.381063 | G13: =OFFSET(Renovable!G74,0,($J$1-1)*8) -> - | H13: =OFFSET(Renovable!H74,0,($J$1-1)*8) -> - | I13: =OFFSET(Renovable!I74,0,($J$1-1)*8) -> - | J13: =OFFSET(Renovable!J74,0,($J$1-1)*8) -> -
B14: Solar térmica | C14: =OFFSET(Renovable!C75,0,($J$1-1)*8) -> 5085.235 | D14: =OFFSET(Renovable!D75,0,($J$1-1)*8) -> 5071.204 | E14: =OFFSET(Renovable!E75,0,($J$1-1)*8) -> 5347.949 | F14: =OFFSET(Renovable!F75,0,($J$1-1)*8) -> 130.0769 | G14: =OFFSET(Renovable!G75,0,($J$1-1)*8) -> - | H14: =OFFSET(Renovable!H75,0,($J$1-1)*8) -> - | I14: =OFFSET(Renovable!I75,0,($J$1-1)*8) -> - | J14: =OFFSET(Renovable!J75,0,($J$1-1)*8) -> -
B15: Térmica renovable (3)/Otras renovables (4) | C15: =OFFSET(Renovable!C76,0,($J$1-1)*8) -> 3183.976766 | D15: =OFFSET(Renovable!D76,0,($J$1-1)*8) -> 3424.55952 | E15: =OFFSET(Renovable!E76,0,($J$1-1)*8) -> 3612.818 | F15: =OFFSET(Renovable!F76,0,($J$1-1)*8) -> 302.69605 | G15: =OFFSET(Renovable!G76,0,($J$1-1)*8) -> - | H15: =OFFSET(Renovable!H76,0,($J$1-1)*8) -> - | I15: =OFFSET(Renovable!I76,0,($J$1-1)*8) -> - | J15: =OFFSET(Renovable!J76,0,($J$1-1)*8) -> -
B16: Residuos renovables (5) | C16: =OFFSET(Renovable!C77,0,($J$1-1)*8) -> 818.0485 | D16: =OFFSET(Renovable!D77,0,($J$1-1)*8) -> 785.397 | E16: =OFFSET(Renovable!E77,0,($J$1-1)*8) -> 877.0065 | F16: =OFFSET(Renovable!F77,0,($J$1-1)*8) -> 76.4180315 | G16: =OFFSET(Renovable!G77,0,($J$1-1)*8) -> - | H16: =OFFSET(Renovable!H77,0,($J$1-1)*8) -> - | I16: =OFFSET(Renovable!I77,0,($J$1-1)*8) -> - | J16: =OFFSET(Renovable!J77,0,($J$1-1)*8) -> -
B17: Generación renovable | C17: =IF(SUM(C10:C16)=0,"-",SUM(C10:C16)) -> 93769.87125 | D17: =IF(SUM(D10:D16)=0,"-",SUM(D10:D16)) -> 100936.9955 | E17: 84489.98316 | F17: 8446.294716 | G17: - | H17: - | I17: - | J17: -
B18: (1) Asignación de unidades de producción según combustible principal.
B19: (2) No incluye la generación bombeo.
B20: (3) Incluye residuos hasta el 31/12/2014.
B21: (4) Otras renovables incluyen biogás, biomasa, hidráulica marina y geotérmica.
B22: (5) El 50% de la generación procedente de residuos sólidos urbanos se considera renovable.
B23: =IF(J1=1,"",IF(MONTH(FACT)=1,CONCATENATE(" Para el año ",YEAR(FACT)-1, " valores acumulados hasta ",TEXT(FACT-30,"mmmm")," de ",YEAR(FACT)-1,"."),CONCATENATE(" Para el año ",YEAR(FACT), " valores acumulados hasta ",TEXT(FACT-30,"mmmm")," de ",YEAR(FACT),"."))) -> Para el año 2018 valores acumulados hasta enero de 2018.

Sheet Renovable mes Peninsular
O1: 29
M3: Concepto
M4: Sistema eléctrico
M5: Horizonte temporal
M6: Periodo
C8: Ene. | D8: Feb. | E8: Mar. | F8: Abr. | G8: May. | H8: Jun. | I8: Jul. | J8: Ago. | K8: Sep. | L8: Oct. | M8: Nov. | N8: Dic. | O8: =OFFSET(Año!B2,($O$1-1),0) -> 2018
B10: Hidráulica (2) | C10: =OFFSET(Renovable!C3,0,($O$1-1)*12) -> 2152.871 | D10: =OFFSET(Renovable!D3,0,($O$1-1)*12) -> - | E10: =OFFSET(Renovable!E3,0,($O$1-1)*12) -> - | F10: =OFFSET(Renovable!F3,0,($O$1-1)*12) -> - | G10: =OFFSET(Renovable!G3,0,($O$1-1)*12) -> - | H10: =OFFSET(Renovable!H3,0,($O$1-1)*12) -> - | I10: =OFFSET(Renovable!I3,0,($O$1-1)*12) -> - | J10: =OFFSET(Renovable!J3,0,($O$1-1)*12) -> - | K10: =OFFSET(Renovable!K3,0,($O$1-1)*12) -> - | L10: =OFFSET(Renovable!L3,0,($O$1-1)*12) -> - | M10: =OFFSET(Renovable!M3,0,($O$1-1)*12) -> - | N10: =OFFSET(Renovable!N3,0,($O$1-1)*12) -> - | O10: =IF(SUM(C10:N10)=0,"-",SUM(C10:N10)) -> 2152.871
B11: Eólica | C11: =OFFSET(Renovable!C4,0,($O$1-1)*12) -> 5286.135523 | D11: =OFFSET(Renovable!D4,0,($O$1-1)*12) -> - | E11: =OFFSET(Renovable!E4,0,($O$1-1)*12) -> - | F11: =OFFSET(Renovable!F4,0,($O$1-1)*12) -> - | G11: =OFFSET(Renovable!G4,0,($O$1-1)*12) -> - | H11: =OFFSET(Renovable!H4,0,($O$1-1)*12) -> - | I11: =OFFSET(Renovable!I4,0,($O$1-1)*12) -> - | J11: =OFFSET(Renovable!J4,0,($O$1-1)*12) -> - | K11: =OFFSET(Renovable!K4,0,($O$1-1)*12) -> - | L11: =OFFSET(Renovable!L4,0,($O$1-1)*12) -> - | M11: =OFFSET(Renovable!M4,0,($O$1-1)*12) -> - | N11: =OFFSET(Renovable!N4,0,($O$1-1)*12) -> - | O11: 5286.135523
B12: Solar fotovoltaica | C12: =OFFSET(Renovable!C5,0,($O$1-1)*12) -> 409.4009 | D12: =OFFSET(Renovable!D5,0,($O$1-1)*12) -> - | E12: =OFFSET(Renovable!E5,0,($O$1-1)*12) -> - | F12: =OFFSET(Renovable!F5,0,($O$1-1)*12) -> - | G12: =OFFSET(Renovable!G5,0,($O$1-1)*12) -> - | H12: =OFFSET(Renovable!H5,0,($O$1-1)*12) -> - | I12: =OFFSET(Renovable!I5,0,($O$1-1)*12) -> - | J12: =OFFSET(Renovable!J5,0,($O$1-1)*12) -> - | K12: =OFFSET(Renovable!K5,0,($O$1-1)*12) -> - | L12: =OFFSET(Renovable!L5,0,($O$1-1)*12) -> - | M12: =OFFSET(Renovable!M5,0,($O$1-1)*12) -> - | N12: =OFFSET(Renovable!N5,0,($O$1-1)*12) -> - | O12: 409.4009
B13: Solar térmica | C13: =OFFSET(Renovable!C6,0,($O$1-1)*12) -> 130.0769 | D13: =OFFSET(Renovable!D6,0,($O$1-1)*12) -> - | E13: =OFFSET(Renovable!E6,0,($O$1-1)*12) -> - | F13: =OFFSET(Renovable!F6,0,($O$1-1)*12) -> - | G13: =OFFSET(Renovable!G6,0,($O$1-1)*12) -> - | H13: =OFFSET(Renovable!H6,0,($O$1-1)*12) -> - | I13: =OFFSET(Renovable!I6,0,($O$1-1)*12) -> - | J13: =OFFSET(Renovable!J6,0,($O$1-1)*12) -> - | K13: =OFFSET(Renovable!K6,0,($O$1-1)*12) -> - | L13: =OFFSET(Renovable!L6,0,($O$1-1)*12) -> - | M13: =OFFSET(Renovable!M6,0,($O$1-1)*12) -> - | N13: =OFFSET(Renovable!N6,0,($O$1-1)*12) -> - | O13: 130.0769
B14: Térmica renovable (3)/Otras renovables (4) | C14: =OFFSET(Renovable!C7,0,($O$1-1)*12) -> 302.567 | D14: =OFFSET(Renovable!D7,0,($O$1-1)*12) -> - | E14: =OFFSET(Renovable!E7,0,($O$1-1)*12) -> - | F14: =OFFSET(Renovable!F7,0,($O$1-1)*12) -> - | G14: =OFFSET(Renovable!G7,0,($O$1-1)*12) -> - | H14: =OFFSET(Renovable!H7,0,($O$1-1)*12) -> - | I14: =OFFSET(Renovable!I7,0,($O$1-1)*12) -> - | J14: =OFFSET(Renovable!J7,0,($O$1-1)*12) -> - | K14: =OFFSET(Renovable!K7,0,($O$1-1)*12) -> - | L14: =OFFSET(Renovable!L7,0,($O$1-1)*12) -> - | M14: =OFFSET(Renovable!M7,0,($O$1-1)*12) -> - | N14: =OFFSET(Renovable!N7,0,($O$1-1)*12) -> - | O14: 302.567
B15: Residuos renovables (5) | C15: =OFFSET(Renovable!C8,0,($O$1-1)*12) -> 68.3327 | D15: =OFFSET(Renovable!D8,0,($O$1-1)*12) -> - | E15: =OFFSET(Renovable!E8,0,($O$1-1)*12) -> - | F15: =OFFSET(Renovable!F8,0,($O$1-1)*12) -> - | G15: =OFFSET(Renovable!G8,0,($O$1-1)*12) -> - | H15: =OFFSET(Renovable!H8,0,($O$1-1)*12) -> - | I15: =OFFSET(Renovable!I8,0,($O$1-1)*12) -> - | J15: =OFFSET(Renovable!J8,0,($O$1-1)*12) -> - | K15: =OFFSET(Renovable!K8,0,($O$1-1)*12) -> - | L15: =OFFSET(Renovable!L8,0,($O$1-1)*12) -> - | M15: =OFFSET(Renovable!M8,0,($O$1-1)*12) -> - | N15: =OFFSET(Renovable!N8,0,($O$1-1)*12) -> - | O15: =IF(SUM(C15:N15)=0,"-",SUM(C15:N15)) -> 68.3327
B16: Generación renovable | C16: =IF(SUM(C10:C15)=0,"-",SUM(C10:C15)) -> 8349.384023 | D16: =IF(SUM(D10:D15)=0,"-",SUM(D10:D15)) -> - | E16: - | F16: - | G16: - | H16: - | I16: - | J16: - | K16: - | L16: - | M16: - | N16: - | O16: 8349.384023
B17: (1) Asignación de unidades de producción según combustible principal.
B18: (2) No incluye la generación bombeo.
B19: (3) Incluye residuos hasta el 31/12/2014.
B20: (4) Otras renovables incluyen biogás, biomasa, hidráulica marina y geotérmica.
B21: (5) El 50% de la generación procedente de residuos sólidos urbanos se considera renovable.

Sheet Renovable año Peninsular
J1: 4
H3: Concepto
H4: Sistema eléctrico
H5: Horizonte temporal
H6: Periodo
C8: =OFFSET(Renovable!C41,0,($J$1-1)*8) -> 2014 | D8: =OFFSET(Renovable!D41,0,($J$1-1)*8) -> 2015 | E8: =OFFSET(Renovable!E41,0,($J$1-1)*8) -> 2016 | F8: =OFFSET(Renovable!F41,0,($J$1-1)*8) -> 2017 | G8: =OFFSET(Renovable!G41,0,($J$1-1)*8) -> 2018 | H8: =OFFSET(Renovable!H41,0,($J$1-1)*8) -> 2019 | I8: =OFFSET(Renovable!I41,0,($J$1-1)*8) -> 2020 | J8: =OFFSET(Renovable!J41,0,($J$1-1)*8) -> 2021
B10: Hidráulica (2) | C10: =OFFSET(Renovable!C42,0,($J$1-1)*8) -> 39112.39851 | D10: =OFFSET(Renovable!D42,0,($J$1-1)*8) -> 28312.26501 | E10: =OFFSET(Renovable!E42,0,($J$1-1)*8) -> 35959.99091 | F10: =OFFSET(Renovable!F42,0,($J$1-1)*8) -> 18359.12515 | G10: =OFFSET(Renovable!G42,0,($J$1-1)*8) -> 2152.871 | H10: =OFFSET(Renovable!H42,0,($J$1-1)*8) -> - | I10: =OFFSET(Renovable!I42,0,($J$1-1)*8) -> - | J10: =OFFSET(Renovable!J42,0,($J$1-1)*8) -> -
B11: Eólica | C11: =OFFSET(Renovable!C43,0,($J$1-1)*8) -> 50634.89 | D11: =OFFSET(Renovable!D43,0,($J$1-1)*8) -> 47713.15 | E11: =OFFSET(Renovable!E43,0,($J$1-1)*8) -> 47298.17 | F11: =OFFSET(Renovable!F43,0,($J$1-1)*8) -> 47496.793 | G11: =OFFSET(Renovable!G43,0,($J$1-1)*8) -> 5286.135523 | H11: =OFFSET(Renovable!H43,0,($J$1-1)*8) -> - | I11: =OFFSET(Renovable!I43,0,($J$1-1)*8) -> - | J11: =OFFSET(Renovable!J43,0,($J$1-1)*8) -> -
B12: Solar fotovoltaica | C12: =OFFSET(Renovable!C44,0,($J$1-1)*8) -> 7802.424 | D12: =OFFSET(Renovable!D44,0,($J$1-1)*8) -> 7844.798 | E12: =OFFSET(Renovable!E44,0,($J$1-1)*8) -> 7579.313 | F12: =OFFSET(Renovable!F44,0,($J$1-1)*8) -> 7977.43 | G12: =OFFSET(Renovable!G44,0,($J$1-1)*8) -> 409.4009 | H12: =OFFSET(Renovable!H44,0,($J$1-1)*8) -> - | I12: =OFFSET(Renovable!I44,0,($J$1-1)*8) -> - | J12: =OFFSET(Renovable!J44,0,($J$1-1)*8) -> -
B13: Solar térmica | C13: =OFFSET(Renovable!C45,0,($J$1-1)*8) -> 4958.915 | D13: =OFFSET(Renovable!D45,0,($J$1-1)*8) -> 5085.235 | E13: =OFFSET(Renovable!E45,0,($J$1-1)*8) -> 5071.204 | F13: =OFFSET(Renovable!F45,0,($J$1-1)*8) -> 5347.949 | G13: =OFFSET(Renovable!G45,0,($J$1-1)*8) -> 130.0769 | H13: =OFFSET(Renovable!H45,0,($J$1-1)*8) -> - | I13: =OFFSET(Renovable!I45,0,($J$1-1)*8) -> - | J13: =OFFSET(Renovable!J45,0,($J$1-1)*8) -> -
B14: Térmica renovable (3)/Otras renovables (4) | C14: =OFFSET(Renovable!C46,0,($J$1-1)*8) -> 4717.978 | D14: =OFFSET(Renovable!D46,0,($J$1-1)*8) -> 3173.951 | E14: =OFFSET(Renovable!E46,0,($J$1-1)*8) -> 3413.914 | F14: =OFFSET(Renovable!F46,0,($J$1-1)*8) -> 3601.628 | G14: =OFFSET(Renovable!G46,0,($J$1-1)*8) -> 302.567 | H14: =OFFSET(Renovable!H46,0,($J$1-1)*8) -> - | I14: =OFFSET(Renovable!I46,0,($J$1-1)*8) -> - | J14: =OFFSET(Renovable!J46,0,($J$1-1)*8) -> -
B15: Residuos renovables (5) | C15: =OFFSET(Renovable!C47,0,($J$1-1)*8) -> - | D15: =OFFSET(Renovable!D47,0,($J$1-1)*8) -> 662.655 | E15: =OFFSET(Renovable!E47,0,($J$1-1)*8) -> 649.7415 | F15: =OFFSET(Renovable!F47,0,($J$1-1)*8) -> 728.1505 | G15: =OFFSET(Renovable!G47,0,($J$1-1)*8) -> 68.3327 | H15: =OFFSET(Renovable!H47,0,($J$1-1)*8) -> - | I15: =OFFSET(Renovable!I47,0,($J$1-1)*8) -> - | J15: =OFFSET(Renovable!J47,0,($J$1-1)*8) -> -
B16: Generación renovable | C16: =IF(SUM(C10:C15)=0,"-",SUM(C10:C15)) -> 107226.6055 | D16: =IF(SUM(D10:D15)=0,"-",SUM(D10:D15)) -> 92792.05401 | E16: 99972.33341 | F16: 83511.07565 | G16: 8349.384023 | H16: - | I16: - | J16: -
B17: (1) Asignación de unidades de producción según combustible principal.
B18: (2) No incluye la generación bombeo.
B19: (3) Incluye residuos hasta el 31/12/2014.
B20: (4) Otras renovables incluyen biogás, biomasa, hidráulica marina y geotérmica.
B21: (5) El 50% de la generación procedente de residuos sólidos urbanos se considera renovable.
B22: =IF(J1=4,IF(MONTH(FACT)=1,CONCATENATE(" Para el año ",YEAR(FACT)-1, " valores acumulados hasta ",TEXT(FACT-30,"mmmm")," de ",YEAR(FACT)-1,"."),CONCATENATE(" Para el año ",YEAR(FACT), " valores acumulados hasta ",TEXT(FACT-30,"mmmm")," de ",YEAR(FACT),"."))) -> Para el año 2018 valores acumulados hasta enero de 2018.

Sheet Renovable mes Baleares
O1: 13
M3: Concepto
M4: Sistema eléctrico
M5: Horizonte temporal
M6: Periodo
C8: Ene. | D8: Feb. | E8: Mar. | F8: Abr. | G8: May. | H8: Jun. | I8: Jul. | J8: Ago. | K8: Sep. | L8: Oct. | M8: Nov. | N8: Dic. | O8: =OFFSET(Año!B18,($O$1-1),0) -> 2018
B10: Eólica | C10: =OFFSET(Renovable!C12,0,($O$1-1)*12) -> 271.41 | D10: =OFFSET(Renovable!D12,0,($O$1-1)*12) -> - | E10: =OFFSET(Renovable!E12,0,($O$1-1)*12) -> - | F10: =OFFSET(Renovable!F12,0,($O$1-1)*12) -> - | G10: =OFFSET(Renovable!G12,0,($O$1-1)*12) -> - | H10: =OFFSET(Renovable!H12,0,($O$1-1)*12) -> - | I10: =OFFSET(Renovable!I12,0,($O$1-1)*12) -> - | J10: =OFFSET(Renovable!J12,0,($O$1-1)*12) -> - | K10: =OFFSET(Renovable!K12,0,($O$1-1)*12) -> - | L10: =OFFSET(Renovable!L12,0,($O$1-1)*12) -> - | M10: =OFFSET(Renovable!M12,0,($O$1-1)*12) -> - | N10: =OFFSET(Renovable!N12,0,($O$1-1)*12) -> - | O10: =IF(SUM(C10:N10)=0,"-",SUM(C10:N10)) -> 271.41
B11: Solar fotovoltaica | C11: =OFFSET(Renovable!C13,0,($O$1-1)*12) -> 6585.1 | D11: =OFFSET(Renovable!D13,0,($O$1-1)*12) -> - | E11: =OFFSET(Renovable!E13,0,($O$1-1)*12) -> - | F11: =OFFSET(Renovable!F13,0,($O$1-1)*12) -> - | G11: =OFFSET(Renovable!G13,0,($O$1-1)*12) -> - | H11: =OFFSET(Renovable!H13,0,($O$1-1)*12) -> - | I11: =OFFSET(Renovable!I13,0,($O$1-1)*12) -> - | J11: =OFFSET(Renovable!J13,0,($O$1-1)*12) -> - | K11: =OFFSET(Renovable!K13,0,($O$1-1)*12) -> - | L11: =OFFSET(Renovable!L13,0,($O$1-1)*12) -> - | M11: =OFFSET(Renovable!M13,0,($O$1-1)*12) -> - | N11: =OFFSET(Renovable!N13,0,($O$1-1)*12) -> - | O11: =IF(SUM(C11:N11)=0,"-",SUM(C11:N11)) -> 6585.1
B12: Térmica renovable/Otras renovables (2) | C12: =OFFSET(Renovable!C14,0,($O$1-1)*12) -> 129.05 | D12: =OFFSET(Renovable!D14,0,($O$1-1)*12) -> - | E12: =OFFSET(Renovable!E14,0,($O$1-1)*12) -> - | F12: =OFFSET(Renovable!F14,0,($O$1-1)*12) -> - | G12: =OFFSET(Renovable!G14,0,($O$1-1)*12) -> - | H12: =OFFSET(Renovable!H14,0,($O$1-1)*12) -> - | I12: =OFFSET(Renovable!I14,0,($O$1-1)*12) -> - | J12: =OFFSET(Renovable!J14,0,($O$1-1)*12) -> - | K12: =OFFSET(Renovable!K14,0,($O$1-1)*12) -> - | L12: =OFFSET(Renovable!L14,0,($O$1-1)*12) -> - | M12: =OFFSET(Renovable!M14,0,($O$1-1)*12) -> - | N12: =OFFSET(Renovable!N14,0,($O$1-1)*12) -> - | O12: =IF(SUM(C12:N12)=0,"-",SUM(C12:N12)) -> 129.05
B13: Residuos renovables (3) | C13: =OFFSET(Renovable!C15,0,($O$1-1)*12) -> 7713.55 | D13: =OFFSET(Renovable!D15,0,($O$1-1)*12) -> - | E13: =OFFSET(Renovable!E15,0,($O$1-1)*12) -> - | F13: =OFFSET(Renovable!F15,0,($O$1-1)*12) -> - | G13: =OFFSET(Renovable!G15,0,($O$1-1)*12) -> - | H13: =OFFSET(Renovable!H15,0,($O$1-1)*12) -> - | I13: =OFFSET(Renovable!I15,0,($O$1-1)*12) -> - | J13: =OFFSET(Renovable!J15,0,($O$1-1)*12) -> - | K13: =OFFSET(Renovable!K15,0,($O$1-1)*12) -> - | L13: =OFFSET(Renovable!L15,0,($O$1-1)*12) -> - | M13: =OFFSET(Renovable!M15,0,($O$1-1)*12) -> - | N13: =OFFSET(Renovable!N15,0,($O$1-1)*12) -> - | O13: =IF(SUM(C13:N13)=0,"-",SUM(C13:N13)) -> 7713.55
B14: Generación renovable | C14: =IF(SUM(C10:C13)=0,"-",SUM(C10:C13)) -> 14699.11 | D14: =IF(SUM(D10:D13)=0,"-",SUM(D10:D13)) -> - | E14: - | F14: - | G14: - | H14: - | I14: - | J14: - | K14: - | L14: - | M14: - | N14: - | O14: =IF(SUM(O10:O13)=0,"-",SUM(O10:O13)) -> 14699.11
B15: (1) Asignación de unidades de producción según combustible principal.
B16: (2) Otras renovables incluyen biogás y biomasa.
B17: (3) El 50% de la generación procedente de residuos sólidos urbanos se considera renovable.

Sheet Renovable año Baleares
J1: 2
H3: Concepto
H4: Sistema eléctrico
H5: Horizonte temporal
H6: Periodo
C8: =OFFSET(Renovable!C50,0,($J$1-1)*8) -> 2014 | D8: =OFFSET(Renovable!D50,0,($J$1-1)*8) -> 2015 | E8: =OFFSET(Renovable!E50,0,($J$1-1)*8) -> 2016 | F8: =OFFSET(Renovable!F50,0,($J$1-1)*8) -> 2017 | G8: =OFFSET(Renovable!G50,0,($J$1-1)*8) -> 2018 | H8: =OFFSET(Renovable!H50,0,($J$1-1)*8) -> 2019 | I8: =OFFSET(Renovable!I50,0,($J$1-1)*8) -> 2020 | J8: =OFFSET(Renovable!J50,0,($J$1-1)*8) -> 2021
B10: Eólica | C10: =OFFSET(Renovable!C51,0,($J$1-1)*8) -> 5839 | D10: =OFFSET(Renovable!D51,0,($J$1-1)*8) -> 5317.02 | E10: =OFFSET(Renovable!E51,0,($J$1-1)*8) -> 5414.64 | F10: =OFFSET(Renovable!F51,0,($J$1-1)*8) -> 2925 | G10: =OFFSET(Renovable!G51,0,($J$1-1)*8) -> 271.41 | H10: =OFFSET(Renovable!H51,0,($J$1-1)*8) -> - | I10: =OFFSET(Renovable!I51,0,($J$1-1)*8) -> - | J10: =OFFSET(Renovable!J51,0,($J$1-1)*8) -> -
B11: Solar fotovoltaica | C11: =OFFSET(Renovable!C52,0,($J$1-1)*8) -> 122773 | D11: =OFFSET(Renovable!D52,0,($J$1-1)*8) -> 122645.48 | E11: =OFFSET(Renovable!E52,0,($J$1-1)*8) -> 120533.8 | F11: =OFFSET(Renovable!F52,0,($J$1-1)*8) -> 122875 | G11: =OFFSET(Renovable!G52,0,($J$1-1)*8) -> 6585.1 | H11: =OFFSET(Renovable!H52,0,($J$1-1)*8) -> - | I11: =OFFSET(Renovable!I52,0,($J$1-1)*8) -> - | J11: =OFFSET(Renovable!J52,0,($J$1-1)*8) -> -
B12: Térmica renovable/Otras renovables (2) | C12: =OFFSET(Renovable!C53,0,($J$1-1)*8) -> 1944 | D12: =OFFSET(Renovable!D53,0,($J$1-1)*8) -> 1972.55 | E12: =OFFSET(Renovable!E53,0,($J$1-1)*8) -> 1309.52 | F12: =OFFSET(Renovable!F53,0,($J$1-1)*8) -> 1625 | G12: =OFFSET(Renovable!G53,0,($J$1-1)*8) -> 129.05 | H12: =OFFSET(Renovable!H53,0,($J$1-1)*8) -> - | I12: =OFFSET(Renovable!I53,0,($J$1-1)*8) -> - | J12: =OFFSET(Renovable!J53,0,($J$1-1)*8) -> -
B13: Residuos renovables (3) | C13: =OFFSET(Renovable!C54,0,($J$1-1)*8) -> - | D13: =OFFSET(Renovable!D54,0,($J$1-1)*8) -> 151098 | E13: =OFFSET(Renovable!E54,0,($J$1-1)*8) -> 130805.5 | F13: =OFFSET(Renovable!F54,0,($J$1-1)*8) -> 143878.5 | G13: =OFFSET(Renovable!G54,0,($J$1-1)*8) -> 7713.55 | H13: =OFFSET(Renovable!H54,0,($J$1-1)*8) -> - | I13: =OFFSET(Renovable!I54,0,($J$1-1)*8) -> - | J13: =OFFSET(Renovable!J54,0,($J$1-1)*8) -> -
B14: Generación renovable | C14: =IF(SUM(C10:C13)=0,"-",SUM(C10:C13)) -> 130556 | D14: =IF(SUM(D10:D13)=0,"-",SUM(D10:D13)) -> 281033.05 | E14: 258063.46 | F14: 271303.5 | G14: 14699.11 | H14: - | I14: - | J14: -
B15: (1) Asignación de unidades de producción según combustible principal.
B16: (2) Otras renovables incluyen biogás y biomasa.
B17: (3) El 50% de la generación procedente de residuos sólidos urbanos se considera renovable.
B18: =IF(J1=1,"",IF(MONTH(FACT)=1,CONCATENATE(" Para el año ",YEAR(FACT)-1, " valores acumulados hasta ",TEXT(FACT-30,"mmmm")," de ",YEAR(FACT)-1,"."),CONCATENATE(" Para el año ",YEAR(FACT), " valores acumulados hasta ",TEXT(FACT-30,"mmmm")," de ",YEAR(FACT),"."))) -> Para el año 2018 valores acumulados hasta enero de 2018.

Sheet Renovable mes Canarias
O1: 13
M3: Concepto
M4: Sistema eléctrico
M5: Horizonte temporal
M6: Periodo
C8: Ene. | D8: Feb. | E8: Mar. | F8: Abr. | G8: May. | H8: Jun. | I8: Jul. | J8: Ago. | K8: Sep. | L8: Oct. | M8: Nov. | N8: Dic. | O8: =OFFSET(Año!B18,($O$1-1),0) -> 2018
B10: Hidráulica | C10: =OFFSET(Renovable!C19,0,($O$1-1)*12) -> 0 | D10: =OFFSET(Renovable!D19,0,($O$1-1)*12) -> - | E10: =OFFSET(Renovable!E19,0,($O$1-1)*12) -> - | F10: =OFFSET(Renovable!F19,0,($O$1-1)*12) -> - | G10: =OFFSET(Renovable!G19,0,($O$1-1)*12) -> - | H10: =OFFSET(Renovable!H19,0,($O$1-1)*12) -> - | I10: =OFFSET(Renovable!I19,0,($O$1-1)*12) -> - | J10: =OFFSET(Renovable!J19,0,($O$1-1)*12) -> - | K10: =OFFSET(Renovable!K19,0,($O$1-1)*12) -> - | L10: =OFFSET(Renovable!L19,0,($O$1-1)*12) -> - | M10: =OFFSET(Renovable!M19,0,($O$1-1)*12) -> - | N10: =OFFSET(Renovable!N19,0,($O$1-1)*12) -> - | O10: =IF(SUM(C10:N10)=0,"-",SUM(C10:N10)) -> -
B11: Hidroeólica | C11: =OFFSET(Renovable!C20,0,($O$1-1)*12) -> 2270.14 | D11: =OFFSET(Renovable!D20,0,($O$1-1)*12) -> - | E11: =OFFSET(Renovable!E20,0,($O$1-1)*12) -> - | F11: =OFFSET(Renovable!F20,0,($O$1-1)*12) -> - | G11: =OFFSET(Renovable!G20,0,($O$1-1)*12) -> - | H11: =OFFSET(Renovable!H20,0,($O$1-1)*12) -> - | I11: =OFFSET(Renovable!I20,0,($O$1-1)*12) -> - | J11: =OFFSET(Renovable!J20,0,($O$1-1)*12) -> - | K11: =OFFSET(Renovable!K20,0,($O$1-1)*12) -> - | L11: =OFFSET(Renovable!L20,0,($O$1-1)*12) -> - | M11: =OFFSET(Renovable!M20,0,($O$1-1)*12) -> - | N11: =OFFSET(Renovable!N20,0,($O$1-1)*12) -> - | O11: 2270.14
B12: Eólica | C12: =OFFSET(Renovable!C21,0,($O$1-1)*12) -> 61174.599 | D12: =OFFSET(Renovable!D21,0,($O$1-1)*12) -> - | E12: =OFFSET(Renovable!E21,0,($O$1-1)*12) -> - | F12: =OFFSET(Renovable!F21,0,($O$1-1)*12) -> - | G12: =OFFSET(Renovable!G21,0,($O$1-1)*12) -> - | H12: =OFFSET(Renovable!H21,0,($O$1-1)*12) -> - | I12: =OFFSET(Renovable!I21,0,($O$1-1)*12) -> - | J12: =OFFSET(Renovable!J21,0,($O$1-1)*12) -> - | K12: =OFFSET(Renovable!K21,0,($O$1-1)*12) -> - | L12: =OFFSET(Renovable!L21,0,($O$1-1)*12) -> - | M12: =OFFSET(Renovable!M21,0,($O$1-1)*12) -> - | N12: =OFFSET(Renovable!N21,0,($O$1-1)*12) -> - | O12: 61174.599
B13: Solar fotovoltaica | C13: =OFFSET(Renovable!C22,0,($O$1-1)*12) -> 18395.063 | D13: =OFFSET(Renovable!D22,0,($O$1-1)*12) -> - | E13: =OFFSET(Renovable!E22,0,($O$1-1)*12) -> - | F13: =OFFSET(Renovable!F22,0,($O$1-1)*12) -> - | G13: =OFFSET(Renovable!G22,0,($O$1-1)*12) -> - | H13: =OFFSET(Renovable!H22,0,($O$1-1)*12) -> - | I13: =OFFSET(Renovable!I22,0,($O$1-1)*12) -> - | J13: =OFFSET(Renovable!J22,0,($O$1-1)*12) -> - | K13: =OFFSET(Renovable!K22,0,($O$1-1)*12) -> - | L13: =OFFSET(Renovable!L22,0,($O$1-1)*12) -> - | M13: =OFFSET(Renovable!M22,0,($O$1-1)*12) -> - | N13: =OFFSET(Renovable!N22,0,($O$1-1)*12) -> - | O13: 18395.063
B14: Térmica renovable/Otras renovables (2) | C14: =OFFSET(Renovable!C23,0,($O$1-1)*12) -> 0 | D14: =OFFSET(Renovable!D23,0,($O$1-1)*12) -> - | E14: =OFFSET(Renovable!E23,0,($O$1-1)*12) -> - | F14: =OFFSET(Renovable!F23,0,($O$1-1)*12) -> - | G14: =OFFSET(Renovable!G23,0,($O$1-1)*12) -> - | H14: =OFFSET(Renovable!H23,0,($O$1-1)*12) -> - | I14: =OFFSET(Renovable!I23,0,($O$1-1)*12) -> - | J14: =OFFSET(Renovable!J23,0,($O$1-1)*12) -> - | K14: =OFFSET(Renovable!K23,0,($O$1-1)*12) -> - | L14: =OFFSET(Renovable!L23,0,($O$1-1)*12) -> - | M14: =OFFSET(Renovable!M23,0,($O$1-1)*12) -> - | N14: =OFFSET(Renovable!N23,0,($O$1-1)*12) -> - | O14: -
B15: Generación renovable | C15: =IF(SUM(C10:C14)=0,"-",SUM(C10:C14)) -> 81839.802 | D15: =IF(SUM(D10:D14)=0,"-",SUM(D10:D14)) -> - | E15: - | F15: - | G15: - | H15: - | I15: - | J15: - | K15: - | L15: - | M15: - | N15: - | O15: 81839.802
B16: (1) Asignación de unidades de producción según combustible principal.
B17: (2) Otras renovables incluyen biogás y biomasa.

Sheet Renovable año Canarias
J1: 2
H3: Concepto
H4: Sistema eléctrico
H5: Horizonte temporal
H6: Periodo
C8: =OFFSET(Renovable!C57,0,($J$1-1)*8) -> 2014 | D8: =OFFSET(Renovable!D57,0,($J$1-1)*8) -> 2015 | E8: =OFFSET(Renovable!E57,0,($J$1-1)*8) -> 2016 | F8: =OFFSET(Renovable!F57,0,($J$1-1)*8) -> 2017 | G8: =OFFSET(Renovable!G57,0,($J$1-1)*8) -> 2018 | H8: =OFFSET(Renovable!H57,0,($J$1-1)*8) -> 2019 | I8: =OFFSET(Renovable!I57,0,($J$1-1)*8) -> 2020 | J8: =OFFSET(Renovable!J57,0,($J$1-1)*8) -> 2021
B10: Hidráulica | C10: =OFFSET(Renovable!C58,0,($J$1-1)*8) -> 3479.021 | D10: =OFFSET(Renovable!D58,0,($J$1-1)*8) -> 3585.2 | E10: =OFFSET(Renovable!E58,0,($J$1-1)*8) -> 3472 | F10: =OFFSET(Renovable!F58,0,($J$1-1)*8) -> 3282 | G10: =OFFSET(Renovable!G58,0,($J$1-1)*8) -> 0 | H10: =OFFSET(Renovable!H58,0,($J$1-1)*8) -> - | I10: =OFFSET(Renovable!I58,0,($J$1-1)*8) -> - | J10: =OFFSET(Renovable!J58,0,($J$1-1)*8) -> -
B11: Hidroeólica | C11: =OFFSET(Renovable!C59,0,($J$1-1)*8) -> 1071.861 | D11: =OFFSET(Renovable!D59,0,($J$1-1)*8) -> 8557.066 | E11: =OFFSET(Renovable!E59,0,($J$1-1)*8) -> 18102.639 | F11: =OFFSET(Renovable!F59,0,($J$1-1)*8) -> 20398.516 | G11: =OFFSET(Renovable!G59,0,($J$1-1)*8) -> 2270.14 | H11: =OFFSET(Renovable!H59,0,($J$1-1)*8) -> - | I11: =OFFSET(Renovable!I59,0,($J$1-1)*8) -> - | J11: =OFFSET(Renovable!J59,0,($J$1-1)*8) -> -
B12: Eólica | C12: =OFFSET(Renovable!C60,0,($J$1-1)*8) -> 389964 | D12: =OFFSET(Renovable!D60,0,($J$1-1)*8) -> 396661.052 | E12: =OFFSET(Renovable!E60,0,($J$1-1)*8) -> 393086 | F12: =OFFSET(Renovable!F60,0,($J$1-1)*8) -> 395854 | G12: =OFFSET(Renovable!G60,0,($J$1-1)*8) -> 61174.599 | H12: =OFFSET(Renovable!H60,0,($J$1-1)*8) -> - | I12: =OFFSET(Renovable!I60,0,($J$1-1)*8) -> - | J12: =OFFSET(Renovable!J60,0,($J$1-1)*8) -> -
B13: Solar fotovoltaica | C13: =OFFSET(Renovable!C61,0,($J$1-1)*8) -> 282291 | D13: =OFFSET(Renovable!D61,0,($J$1-1)*8) -> 275554.161 | E13: =OFFSET(Renovable!E61,0,($J$1-1)*8) -> 277674 | F13: =OFFSET(Renovable!F61,0,($J$1-1)*8) -> 273451 | G13: =OFFSET(Renovable!G61,0,($J$1-1)*8) -> 18395.063 | H13: =OFFSET(Renovable!H61,0,($J$1-1)*8) -> - | I13: =OFFSET(Renovable!I61,0,($J$1-1)*8) -> - | J13: =OFFSET(Renovable!J61,0,($J$1-1)*8) -> -
B14: Térmica renovable/Otras renovables (2) | C14: =OFFSET(Renovable!C62,0,($J$1-1)*8) -> 8806.722 | D14: =OFFSET(Renovable!D62,0,($J$1-1)*8) -> 8053.216 | E14: =OFFSET(Renovable!E62,0,($J$1-1)*8) -> 9336 | F14: =OFFSET(Renovable!F62,0,($J$1-1)*8) -> 9565 | G14: =OFFSET(Renovable!G62,0,($J$1-1)*8) -> 0 | H14: =OFFSET(Renovable!H62,0,($J$1-1)*8) -> - | I14: =OFFSET(Renovable!I62,0,($J$1-1)*8) -> - | J14: =OFFSET(Renovable!J62,0,($J$1-1)*8) -> -
B15: Generación renovable | C15: =IF(SUM(C10:C14)=0,"-",SUM(C10:C14)) -> 685612.604 | D15: =IF(SUM(D10:D14)=0,"-",SUM(D10:D14)) -> 692410.695 | E15: 701670.639 | F15: 702550.516 | G15: 81839.802 | H15: - | I15: - | J15: -
B16: (1) Asignación de unidades de producción según combustible principal.
B17: (2) Otras renovables incluyen biogás y biomasa.
B18: =IF(J1=1,"",IF(MONTH(FACT)=1,CONCATENATE(" Para el año ",YEAR(FACT)-1, " valores acumulados hasta ",TEXT(FACT-30,"mmmm")," de ",YEAR(FACT)-1,"."),CONCATENATE(" Para el año ",YEAR(FACT), " valores acumulados hasta ",TEXT(FACT-30,"mmmm")," de ",YEAR(FACT),"."))) -> Para el año 2018 valores acumulados hasta enero de 2018.

Sheet Renovable mes Melilla
O1: 12
M3: Concepto
M4: Sistema eléctrico
M5: Horizonte temporal
M6: Periodo
C8: Ene. | D8: Feb. | E8: Mar. | F8: Abr. | G8: May. | H8: Jun. | I8: Jul. | J8: Ago. | K8: Sep. | L8: Oct. | M8: Nov. | N8: Dic. | O8: =OFFSET(Año!B19,($O$1-1),0) -> 2018
B10: Solar fotovoltaica | C10: =OFFSET(Renovable!C27,0,($O$1-1)*12) -> 0 | D10: =OFFSET(Renovable!D27,0,($O$1-1)*12) -> - | E10: =OFFSET(Renovable!E27,0,($O$1-1)*12) -> - | F10: =OFFSET(Renovable!F27,0,($O$1-1)*12) -> - | G10: =OFFSET(Renovable!G27,0,($O$1-1)*12) -> - | H10: =OFFSET(Renovable!H27,0,($O$1-1)*12) -> - | I10: =OFFSET(Renovable!I27,0,($O$1-1)*12) -> - | J10: =OFFSET(Renovable!J27,0,($O$1-1)*12) -> - | K10: =OFFSET(Renovable!K27,0,($O$1-1)*12) -> - | L10: =OFFSET(Renovable!L27,0,($O$1-1)*12) -> - | M10: =OFFSET(Renovable!M27,0,($O$1-1)*12) -> - | N10: =OFFSET(Renovable!N27,0,($O$1-1)*12) -> - | O10: =IF(SUM(C10:N10)=0,"-",SUM(C10:N10)) -> -
B11: Residuos renovables (2) | C11: =OFFSET(Renovable!C28,0,($O$1-1)*12) -> 371.7815 | D11: =OFFSET(Renovable!D28,0,($O$1-1)*12) -> - | E11: =OFFSET(Renovable!E28,0,($O$1-1)*12) -> - | F11: =OFFSET(Renovable!F28,0,($O$1-1)*12) -> - | G11: =OFFSET(Renovable!G28,0,($O$1-1)*12) -> - | H11: =OFFSET(Renovable!H28,0,($O$1-1)*12) -> - | I11: =OFFSET(Renovable!I28,0,($O$1-1)*12) -> - | J11: =OFFSET(Renovable!J28,0,($O$1-1)*12) -> - | K11: =OFFSET(Renovable!K28,0,($O$1-1)*12) -> - | L11: =OFFSET(Renovable!L28,0,($O$1-1)*12) -> - | M11: =OFFSET(Renovable!M28,0,($O$1-1)*12) -> - | N11: =OFFSET(Renovable!N28,0,($O$1-1)*12) -> - | O11: =IF(SUM(C11:N11)=0,"-",SUM(C11:N11)) -> 371.7815
B12: Generación renovable | C12: =IF(SUM(C10:C11)=0,"-",SUM(C10:C11)) -> 371.7815 | D12: - | E12: - | F12: - | G12: - | H12: =IF(SUM(H10:H11)=0,"-",SUM(H10:H11)) -> - | I12: =IF(SUM(I10:I11)=0,"-",SUM(I10:I11)) -> - | J12: - | K12: - | L12: - | M12: - | N12: - | O12: =SUM(O10:O11) -> 371.7815
B13: (1) Asignación de unidades de producción según combustible principal.
B14: (2) El 50% de la generación procedente de residuos sólidos urbanos se considera renovable.

Sheet Renovable año Melilla
J1: 2
H3: Concepto
H4: Sistema eléctrico
H5: Horizonte temporal
H6: Periodo
C8: =OFFSET(Renovable!C65,0,($J$1-1)*8) -> 2015 | D8: =OFFSET(Renovable!D65,0,($J$1-1)*8) -> 2016 | E8: =OFFSET(Renovable!E65,0,($J$1-1)*8) -> 2017 | F8: =OFFSET(Renovable!F65,0,($J$1-1)*8) -> 2018 | G8: =OFFSET(Renovable!G65,0,($J$1-1)*8) -> 2019 | H8: =OFFSET(Renovable!H65,0,($J$1-1)*8) -> 2020 | I8: =OFFSET(Renovable!I65,0,($J$1-1)*8) -> 2021 | J8: =OFFSET(Renovable!J65,0,($J$1-1)*8) -> 2022
B10: Solar fotovoltaica | C10: =OFFSET(Renovable!C66,0,($J$1-1)*8) -> 78 | D10: =OFFSET(Renovable!D66,0,($J$1-1)*8) -> 78 | E10: =OFFSET(Renovable!E66,0,($J$1-1)*8) -> 76 | F10: =OFFSET(Renovable!F66,0,($J$1-1)*8) -> 0 | G10: =OFFSET(Renovable!G66,0,($J$1-1)*8) -> - | H10: =OFFSET(Renovable!H66,0,($J$1-1)*8) -> - | I10: =OFFSET(Renovable!I66,0,($J$1-1)*8) -> - | J10: =OFFSET(Renovable!J66,0,($J$1-1)*8) -> -
B11: Residuos renovables (2) | C11: =OFFSET(Renovable!C67,0,($J$1-1)*8) -> 4295.5 | D11: =OFFSET(Renovable!D67,0,($J$1-1)*8) -> 4850 | E11: =OFFSET(Renovable!E67,0,($J$1-1)*8) -> 4977.5 | F11: =OFFSET(Renovable!F67,0,($J$1-1)*8) -> 371.7815 | G11: =OFFSET(Renovable!G67,0,($J$1-1)*8) -> - | H11: =OFFSET(Renovable!H67,0,($J$1-1)*8) -> - | I11: =OFFSET(Renovable!I67,0,($J$1-1)*8) -> - | J11: =OFFSET(Renovable!J67,0,($J$1-1)*8) -> -
B12: Generación renovable | C12: =IF(SUM(C10:C11)>0,SUM(C10:C11),"-") -> 4373.5 | D12: =IF(SUM(D10:D11)>0,SUM(D10:D11),"-") -> 4928 | E12: 5053.5 | F12: 371.7815 | G12: - | H12: - | I12: - | J12: -
B13: (1) Asignación de unidades de producción según combustible principal.
B14: (2) El 50% de la generación procedente de residuos sólidos urbanos se considera renovable.
B15: =IF(J1=1,"",IF(MONTH(FACT)=1,CONCATENATE(" Para el año ",YEAR(FACT)-1, " valores acumulados hasta ",TEXT(FACT-30,"mmmm")," de ",YEAR(FACT)-1,"."),CONCATENATE(" Para el año ",YEAR(FACT), " valores acumulados hasta ",TEXT(FACT-30,"mmmm")," de ",YEAR(FACT),"."))) -> Para el año 2018 valores acumulados hasta enero de 2018.

Sheet % Renovable mes nacional
O1: 11
M3: Concepto
M4: Sistema eléctrico
M5: Horizonte temporal
M6: Periodo
C8: Ene. | D8: Feb. | E8: Mar. | F8: Abr. | G8: May. | H8: Jun. | I8: Jul. | J8: Ago. | K8: Sep. | L8: Oct. | M8: Nov. | N8: Dic. | O8: =OFFSET(Año!B19,($O$1-1),0) -> 2017
B10: Hidráulica (2) | C10: =OFFSET(Renovable!C110,0,($O$1-1)*12) -> 8.1 | D10: =OFFSET(Renovable!D110,0,($O$1-1)*12) -> 9.3 | E10: =OFFSET(Renovable!E110,0,($O$1-1)*12) -> 12.7 | F10: =OFFSET(Renovable!F110,0,($O$1-1)*12) -> 8.9 | G10: =OFFSET(Renovable!G110,0,($O$1-1)*12) -> 9.5 | H10: =OFFSET(Renovable!H110,0,($O$1-1)*12) -> 7.4 | I10: =OFFSET(Renovable!I110,0,($O$1-1)*12) -> 5.2 | J10: =OFFSET(Renovable!J110,0,($O$1-1)*12) -> 5 | K10: =OFFSET(Renovable!K110,0,($O$1-1)*12) -> 5.8 | L10: =OFFSET(Renovable!L110,0,($O$1-1)*12) -> 3.9 | M10: =OFFSET(Renovable!M110,0,($O$1-1)*12) -> 3.7 | N10: =OFFSET(Renovable!N110,0,($O$1-1)*12) -> 5.2 | O10: =OFFSET(Renovable!C149,0,($O$1-1)) -> 7
B11: Hidroeólica | C11: =OFFSET(Renovable!C111,0,($O$1-1)*12) -> 0 | D11: =OFFSET(Renovable!D111,0,($O$1-1)*12) -> 0 | E11: =OFFSET(Renovable!E111,0,($O$1-1)*12) -> 0 | F11: =OFFSET(Renovable!F111,0,($O$1-1)*12) -> 0 | G11: =OFFSET(Renovable!G111,0,($O$1-1)*12) -> 0 | H11: =OFFSET(Renovable!H111,0,($O$1-1)*12) -> 0 | I11: =OFFSET(Renovable!I111,0,($O$1-1)*12) -> 0 | J11: =OFFSET(Renovable!J111,0,($O$1-1)*12) -> 0 | K11: =OFFSET(Renovable!K111,0,($O$1-1)*12) -> 0 | L11: =OFFSET(Renovable!L111,0,($O$1-1)*12) -> 0 | M11: =OFFSET(Renovable!M111,0,($O$1-1)*12) -> 0 | N11: =OFFSET(Renovable!N111,0,($O$1-1)*12) -> 0 | O11: =OFFSET(Renovable!C150,0,($O$1-1)) -> 0
B12: Eólica | C12: =OFFSET(Renovable!C112,0,($O$1-1)*12) -> 19 | D12: =OFFSET(Renovable!D112,0,($O$1-1)*12) -> 23.4 | E12: =OFFSET(Renovable!E112,0,($O$1-1)*12) -> 22.3 | F12: =OFFSET(Renovable!F112,0,($O$1-1)*12) -> 21.8 | G12: =OFFSET(Renovable!G112,0,($O$1-1)*12) -> 17.1 | H12: =OFFSET(Renovable!H112,0,($O$1-1)*12) -> 14.4 | I12: =OFFSET(Renovable!I112,0,($O$1-1)*12) -> 14.9 | J12: =OFFSET(Renovable!J112,0,($O$1-1)*12) -> 15.4 | K12: =OFFSET(Renovable!K112,0,($O$1-1)*12) -> 14.1 | L12: =OFFSET(Renovable!L112,0,($O$1-1)*12) -> 14.9 | M12: =OFFSET(Renovable!M112,0,($O$1-1)*12) -> 17.5 | N12: =OFFSET(Renovable!N112,0,($O$1-1)*12) -> 23.8 | O12: =OFFSET(Renovable!C151,0,($O$1-1)) -> 18.2
B13: Solar fotovoltaica | C13: =OFFSET(Renovable!C113,0,($O$1-1)*12) -> 1.9 | D13: =OFFSET(Renovable!D113,0,($O$1-1)*12) -> 2.1 | E13: =OFFSET(Renovable!E113,0,($O$1-1)*12) -> 3.4 | F13: =OFFSET(Renovable!F113,0,($O$1-1)*12) -> 4.3 | G13: =OFFSET(Renovable!G113,0,($O$1-1)*12) -> 4.3 | H13: =OFFSET(Renovable!H113,0,($O$1-1)*12) -> 4 | I13: =OFFSET(Renovable!I113,0,($O$1-1)*12) -> 4 | J13: =OFFSET(Renovable!J113,0,($O$1-1)*12) -> 3.8 | K13: =OFFSET(Renovable!K113,0,($O$1-1)*12) -> 3.8 | L13: =OFFSET(Renovable!L113,0,($O$1-1)*12) -> 3.1 | M13: =OFFSET(Renovable!M113,0,($O$1-1)*12) -> 2.4 | N13: =OFFSET(Renovable!N113,0,($O$1-1)*12) -> 1.8 | O13: =OFFSET(Renovable!C152,0,($O$1-1)) -> 3.2
B14: Solar térmica | C14: =OFFSET(Renovable!C114,0,($O$1-1)*12) -> 0.6 | D14: =OFFSET(Renovable!D114,0,($O$1-1)*12) -> 0.4 | E14: =OFFSET(Renovable!E114,0,($O$1-1)*12) -> 1.6 | F14: =OFFSET(Renovable!F114,0,($O$1-1)*12) -> 2.8 | G14: =OFFSET(Renovable!G114,0,($O$1-1)*12) -> 3 | H14: =OFFSET(Renovable!H114,0,($O$1-1)*12) -> 3.4 | I14: =OFFSET(Renovable!I114,0,($O$1-1)*12) -> 3.6 | J14: =OFFSET(Renovable!J114,0,($O$1-1)*12) -> 3.2 | K14: =OFFSET(Renovable!K114,0,($O$1-1)*12) -> 3 | L14: =OFFSET(Renovable!L114,0,($O$1-1)*12) -> 1.9 | M14: =OFFSET(Renovable!M114,0,($O$1-1)*12) -> 1 | N14: =OFFSET(Renovable!N114,0,($O$1-1)*12) -> 0.5 | O14: =OFFSET(Renovable!C153,0,($O$1-1)) -> 2
B15: Térmica renovable (3)/Otras renovables (4) | C15: =OFFSET(Renovable!C115,0,($O$1-1)*12) -> 1.3 | D15: =OFFSET(Renovable!D115,0,($O$1-1)*12) -> 1.4 | E15: =OFFSET(Renovable!E115,0,($O$1-1)*12) -> 1.3 | F15: =OFFSET(Renovable!F115,0,($O$1-1)*12) -> 1.2 | G15: =OFFSET(Renovable!G115,0,($O$1-1)*12) -> 1.5 | H15: =OFFSET(Renovable!H115,0,($O$1-1)*12) -> 1.4 | I15: =OFFSET(Renovable!I115,0,($O$1-1)*12) -> 1.5 | J15: =OFFSET(Renovable!J115,0,($O$1-1)*12) -> 1.5 | K15: =OFFSET(Renovable!K115,0,($O$1-1)*12) -> 1.5 | L15: =OFFSET(Renovable!L115,0,($O$1-1)*12) -> 1.4 | M15: =OFFSET(Renovable!M115,0,($O$1-1)*12) -> 1.4 | N15: =OFFSET(Renovable!N115,0,($O$1-1)*12) -> 1.3 | O15: =OFFSET(Renovable!C154,0,($O$1-1)) -> 1.4
B16: Residuos renovables (5) | C16: =OFFSET(Renovable!C116,0,($O$1-1)*12) -> 0.3 | D16: =OFFSET(Renovable!D116,0,($O$1-1)*12) -> 0.3 | E16: =OFFSET(Renovable!E116,0,($O$1-1)*12) -> 0.3 | F16: =OFFSET(Renovable!F116,0,($O$1-1)*12) -> 0.3 | G16: =OFFSET(Renovable!G116,0,($O$1-1)*12) -> 0.2 | H16: =OFFSET(Renovable!H116,0,($O$1-1)*12) -> 0.4 | I16: =OFFSET(Renovable!I116,0,($O$1-1)*12) -> 0.4 | J16: =OFFSET(Renovable!J116,0,($O$1-1)*12) -> 0.4 | K16: =OFFSET(Renovable!K116,0,($O$1-1)*12) -> 0.4 | L16: =OFFSET(Renovable!L116,0,($O$1-1)*12) -> 0.4 | M16: =OFFSET(Renovable!M116,0,($O$1-1)*12) -> 0.3 | N16: =OFFSET(Renovable!N116,0,($O$1-1)*12) -> 0.3 | O16: =OFFSET(Renovable!C155,0,($O$1-1)) -> 0.3
B17: Generación renovable | C17: =IF(SUM(C10:C16)=0,"-",SUM(C10:C16)) -> 31.2 | D17: =IF(SUM(D10:D16)=0,"-",SUM(D10:D16)) -> 36.9 | E17: 41.6 | F17: 39.3 | G17: 35.6 | H17: 31 | I17: 29.6 | J17: 29.3 | K17: 28.6 | L17: 25.6 | M17: 26.3 | N17: 32.9 | O17: =IF(SUM(O10:O16)=0,"-",SUM(O10:O16)) -> 32.1
B18: (1) Asignación de unidades de producción según combustible principal.
B19: (2) No incluye la generación bombeo.
B20: (3) Incluye residuos hasta el 31/12/2014.
B21: (4) Otras renovables incluyen biogás, biomasa, hidráulica marina y geotérmica.
B22: (5) El 50% de la generación procedente de residuos sólidos urbanos se considera renovable.

Sheet % Renovable año nacional
J1: 2
H3: Concepto
H4: Sistema eléctrico
H5: Horizonte temporal
H6: Periodo
C8: =OFFSET(Renovable!C148,0,($J$1-1)*8) -> 2015 | D8: =OFFSET(Renovable!D148,0,($J$1-1)*8) -> 2016 | E8: =OFFSET(Renovable!E148,0,($J$1-1)*8) -> 2017 | F8: =OFFSET(Renovable!F148,0,($J$1-1)*8) -> 2018 | G8: =OFFSET(Renovable!G148,0,($J$1-1)*8) -> 2019 | H8: =OFFSET(Renovable!H148,0,($J$1-1)*8) -> 2020 | I8: =OFFSET(Renovable!I148,0,($J$1-1)*8) -> 2021 | J8: =OFFSET(Renovable!J148,0,($J$1-1)*8) -> 2022
B10: Hidráulica (2) | C10: =OFFSET(Renovable!C149,0,($J$1-1)*8) -> 10.6 | D10: =OFFSET(Renovable!D149,0,($J$1-1)*8) -> 13.7 | E10: =OFFSET(Renovable!E149,0,($J$1-1)*8) -> 7 | F10: =OFFSET(Renovable!F149,0,($J$1-1)*8) -> 9.4 | G10: =OFFSET(Renovable!G149,0,($J$1-1)*8) -> - | H10: =OFFSET(Renovable!H149,0,($J$1-1)*8) -> - | I10: =OFFSET(Renovable!I149,0,($J$1-1)*8) -> - | J10: =OFFSET(Renovable!J149,0,($J$1-1)*8) -> -
B11: Hidroeólica | C11: =OFFSET(Renovable!C150,0,($J$1-1)*8) -> 0 | D11: =OFFSET(Renovable!D150,0,($J$1-1)*8) -> 0 | E11: =OFFSET(Renovable!E150,0,($J$1-1)*8) -> 0 | F11: =OFFSET(Renovable!F150,0,($J$1-1)*8) -> 0 | G11: =OFFSET(Renovable!G150,0,($J$1-1)*8) -> - | H11: =OFFSET(Renovable!H150,0,($J$1-1)*8) -> - | I11: =OFFSET(Renovable!I150,0,($J$1-1)*8) -> - | J11: =OFFSET(Renovable!J150,0,($J$1-1)*8) -> -
B12: Eólica | C12: =OFFSET(Renovable!C151,0,($J$1-1)*8) -> 18 | D12: =OFFSET(Renovable!D151,0,($J$1-1)*8) -> 18.2 | E12: =OFFSET(Renovable!E151,0,($J$1-1)*8) -> 18.2 | F12: =OFFSET(Renovable!F151,0,($J$1-1)*8) -> 23.3 | G12: =OFFSET(Renovable!G151,0,($J$1-1)*8) -> - | H12: =OFFSET(Renovable!H151,0,($J$1-1)*8) -> - | I12: =OFFSET(Renovable!I151,0,($J$1-1)*8) -> - | J12: =OFFSET(Renovable!J151,0,($J$1-1)*8) -> -
B13: Solar fotovoltaica | C13: =OFFSET(Renovable!C152,0,($J$1-1)*8) -> 3.1 | D13: =OFFSET(Renovable!D152,0,($J$1-1)*8) -> 3 | E13: =OFFSET(Renovable!E152,0,($J$1-1)*8) -> 3.2 | F13: =OFFSET(Renovable!F152,0,($J$1-1)*8) -> 1.9 | G13: =OFFSET(Renovable!G152,0,($J$1-1)*8) -> - | H13: =OFFSET(Renovable!H152,0,($J$1-1)*8) -> - | I13: =OFFSET(Renovable!I152,0,($J$1-1)*8) -> - | J13: =OFFSET(Renovable!J152,0,($J$1-1)*8) -> -
B14: Solar térmica | C14: =OFFSET(Renovable!C153,0,($J$1-1)*8) -> 1.9 | D14: =OFFSET(Renovable!D153,0,($J$1-1)*8) -> 1.9 | E14: =OFFSET(Renovable!E153,0,($J$1-1)*8) -> 2 | F14: =OFFSET(Renovable!F153,0,($J$1-1)*8) -> 0.6 | G14: =OFFSET(Renovable!G153,0,($J$1-1)*8) -> - | H14: =OFFSET(Renovable!H153,0,($J$1-1)*8) -> - | I14: =OFFSET(Renovable!I153,0,($J$1-1)*8) -> - | J14: =OFFSET(Renovable!J153,0,($J$1-1)*8) -> -
B15: Térmica renovable (3)/Otras renovables (4) | C15: =OFFSET(Renovable!C154,0,($J$1-1)*8) -> 1.2 | D15: =OFFSET(Renovable!D154,0,($J$1-1)*8) -> 1.3 | E15: =OFFSET(Renovable!E154,0,($J$1-1)*8) -> 1.4 | F15: =OFFSET(Renovable!F154,0,($J$1-1)*8) -> 1.3 | G15: =OFFSET(Renovable!G154,0,($J$1-1)*8) -> - | H15: =OFFSET(Renovable!H154,0,($J$1-1)*8) -> - | I15: =OFFSET(Renovable!I154,0,($J$1-1)*8) -> - | J15: =OFFSET(Renovable!J154,0,($J$1-1)*8) -> -
B16: Residuos renovables (5) | C16: =OFFSET(Renovable!C155,0,($J$1-1)*8) -> 0.3 | D16: =OFFSET(Renovable!D155,0,($J$1-1)*8) -> 0.3 | E16: =OFFSET(Renovable!E155,0,($J$1-1)*8) -> 0.3 | F16: =OFFSET(Renovable!F155,0,($J$1-1)*8) -> 0.3 | G16: =OFFSET(Renovable!G155,0,($J$1-1)*8) -> - | H16: =OFFSET(Renovable!H155,0,($J$1-1)*8) -> - | I16: =OFFSET(Renovable!I155,0,($J$1-1)*8) -> - | J16: =OFFSET(Renovable!J155,0,($J$1-1)*8) -> -
B17: Generación renovable | C17: =IF(SUM(C10:C16)=0,"-",SUM(C10:C16)) -> 35.1 | D17: =IF(SUM(D10:D16)=0,"-",SUM(D10:D16)) -> 38.4 | E17: =IF(SUM(E10:E16)=0,"-",SUM(E10:E16)) -> 32.1 | F17: 36.8 | G17: - | H17: - | I17: - | J17: -
B18: (1) Asignación de unidades de producción según combustible principal.
B19: (2) No incluye la generación bombeo.
B20: (3) Incluye residuos hasta el 31/12/2014.
B21: (4) Otras renovables incluyen biogás, biomasa, hidráulica marina y geotérmica.
B22: (5) El 50% de la generación procedente de residuos sólidos urbanos se considera renovable.
B23: =IF(J1=1,"",IF(MONTH(FACT)=1,CONCATENATE(" Para el año ",YEAR(FACT)-1, " valores acumulados hasta ",TEXT(FACT-30,"mmmm")," de ",YEAR(FACT)-1,"."),CONCATENATE(" Para el año ",YEAR(FACT), " valores acumulados hasta ",TEXT(FACT-30,"mmmm")," de ",YEAR(FACT),"."))) -> Para el año 2018 valores acumulados hasta enero de 2018.

Sheet % Renovable mes Peninsular
O1: 29
M3: Concepto
M4: Sistema eléctrico
M5: Horizonte temporal
M6: Periodo
C8: Ene. | D8: Feb. | E8: Mar. | F8: Abr. | G8: May. | H8: Jun. | I8: Jul. | J8: Ago. | K8: Sep. | L8: Oct. | M8: Nov. | N8: Dic. | O8: =OFFSET(Año!B2,($O$1-1),0) -> 2018
B10: Hidráulica (2) | C10: =OFFSET(Renovable!C81,0,($O$1-1)*12) -> 9.9 | D10: =OFFSET(Renovable!D81,0,($O$1-1)*12) -> - | E10: =OFFSET(Renovable!E81,0,($O$1-1)*12) -> - | F10: =OFFSET(Renovable!F81,0,($O$1-1)*12) -> - | G10: =OFFSET(Renovable!G81,0,($O$1-1)*12) -> - | H10: =OFFSET(Renovable!H81,0,($O$1-1)*12) -> - | I10: =OFFSET(Renovable!I81,0,($O$1-1)*12) -> - | J10: =OFFSET(Renovable!J81,0,($O$1-1)*12) -> - | K10: =OFFSET(Renovable!K81,0,($O$1-1)*12) -> - | L10: =OFFSET(Renovable!L81,0,($O$1-1)*12) -> - | M10: =OFFSET(Renovable!M81,0,($O$1-1)*12) -> - | N10: =OFFSET(Renovable!N81,0,($O$1-1)*12) -> - | O10: =OFFSET(Renovable!C120,0,($O$1-1)) -> 9.9
B11: Eólica | C11: =OFFSET(Renovable!C82,0,($O$1-1)*12) -> 24.3 | D11: =OFFSET(Renovable!D82,0,($O$1-1)*12) -> - | E11: =OFFSET(Renovable!E82,0,($O$1-1)*12) -> - | F11: =OFFSET(Renovable!F82,0,($O$1-1)*12) -> - | G11: =OFFSET(Renovable!G82,0,($O$1-1)*12) -> - | H11: =OFFSET(Renovable!H82,0,($O$1-1)*12) -> - | I11: =OFFSET(Renovable!I82,0,($O$1-1)*12) -> - | J11: =OFFSET(Renovable!J82,0,($O$1-1)*12) -> - | K11: =OFFSET(Renovable!K82,0,($O$1-1)*12) -> - | L11: =OFFSET(Renovable!L82,0,($O$1-1)*12) -> - | M11: =OFFSET(Renovable!M82,0,($O$1-1)*12) -> - | N11: =OFFSET(Renovable!N82,0,($O$1-1)*12) -> - | O11: =OFFSET(Renovable!C121,0,($O$1-1)) -> 24.3
B12: Solar fotovoltaica | C12: =OFFSET(Renovable!C83,0,($O$1-1)*12) -> 1.9 | D12: =OFFSET(Renovable!D83,0,($O$1-1)*12) -> - | E12: =OFFSET(Renovable!E83,0,($O$1-1)*12) -> - | F12: =OFFSET(Renovable!F83,0,($O$1-1)*12) -> - | G12: =OFFSET(Renovable!G83,0,($O$1-1)*12) -> - | H12: =OFFSET(Renovable!H83,0,($O$1-1)*12) -> - | I12: =OFFSET(Renovable!I83,0,($O$1-1)*12) -> - | J12: =OFFSET(Renovable!J83,0,($O$1-1)*12) -> - | K12: =OFFSET(Renovable!K83,0,($O$1-1)*12) -> - | L12: =OFFSET(Renovable!L83,0,($O$1-1)*12) -> - | M12: =OFFSET(Renovable!M83,0,($O$1-1)*12) -> - | N12: =OFFSET(Renovable!N83,0,($O$1-1)*12) -> - | O12: =OFFSET(Renovable!C122,0,($O$1-1)) -> 1.9
B13: Solar térmica | C13: =OFFSET(Renovable!C84,0,($O$1-1)*12) -> 0.6 | D13: =OFFSET(Renovable!D84,0,($O$1-1)*12) -> - | E13: =OFFSET(Renovable!E84,0,($O$1-1)*12) -> - | F13: =OFFSET(Renovable!F84,0,($O$1-1)*12) -> - | G13: =OFFSET(Renovable!G84,0,($O$1-1)*12) -> - | H13: =OFFSET(Renovable!H84,0,($O$1-1)*12) -> - | I13: =OFFSET(Renovable!I84,0,($O$1-1)*12) -> - | J13: =OFFSET(Renovable!J84,0,($O$1-1)*12) -> - | K13: =OFFSET(Renovable!K84,0,($O$1-1)*12) -> - | L13: =OFFSET(Renovable!L84,0,($O$1-1)*12) -> - | M13: =OFFSET(Renovable!M84,0,($O$1-1)*12) -> - | N13: =OFFSET(Renovable!N84,0,($O$1-1)*12) -> - | O13: =OFFSET(Renovable!C123,0,($O$1-1)) -> 0.6
B14: Térmica renovable (3)/Otras renovables (4) | C14: =OFFSET(Renovable!C85,0,($O$1-1)*12) -> 1.4 | D14: =OFFSET(Renovable!D85,0,($O$1-1)*12) -> - | E14: =OFFSET(Renovable!E85,0,($O$1-1)*12) -> - | F14: =OFFSET(Renovable!F85,0,($O$1-1)*12) -> - | G14: =OFFSET(Renovable!G85,0,($O$1-1)*12) -> - | H14: =OFFSET(Renovable!H85,0,($O$1-1)*12) -> - | I14: =OFFSET(Renovable!I85,0,($O$1-1)*12) -> - | J14: =OFFSET(Renovable!J85,0,($O$1-1)*12) -> - | K14: =OFFSET(Renovable!K85,0,($O$1-1)*12) -> - | L14: =OFFSET(Renovable!L85,0,($O$1-1)*12) -> - | M14: =OFFSET(Renovable!M85,0,($O$1-1)*12) -> - | N14: =OFFSET(Renovable!N85,0,($O$1-1)*12) -> - | O14: =OFFSET(Renovable!C124,0,($O$1-1)) -> 1.4
B15: Residuos renovables (5) | C15: =OFFSET(Renovable!C86,0,($O$1-1)*12) -> 0.3 | D15: =OFFSET(Renovable!D86,0,($O$1-1)*12) -> - | E15: =OFFSET(Renovable!E86,0,($O$1-1)*12) -> - | F15: =OFFSET(Renovable!F86,0,($O$1-1)*12) -> - | G15: =OFFSET(Renovable!G86,0,($O$1-1)*12) -> - | H15: =OFFSET(Renovable!H86,0,($O$1-1)*12) -> - | I15: =OFFSET(Renovable!I86,0,($O$1-1)*12) -> - | J15: =OFFSET(Renovable!J86,0,($O$1-1)*12) -> - | K15: =OFFSET(Renovable!K86,0,($O$1-1)*12) -> - | L15: =OFFSET(Renovable!L86,0,($O$1-1)*12) -> - | M15: =OFFSET(Renovable!M86,0,($O$1-1)*12) -> - | N15: =OFFSET(Renovable!N86,0,($O$1-1)*12) -> - | O15: =OFFSET(Renovable!C125,0,($O$1-1)) -> 0.3
B16: Generación renovable | C16: =IF(SUM(C10:C15)=0,"-",SUM(C10:C15)) -> 38.4 | D16: =IF(SUM(D10:D15)=0,"-",SUM(D10:D15)) -> - | E16: - | F16: - | G16: - | H16: - | I16: - | J16: - | K16: - | L16: - | M16: - | N16: - | O16: 38.4
B17: (1) Asignación de unidades de producción según combustible principal.
B18: (2) No incluye la generación bombeo.
B19: (3) Incluye residuos hasta el 31/12/2014.
B20: (4) Otras renovables incluyen biogás, biomasa, hidráulica marina y geotérmica.
B21: (5) El 50% de la generación procedente de residuos sólidos urbanos se considera renovable.

Sheet % Renovable año Peninsular
J1: 4
H3: Concepto
H4: Sistema eléctrico
H5: Horizonte temporal
H6: Periodo
C8: =OFFSET(Renovable!C119,0,($J$1-1)*8) -> 2014 | D8: =OFFSET(Renovable!D119,0,($J$1-1)*8) -> 2015 | E8: =OFFSET(Renovable!E119,0,($J$1-1)*8) -> 2016 | F8: =OFFSET(Renovable!F119,0,($J$1-1)*8) -> 2017 | G8: =OFFSET(Renovable!G119,0,($J$1-1)*8) -> 2018 | H8: =OFFSET(Renovable!H119,0,($J$1-1)*8) -> 2019 | I8: =OFFSET(Renovable!I119,0,($J$1-1)*8) -> 2020 | J8: =OFFSET(Renovable!J119,0,($J$1-1)*8) -> 2021
B10: Hidráulica (2) | C10: =OFFSET(Renovable!C120,0,($J$1-1)*8) -> 15.4 | D10: =OFFSET(Renovable!D120,0,($J$1-1)*8) -> 11.1 | E10: =OFFSET(Renovable!E120,0,($J$1-1)*8) -> 14.5 | F10: =OFFSET(Renovable!F120,0,($J$1-1)*8) -> 7.4 | G10: =OFFSET(Renovable!G120,0,($J$1-1)*8) -> 9.9 | H10: =OFFSET(Renovable!H120,0,($J$1-1)*8) -> - | I10: =OFFSET(Renovable!I120,0,($J$1-1)*8) -> - | J10: =OFFSET(Renovable!J120,0,($J$1-1)*8) -> -
B11: Eólica | C11: =OFFSET(Renovable!C121,0,($J$1-1)*8) -> 20 | D11: =OFFSET(Renovable!D121,0,($J$1-1)*8) -> 18.8 | E11: =OFFSET(Renovable!E121,0,($J$1-1)*8) -> 19 | F11: =OFFSET(Renovable!F121,0,($J$1-1)*8) -> 19.1 | G11: =OFFSET(Renovable!G121,0,($J$1-1)*8) -> 24.3 | H11: =OFFSET(Renovable!H121,0,($J$1-1)*8) -> - | I11: =OFFSET(Renovable!I121,0,($J$1-1)*8) -> - | J11: =OFFSET(Renovable!J121,0,($J$1-1)*8) -> -
B12: Solar fotovoltaica | C12: =OFFSET(Renovable!C122,0,($J$1-1)*8) -> 3.1 | D12: =OFFSET(Renovable!D122,0,($J$1-1)*8) -> 3.1 | E12: =OFFSET(Renovable!E122,0,($J$1-1)*8) -> 3.1 | F12: =OFFSET(Renovable!F122,0,($J$1-1)*8) -> 3.2 | G12: =OFFSET(Renovable!G122,0,($J$1-1)*8) -> 1.9 | H12: =OFFSET(Renovable!H122,0,($J$1-1)*8) -> - | I12: =OFFSET(Renovable!I122,0,($J$1-1)*8) -> - | J12: =OFFSET(Renovable!J122,0,($J$1-1)*8) -> -
B13: Solar térmica | C13: =OFFSET(Renovable!C123,0,($J$1-1)*8) -> 2 | D13: =OFFSET(Renovable!D123,0,($J$1-1)*8) -> 2 | E13: =OFFSET(Renovable!E123,0,($J$1-1)*8) -> 2 | F13: =OFFSET(Renovable!F123,0,($J$1-1)*8) -> 2.2 | G13: =OFFSET(Renovable!G123,0,($J$1-1)*8) -> 0.6 | H13: =OFFSET(Renovable!H123,0,($J$1-1)*8) -> - | I13: =OFFSET(Renovable!I123,0,($J$1-1)*8) -> - | J13: =OFFSET(Renovable!J123,0,($J$1-1)*8) -> -
B14: Térmica renovable (3)/Otras renovables (4) | C14: =OFFSET(Renovable!C124,0,($J$1-1)*8) -> 1.9 | D14: =OFFSET(Renovable!D124,0,($J$1-1)*8) -> 1.2 | E14: =OFFSET(Renovable!E124,0,($J$1-1)*8) -> 1.4 | F14: =OFFSET(Renovable!F124,0,($J$1-1)*8) -> 1.4 | G14: =OFFSET(Renovable!G124,0,($J$1-1)*8) -> 1.4 | H14: =OFFSET(Renovable!H124,0,($J$1-1)*8) -> - | I14: =OFFSET(Renovable!I124,0,($J$1-1)*8) -> - | J14: =OFFSET(Renovable!J124,0,($J$1-1)*8) -> -
B15: Residuos renovables (5) | C15: =OFFSET(Renovable!C125,0,($J$1-1)*8) -> - | D15: =OFFSET(Renovable!D125,0,($J$1-1)*8) -> 0.3 | E15: =OFFSET(Renovable!E125,0,($J$1-1)*8) -> 0.3 | F15: =OFFSET(Renovable!F125,0,($J$1-1)*8) -> 0.3 | G15: =OFFSET(Renovable!G125,0,($J$1-1)*8) -> 0.3 | H15: =OFFSET(Renovable!H125,0,($J$1-1)*8) -> - | I15: =OFFSET(Renovable!I125,0,($J$1-1)*8) -> - | J15: =OFFSET(Renovable!J125,0,($J$1-1)*8) -> -
B16: Generación renovable | C16: =IF(SUM(C10:C15)=0,"-",SUM(C10:C15)) -> 42.4 | D16: =IF(SUM(D10:D15)=0,"-",SUM(D10:D15)) -> 36.5 | E16: 40.3 | F16: 33.6 | G16: 38.4 | H16: - | I16: - | J16: -
B17: (1) Asignación de unidades de producción según combustible principal.
B18: (2) No incluye la generación bombeo.
B19: (3) Incluye residuos hasta el 31/12/2014.
B20: (4) Otras renovables incluyen biogás, biomasa, hidráulica marina y geotérmica.
B21: (5) El 50% de la generación procedente de residuos sólidos urbanos se considera renovable.
B22: =IF(J1=4,IF(MONTH(FACT)=1,CONCATENATE(" Para el año ",YEAR(FACT)-1, " valores acumulados hasta ",TEXT(FACT-30,"mmmm")," de ",YEAR(FACT)-1,"."),CONCATENATE(" Para el año ",YEAR(FACT), " valores acumulados hasta ",TEXT(FACT-30,"mmmm")," de ",YEAR(FACT),"."))) -> Para el año 2018 valores acumulados hasta enero de 2018.

Sheet % Renovable mes Baleares
O1: 13
M3: Concepto
M4: Sistema eléctrico
M5: Horizonte temporal
M6: Periodo
C8: Ene. | D8: Feb. | E8: Mar. | F8: Abr. | G8: May. | H8: Jun. | I8: Jul. | J8: Ago. | K8: Sep. | L8: Oct. | M8: Nov. | N8: Dic. | O8: =OFFSET(Año!B18,($O$1-1),0) -> 2018
B10: Eólica | C10: =OFFSET(Renovable!C90,0,($O$1-1)*12) -> 0.1 | D10: =OFFSET(Renovable!D90,0,($O$1-1)*12) -> - | E10: =OFFSET(Renovable!E90,0,($O$1-1)*12) -> - | F10: =OFFSET(Renovable!F90,0,($O$1-1)*12) -> - | G10: =OFFSET(Renovable!G90,0,($O$1-1)*12) -> - | H10: =OFFSET(Renovable!H90,0,($O$1-1)*12) -> - | I10: =OFFSET(Renovable!I90,0,($O$1-1)*12) -> - | J10: =OFFSET(Renovable!J90,0,($O$1-1)*12) -> - | K10: =OFFSET(Renovable!K90,0,($O$1-1)*12) -> - | L10: =OFFSET(Renovable!L90,0,($O$1-1)*12) -> - | M10: =OFFSET(Renovable!M90,0,($O$1-1)*12) -> - | N10: =OFFSET(Renovable!N90,0,($O$1-1)*12) -> - | O10: =OFFSET(Renovable!C129,0,($O$1-1)) -> 0.1
B11: Solar fotovoltaica | C11: =OFFSET(Renovable!C91,0,($O$1-1)*12) -> 1.9 | D11: =OFFSET(Renovable!D91,0,($O$1-1)*12) -> - | E11: =OFFSET(Renovable!E91,0,($O$1-1)*12) -> - | F11: =OFFSET(Renovable!F91,0,($O$1-1)*12) -> - | G11: =OFFSET(Renovable!G91,0,($O$1-1)*12) -> - | H11: =OFFSET(Renovable!H91,0,($O$1-1)*12) -> - | I11: =OFFSET(Renovable!I91,0,($O$1-1)*12) -> - | J11: =OFFSET(Renovable!J91,0,($O$1-1)*12) -> - | K11: =OFFSET(Renovable!K91,0,($O$1-1)*12) -> - | L11: =OFFSET(Renovable!L91,0,($O$1-1)*12) -> - | M11: =OFFSET(Renovable!M91,0,($O$1-1)*12) -> - | N11: =OFFSET(Renovable!N91,0,($O$1-1)*12) -> - | O11: =OFFSET(Renovable!C130,0,($O$1-1)) -> 1.9
B12: Térmica renovable/Otras renovables (2) | C12: =OFFSET(Renovable!C92,0,($O$1-1)*12) -> 0 | D12: =OFFSET(Renovable!D92,0,($O$1-1)*12) -> - | E12: =OFFSET(Renovable!E92,0,($O$1-1)*12) -> - | F12: =OFFSET(Renovable!F92,0,($O$1-1)*12) -> - | G12: =OFFSET(Renovable!G92,0,($O$1-1)*12) -> - | H12: =OFFSET(Renovable!H92,0,($O$1-1)*12) -> - | I12: =OFFSET(Renovable!I92,0,($O$1-1)*12) -> - | J12: =OFFSET(Renovable!J92,0,($O$1-1)*12) -> - | K12: =OFFSET(Renovable!K92,0,($O$1-1)*12) -> - | L12: =OFFSET(Renovable!L92,0,($O$1-1)*12) -> - | M12: =OFFSET(Renovable!M92,0,($O$1-1)*12) -> - | N12: =OFFSET(Renovable!N92,0,($O$1-1)*12) -> - | O12: =OFFSET(Renovable!C131,0,($O$1-1)) -> 0
B13: Residuos renovables (3) | C13: =OFFSET(Renovable!C93,0,($O$1-1)*12) -> 2.2 | D13: =OFFSET(Renovable!D93,0,($O$1-1)*12) -> - | E13: =OFFSET(Renovable!E93,0,($O$1-1)*12) -> - | F13: =OFFSET(Renovable!F93,0,($O$1-1)*12) -> - | G13: =OFFSET(Renovable!G93,0,($O$1-1)*12) -> - | H13: =OFFSET(Renovable!H93,0,($O$1-1)*12) -> - | I13: =OFFSET(Renovable!I93,0,($O$1-1)*12) -> - | J13: =OFFSET(Renovable!J93,0,($O$1-1)*12) -> - | K13: =OFFSET(Renovable!K93,0,($O$1-1)*12) -> - | L13: =OFFSET(Renovable!L93,0,($O$1-1)*12) -> - | M13: =OFFSET(Renovable!M93,0,($O$1-1)*12) -> - | N13: =OFFSET(Renovable!N93,0,($O$1-1)*12) -> - | O13: =OFFSET(Renovable!C132,0,($O$1-1)) -> 2.2
B14: Generación renovable | C14: =IF(SUM(C10:C13)=0,"-",SUM(C10:C13)) -> 4.2 | D14: =IF(SUM(D10:D13)=0,"-",SUM(D10:D13)) -> - | E14: - | F14: - | G14: - | H14: - | I14: - | J14: - | K14: - | L14: - | M14: - | N14: - | O14: 4.2
B15: (1) Asignación de unidades de producción según combustible principal.
B16: (2) Otras renovables incluyen biogás y biomasa.
B17: (3) El 50% de la generación procedente de residuos sólidos urbanos se considera renovable.

Sheet % Renovable año Baleares
J1: 2
H3: Concepto
H4: Sistema eléctrico
H5: Horizonte temporal
H6: Periodo
C8: =OFFSET(Renovable!C128,0,($J$1-1)*8) -> 2014 | D8: =OFFSET(Renovable!D128,0,($J$1-1)*8) -> 2015 | E8: =OFFSET(Renovable!E128,0,($J$1-1)*8) -> 2016 | F8: =OFFSET(Renovable!F128,0,($J$1-1)*8) -> 2017 | G8: =OFFSET(Renovable!G128,0,($J$1-1)*8) -> 2018 | H8: =OFFSET(Renovable!H128,0,($J$1-1)*8) -> 2019 | I8: =OFFSET(Renovable!I128,0,($J$1-1)*8) -> 2020 | J8: =OFFSET(Renovable!J128,0,($J$1-1)*8) -> 2021
B10: Eólica | C10: =OFFSET(Renovable!C129,0,($J$1-1)*8) -> 0.1 | D10: =OFFSET(Renovable!D129,0,($J$1-1)*8) -> 0.1 | E10: =OFFSET(Renovable!E129,0,($J$1-1)*8) -> 0.1 | F10: =OFFSET(Renovable!F129,0,($J$1-1)*8) -> 0.1 | G10: =OFFSET(Renovable!G129,0,($J$1-1)*8) -> 0.1 | H10: =OFFSET(Renovable!H129,0,($J$1-1)*8) -> - | I10: =OFFSET(Renovable!I129,0,($J$1-1)*8) -> - | J10: =OFFSET(Renovable!J129,0,($J$1-1)*8) -> -
B11: Solar fotovoltaica | C11: =OFFSET(Renovable!C130,0,($J$1-1)*8) -> 2.9 | D11: =OFFSET(Renovable!D130,0,($J$1-1)*8) -> 2.7 | E11: =OFFSET(Renovable!E130,0,($J$1-1)*8) -> 2.6 | F11: =OFFSET(Renovable!F130,0,($J$1-1)*8) -> 2.5 | G11: =OFFSET(Renovable!G130,0,($J$1-1)*8) -> 1.9 | H11: =OFFSET(Renovable!H130,0,($J$1-1)*8) -> - | I11: =OFFSET(Renovable!I130,0,($J$1-1)*8) -> - | J11: =OFFSET(Renovable!J130,0,($J$1-1)*8) -> -
B12: Térmica renovable/Otras renovables (2) | C12: =OFFSET(Renovable!C131,0,($J$1-1)*8) -> 0 | D12: =OFFSET(Renovable!D131,0,($J$1-1)*8) -> 0 | E12: =OFFSET(Renovable!E131,0,($J$1-1)*8) -> 0 | F12: =OFFSET(Renovable!F131,0,($J$1-1)*8) -> 0 | G12: =OFFSET(Renovable!G131,0,($J$1-1)*8) -> 0 | H12: =OFFSET(Renovable!H131,0,($J$1-1)*8) -> - | I12: =OFFSET(Renovable!I131,0,($J$1-1)*8) -> - | J12: =OFFSET(Renovable!J131,0,($J$1-1)*8) -> -
B13: Residuos renovables (3) | C13: =OFFSET(Renovable!C132,0,($J$1-1)*8) -> - | D13: =OFFSET(Renovable!D132,0,($J$1-1)*8) -> 3.4 | E13: =OFFSET(Renovable!E132,0,($J$1-1)*8) -> 2.9 | F13: =OFFSET(Renovable!F132,0,($J$1-1)*8) -> 3 | G13: =OFFSET(Renovable!G132,0,($J$1-1)*8) -> 2.2 | H13: =OFFSET(Renovable!H132,0,($J$1-1)*8) -> - | I13: =OFFSET(Renovable!I132,0,($J$1-1)*8) -> - | J13: =OFFSET(Renovable!J132,0,($J$1-1)*8) -> -
B14: Generación renovable | C14: =IF(SUM(C10:C13)=0,"-",SUM(C10:C13)) -> 3 | D14: =IF(SUM(D10:D13)=0,"-",SUM(D10:D13)) -> 6.2 | E14: 5.6 | F14: 5.6 | G14: 4.2 | H14: - | I14: - | J14: -
B15: (1) Asignación de unidades de producción según combustible principal.
B16: (2) Otras renovables incluyen biogás y biomasa.
B17: (3) El 50% de la generación procedente de residuos sólidos urbanos se considera renovable.
B18: =IF(J1=1,"",IF(MONTH(FACT)=1,CONCATENATE(" Para el año ",YEAR(FACT)-1, " valores acumulados hasta ",TEXT(FACT-30,"mmmm")," de ",YEAR(FACT)-1,"."),CONCATENATE(" Para el año ",YEAR(FACT), " valores acumulados hasta ",TEXT(FACT-30,"mmmm")," de ",YEAR(FACT),"."))) -> Para el año 2018 valores acumulados hasta enero de 2018.

Sheet % Renovable mes Canarias
O1: 13
M3: Concepto
M4: Sistema eléctrico
M5: Horizonte temporal
M6: Periodo
C8: Ene. | D8: Feb. | E8: Mar. | F8: Abr. | G8: May. | H8: Jun. | I8: Jul. | J8: Ago. | K8: Sep. | L8: Oct. | M8: Nov. | N8: Dic. | O8: =OFFSET(Año!B18,($O$1-1),0) -> 2018
B10: Hidráulica | C10: =OFFSET(Renovable!C97,0,($O$1-1)*12) -> - | D10: =OFFSET(Renovable!D97,0,($O$1-1)*12) -> - | E10: =OFFSET(Renovable!E97,0,($O$1-1)*12) -> - | F10: =OFFSET(Renovable!F97,0,($O$1-1)*12) -> - | G10: =OFFSET(Renovable!G97,0,($O$1-1)*12) -> - | H10: =OFFSET(Renovable!H97,0,($O$1-1)*12) -> - | I10: =OFFSET(Renovable!I97,0,($O$1-1)*12) -> - | J10: =OFFSET(Renovable!J97,0,($O$1-1)*12) -> - | K10: =OFFSET(Renovable!K97,0,($O$1-1)*12) -> - | L10: =OFFSET(Renovable!L97,0,($O$1-1)*12) -> - | M10: =OFFSET(Renovable!M97,0,($O$1-1)*12) -> - | N10: =OFFSET(Renovable!N97,0,($O$1-1)*12) -> - | O10: =OFFSET(Renovable!C136,0,($O$1-1)) -> -
B11: Hidroeólica | C11: =OFFSET(Renovable!C98,0,($O$1-1)*12) -> 0.3 | D11: =OFFSET(Renovable!D98,0,($O$1-1)*12) -> - | E11: =OFFSET(Renovable!E98,0,($O$1-1)*12) -> - | F11: =OFFSET(Renovable!F98,0,($O$1-1)*12) -> - | G11: =OFFSET(Renovable!G98,0,($O$1-1)*12) -> - | H11: =OFFSET(Renovable!H98,0,($O$1-1)*12) -> - | I11: =OFFSET(Renovable!I98,0,($O$1-1)*12) -> - | J11: =OFFSET(Renovable!J98,0,($O$1-1)*12) -> - | K11: =OFFSET(Renovable!K98,0,($O$1-1)*12) -> - | L11: =OFFSET(Renovable!L98,0,($O$1-1)*12) -> - | M11: =OFFSET(Renovable!M98,0,($O$1-1)*12) -> - | N11: =OFFSET(Renovable!N98,0,($O$1-1)*12) -> - | O11: =OFFSET(Renovable!C137,0,($O$1-1)) -> 0.3
B12: Eólica | C12: =OFFSET(Renovable!C99,0,($O$1-1)*12) -> 8 | D12: =OFFSET(Renovable!D99,0,($O$1-1)*12) -> - | E12: =OFFSET(Renovable!E99,0,($O$1-1)*12) -> - | F12: =OFFSET(Renovable!F99,0,($O$1-1)*12) -> - | G12: =OFFSET(Renovable!G99,0,($O$1-1)*12) -> - | H12: =OFFSET(Renovable!H99,0,($O$1-1)*12) -> - | I12: =OFFSET(Renovable!I99,0,($O$1-1)*12) -> - | J12: =OFFSET(Renovable!J99,0,($O$1-1)*12) -> - | K12: =OFFSET(Renovable!K99,0,($O$1-1)*12) -> - | L12: =OFFSET(Renovable!L99,0,($O$1-1)*12) -> - | M12: =OFFSET(Renovable!M99,0,($O$1-1)*12) -> - | N12: =OFFSET(Renovable!N99,0,($O$1-1)*12) -> - | O12: =OFFSET(Renovable!C138,0,($O$1-1)) -> 8
B13: Solar fotovoltaica | C13: =OFFSET(Renovable!C100,0,($O$1-1)*12) -> 2.4 | D13: =OFFSET(Renovable!D100,0,($O$1-1)*12) -> - | E13: =OFFSET(Renovable!E100,0,($O$1-1)*12) -> - | F13: =OFFSET(Renovable!F100,0,($O$1-1)*12) -> - | G13: =OFFSET(Renovable!G100,0,($O$1-1)*12) -> - | H13: =OFFSET(Renovable!H100,0,($O$1-1)*12) -> - | I13: =OFFSET(Renovable!I100,0,($O$1-1)*12) -> - | J13: =OFFSET(Renovable!J100,0,($O$1-1)*12) -> - | K13: =OFFSET(Renovable!K100,0,($O$1-1)*12) -> - | L13: =OFFSET(Renovable!L100,0,($O$1-1)*12) -> - | M13: =OFFSET(Renovable!M100,0,($O$1-1)*12) -> - | N13: =OFFSET(Renovable!N100,0,($O$1-1)*12) -> - | O13: =OFFSET(Renovable!C139,0,($O$1-1)) -> 2.4
B14: Térmica renovable/Otras renovables (2) | C14: =OFFSET(Renovable!C101,0,($O$1-1)*12) -> - | D14: =OFFSET(Renovable!D101,0,($O$1-1)*12) -> - | E14: =OFFSET(Renovable!E101,0,($O$1-1)*12) -> - | F14: =OFFSET(Renovable!F101,0,($O$1-1)*12) -> - | G14: =OFFSET(Renovable!G101,0,($O$1-1)*12) -> - | H14: =OFFSET(Renovable!H101,0,($O$1-1)*12) -> - | I14: =OFFSET(Renovable!I101,0,($O$1-1)*12) -> - | J14: =OFFSET(Renovable!J101,0,($O$1-1)*12) -> - | K14: =OFFSET(Renovable!K101,0,($O$1-1)*12) -> - | L14: =OFFSET(Renovable!L101,0,($O$1-1)*12) -> - | M14: =OFFSET(Renovable!M101,0,($O$1-1)*12) -> - | N14: =OFFSET(Renovable!N101,0,($O$1-1)*12) -> - | O14: =OFFSET(Renovable!C140,0,($O$1-1)) -> -
B15: Generación renovable | C15: =IF(SUM(C10:C14)=0,"-",SUM(C10:C14)) -> 10.7 | D15: =IF(SUM(D10:D14)=0,"-",SUM(D10:D14)) -> - | E15: - | F15: - | G15: - | H15: - | I15: - | J15: - | K15: - | L15: - | M15: - | N15: - | O15: =SUM(O10:O14) -> 10.7
B16: (1) Asignación de unidades de producción según combustible principal.
B17: (2) Otras renovables incluyen biogás y biomasa.

Sheet % Renovable año Canarias
J1: 2
H3: Concepto
H4: Sistema eléctrico
H5: Horizonte temporal
H6: Periodo
C8: =OFFSET(Renovable!C135,0,($J$1-1)*8) -> 2014 | D8: =OFFSET(Renovable!D135,0,($J$1-1)*8) -> 2015 | E8: =OFFSET(Renovable!E135,0,($J$1-1)*8) -> 2016 | F8: =OFFSET(Renovable!F135,0,($J$1-1)*8) -> 2017 | G8: =OFFSET(Renovable!G135,0,($J$1-1)*8) -> 2018 | H8: =OFFSET(Renovable!H135,0,($J$1-1)*8) -> 2019 | I8: =OFFSET(Renovable!I135,0,($J$1-1)*8) -> 2020 | J8: =OFFSET(Renovable!J135,0,($J$1-1)*8) -> 2021
B10: Hidráulica | C10: =OFFSET(Renovable!C136,0,($J$1-1)*8) -> 0 | D10: =OFFSET(Renovable!D136,0,($J$1-1)*8) -> 0 | E10: =OFFSET(Renovable!E136,0,($J$1-1)*8) -> 0 | F10: =OFFSET(Renovable!F136,0,($J$1-1)*8) -> 0 | G10: =OFFSET(Renovable!G136,0,($J$1-1)*8) -> - | H10: =OFFSET(Renovable!H136,0,($J$1-1)*8) -> - | I10: =OFFSET(Renovable!I136,0,($J$1-1)*8) -> - | J10: =OFFSET(Renovable!J136,0,($J$1-1)*8) -> -
B11: Hidroeólica | C11: =OFFSET(Renovable!C137,0,($J$1-1)*8) -> 0 | D11: =OFFSET(Renovable!D137,0,($J$1-1)*8) -> 0.1 | E11: =OFFSET(Renovable!E137,0,($J$1-1)*8) -> 0.2 | F11: =OFFSET(Renovable!F137,0,($J$1-1)*8) -> 0.2 | G11: =OFFSET(Renovable!G137,0,($J$1-1)*8) -> 0.3 | H11: =OFFSET(Renovable!H137,0,($J$1-1)*8) -> - | I11: =OFFSET(Renovable!I137,0,($J$1-1)*8) -> - | J11: =OFFSET(Renovable!J137,0,($J$1-1)*8) -> -
B12: Eólica | C12: =OFFSET(Renovable!C138,0,($J$1-1)*8) -> 4.5 | D12: =OFFSET(Renovable!D138,0,($J$1-1)*8) -> 4.6 | E12: =OFFSET(Renovable!E138,0,($J$1-1)*8) -> 4.5 | F12: =OFFSET(Renovable!F138,0,($J$1-1)*8) -> 4.4 | G12: =OFFSET(Renovable!G138,0,($J$1-1)*8) -> 8 | H12: =OFFSET(Renovable!H138,0,($J$1-1)*8) -> - | I12: =OFFSET(Renovable!I138,0,($J$1-1)*8) -> - | J12: =OFFSET(Renovable!J138,0,($J$1-1)*8) -> -
B13: Solar fotovoltaica | C13: =OFFSET(Renovable!C139,0,($J$1-1)*8) -> 3.3 | D13: =OFFSET(Renovable!D139,0,($J$1-1)*8) -> 3.2 | E13: =OFFSET(Renovable!E139,0,($J$1-1)*8) -> 3.2 | F13: =OFFSET(Renovable!F139,0,($J$1-1)*8) -> 3.1 | G13: =OFFSET(Renovable!G139,0,($J$1-1)*8) -> 2.4 | H13: =OFFSET(Renovable!H139,0,($J$1-1)*8) -> - | I13: =OFFSET(Renovable!I139,0,($J$1-1)*8) -> - | J13: =OFFSET(Renovable!J139,0,($J$1-1)*8) -> -
B14: Térmica renovable/Otras renovables (2) | C14: =OFFSET(Renovable!C140,0,($J$1-1)*8) -> 0.1 | D14: =OFFSET(Renovable!D140,0,($J$1-1)*8) -> 0.1 | E14: =OFFSET(Renovable!E140,0,($J$1-1)*8) -> 0.1 | F14: =OFFSET(Renovable!F140,0,($J$1-1)*8) -> 0.1 | G14: =OFFSET(Renovable!G140,0,($J$1-1)*8) -> - | H14: =OFFSET(Renovable!H140,0,($J$1-1)*8) -> - | I14: =OFFSET(Renovable!I140,0,($J$1-1)*8) -> - | J14: =OFFSET(Renovable!J140,0,($J$1-1)*8) -> -
B15: Generación renovable | C15: =IF(SUM(C10:C14)=0,"-",SUM(C10:C14)) -> 7.9 | D15: =IF(SUM(D10:D14)=0,"-",SUM(D10:D14)) -> 8 | E15: 8 | F15: 7.8 | G15: 10.7 | H15: - | I15: - | J15: -
B16: (1) Asignación de unidades de producción según combustible principal.
B17: (2) Otras renovables incluyen biogás y biomasa.
B18: =IF(J1=1,"",IF(MONTH(FACT)=1,CONCATENATE(" Para el año ",YEAR(FACT)-1, " valores acumulados hasta ",TEXT(FACT-30,"mmmm")," de ",YEAR(FACT)-1,"."),CONCATENATE(" Para el año ",YEAR(FACT), " valores acumulados hasta ",TEXT(FACT-30,"mmmm")," de ",YEAR(FACT),"."))) -> Para el año 2018 valores acumulados hasta enero de 2018.

Sheet % Renovable mes Melilla
O1: 12
M3: Concepto
M4: Sistema eléctrico
M5: Horizonte temporal
M6: Periodo
C8: Ene. | D8: Feb. | E8: Mar. | F8: Abr. | G8: May. | H8: Jun. | I8: Jul. | J8: Ago. | K8: Sep. | L8: Oct. | M8: Nov. | N8: Dic. | O8: =OFFSET(Año!B19,($O$1-1),0) -> 2018
B10: Solar fotovoltaica | C10: =OFFSET(Renovable!C105,0,($O$1-1)*12) -> - | D10: =OFFSET(Renovable!D105,0,($O$1-1)*12) -> - | E10: =OFFSET(Renovable!E105,0,($O$1-1)*12) -> - | F10: =OFFSET(Renovable!F105,0,($O$1-1)*12) -> - | G10: =OFFSET(Renovable!G105,0,($O$1-1)*12) -> - | H10: =OFFSET(Renovable!H105,0,($O$1-1)*12) -> - | I10: =OFFSET(Renovable!I105,0,($O$1-1)*12) -> - | J10: =OFFSET(Renovable!J105,0,($O$1-1)*12) -> - | K10: =OFFSET(Renovable!K105,0,($O$1-1)*12) -> - | L10: =OFFSET(Renovable!L105,0,($O$1-1)*12) -> - | M10: =OFFSET(Renovable!M105,0,($O$1-1)*12) -> - | N10: =OFFSET(Renovable!N105,0,($O$1-1)*12) -> - | O10: =OFFSET(Renovable!C144,0,($O$1-1)) -> -
B11: Residuos renovables (2) | C11: =OFFSET(Renovable!C106,0,($O$1-1)*12) -> 1.95 | D11: =OFFSET(Renovable!D106,0,($O$1-1)*12) -> - | E11: =OFFSET(Renovable!E106,0,($O$1-1)*12) -> - | F11: =OFFSET(Renovable!F106,0,($O$1-1)*12) -> - | G11: =OFFSET(Renovable!G106,0,($O$1-1)*12) -> - | H11: =OFFSET(Renovable!H106,0,($O$1-1)*12) -> - | I11: =OFFSET(Renovable!I106,0,($O$1-1)*12) -> - | J11: =OFFSET(Renovable!J106,0,($O$1-1)*12) -> - | K11: =OFFSET(Renovable!K106,0,($O$1-1)*12) -> - | L11: =OFFSET(Renovable!L106,0,($O$1-1)*12) -> - | M11: =OFFSET(Renovable!M106,0,($O$1-1)*12) -> - | N11: =OFFSET(Renovable!N106,0,($O$1-1)*12) -> - | O11: =OFFSET(Renovable!C145,0,($O$1-1)) -> 1.95
B12: Generación renovable | C12: =IF(SUM(C10:C11)=0,"-",SUM(C10:C11)) -> 1.95 | D12: =IF(SUM(D10:D11)=0,"-",SUM(D10:D11)) -> - | E12: - | F12: - | G12: - | H12: - | I12: - | J12: - | K12: - | L12: - | M12: - | N12: - | O12: 1.95
B13: (1) Asignación de unidades de producción según combustible principal.
B14: (2) El 50% de la generación procedente de residuos sólidos urbanos se considera renovable.

Sheet % Renovable año Melilla
J1: 2
H3: Concepto
H4: Sistema eléctrico
H5: Horizonte temporal
H6: Periodo
C8: =OFFSET(Renovable!C143,0,($J$1-1)*8) -> 2015 | D8: =OFFSET(Renovable!D143,0,($J$1-1)*8) -> 2016 | E8: =OFFSET(Renovable!E143,0,($J$1-1)*8) -> 2017 | F8: =OFFSET(Renovable!F143,0,($J$1-1)*8) -> 2018 | G8: =OFFSET(Renovable!G143,0,($J$1-1)*8) -> 2019 | H8: =OFFSET(Renovable!H143,0,($J$1-1)*8) -> 2020 | I8: =OFFSET(Renovable!I143,0,($J$1-1)*8) -> 2021 | J8: =OFFSET(Renovable!J143,0,($J$1-1)*8) -> 2022
B10: Solar fotovoltaica | C10: =OFFSET(Renovable!C144,0,($J$1-1)*8) -> 0.04 | D10: =OFFSET(Renovable!D144,0,($J$1-1)*8) -> 0.04 | E10: =OFFSET(Renovable!E144,0,($J$1-1)*8) -> 0.04 | F10: =OFFSET(Renovable!F144,0,($J$1-1)*8) -> - | G10: =OFFSET(Renovable!G144,0,($J$1-1)*8) -> - | H10: =OFFSET(Renovable!H144,0,($J$1-1)*8) -> - | I10: =OFFSET(Renovable!I144,0,($J$1-1)*8) -> - | J10: =OFFSET(Renovable!J144,0,($J$1-1)*8) -> -
B11: Residuos renovables (2) | C11: =OFFSET(Renovable!C145,0,($J$1-1)*8) -> 2.01 | D11: =OFFSET(Renovable!D145,0,($J$1-1)*8) -> 2.33 | E11: =OFFSET(Renovable!E145,0,($J$1-1)*8) -> 2.36 | F11: =OFFSET(Renovable!F145,0,($J$1-1)*8) -> 1.95 | G11: =OFFSET(Renovable!G145,0,($J$1-1)*8) -> - | H11: =OFFSET(Renovable!H145,0,($J$1-1)*8) -> - | I11: =OFFSET(Renovable!I145,0,($J$1-1)*8) -> - | J11: =OFFSET(Renovable!J145,0,($J$1-1)*8) -> -
B12: Generación renovable | C12: =IF(SUM(C10:C11)=0,"-",SUM(C10:C11)) -> 2.05 | D12: =IF(SUM(D10:D11)=0,"-",SUM(D10:D11)) -> 2.37 | E12: 2.4 | F12: 1.95 | G12: - | H12: - | I12: - | J12: -
B13: (1) Asignación de unidades de producción según combustible principal.
B14: (2) El 50% de la generación procedente de residuos sólidos urbanos se considera renovable.
B15: =IF(J1=1,"",IF(MONTH(FACT)=1,CONCATENATE(" Para el año ",YEAR(FACT)-1, " valores acumulados hasta ",TEXT(FACT-30,"mmmm")," de ",YEAR(FACT)-1,"."),CONCATENATE(" Para el año ",YEAR(FACT), " valores acumulados hasta ",TEXT(FACT-30,"mmmm")," de ",YEAR(FACT),"."))) -> Para el año 2018 valores acumulados hasta enero de 2018.

Sheet Maxima renovable mes nacional
O1: 9
M3: Concepto
M4: Sistema eléctrico
M5: Horizonte temporal
M6: Periodo
C8: Ene. | D8: Feb. | E8: Mar. | F8: Abr. | G8: May. | H8: Jun. | I8: Jul. | J8: Ago. | K8: Sep. | L8: Oct. | M8: Nov. | N8: Dic. | O8: =OFFSET(Año!B22,($O$1-1),0) -> 2018
B10: Generación renovable (GWh) | C10: =OFFSET(Renovable!C192,0,($O$1-1)*12) -> 400.338339 | D10: =OFFSET(Renovable!D192,0,($O$1-1)*12) -> - | E10: =OFFSET(Renovable!E192,0,($O$1-1)*12) -> - | F10: =OFFSET(Renovable!F192,0,($O$1-1)*12) -> - | G10: =OFFSET(Renovable!G192,0,($O$1-1)*12) -> - | H10: =OFFSET(Renovable!H192,0,($O$1-1)*12) -> - | I10: =OFFSET(Renovable!I192,0,($O$1-1)*12) -> - | J10: =OFFSET(Renovable!J192,0,($O$1-1)*12) -> - | K10: =OFFSET(Renovable!K192,0,($O$1-1)*12) -> - | L10: =OFFSET(Renovable!L192,0,($O$1-1)*12) -> - | M10: =OFFSET(Renovable!M192,0,($O$1-1)*12) -> - | N10: =OFFSET(Renovable!N192,0,($O$1-1)*12) -> - | O10: =MAX(C10:N10) -> 400.338339
B11: Día | C11: =OFFSET(Renovable!C193,0,($O$1-1)*12) -> 4 | D11: =OFFSET(Renovable!D193,0,($O$1-1)*12) -> - | E11: =OFFSET(Renovable!E193,0,($O$1-1)*12) -> - | F11: =OFFSET(Renovable!F193,0,($O$1-1)*12) -> - | G11: =OFFSET(Renovable!G193,0,($O$1-1)*12) -> - | H11: =OFFSET(Renovable!H193,0,($O$1-1)*12) -> - | I11: =OFFSET(Renovable!I193,0,($O$1-1)*12) -> - | J11: =OFFSET(Renovable!J193,0,($O$1-1)*12) -> - | K11: =OFFSET(Renovable!K193,0,($O$1-1)*12) -> - | L11: =OFFSET(Renovable!L193,0,($O$1-1)*12) -> - | M11: =OFFSET(Renovable!M193,0,($O$1-1)*12) -> - | N11: =OFFSET(Renovable!N193,0,($O$1-1)*12) -> - | O11: =HLOOKUP($O$10,C10:N11,2,0)&" de "&HLOOKUP($O$10,C10:N12,3,0) -> 4 de enero
C12: enero | D12: febrero | E12: marzo | F12: abril | G12: mayo | H12: junio | I12: julio | J12: agosto | K12: septiembre | L12: octubre | M12: noviembre | N12: diciembre
C15: Ene. | D15: Feb. | E15: Mar. | F15: Abr. | G15: May. | H15: Jun. | I15: Jul. | J15: Ago. | K15: Sep. | L15: Oct. | M15: Nov. | N15: Dic. | O15: =OFFSET(Año!B22,($O$1-1),0) -> 2018
B17: Participación de la generación renovable | C17: =OFFSET(Renovable!C196,0,($O$1-1)*12) -> 53.25131238 | D17: =OFFSET(Renovable!D196,0,($O$1-1)*12) -> - | E17: =OFFSET(Renovable!E196,0,($O$1-1)*12) -> - | F17: =OFFSET(Renovable!F196,0,($O$1-1)*12) -> - | G17: =OFFSET(Renovable!G196,0,($O$1-1)*12) -> - | H17: =OFFSET(Renovable!H196,0,($O$1-1)*12) -> - | I17: =OFFSET(Renovable!I196,0,($O$1-1)*12) -> - | J17: =OFFSET(Renovable!J196,0,($O$1-1)*12) -> - | K17: =OFFSET(Renovable!K196,0,($O$1-1)*12) -> - | L17: =OFFSET(Renovable!L196,0,($O$1-1)*12) -> - | M17: =OFFSET(Renovable!M196,0,($O$1-1)*12) -> - | N17: =OFFSET(Renovable!N196,0,($O$1-1)*12) -> - | O17: =MAX(C17:N17) -> 53.25131238
B18: Día | C18: =OFFSET(Renovable!C197,0,($O$1-1)*12) -> 4 | D18: =OFFSET(Renovable!D197,0,($O$1-1)*12) -> - | E18: =OFFSET(Renovable!E197,0,($O$1-1)*12) -> - | F18: =OFFSET(Renovable!F197,0,($O$1-1)*12) -> - | G18: =OFFSET(Renovable!G197,0,($O$1-1)*12) -> - | H18: =OFFSET(Renovable!H197,0,($O$1-1)*12) -> - | I18: =OFFSET(Renovable!I197,0,($O$1-1)*12) -> - | J18: =OFFSET(Renovable!J197,0,($O$1-1)*12) -> - | K18: =OFFSET(Renovable!K197,0,($O$1-1)*12) -> - | L18: =OFFSET(Renovable!L197,0,($O$1-1)*12) -> - | M18: =OFFSET(Renovable!M197,0,($O$1-1)*12) -> - | N18: =OFFSET(Renovable!N197,0,($O$1-1)*12) -> - | O18: =HLOOKUP($O$17,C17:N18,2,0)&" de "&HLOOKUP($O$17,C17:N19,3,0) -> 4 de enero
C19: enero | D19: febrero | E19: marzo | F19: abril | G19: mayo | H19: junio | I19: julio | J19: agosto | K19: septiembre | L19: octubre | M19: noviembre | N19: diciembre
B20: (1)Incluye hidráulica, hidroeólica, eólica, solar fotovoltaica, solar térmica y térmica renovable/otras renovables. No incluye la generación bombeo.

Sheet Maxima renovable año nacional
J1: 2
H3: Concepto
H4: Sistema eléctrico
H5: Horizonte temporal
H6: Periodo
C8: =OFFSET(Renovable!C231,0,($J$1-1)*8) -> 2018 | D8: =OFFSET(Renovable!D231,0,($J$1-1)*8) -> 2019 | E8: =OFFSET(Renovable!E231,0,($J$1-1)*8) -> 2020 | F8: =OFFSET(Renovable!F231,0,($J$1-1)*8) -> 2021 | G8: =OFFSET(Renovable!G231,0,($J$1-1)*8) -> 2022 | H8: =OFFSET(Renovable!H231,0,($J$1-1)*8) -> 2023 | I8: =OFFSET(Renovable!I231,0,($J$1-1)*8) -> 2024 | J8: =OFFSET(Renovable!J231,0,($J$1-1)*8) -> 2025
B10: Generación renovable (GWh) | C10: =OFFSET(Renovable!C232,0,($J$1-1)*8) -> 400.338339 | D10: =OFFSET(Renovable!D232,0,($J$1-1)*8) -> - | E10: =OFFSET(Renovable!E232,0,($J$1-1)*8) -> - | F10: =OFFSET(Renovable!F232,0,($J$1-1)*8) -> - | G10: =OFFSET(Renovable!G232,0,($J$1-1)*8) -> - | H10: =OFFSET(Renovable!H232,0,($J$1-1)*8) -> - | I10: =OFFSET(Renovable!I232,0,($J$1-1)*8) -> - | J10: =OFFSET(Renovable!J232,0,($J$1-1)*8) -> -
B11: Día | C11: =OFFSET(Renovable!C233,0,($J$1-1)*8) -> 4 de enero | D11: =OFFSET(Renovable!D233,0,($J$1-1)*8) -> - | E11: =OFFSET(Renovable!E233,0,($J$1-1)*8) -> - | F11: =OFFSET(Renovable!F233,0,($J$1-1)*8) -> - | G11: =OFFSET(Renovable!G233,0,($J$1-1)*8) -> - | H11: =OFFSET(Renovable!H233,0,($J$1-1)*8) -> - | I11: =OFFSET(Renovable!I233,0,($J$1-1)*8) -> - | J11: =OFFSET(Renovable!J233,0,($J$1-1)*8) -> -
C15: =OFFSET(Renovable!C235,0,($J$1-1)*8) -> 2018 | D15: =OFFSET(Renovable!D235,0,($J$1-1)*8) -> 2019 | E15: =OFFSET(Renovable!E235,0,($J$1-1)*8) -> 2020 | F15: =OFFSET(Renovable!F235,0,($J$1-1)*8) -> 2021 | G15: =OFFSET(Renovable!G235,0,($J$1-1)*8) -> 2022 | H15: =OFFSET(Renovable!H235,0,($J$1-1)*8) -> 2023 | I15: =OFFSET(Renovable!I235,0,($J$1-1)*8) -> 2024 | J15: =OFFSET(Renovable!J235,0,($J$1-1)*8) -> 2025
B17: Participación generación renovable (%) | C17: =OFFSET(Renovable!C236,0,($J$1-1)*8) -> 53.25131238 | D17: =OFFSET(Renovable!D236,0,($J$1-1)*8) -> - | E17: =OFFSET(Renovable!E236,0,($J$1-1)*8) -> - | F17: =OFFSET(Renovable!F236,0,($J$1-1)*8) -> - | G17: =OFFSET(Renovable!G236,0,($J$1-1)*8) -> - | H17: =OFFSET(Renovable!H236,0,($J$1-1)*8) -> - | I17: =OFFSET(Renovable!I236,0,($J$1-1)*8) -> - | J17: =OFFSET(Renovable!J236,0,($J$1-1)*8) -> -
B18: Día | C18: =OFFSET(Renovable!C237,0,($J$1-1)*8) -> 4 de enero | D18: =OFFSET(Renovable!D237,0,($J$1-1)*8) -> - | E18: =OFFSET(Renovable!E237,0,($J$1-1)*8) -> - | F18: =OFFSET(Renovable!F237,0,($J$1-1)*8) -> - | G18: =OFFSET(Renovable!G237,0,($J$1-1)*8) -> - | H18: =OFFSET(Renovable!H237,0,($J$1-1)*8) -> - | I18: =OFFSET(Renovable!I237,0,($J$1-1)*8) -> - | J18: =OFFSET(Renovable!J237,0,($J$1-1)*8) -> -
B20: (1) Incluye hidráulica, hidroeólica, eólica, solar fotovoltaica, solar térmica y térmica renovable/otras renovables. No incluye la generación bombeo.
B21: =IF(J1=0,"",IF(MONTH(FACT)=1,CONCATENATE(" Para el año ",YEAR(FACT)-1, " valores acumulados hasta ",TEXT(FACT-30,"mmmm")," de ",YEAR(FACT)-1,"."),CONCATENATE(" Para el año ",YEAR(FACT), " valores acumulados hasta ",TEXT(FACT-30,"mmmm")," de ",YEAR(FACT),"."))) -> Para el año 2018 valores acumulados hasta enero de 2018.

Sheet Maxima renovable mes Peninsular
O1: 9
M3: Concepto
M4: Sistema eléctrico
M5: Horizonte temporal
M6: Periodo
C8: Ene. | D8: Feb. | E8: Mar. | F8: Abr. | G8: May. | H8: Jun. | I8: Jul. | J8: Ago. | K8: Sep. | L8: Oct. | M8: Nov. | N8: Dic. | O8: =OFFSET(Año!B22,($O$1-1),0) -> 2018
B10: Generación renovable (GWh) | C10: =OFFSET(Renovable!C160,0,($O$1-1)*12) -> 397.511647 | D10: =OFFSET(Renovable!D160,0,($O$1-1)*12) -> - | E10: =OFFSET(Renovable!E160,0,($O$1-1)*12) -> - | F10: =OFFSET(Renovable!F160,0,($O$1-1)*12) -> - | G10: =OFFSET(Renovable!G160,0,($O$1-1)*12) -> - | H10: =OFFSET(Renovable!H160,0,($O$1-1)*12) -> - | I10: =OFFSET(Renovable!I160,0,($O$1-1)*12) -> - | J10: =OFFSET(Renovable!J160,0,($O$1-1)*12) -> - | K10: =OFFSET(Renovable!K160,0,($O$1-1)*12) -> - | L10: =OFFSET(Renovable!L160,0,($O$1-1)*12) -> - | M10: =OFFSET(Renovable!M160,0,($O$1-1)*12) -> - | N10: =OFFSET(Renovable!N160,0,($O$1-1)*12) -> - | O10: =MAX(C10:N10) -> 397.511647
B11: Día | C11: =OFFSET(Renovable!C161,0,($O$1-1)*12) -> 4 | D11: =OFFSET(Renovable!D161,0,($O$1-1)*12) -> - | E11: =OFFSET(Renovable!E161,0,($O$1-1)*12) -> - | F11: =OFFSET(Renovable!F161,0,($O$1-1)*12) -> - | G11: =OFFSET(Renovable!G161,0,($O$1-1)*12) -> - | H11: =OFFSET(Renovable!H161,0,($O$1-1)*12) -> - | I11: =OFFSET(Renovable!I161,0,($O$1-1)*12) -> - | J11: =OFFSET(Renovable!J161,0,($O$1-1)*12) -> - | K11: =OFFSET(Renovable!K161,0,($O$1-1)*12) -> - | L11: =OFFSET(Renovable!L161,0,($O$1-1)*12) -> - | M11: =OFFSET(Renovable!M161,0,($O$1-1)*12) -> - | N11: =OFFSET(Renovable!N161,0,($O$1-1)*12) -> - | O11: =HLOOKUP($O$10,C10:N11,2,0)&" de "&HLOOKUP($O$10,C10:N12,3,0) -> 4 de enero
C12: enero | D12: febrero | E12: marzo | F12: abril | G12: mayo | H12: junio | I12: julio | J12: agosto | K12: septiembre | L12: octubre | M12: noviembre | N12: diciembre
C15: Ene. | D15: Feb. | E15: Mar. | F15: Abr. | G15: May. | H15: Jun. | I15: Jul. | J15: Ago. | K15: Sep. | L15: Oct. | M15: Nov. | N15: Dic. | O15: =OFFSET(Año!B22,($O$1-1),0) -> 2018
B17: Participación generación renovable (%) | C17: =OFFSET(Renovable!C164,0,($O$1-1)*12) -> 55.62198629 | D17: =OFFSET(Renovable!D164,0,($O$1-1)*12) -> - | E17: =OFFSET(Renovable!E164,0,($O$1-1)*12) -> - | F17: =OFFSET(Renovable!F164,0,($O$1-1)*12) -> - | G17: =OFFSET(Renovable!G164,0,($O$1-1)*12) -> - | H17: =OFFSET(Renovable!H164,0,($O$1-1)*12) -> - | I17: =OFFSET(Renovable!I164,0,($O$1-1)*12) -> - | J17: =OFFSET(Renovable!J164,0,($O$1-1)*12) -> - | K17: =OFFSET(Renovable!K164,0,($O$1-1)*12) -> - | L17: =OFFSET(Renovable!L164,0,($O$1-1)*12) -> - | M17: =OFFSET(Renovable!M164,0,($O$1-1)*12) -> - | N17: =OFFSET(Renovable!N164,0,($O$1-1)*12) -> - | O17: =MAX(C17:N17) -> 55.62198629
B18: Día | C18: =OFFSET(Renovable!C165,0,($O$1-1)*12) -> 4 | D18: =OFFSET(Renovable!D165,0,($O$1-1)*12) -> - | E18: =OFFSET(Renovable!E165,0,($O$1-1)*12) -> - | F18: =OFFSET(Renovable!F165,0,($O$1-1)*12) -> - | G18: =OFFSET(Renovable!G165,0,($O$1-1)*12) -> - | H18: =OFFSET(Renovable!H165,0,($O$1-1)*12) -> - | I18: =OFFSET(Renovable!I165,0,($O$1-1)*12) -> - | J18: =OFFSET(Renovable!J165,0,($O$1-1)*12) -> - | K18: =OFFSET(Renovable!K165,0,($O$1-1)*12) -> - | L18: =OFFSET(Renovable!L165,0,($O$1-1)*12) -> - | M18: =OFFSET(Renovable!M165,0,($O$1-1)*12) -> - | N18: =OFFSET(Renovable!N165,0,($O$1-1)*12) -> - | O18: =HLOOKUP($O$17,C17:N18,2,0)&" de "&HLOOKUP($O$17,C17:N19,3,0) -> 4 de enero
C19: enero | D19: febrero | E19: marzo | F19: abril | G19: mayo | H19: junio | I19: julio | J19: agosto | K19: septiembre | L19: octubre | M19: noviembre | N19: diciembre
B20: (1) Incluye hidráulica, eólica, solar fotovoltaica, solar térmica y térmica renovable/otras renovables. No incluye la generación bombeo.

Sheet Maxima renovable año Peninsular
J1: 2
H3: Concepto
H4: Sistema eléctrico
H5: Horizonte temporal
H6: Periodo
C8: =OFFSET(Renovable!C199,0,($J$1-1)*8) -> 2018 | D8: =OFFSET(Renovable!D199,0,($J$1-1)*8) -> 2019 | E8: =OFFSET(Renovable!E199,0,($J$1-1)*8) -> 2020 | F8: =OFFSET(Renovable!F199,0,($J$1-1)*8) -> 2021 | G8: =OFFSET(Renovable!G199,0,($J$1-1)*8) -> 2022 | H8: =OFFSET(Renovable!H199,0,($J$1-1)*8) -> 2023 | I8: =OFFSET(Renovable!I199,0,($J$1-1)*8) -> 2024 | J8: =OFFSET(Renovable!J199,0,($J$1-1)*8) -> 2025
B10: Generación renovable (GWh) | C10: =OFFSET(Renovable!C200,0,($J$1-1)*8) -> 397.511647 | D10: =OFFSET(Renovable!D200,0,($J$1-1)*8) -> - | E10: =OFFSET(Renovable!E200,0,($J$1-1)*8) -> - | F10: =OFFSET(Renovable!F200,0,($J$1-1)*8) -> - | G10: =OFFSET(Renovable!G200,0,($J$1-1)*8) -> - | H10: =OFFSET(Renovable!H200,0,($J$1-1)*8) -> - | I10: =OFFSET(Renovable!I200,0,($J$1-1)*8) -> - | J10: =OFFSET(Renovable!J200,0,($J$1-1)*8) -> -
B11: Día | C11: =OFFSET(Renovable!C201,0,($J$1-1)*8) -> 4 de enero | D11: =OFFSET(Renovable!D201,0,($J$1-1)*8) -> - | E11: =OFFSET(Renovable!E201,0,($J$1-1)*8) -> - | F11: =OFFSET(Renovable!F201,0,($J$1-1)*8) -> - | G11: =OFFSET(Renovable!G201,0,($J$1-1)*8) -> - | H11: =OFFSET(Renovable!H201,0,($J$1-1)*8) -> - | I11: =OFFSET(Renovable!I201,0,($J$1-1)*8) -> - | J11: =OFFSET(Renovable!J201,0,($J$1-1)*8) -> -
C15: =OFFSET(Renovable!C203,0,($J$1-1)*8) -> 2018 | D15: =OFFSET(Renovable!D203,0,($J$1-1)*8) -> 2019 | E15: =OFFSET(Renovable!E203,0,($J$1-1)*8) -> 2020 | F15: =OFFSET(Renovable!F203,0,($J$1-1)*8) -> 2021 | G15: =OFFSET(Renovable!G203,0,($J$1-1)*8) -> 2022 | H15: =OFFSET(Renovable!H203,0,($J$1-1)*8) -> 2023 | I15: =OFFSET(Renovable!I203,0,($J$1-1)*8) -> 2024 | J15: =OFFSET(Renovable!J203,0,($J$1-1)*8) -> 2025
B17: Participación generación renovable (%) | C17: =OFFSET(Renovable!C204,0,($J$1-1)*8) -> 55.62198629 | D17: =OFFSET(Renovable!D204,0,($J$1-1)*8) -> - | E17: =OFFSET(Renovable!E204,0,($J$1-1)*8) -> - | F17: =OFFSET(Renovable!F204,0,($J$1-1)*8) -> - | G17: =OFFSET(Renovable!G204,0,($J$1-1)*8) -> - | H17: =OFFSET(Renovable!H204,0,($J$1-1)*8) -> - | I17: =OFFSET(Renovable!I204,0,($J$1-1)*8) -> - | J17: =OFFSET(Renovable!J204,0,($J$1-1)*8) -> -
B18: Día | C18: =OFFSET(Renovable!C205,0,($J$1-1)*8) -> 4 de enero | D18: =OFFSET(Renovable!D205,0,($J$1-1)*8) -> - | E18: =OFFSET(Renovable!E205,0,($J$1-1)*8) -> - | F18: =OFFSET(Renovable!F205,0,($J$1-1)*8) -> - | G18: =OFFSET(Renovable!G205,0,($J$1-1)*8) -> - | H18: =OFFSET(Renovable!H205,0,($J$1-1)*8) -> - | I18: =OFFSET(Renovable!I205,0,($J$1-1)*8) -> - | J18: =OFFSET(Renovable!J205,0,($J$1-1)*8) -> -
B20: (1) Incluye hidráulica, eólica, solar fotovoltaica, solar térmica y térmica renovable/otras renovables. No incluye la generación bombeo.
B21: =IF(J1=0,"",IF(MONTH(FACT)=1,CONCATENATE(" Para el año ",YEAR(FACT)-1, " valores acumulados hasta ",TEXT(FACT-30,"mmmm")," de ",YEAR(FACT)-1,"."),CONCATENATE(" Para el año ",YEAR(FACT), " valores acumulados hasta ",TEXT(FACT-30,"mmmm")," de ",YEAR(FACT),"."))) -> Para el año 2018 valores acumulados hasta enero de 2018.

Sheet Maxima renovable mes Baleares
O1: 9
M3: Concepto
M4: Sistema eléctrico
M5: Horizonte temporal
M6: Periodo
C8: Ene. | D8: Feb. | E8: Mar. | F8: Abr. | G8: May. | H8: Jun. | I8: Jul. | J8: Ago. | K8: Sep. | L8: Oct. | M8: Nov. | N8: Dic. | O8: =OFFSET(Año!B22,($O$1-1),0) -> 2018
B10: Generación renovable (MWh) | C10: =OFFSET(Renovable!C168,0,($O$1-1)*12) -> 733.04 | D10: =OFFSET(Renovable!D168,0,($O$1-1)*12) -> - | E10: =OFFSET(Renovable!E168,0,($O$1-1)*12) -> - | F10: =OFFSET(Renovable!F168,0,($O$1-1)*12) -> - | G10: =OFFSET(Renovable!G168,0,($O$1-1)*12) -> - | H10: =OFFSET(Renovable!H168,0,($O$1-1)*12) -> - | I10: =OFFSET(Renovable!I168,0,($O$1-1)*12) -> - | J10: =OFFSET(Renovable!J168,0,($O$1-1)*12) -> - | K10: =OFFSET(Renovable!K168,0,($O$1-1)*12) -> - | L10: =OFFSET(Renovable!L168,0,($O$1-1)*12) -> - | M10: =OFFSET(Renovable!M168,0,($O$1-1)*12) -> - | N10: =OFFSET(Renovable!N168,0,($O$1-1)*12) -> - | O10: =MAX(C10:N10) -> 733.04
B11: Día | C11: =OFFSET(Renovable!C169,0,($O$1-1)*12) -> 16 | D11: =OFFSET(Renovable!D169,0,($O$1-1)*12) -> - | E11: =OFFSET(Renovable!E169,0,($O$1-1)*12) -> - | F11: =OFFSET(Renovable!F169,0,($O$1-1)*12) -> - | G11: =OFFSET(Renovable!G169,0,($O$1-1)*12) -> - | H11: =OFFSET(Renovable!H169,0,($O$1-1)*12) -> - | I11: =OFFSET(Renovable!I169,0,($O$1-1)*12) -> - | J11: =OFFSET(Renovable!J169,0,($O$1-1)*12) -> - | K11: =OFFSET(Renovable!K169,0,($O$1-1)*12) -> - | L11: =OFFSET(Renovable!L169,0,($O$1-1)*12) -> - | M11: =OFFSET(Renovable!M169,0,($O$1-1)*12) -> - | N11: =OFFSET(Renovable!N169,0,($O$1-1)*12) -> - | O11: =HLOOKUP($O$10,C10:N11,2,0)&" de "&HLOOKUP($O$10,C10:N12,3,0) -> 16 de enero
C12: enero | D12: febrero | E12: marzo | F12: abril | G12: mayo | H12: junio | I12: julio | J12: agosto | K12: septiembre | L12: octubre | M12: noviembre | N12: diciembre
C15: Ene. | D15: Feb. | E15: Mar. | F15: Abr. | G15: May. | H15: Jun. | I15: Jul. | J15: Ago. | K15: Sep. | L15: Oct. | M15: Nov. | N15: Dic. | O15: =OFFSET(Año!B22,($O$1-1),0) -> 2018
B17: Participación generación renovable (%) | C17: =OFFSET(Renovable!C172,0,($O$1-1)*12) -> 6.482844159 | D17: =OFFSET(Renovable!D172,0,($O$1-1)*12) -> - | E17: =OFFSET(Renovable!E172,0,($O$1-1)*12) -> - | F17: =OFFSET(Renovable!F172,0,($O$1-1)*12) -> - | G17: =OFFSET(Renovable!G172,0,($O$1-1)*12) -> - | H17: =OFFSET(Renovable!H172,0,($O$1-1)*12) -> - | I17: =OFFSET(Renovable!I172,0,($O$1-1)*12) -> - | J17: =OFFSET(Renovable!J172,0,($O$1-1)*12) -> - | K17: =OFFSET(Renovable!K172,0,($O$1-1)*12) -> - | L17: =OFFSET(Renovable!L172,0,($O$1-1)*12) -> - | M17: =OFFSET(Renovable!M172,0,($O$1-1)*12) -> - | N17: =OFFSET(Renovable!N172,0,($O$1-1)*12) -> - | O17: =MAX(C17:N17) -> 6.482844159
B18: Día | C18: =OFFSET(Renovable!C173,0,($O$1-1)*12) -> 17 | D18: =OFFSET(Renovable!D173,0,($O$1-1)*12) -> - | E18: =OFFSET(Renovable!E173,0,($O$1-1)*12) -> - | F18: =OFFSET(Renovable!F173,0,($O$1-1)*12) -> - | G18: =OFFSET(Renovable!G173,0,($O$1-1)*12) -> - | H18: =OFFSET(Renovable!H173,0,($O$1-1)*12) -> - | I18: =OFFSET(Renovable!I173,0,($O$1-1)*12) -> - | J18: =OFFSET(Renovable!J173,0,($O$1-1)*12) -> - | K18: =OFFSET(Renovable!K173,0,($O$1-1)*12) -> - | L18: =OFFSET(Renovable!L173,0,($O$1-1)*12) -> - | M18: =OFFSET(Renovable!M173,0,($O$1-1)*12) -> - | N18: =OFFSET(Renovable!N173,0,($O$1-1)*12) -> - | O18: =HLOOKUP($O$17,C17:N18,2,0)&" de "&HLOOKUP($O$17,C17:N19,3,0) -> 17 de enero
C19: enero | D19: febrero | E19: marzo | F19: abril | G19: mayo | H19: junio | I19: julio | J19: agosto | K19: septiembre | L19: octubre | M19: noviembre | N19: diciembre
B20: (1) Incluye eólica, solar fotovoltaica y térmica renovable/otras renovables.

Sheet Maxima renovable año Baleares
J1: 2
H3: Concepto
H4: Sistema eléctrico
H5: Horizonte temporal
H6: Periodo
C8: =OFFSET(Renovable!C207,0,($J$1-1)*8) -> 2018 | D8: =OFFSET(Renovable!D207,0,($J$1-1)*8) -> 2019 | E8: =OFFSET(Renovable!E207,0,($J$1-1)*8) -> 2020 | F8: =OFFSET(Renovable!F207,0,($J$1-1)*8) -> 2021 | G8: =OFFSET(Renovable!G207,0,($J$1-1)*8) -> 2022 | H8: =OFFSET(Renovable!H207,0,($J$1-1)*8) -> 2023 | I8: =OFFSET(Renovable!I207,0,($J$1-1)*8) -> 2024 | J8: =OFFSET(Renovable!J207,0,($J$1-1)*8) -> 2025
B10: Generación renovable (MWh) | C10: =OFFSET(Renovable!C208,0,($J$1-1)*8) -> 733.04 | D10: =OFFSET(Renovable!D208,0,($J$1-1)*8) -> - | E10: =OFFSET(Renovable!E208,0,($J$1-1)*8) -> - | F10: =OFFSET(Renovable!F208,0,($J$1-1)*8) -> - | G10: =OFFSET(Renovable!G208,0,($J$1-1)*8) -> - | H10: =OFFSET(Renovable!H208,0,($J$1-1)*8) -> - | I10: =OFFSET(Renovable!I208,0,($J$1-1)*8) -> - | J10: =OFFSET(Renovable!J208,0,($J$1-1)*8) -> -
B11: Día | C11: =OFFSET(Renovable!C209,0,($J$1-1)*8) -> 16 de enero | D11: =OFFSET(Renovable!D209,0,($J$1-1)*8) -> - | E11: =OFFSET(Renovable!E209,0,($J$1-1)*8) -> - | F11: =OFFSET(Renovable!F209,0,($J$1-1)*8) -> - | G11: =OFFSET(Renovable!G209,0,($J$1-1)*8) -> - | H11: =OFFSET(Renovable!H209,0,($J$1-1)*8) -> - | I11: =OFFSET(Renovable!I209,0,($J$1-1)*8) -> - | J11: =OFFSET(Renovable!J209,0,($J$1-1)*8) -> -
C15: =OFFSET(Renovable!C211,0,($J$1-1)*8) -> 2018 | D15: =OFFSET(Renovable!D211,0,($J$1-1)*8) -> 2019 | E15: =OFFSET(Renovable!E211,0,($J$1-1)*8) -> 2020 | F15: =OFFSET(Renovable!F211,0,($J$1-1)*8) -> 2021 | G15: =OFFSET(Renovable!G211,0,($J$1-1)*8) -> 2022 | H15: =OFFSET(Renovable!H211,0,($J$1-1)*8) -> 2023 | I15: =OFFSET(Renovable!I211,0,($J$1-1)*8) -> 2024 | J15: =OFFSET(Renovable!J211,0,($J$1-1)*8) -> 2025
B17: Participación generación renovable (%) | C17: =OFFSET(Renovable!C212,0,($J$1-1)*8) -> 6.482844159 | D17: =OFFSET(Renovable!D212,0,($J$1-1)*8) -> - | E17: =OFFSET(Renovable!E212,0,($J$1-1)*8) -> - | F17: =OFFSET(Renovable!F212,0,($J$1-1)*8) -> - | G17: =OFFSET(Renovable!G212,0,($J$1-1)*8) -> - | H17: =OFFSET(Renovable!H212,0,($J$1-1)*8) -> - | I17: =OFFSET(Renovable!I212,0,($J$1-1)*8) -> - | J17: =OFFSET(Renovable!J212,0,($J$1-1)*8) -> -
B18: Día | C18: =OFFSET(Renovable!C213,0,($J$1-1)*8) -> 17 de enero | D18: =OFFSET(Renovable!D213,0,($J$1-1)*8) -> - | E18: =OFFSET(Renovable!E213,0,($J$1-1)*8) -> - | F18: =OFFSET(Renovable!F213,0,($J$1-1)*8) -> - | G18: =OFFSET(Renovable!G213,0,($J$1-1)*8) -> - | H18: =OFFSET(Renovable!H213,0,($J$1-1)*8) -> - | I18: =OFFSET(Renovable!I213,0,($J$1-1)*8) -> - | J18: =OFFSET(Renovable!J213,0,($J$1-1)*8) -> -
B20: (1) Incluye eólica, solar fotovoltaica y térmica renovable/otras renovables.
B21: =IF(J1=0,"",IF(MONTH(FACT)=1,CONCATENATE(" Para el año ",YEAR(FACT)-1, " valores acumulados hasta ",TEXT(FACT-30,"mmmm")," de ",YEAR(FACT)-1,"."),CONCATENATE(" Para el año ",YEAR(FACT), " valores acumulados hasta ",TEXT(FACT-30,"mmmm")," de ",YEAR(FACT),"."))) -> Para el año 2018 valores acumulados hasta enero de 2018.

Sheet Maxima renovable mes Canarias
O1: 9
M3: Concepto
M4: Sistema eléctrico
M5: Horizonte temporal
M6: Periodo
C8: Ene. | D8: Feb. | E8: Mar. | F8: Abr. | G8: May. | H8: Jun. | I8: Jul. | J8: Ago. | K8: Sep. | L8: Oct. | M8: Nov. | N8: Dic. | O8: =OFFSET(Año!B22,($O$1-1),0) -> 2018
B10: Generación renovable (MWh) | C10: =OFFSET(Renovable!C176,0,($O$1-1)*12) -> 4825.134 | D10: =OFFSET(Renovable!D176,0,($O$1-1)*12) -> - | E10: =OFFSET(Renovable!E176,0,($O$1-1)*12) -> - | F10: =OFFSET(Renovable!F176,0,($O$1-1)*12) -> - | G10: =OFFSET(Renovable!G176,0,($O$1-1)*12) -> - | H10: =OFFSET(Renovable!H176,0,($O$1-1)*12) -> - | I10: =OFFSET(Renovable!I176,0,($O$1-1)*12) -> - | J10: =OFFSET(Renovable!J176,0,($O$1-1)*12) -> - | K10: =OFFSET(Renovable!K176,0,($O$1-1)*12) -> - | L10: =OFFSET(Renovable!L176,0,($O$1-1)*12) -> - | M10: =OFFSET(Renovable!M176,0,($O$1-1)*12) -> - | N10: =OFFSET(Renovable!N176,0,($O$1-1)*12) -> - | O10: =MAX(C10:N10) -> 4825.134
B11: Día | C11: =OFFSET(Renovable!C177,0,($O$1-1)*12) -> 27 | D11: =OFFSET(Renovable!D177,0,($O$1-1)*12) -> - | E11: =OFFSET(Renovable!E177,0,($O$1-1)*12) -> - | F11: =OFFSET(Renovable!F177,0,($O$1-1)*12) -> - | G11: =OFFSET(Renovable!G177,0,($O$1-1)*12) -> - | H11: =OFFSET(Renovable!H177,0,($O$1-1)*12) -> - | I11: =OFFSET(Renovable!I177,0,($O$1-1)*12) -> - | J11: =OFFSET(Renovable!J177,0,($O$1-1)*12) -> - | K11: =OFFSET(Renovable!K177,0,($O$1-1)*12) -> - | L11: =OFFSET(Renovable!L177,0,($O$1-1)*12) -> - | M11: =OFFSET(Renovable!M177,0,($O$1-1)*12) -> - | N11: =OFFSET(Renovable!N177,0,($O$1-1)*12) -> - | O11: =HLOOKUP($O$10,C10:N11,2,0)&" de "&HLOOKUP($O$10,C10:N12,3,0) -> 27 de enero
C12: enero | D12: febrero | E12: marzo | F12: abril | G12: mayo | H12: junio | I12: julio | J12: agosto | K12: septiembre | L12: octubre | M12: noviembre | N12: diciembre
C15: Ene. | D15: Feb. | E15: Mar. | F15: Abr. | G15: May. | H15: Jun. | I15: Jul. | J15: Ago. | K15: Sep. | L15: Oct. | M15: Nov. | N15: Dic. | O15: =OFFSET(Año!B22,($O$1-1),0) -> 2018
B17: Participación generación renovable (%) | C17: =OFFSET(Renovable!C180,0,($O$1-1)*12) -> 20 | D17: =OFFSET(Renovable!D180,0,($O$1-1)*12) -> - | E17: =OFFSET(Renovable!E180,0,($O$1-1)*12) -> - | F17: =OFFSET(Renovable!F180,0,($O$1-1)*12) -> - | G17: =OFFSET(Renovable!G180,0,($O$1-1)*12) -> - | H17: =OFFSET(Renovable!H180,0,($O$1-1)*12) -> - | I17: =OFFSET(Renovable!I180,0,($O$1-1)*12) -> - | J17: =OFFSET(Renovable!J180,0,($O$1-1)*12) -> - | K17: =OFFSET(Renovable!K180,0,($O$1-1)*12) -> - | L17: =OFFSET(Renovable!L180,0,($O$1-1)*12) -> - | M17: =OFFSET(Renovable!M180,0,($O$1-1)*12) -> - | N17: =OFFSET(Renovable!N180,0,($O$1-1)*12) -> - | O17: =MAX(C17:N17) -> 20
B18: Día | C18: =OFFSET(Renovable!C181,0,($O$1-1)*12) -> 27 | D18: =OFFSET(Renovable!D181,0,($O$1-1)*12) -> - | E18: =OFFSET(Renovable!E181,0,($O$1-1)*12) -> - | F18: =OFFSET(Renovable!F181,0,($O$1-1)*12) -> - | G18: =OFFSET(Renovable!G181,0,($O$1-1)*12) -> - | H18: =OFFSET(Renovable!H181,0,($O$1-1)*12) -> - | I18: =OFFSET(Renovable!I181,0,($O$1-1)*12) -> - | J18: =OFFSET(Renovable!J181,0,($O$1-1)*12) -> - | K18: =OFFSET(Renovable!K181,0,($O$1-1)*12) -> - | L18: =OFFSET(Renovable!L181,0,($O$1-1)*12) -> - | M18: =OFFSET(Renovable!M181,0,($O$1-1)*12) -> - | N18: =OFFSET(Renovable!N181,0,($O$1-1)*12) -> - | O18: =HLOOKUP($O$17,C17:N18,2,0)&" de "&HLOOKUP($O$17,C17:N19,3,0) -> 27 de enero
C19: enero | D19: febrero | E19: marzo | F19: abril | G19: mayo | H19: junio | I19: julio | J19: agosto | K19: septiembre | L19: octubre | M19: noviembre | N19: diciembre
B20: (1) Incluye hidráulica, hidroeólica, eólica, solar fotovoltaica y térmica renovable/otras renovables.

Sheet Maxima renovable año Canarias
J1: 2
H3: Concepto
H4: Sistema eléctrico
H5: Horizonte temporal
H6: Periodo
C8: =OFFSET(Renovable!C215,0,($J$1-1)*8) -> 2018 | D8: =OFFSET(Renovable!D215,0,($J$1-1)*8) -> 2019 | E8: =OFFSET(Renovable!E215,0,($J$1-1)*8) -> 2020 | F8: =OFFSET(Renovable!F215,0,($J$1-1)*8) -> 2021 | G8: =OFFSET(Renovable!G215,0,($J$1-1)*8) -> 2022 | H8: =OFFSET(Renovable!H215,0,($J$1-1)*8) -> 2023 | I8: =OFFSET(Renovable!I215,0,($J$1-1)*8) -> 2024 | J8: =OFFSET(Renovable!J215,0,($J$1-1)*8) -> 2025
B10: Generación renovable (MWh) | C10: =OFFSET(Renovable!C216,0,($J$1-1)*8) -> 4825.134 | D10: =OFFSET(Renovable!D216,0,($J$1-1)*8) -> - | E10: =OFFSET(Renovable!E216,0,($J$1-1)*8) -> - | F10: =OFFSET(Renovable!F216,0,($J$1-1)*8) -> - | G10: =OFFSET(Renovable!G216,0,($J$1-1)*8) -> - | H10: =OFFSET(Renovable!H216,0,($J$1-1)*8) -> - | I10: =OFFSET(Renovable!I216,0,($J$1-1)*8) -> - | J10: =OFFSET(Renovable!J216,0,($J$1-1)*8) -> -
B11: Día | C11: =OFFSET(Renovable!C217,0,($J$1-1)*8) -> 27 de enero | D11: =OFFSET(Renovable!D217,0,($J$1-1)*8) -> - | E11: =OFFSET(Renovable!E217,0,($J$1-1)*8) -> - | F11: =OFFSET(Renovable!F217,0,($J$1-1)*8) -> - | G11: =OFFSET(Renovable!G217,0,($J$1-1)*8) -> - | H11: =OFFSET(Renovable!H217,0,($J$1-1)*8) -> - | I11: =OFFSET(Renovable!I217,0,($J$1-1)*8) -> - | J11: =OFFSET(Renovable!J217,0,($J$1-1)*8) -> -
C15: =OFFSET(Renovable!C219,0,($J$1-1)*8) -> 2018 | D15: =OFFSET(Renovable!D219,0,($J$1-1)*8) -> 2019 | E15: =OFFSET(Renovable!E219,0,($J$1-1)*8) -> 2020 | F15: =OFFSET(Renovable!F219,0,($J$1-1)*8) -> 2021 | G15: =OFFSET(Renovable!G219,0,($J$1-1)*8) -> 2022 | H15: =OFFSET(Renovable!H219,0,($J$1-1)*8) -> 2023 | I15: =OFFSET(Renovable!I219,0,($J$1-1)*8) -> 2024 | J15: =OFFSET(Renovable!J219,0,($J$1-1)*8) -> 2025
B17: Participación generación renovable (%) | C17: =OFFSET(Renovable!C220,0,($J$1-1)*8) -> 20 | D17: =OFFSET(Renovable!D220,0,($J$1-1)*8) -> - | E17: =OFFSET(Renovable!E220,0,($J$1-1)*8) -> - | F17: =OFFSET(Renovable!F220,0,($J$1-1)*8) -> - | G17: =OFFSET(Renovable!G220,0,($J$1-1)*8) -> - | H17: =OFFSET(Renovable!H220,0,($J$1-1)*8) -> - | I17: =OFFSET(Renovable!I220,0,($J$1-1)*8) -> - | J17: =OFFSET(Renovable!J220,0,($J$1-1)*8) -> -
B18: Día | C18: =OFFSET(Renovable!C221,0,($J$1-1)*8) -> 27 de enero | D18: =OFFSET(Renovable!D221,0,($J$1-1)*8) -> - | E18: =OFFSET(Renovable!E221,0,($J$1-1)*8) -> - | F18: =OFFSET(Renovable!F221,0,($J$1-1)*8) -> - | G18: =OFFSET(Renovable!G221,0,($J$1-1)*8) -> - | H18: =OFFSET(Renovable!H221,0,($J$1-1)*8) -> - | I18: =OFFSET(Renovable!I221,0,($J$1-1)*8) -> - | J18: =OFFSET(Renovable!J221,0,($J$1-1)*8) -> -
B20: (1) Incluye hidráulica, hidroeólica, eólica, solar fotovoltaica y térmica renovable/otras renovables.
B21: =IF(J1=0,"",IF(MONTH(FACT)=1,CONCATENATE(" Para el año ",YEAR(FACT)-1, " valores acumulados hasta ",TEXT(FACT-30,"mmmm")," de ",YEAR(FACT)-1,"."),CONCATENATE(" Para el año ",YEAR(FACT), " valores acumulados hasta ",TEXT(FACT-30,"mmmm")," de ",YEAR(FACT),"."))) -> Para el año 2018 valores acumulados hasta enero de 2018.

Sheet Maxima renovable mes Melilla
O1: 9
M3: Concepto
M4: Sistema eléctrico
M5: Horizonte temporal
M6: Periodo
C8: Ene. | D8: Feb. | E8: Mar. | F8: Abr. | G8: May. | H8: Jun. | I8: Jul. | J8: Ago. | K8: Sep. | L8: Oct. | M8: Nov. | N8: Dic. | O8: =OFFSET(Año!B22,($O$1-1),0) -> 2018
B10: Generación renovable (MWh) | C10: =OFFSET(Renovable!C184,0,($O$1-1)*12) -> 13.2 | D10: =OFFSET(Renovable!D184,0,($O$1-1)*12) -> - | E10: =OFFSET(Renovable!E184,0,($O$1-1)*12) -> - | F10: =OFFSET(Renovable!F184,0,($O$1-1)*12) -> - | G10: =OFFSET(Renovable!G184,0,($O$1-1)*12) -> - | H10: =OFFSET(Renovable!H184,0,($O$1-1)*12) -> - | I10: =OFFSET(Renovable!I184,0,($O$1-1)*12) -> - | J10: =OFFSET(Renovable!J184,0,($O$1-1)*12) -> - | K10: =OFFSET(Renovable!K184,0,($O$1-1)*12) -> - | L10: =OFFSET(Renovable!L184,0,($O$1-1)*12) -> - | M10: =OFFSET(Renovable!M184,0,($O$1-1)*12) -> - | N10: =OFFSET(Renovable!N184,0,($O$1-1)*12) -> - | O10: =MAX(C10:N10) -> 13.2
B11: Día | C11: =OFFSET(Renovable!C185,0,($O$1-1)*12) -> 1 | D11: =OFFSET(Renovable!D185,0,($O$1-1)*12) -> - | E11: =OFFSET(Renovable!E185,0,($O$1-1)*12) -> - | F11: =OFFSET(Renovable!F185,0,($O$1-1)*12) -> - | G11: =OFFSET(Renovable!G185,0,($O$1-1)*12) -> - | H11: =OFFSET(Renovable!H185,0,($O$1-1)*12) -> - | I11: =OFFSET(Renovable!I185,0,($O$1-1)*12) -> - | J11: =OFFSET(Renovable!J185,0,($O$1-1)*12) -> - | K11: =OFFSET(Renovable!K185,0,($O$1-1)*12) -> - | L11: =OFFSET(Renovable!L185,0,($O$1-1)*12) -> - | M11: =OFFSET(Renovable!M185,0,($O$1-1)*12) -> - | N11: =OFFSET(Renovable!N185,0,($O$1-1)*12) -> - | O11: =HLOOKUP($O$10,C10:N11,2,0)&" de "&HLOOKUP($O$10,C10:N12,3,0) -> 1 de enero
C12: enero | D12: febrero | E12: marzo | F12: abril | G12: mayo | H12: junio | I12: julio | J12: agosto | K12: septiembre | L12: octubre | M12: noviembre | N12: diciembre
C15: Ene. | D15: Feb. | E15: Mar. | F15: Abr. | G15: May. | H15: Jun. | I15: Jul. | J15: Ago. | K15: Sep. | L15: Oct. | M15: Nov. | N15: Dic. | O15: =OFFSET(Año!B22,($O$1-1),0) -> 2018
B17: Participación generación renovable (%) | C17: =OFFSET(Renovable!C188,0,($O$1-1)*12) -> 2.417600129 | D17: =OFFSET(Renovable!D188,0,($O$1-1)*12) -> - | E17: =OFFSET(Renovable!E188,0,($O$1-1)*12) -> - | F17: =OFFSET(Renovable!F188,0,($O$1-1)*12) -> - | G17: =OFFSET(Renovable!G188,0,($O$1-1)*12) -> - | H17: =OFFSET(Renovable!H188,0,($O$1-1)*12) -> - | I17: =OFFSET(Renovable!I188,0,($O$1-1)*12) -> - | J17: =OFFSET(Renovable!J188,0,($O$1-1)*12) -> - | K17: =OFFSET(Renovable!K188,0,($O$1-1)*12) -> - | L17: =OFFSET(Renovable!L188,0,($O$1-1)*12) -> - | M17: =OFFSET(Renovable!M188,0,($O$1-1)*12) -> - | N17: =OFFSET(Renovable!N188,0,($O$1-1)*12) -> - | O17: =MAX(C17:N17) -> 2.417600129
B18: Día | C18: =OFFSET(Renovable!C189,0,($O$1-1)*12) -> 6 | D18: =OFFSET(Renovable!D189,0,($O$1-1)*12) -> - | E18: =OFFSET(Renovable!E189,0,($O$1-1)*12) -> - | F18: =OFFSET(Renovable!F189,0,($O$1-1)*12) -> - | G18: =OFFSET(Renovable!G189,0,($O$1-1)*12) -> - | H18: =OFFSET(Renovable!H189,0,($O$1-1)*12) -> - | I18: =OFFSET(Renovable!I189,0,($O$1-1)*12) -> - | J18: =OFFSET(Renovable!J189,0,($O$1-1)*12) -> - | K18: =OFFSET(Renovable!K189,0,($O$1-1)*12) -> - | L18: =OFFSET(Renovable!L189,0,($O$1-1)*12) -> - | M18: =OFFSET(Renovable!M189,0,($O$1-1)*12) -> - | N18: =OFFSET(Renovable!N189,0,($O$1-1)*12) -> - | O18: =HLOOKUP($O$17,C17:N18,2,0)&" de "&HLOOKUP($O$17,C17:N19,3,0) -> 6 de enero
C19: enero | D19: febrero | E19: marzo | F19: abril | G19: mayo | H19: junio | I19: julio | J19: agosto | K19: septiembre | L19: octubre | M19: noviembre | N19: diciembre
B20: (1) Incluye solar fotovoltaica.

Sheet Maxima renovable año Melilla
J1: 2
H3: Concepto
H4: Sistema eléctrico
H5: Horizonte temporal
H6: Periodo
C8: =OFFSET(Renovable!C223,0,($J$1-1)*8) -> 2018 | D8: =OFFSET(Renovable!D223,0,($J$1-1)*8) -> 2019 | E8: =OFFSET(Renovable!E223,0,($J$1-1)*8) -> 2020 | F8: =OFFSET(Renovable!F223,0,($J$1-1)*8) -> 2021 | G8: =OFFSET(Renovable!G223,0,($J$1-1)*8) -> 2022 | H8: =OFFSET(Renovable!H223,0,($J$1-1)*8) -> 2023 | I8: =OFFSET(Renovable!I223,0,($J$1-1)*8) -> 2024 | J8: =OFFSET(Renovable!J223,0,($J$1-1)*8) -> 2025
B10: Generación renovable (MWh) | C10: =OFFSET(Renovable!C224,0,($J$1-1)*8) -> 13.2 | D10: =OFFSET(Renovable!D224,0,($J$1-1)*8) -> - | E10: =OFFSET(Renovable!E224,0,($J$1-1)*8) -> - | F10: =OFFSET(Renovable!F224,0,($J$1-1)*8) -> - | G10: =OFFSET(Renovable!G224,0,($J$1-1)*8) -> - | H10: =OFFSET(Renovable!H224,0,($J$1-1)*8) -> - | I10: =OFFSET(Renovable!I224,0,($J$1-1)*8) -> - | J10: =OFFSET(Renovable!J224,0,($J$1-1)*8) -> -
B11: Día | C11: =OFFSET(Renovable!C225,0,($J$1-1)*8) -> 1 de enero | D11: =OFFSET(Renovable!D225,0,($J$1-1)*8) -> - | E11: =OFFSET(Renovable!E225,0,($J$1-1)*8) -> - | F11: =OFFSET(Renovable!F225,0,($J$1-1)*8) -> - | G11: =OFFSET(Renovable!G225,0,($J$1-1)*8) -> - | H11: =OFFSET(Renovable!H225,0,($J$1-1)*8) -> - | I11: =OFFSET(Renovable!I225,0,($J$1-1)*8) -> - | J11: =OFFSET(Renovable!J225,0,($J$1-1)*8) -> -
C15: =OFFSET(Renovable!C227,0,($J$1-1)*8) -> 2018 | D15: =OFFSET(Renovable!D227,0,($J$1-1)*8) -> 2019 | E15: =OFFSET(Renovable!E227,0,($J$1-1)*8) -> 2020 | F15: =OFFSET(Renovable!F227,0,($J$1-1)*8) -> 2021 | G15: =OFFSET(Renovable!G227,0,($J$1-1)*8) -> 2022 | H15: =OFFSET(Renovable!H227,0,($J$1-1)*8) -> 2023 | I15: =OFFSET(Renovable!I227,0,($J$1-1)*8) -> 2024 | J15: =OFFSET(Renovable!J227,0,($J$1-1)*8) -> 2025
B17: Participación generación renovable (%) | C17: =OFFSET(Renovable!C228,0,($J$1-1)*8) -> 2.417600129 | D17: =OFFSET(Renovable!D228,0,($J$1-1)*8) -> - | E17: =OFFSET(Renovable!E228,0,($J$1-1)*8) -> - | F17: =OFFSET(Renovable!F228,0,($J$1-1)*8) -> - | G17: =OFFSET(Renovable!G228,0,($J$1-1)*8) -> - | H17: =OFFSET(Renovable!H228,0,($J$1-1)*8) -> - | I17: =OFFSET(Renovable!I228,0,($J$1-1)*8) -> - | J17: =OFFSET(Renovable!J228,0,($J$1-1)*8) -> -
B18: Día | C18: =OFFSET(Renovable!C229,0,($J$1-1)*8) -> 6 de enero | D18: =OFFSET(Renovable!D229,0,($J$1-1)*8) -> - | E18: =OFFSET(Renovable!E229,0,($J$1-1)*8) -> - | F18: =OFFSET(Renovable!F229,0,($J$1-1)*8) -> - | G18: =OFFSET(Renovable!G229,0,($J$1-1)*8) -> - | H18: =OFFSET(Renovable!H229,0,($J$1-1)*8) -> - | I18: =OFFSET(Renovable!I229,0,($J$1-1)*8) -> - | J18: =OFFSET(Renovable!J229,0,($J$1-1)*8) -> -
B20: (1) Incluye solar fotovoltaica.
B21: =IF(J1=0,"",IF(MONTH(FACT)=1,CONCATENATE(" Para el año ",YEAR(FACT)-1, " valores acumulados hasta ",TEXT(FACT-30,"mmmm")," de ",YEAR(FACT)-1,"."),CONCATENATE(" Para el año ",YEAR(FACT), " valores acumulados hasta ",TEXT(FACT-30,"mmmm")," de ",YEAR(FACT),"."))) -> Para el año 2018 valores acumulados hasta enero de 2018.

Sheet Renovable (hidden)
B2: Generación renovable mensual peninsular (GWh) | C2: 1990-01-01 | D2: 1990-02-01 | E2: 1990-03-01 | F2: 1990-04-01 | G2: 1990-05-01 | H2: 1990-06-01 | I2: 1990-07-01 | J2: 1990-08-01 | K2: 1990-09-01 | L2: 1990-10-01 | M2: 1990-11-01 | N2: 1990-12-01 | O2: 1991-01-01 | P2: 1991-02-01 | Q2: 1991-03-01 | R2: 1991-04-01 | S2: 1991-05-01 | T2: 1991-06-01 | U2: 1991-07-01 | V2: 1991-08-01 | W2: 1991-09-01 | X2: 1991-10-01 | Y2: 1991-11-01 | Z2: 1991-12-01 | AA2: 1992-01-01 | AB2: 1992-02-01 | AC2: 1992-03-01 | AD2: 1992-04-01 | AE2: 1992-05-01 | AF2: 1992-06-01 | AG2: 1992-07-01 | AH2: 1992-08-01 | AI2: 1992-09-01 | AJ2: 1992-10-01 | AK2: 1992-11-01 | AL2: 1992-12-01 | AM2: 1993-01-01 | AN2: 1993-02-01 | AO2: 1993-03-01 | AP2: 1993-04-01 | AQ2: 1993-05-01 | AR2: 1993-06-01 | AS2: 1993-07-01 | AT2: 1993-08-01 | AU2: 1993-09-01 | AV2: 1993-10-01 | AW2: 1993-11-01 | AX2: 1993-12-01 | AY2: 1994-01-01 | AZ2: 1994-02-01 | BA2: 1994-03-01 | BB2: 1994-04-01 | BC2: 1994-05-01 | BD2: 1994-06-01 | BE2: 1994-07-01 | BF2: 1994-08-01 | BG2: 1994-09-01 | BH2: 1994-10-01 | BI2: 1994-11-01 | BJ2: 1994-12-01 | BK2: 1995-01-01 | BL2: 1995-02-01 | BM2: 1995-03-01 | BN2: 1995-04-01 | BO2: 1995-05-01 | BP2: 1995-06-01 | BQ2: 1995-07-01 | BR2: 1995-08-01 | BS2: 1995-09-01 | BT2: 1995-10-01 | BU2: 1995-11-01 | BV2: 1995-12-01 | BW2: 1996-01-01 | BX2: 1996-02-01 | BY2: 1996-03-01 | BZ2: 1996-04-01 | CA2: 1996-05-01 | CB2: 1996-06-01 | CC2: 1996-07-01 | CD2: 1996-08-01 | CE2: 1996-09-01 | CF2: 1996-10-01 | CG2: 1996-11-01 | CH2: 1996-12-01 | CI2: 1997-01-01 | CJ2: 1997-02-01 | CK2: 1997-03-01 | CL2: 1997-04-01 | CM2: 1997-05-01 | CN2: 1997-06-01 | CO2: 1997-07-01 | CP2: 1997-08-01 | CQ2: 1997-09-01 | CR2: 1997-10-01 | CS2: 1997-11-01 | CT2: 1997-12-01 | CU2: 1998-01-01 | CV2: 1998-02-01 | CW2: 1998-03-01 | CX2: 1998-04-01 | CY2: 1998-05-01 | CZ2: 1998-06-01 | DA2: 1998-07-01 | DB2: 1998-08-01 | DC2: 1998-09-01 | DD2: 1998-10-01 | DE2: 1998-11-01 | DF2: 1998-12-01 | DG2: 1999-01-01 | DH2: 1999-02-01 | DI2: 1999-03-01 | DJ2: 1999-04-01 | DK2: 1999-05-01 | DL2: 1999-06-01 | DM2: 1999-07-01 | DN2: 1999-08-01 | DO2: 1999-09-01 | DP2: 1999-10-01 | DQ2: 1999-11-01 | DR2: 1999-12-01 | DS2: 2000-01-01 | DT2: 2000-02-01 | DU2: 2000-03-01 | DV2: 2000-04-01 | DW2: 2000-05-01 | DX2: 2000-06-01 | DY2: 2000-07-01 | DZ2: 2000-08-01 | EA2: 2000-09-01 | EB2: 2000-10-01 | EC2: 2000-11-01 | ED2: 2000-12-01 | EE2: 2001-01-01 | EF2: 2001-02-01 | EG2: 2001-03-01 | EH2: 2001-04-01 | EI2: 2001-05-01 | EJ2: 2001-06-01 | EK2: 2001-07-01 | EL2: 2001-08-01 | EM2: 2001-09-01 | EN2: 2001-10-01 | EO2: 2001-11-01 | EP2: 2001-12-01 | EQ2: 2002-01-01 | ER2: 2002-02-01 | ES2: 2002-03-01 | ET2: 2002-04-01 | EU2: 2002-05-01 | EV2: 2002-06-01 | EW2: 2002-07-01 | EX2: 2002-08-01 | EY2: 2002-09-01 | EZ2: 2002-10-01 | FA2: 2002-11-01 | FB2: 2002-12-01 | FC2: 2003-01-01 | FD2: 2003-02-01 | FE2: 2003-03-01 | FF2: 2003-04-01 | FG2: 2003-05-01 | FH2: 2003-06-01 | FI2: 2003-07-01 | FJ2: 2003-08-01 | FK2: 2003-09-01 | FL2: 2003-10-01 | FM2: 2003-11-01 | FN2: 2003-12-01 | FO2: 2004-01-01 | FP2: 2004-02-01 | FQ2: 2004-03-01 | FR2: 2004-04-01 | FS2: 2004-05-01 | FT2: 2004-06-01 | FU2: 2004-07-01 | FV2: 2004-08-01 | FW2: 2004-09-01 | FX2: 2004-10-01 | FY2: 2004-11-01 | FZ2: 2004-12-01 | GA2: 2005-01-01 | GB2: 2005-02-01 | GC2: 2005-03-01 | GD2: 2005-04-01 | GE2: 2005-05-01 | GF2: 2005-06-01 | GG2: 2005-07-01 | GH2: 2005-08-01 | GI2: 2005-09-01 | GJ2: 2005-10-01 | GK2: 2005-11-01 | GL2: 2005-12-01 | GM2: 2006-01-01 | GN2: 2006-02-01 | GO2: 2006-03-01 | GP2: 2006-04-01 | GQ2: 2006-05-01 | GR2: 2006-06-01 | GS2: 2006-07-01 | GT2: 2006-08-01 | GU2: 2006-09-01 | GV2: 2006-10-01 | GW2: 2006-11-01 | GX2: 2006-12-01 | GY2: 2007-01-01 | GZ2: 2007-02-01 | HA2: 2007-03-01 | HB2: 2007-04-01 | HC2: 2007-05-01 | HD2: 2007-06-01 | HE2: 2007-07-01 | HF2: 2007-08-01 | HG2: 2007-09-01 | HH2: 2007-10-01 | HI2: 2007-11-01 | HJ2: 2007-12-01 | HK2: 2008-01-01 | HL2: 2008-02-01 | HM2: 2008-03-01 | HN2: 2008-04-01 | HO2: 2008-05-01 | HP2: 2008-06-01 | HQ2: 2008-07-01 | HR2: 2008-08-01 | HS2: 2008-09-01 | HT2: 2008-10-01 | HU2: 2008-11-01 | HV2: 2008-12-01 | HW2: 2009-01-01 | HX2: 2009-02-01 | HY2: 2009-03-01 | HZ2: 2009-04-01 | IA2: 2009-05-01 | IB2: 2009-06-01 | IC2: 2009-07-01 | ID2: 2009-08-01 | IE2: 2009-09-01 | IF2: 2009-10-01 | IG2: 2009-11-01 | IH2: 2009-12-01 | II2: 2010-01-01 | IJ2: 2010-02-01 | IK2: 2010-03-01 | IL2: 2010-04-01 | IM2: 2010-05-01 | IN2: 2010-06-01 | IO2: 2010-07-01 | IP2: 2010-08-01 | IQ2: 2010-09-01 | IR2: 2010-10-01 | IS2: 2010-11-01 | IT2: 2010-12-01 | IU2: 2011-01-01 | IV2: 2011-02-01 | IW2: 2011-03-01 | IX2: 2011-04-01 | IY2: 2011-05-01 | IZ2: 2011-06-01 | JA2: 2011-07-01 | JB2: 2011-08-01 | JC2: 2011-09-01 | JD2: 2011-10-01 | JE2: 2011-11-01 | JF2: 2011-12-01 | JG2: 2012-01-01 | JH2: 2012-02-01 | JI2: 2012-03-01 | JJ2: 2012-04-01 | JK2: 2012-05-01 | JL2: 2012-06-01 | JM2: 2012-07-01 | JN2: 2012-08-01 | JO2: 2012-09-01 | JP2: 2012-10-01 | JQ2: 2012-11-01 | JR2: 2012-12-01 | JS2: 2013-01-01 | JT2: 2013-02-01 | JU2: 2013-03-01 | JV2: 2013-04-01 | JW2: 2013-05-01 | JX2: 2013-06-01 | JY2: 2013-07-01 | JZ2: 2013-08-01 | KA2: 2013-09-01 | KB2: 2013-10-01 | KC2: 2013-11-01 | KD2: 2013-12-01 | KE2: 2014-01-01 | KF2: 2014-02-01 | KG2: 2014-03-01 | KH2: 2014-04-01 | KI2: 2014-05-01 | KJ2: 2014-06-01 | KK2: 2014-07-01 | KL2: 2014-08-01 | KM2: 2014-09-01 | KN2: 2014-10-01 | KO2: 2014-11-01 | KP2: 2014-12-01 | KQ2: 2015-01-01 | KR2: 2015-02-01 | KS2: 2015-03-01 | KT2: 2015-04-01 | KU2: 2015-05-01 | KV2: 2015-06-01 | KW2: 2015-07-01 | KX2: 2015-08-01 | KY2: 2015-09-01 | KZ2: 2015-10-01 | LA2: 2015-11-01 | LB2: 2015-12-01 | LC2: 2016-01-01 | LD2: 2016-02-01 | LE2: 2016-03-01 | LF2: 2016-04-01 | LG2: 2016-05-01 | LH2: 2016-06-01 | LI2: 2016-07-01 | LJ2: 2016-08-01 | LK2: 2016-09-01 | LL2: 2016-10-01 | LM2: 2016-11-01 | LN2: 2016-12-01 | LO2: 2017-01-01 | LP2: 2017-02-01 | LQ2: 2017-03-01 | LR2: 2017-04-01 | LS2: 2017-05-01 | LT2: 2017-06-01 | LU2: 2017-07-01 | LV2: 2017-08-01 | LW2: 2017-09-01 | LX2: 2017-10-01 | LY2: 2017-11-01 | LZ2: 2017-12-01 | MA2: 2018-01-01 | MB2: 2018-02-01 | MC2: 2018-03-01 | MD2: 2018-04-01 | ME2: 2018-05-01 | MF2: 2018-06-01 | MG2: 2018-07-01 | MH2: 2018-08-01 | MI2: 2018-09-01 | MJ2: 2018-10-01 | MK2: 2018-11-01 | ML2: 2018-12-01
B3: Hidráulica | C3: 3918.6757 | D3: 3333.6374 | E3: 2452.5297 | F3: 1755.3215 | G3: 1836.9248 | H3: 1831.1812 | I3: 1599.5272 | J3: 1227.5304 | K3: 1212.3349 | L3: 1406.6943 | M3: 1978.2071 | N3: 1970.8284 | O3: 2646.6084 | P3: 2042.3739 | Q3: 3829.2158 | R3: 3506.8193 | S3: 2889.9027 | T3: 2118.4462 | U3: 1720.5286 | V3: 1135.845 | W3: 1128.8659 | X3: 1550.5057 | Y3: 1986.0651 | Z3: 1877.5383 | AA3: 1376.0016 | AB3: 813.4485 | AC3: 812.441 | AD3: 1582.5799 | AE3: 1481.0745 | AF3: 1588.5272 | AG3: 1671.8659 | AH3: 1139.3134 | AI3: 1221.0872 | AJ3: 1868.7011 | AK3: 2199.0007 | AL3: 2884.5995 | AM3: 2173.1173 | AN3: 1502.9727 | AO3: 1455.1872 | AP3: 1164.1772 | AQ3: 1876.6057 | AR3: 2205.2416 | AS3: 1883.6718 | AT3: 1243.7569 | AU3: 1206.9292 | AV3: 2848.0511 | AW3: 3456.3337 | AX3: 2732.6733 | AY3: 3848.8668 | AZ3: 3146.5759 | BA3: 2820.2587 | BB3: 2398.8497 | BC3: 2650.6785 | BD3: 2431.906 | BE3: 1837.9286 | BF3: 1341.2518 | BG3: 1259.9082 | BH3: 1548.2219 | BI3: 2325.1986 | BJ3: 1874.289 | BK3: 2861.6679 | BL3: 2714.2804 | BM3: 3221.3852 | BN3: 1904.7217 | BO3: 1751.5129 | BP3: 1755.6953 | BQ3: 1620.4475 | BR3: 1073.0143 | BS3: 920.7777 | BT3: 964.2007 | BU3: 1234.423 | BV3: 2439.8352 | BW3: 5798.4195 | BX3: 5606.2932 | BY3: 3664.3791 | BZ3: 3799.0389 | CA3: 3915.0154 | CB3: 2960.0973 | CC3: 2330.1722 | CD3: 1600.7672 | CE3: 1815.6719 | CF3: 1824.5397 | CG3: 2263.2827 | CH3: 4290.9273 | CI3: 5684.4498 | CJ3: 3581.0204 | CK3: 2731.3906 | CL3: 2366.0041 | CM3: 2308.7508 | CN3: 2434.5351 | CO3: 2116.8502 | CP3: 1777.8007 | CQ3: 1657.3873 | CR3: 1516.2138 | CS3: 3502.8993 | CT3: 5432.9556 | CU3: 5963.346319 | CV3: 4078.017918 | CW3: 2761.223665 | CX3: 3545.766825 | CY3: 4114.896572 | CZ3: 3491.045345 | DA3: 2600.167347 | DB3: 2084.704195 | DC3: 1867.182614 | DD3: 2039.85623 | DE3: 1546.018728 | DF3: 1341.783359 | DG3: 1435.381996 | DH3: 1375.940112 | DI3: 2045.552531 | DJ3: 2202.866889 | DK3: 2949.529113 | DL3: 2537.296394 | DM3: 1988.170343 | DN3: 1470.837827 | DO3: 1552.635593 | DP3: 1749.201998 | DQ3: 2846.810777 | DR3: 2883.481039 | DS3: 2589.13418 | DT3: 1638.493939 | DU3: 1550.299816 | DV3: 2240.101818 | DW3: 3358.385709 | DX3: 2368.292951 | DY3: 1747.034519 | DZ3: 1756.803605 | EA3: 1839.772787 | EB3: 1741.570885 | EC3: 2504.659309 | ED3: 4559.385215 | EE3: 6401.781203 | EF3: 5857.964764 | EG3: 6695.686381 | EH3: 4446.304665 | EI3: 3444.04229 | EJ3: 2580.349895 | EK3: 2085.73993 | EL3: 1948.374278 | EM3: 1501.032537 | EN3: 1780.336015 | EO3: 2034.87437 | EP3: 1615.613505 | EQ3: 1348.506949 | ER3: 1190.15984 | ES3: 1906.697252 | ET3: 1894.159952 | EU3: 1992.476542 | EV3: 1952.963522 | EW3: 1371.151243 | EX3: 1054.339623 | EY3: 1042.182297 | EZ3: 1218.436046 | FA3: 1998.088245 | FB3: 4256.163428 | FC3: 5658.659439 | FD3: 4415.60924 | FE3: 4604.80059 | FF3: 3922.216526 | FG3: 3724.839974 | FH3: 2368.664178 | FI3: 1983.269369 | FJ3: 1467.309335 | FK3: 1660.067 | FL3: 2011.680796 | FM3: 3295.56606 | FN3: 4984.324738 | FO3: 3782.355469 | FP3: 3398.449958 | FQ3: 3183.442038 | FR3: 3036.19323 | FS3: 3363.856882 | FT3: 2760.278103 | FU3: 2113.344175 | FV3: 1758.345525 | FW3: 1536.451933 | FX3: 1745.094081 | FY3: 2368.955546 | FZ3: 1823.270545 | GA3: 1563.69751 | GB3: 1539.489827 | GC3: 1810.96395 | GD3: 2099.503544 | GE3: 2187.268703 | GF3: 1823.521619 | GG3: 1308.169944 | GH3: 1129.599618 | GI3: 819.030491 | GJ3: 856.894643 | GK3: 1399.500341 | GL3: 1710.556849 | GM3: 1634.528173 | GN3: 1190.416035 | GO3: 3010.69227 | GP3: 2727.263456 | GQ3: 2135.352445 | GR3: 1504.0543 | GS3: 1506.8628 | GT3: 1033.5582 | GU3: 1116.2089 | GV3: 1636.5319 | GW3: 2970.4036 | GX3: 4909.0767 | GY3: 2265.5368 | GZ3: 3018.5307 | HA3: 3928.3884 | HB3: 2867.4611 | HC3: 2837.4746 | HD3: 2309.4112 | HE3: 2454.6643 | HF3: 1770.7816 | HG3: 1376.0555 | HH3: 1712.4373 | HI3: 1341.9655 | HJ3: 1221.5961 | HK3: 1393.1778 | HL3: 957.6515 | HM3: 1075.7952 | HN3: 2740.0094 | HO3: 3370.1599 | HP3: 3175.4915 | HQ3: 2181.8666 | HR3: 1539.6016 | HS3: 1313.4238 | HT3: 1095.1625 | HU3: 1592.7958 | HV3: 2498.646 | HW3: 2274.4841 | HX3: 3482.0335 | HY3: 2794.2226 | HZ3: 2205.6007 | IA3: 2585.8144 | IB3: 2128.0412 | IC3: 1758.4124 | ID3: 1449.8248 | IE3: 993.2099 | IF3: 1258.9399 | IG3: 2027.0113 | IH3: 3228.3809 | II3: 5178.646113 | IJ3: 4067.303562 | IK3: 5816.538044 | IL3: 4720.052131 | IM3: 3862.882048 | IN3: 3555.036153 | IO3: 2896.772407 | IP3: 2036.829814 | IQ3: 1530.457344 | IR3: 1601.502029 | IS3: 2611.518068 | IT3: 3956.236477 | IU3: 5116.265963 | IV3: 2995.764908 | IW3: 3835.23671 | IX3: 3536.056634 | IY3: 2793.357059 | IZ3: 2062.122346 | JA3: 1659.853964 | JB3: 1531.548155 | JC3: 1223.189394 | JD3: 1247.488048 | JE3: 2151.963857 | JF3: 2183.83787 | JG3: 1627.658482 | JH3: 1224.611115 | JI3: 1311.742439 | JJ3: 1742.5848 | JK3: 2535.303764 | JL3: 2103.271752 | JM3: 1671.48545 | JN3: 1334.673452 | JO3: 1035.481169 | JP3: 1388.571479 | JQ3: 1985.778305 | JR3: 2661.268123 | JS3: 3013.60681 | JT3: 3551.520682 | JU3: 4620.911535 | JV3: 5388.987732 | JW3: 3811.725054 | JX3: 3201.403554 | JY3: 2719.170283 | JZ3: 2142.545574 | KA3: 1826.851471 | KB3: 1865.029532 | KC3: 2801.340393 | KD3: 2443.566945 | KE3: 4259.250318 | KF3: 5759.382908 | KG3: 5289.278218 | KH3: 4947.531114 | KI3: 2820.152887 | KJ3: 2482.12324 | KK3: 2351.026497 | KL3: 2040.813334 | KM3: 1798.011652 | KN3: 1633.875453 | KO3: 2450.231679 | KP3: 3280.721208 | KQ3: 2566.888279 | KR3: 3559.434092 | KS3: 3844.206084 | KT3: 2655.528439 | KU3: 2935.903349 | KV3: 2485.96415 | KW3: 2054.636694 | KX3: 1634.978237 | KY3: 1601.66808 | KZ3: 1646.579403 | LA3: 1887.691242 | LB3: 1438.786957 | LC3: 3440.584285 | LD3: 3971.706708 | LE3: 4362.851438 | LF3: 5231.309009 | LG3: 5085.119637 | LH3: 2938.060273 | LI3: 2264.816705 | LJ3: 2040.742622 | LK3: 1653.805303 | LL3: 1632.862552 | LM3: 1493.763942 | LN3: 1844.368434 | LO3: 2043.161553 | LP3: 1952.983452 | LQ3: 2696.835923 | LR3: 1714.544743 | LS3: 1923.367508 | LT3: 1637.827685 | LU3: 1193.048808 | LV3: 1085.276119 | LW3: 1187.52551 | LX3: 828.3229254 | LY3: 842.3754915 | LZ3: 1253.855427 | MA3: 2152.871 | MB3: - | MC3: - | MD3: - | ME3: - | MF3: - | MG3: - | MH3: - | MI3: - | MJ3: - | MK3: - | ML3: -
B4: Eólica | C4: 0.115 | D4: 0.19899999 | E4: 0.18 | F4: 0.189 | G4: 0.174 | H4: 0.12 | I4: 0.26 | J4: 0.186 | K4: 0.131 | L4: 0.17 | M4: 0.207 | N4: 0.25599999 | O4: 0.192 | P4: 0.143 | Q4: 0.212 | R4: 0.562 | S4: 0.322 | T4: 0.2 | U4: 0.184 | V4: 0.212 | W4: 0.144 | X4: 0.242 | Y4: 0.271 | Z4: 0.181 | AA4: 0.262 | AB4: 0.225 | AC4: 0.313 | AD4: 0.207 | AE4: 0.195 | AF4: 0.163 | AG4: 0.195 | AH4: 0.666 | AI4: 1.295 | AJ4: 2.137 | AK4: 2.507 | AL4: 9.196 | AM4: 7.115 | AN4: 11.386 | AO4: 7.326 | AP4: 6.164 | AQ4: 5.271 | AR4: 7.974 | AS4: 7.391 | AT4: 6.981 | AU4: 5.631 | AV4: 7.198 | AW4: 6.728 | AX4: 5.603 | AY4: 6.899 | AZ4: 4.814 | BA4: 8.769 | BB4: 6.859 | BC4: 4.97 | BD4: 6.462 | BE4: 3.859 | BF4: 5.393 | BG4: 5.047 | BH4: 6.336 | BI4: 7.78 | BJ4: 5.672 | BK4: 7.87 | BL4: 7.675 | BM4: 8.496 | BN4: 11.902 | BO4: 9.211 | BP4: 8.898 | BQ4: 14.465 | BR4: 17.63 | BS4: 14.853 | BT4: 27.623 | BU4: 13.795 | BV4: 17.439 | BW4: 18.83 | BX4: 22.031 | BY4: 24.646 | BZ4: 26.102 | CA4: 23.157 | CB4: 27.099 | CC4: 25.434 | CD4: 15.643 | CE4: 22.706 | CF4: 30.321 | CG4: 31.616 | CH4: 36.544 | CI4: 39.627 | CJ4: 32.179 | CK4: 46.04 | CL4: 56.365 | CM4: 39.41 | CN4: 43.759 | CO4: 57.268 | CP4: 41.053 | CQ4: 45.835 | CR4: 69.47 | CS4: 72.794 | CT4: 76.085 | CU4: 85.726279 | CV4: 73.041771 | CW4: 100.156674 | CX4: 97.154275 | CY4: 87.936697 | CZ4: 72.687051 | DA4: 112.788958 | DB4: 131.013278 | DC4: 104.747635 | DD4: 104.146754 | DE4: 128.518917 | DF4: 138.738417 | DG4: 159.911065 | DH4: 214.375135 | DI4: 206.772797 | DJ4: 190.999426 | DK4: 173.148566 | DL4: 212.214153 | DM4: 177.000959 | DN4: 139.302129 | DO4: 172.17858 | DP4: 199.350315 | DQ4: 312.980648 | DR4: 315.799525 | DS4: 305.024786 | DT4: 295.1137 | DU4: 338.149516 | DV4: 416.021442 | DW4: 226.957358 | DX4: 365.846115 | DY4: 360.052448 | DZ4: 315.707212 | EA4: 276.366005 | EB4: 409.721173 | EC4: 544.093822 | ED4: 609.442473 | EE4: 594.731676 | EF4: 573.654778 | EG4: 654.248611 | EH4: 650.224566 | EI4: 424.361087 | EJ4: 408.907282 | EK4: 400.205723 | EL4: 374.720812 | EM4: 611.542894 | EN4: 574.769948 | EO4: 768.828981 | EP4: 557.951755 | EQ4: 657.009295 | ER4: 782.540758 | ES4: 795.79278 | ET4: 618.787308 | EU4: 820.586332 | EV4: 646.365366 | EW4: 693.582831 | EX4: 598.43409 | EY4: 505.371396 | EZ4: 869.000019 | FA4: 1056.957505 | FB4: 1214.869007 | FC4: 1395.171019 | FD4: 997.62485 | FE4: 837.860626 | FF4: 1138.000866 | FG4: 901.866016 | FH4: 703.483064 | FI4: 727.405981 | FJ4: 543.970839 | FK4: 781.2453 | FL4: 1086.955352 | FM4: 1172.985179 | FN4: 1433.677041 | FO4: 1685.344923 | FP4: 1074.447704 | FQ4: 1281.279462 | FR4: 1519.372767 | FS4: 1019.357853 | FT4: 1048.332716 | FU4: 970.026109 | FV4: 1114.316325 | FW4: 1147.637898 | FX4: 1635.269143 | FY4: 1511.245273 | FZ4: 1747.487596 | GA4: 1879.193348 | GB4: 1745.313957 | GC4: 1763.513597 | GD4: 1926.458081 | GE4: 1492.0682 | GF4: 1261.460764 | GG4: 1611.02847 | GH4: 1640.440853 | GI4: 1271.494533 | GJ4: 1902.724597 | GK4: 1958.532153 | GL4: 2405.437406 | GM4: 1563.700931 | GN4: 1924.867031 | GO4: 2788.267198 | GP4: 1955.917235 | GQ4: 1670.51768 | GR4: 1364.448 | GS4: 1171.791 | GT4: 2177.821 | GU4: 1465.816 | GV4: 2334.802 | GW4: 2279.523 | GX4: 2183.385 | GY4: 2149.807 | GZ4: 2871.919 | HA4: 3086.247 | HB4: 1356.316 | HC4: 2605.873 | HD4: 1786.288 | HE4: 1888.609 | HF4: 2419.819 | HG4: 2028.855 | HH4: 1907.625 | HI4: 2752.312 | HJ4: 2395.485 | HK4: 2651.468 | HL4: 2018.948 | HM4: 4092.55 | HN4: 3352.686 | HO4: 1737.161 | HP4: 2085.509 | HQ4: 2124.237 | HR4: 1972.523 | HS4: 2129.885 | HT4: 2482.013 | HU4: 3462.688 | HV4: 3648.182 | HW4: 3503.799 | HX4: 3226.32 | HY4: 3100.516 | HZ4: 3059.658 | IA4: 2698.004 | IB4: 2332.395 | IC4: 2426.129 | ID4: 2235.837 | IE4: 2466.731 | IF4: 3125.33 | IG4: 4792.63 | IH4: 4921.228 | II4: 4292.092 | IJ4: 4622.435 | IK4: 4546.547 | IL4: 2634.819 | IM4: 3619.334 | IN4: 2576.197 | IO4: 2798.133 | IP4: 2894.744 | IQ4: 2301.323 | IR4: 3952.831 | IS4: 4348.059 | IT4: 4621.882 | IU4: 4018.65 | IV4: 4028.246 | IW4: 4690.99 | IX4: 3399.409 | IY4: 3165.622 | IZ4: 2937.197 | JA4: 3254.705 | JB4: 2729.485 | JC4: 2322.977 | JD4: 3149.505 | JE4: 3819.887 | JF4: 4588.76 | JG4: 3645.515 | JH4: 5014.665 | JI4: 3805.554 | JJ4: 5306.39 | JK4: 3707.879 | JL4: 3429.201 | JM4: 2981.913 | JN4: 3126.895 | JO4: 3937.412 | JP4: 3129.821 | JQ4: 4604.842 | JR4: 5449.978 | JS4: 6291.574 | JT4: 5340.996 | JU4: 5749.103 | JV4: 4396.782 | JW4: 3932.35 | JX4: 3827.052 | JY4: 2844.213 | JZ4: 3410.875 | KA4: 3214.273 | KB4: 3963.88 | KC4: 6429.814 | KD4: 4943.44 | KE4: 6539.485 | KF4: 5884.285 | KG4: 5050.331 | KH4: 3950.218 | KI4: 4134.841 | KJ4: 3275.599 | KK4: 3591.602 | KL4: 2856.841 | KM4: 2132.614 | KN4: 3382.772 | KO4: 5071.981 | KP4: 4764.321 | KQ4: 4912.46 | KR4: 5948.174 | KS4: 4865.124 | KT4: 3904.518 | KU4: 4800.453 | KV4: 2873.288 | KW4: 3053.374 | KX4: 3237.373 | KY4: 3002.695 | KZ4: 3887.249 | LA4: 3699.88 | LB4: 3528.562 | LC4: 5604.844 | LD4: 6068.143 | LE4: 5409.603 | LF4: 4414.653 | LG4: 3902.186 | LH4: 3226.857 | LI4: 3464.679 | LJ4: 3603.863 | LK4: 2666.889 | LL4: 2376.012 | LM4: 3888.75 | LN4: 2671.691 | LO4: 4796.965 | LP4: 4905.539 | LQ4: 4687.825 | LR4: 4177.327 | LS4: 3440.333 | LT4: 3149.273 | LU4: 3336.779 | LV4: 3296.276 | LW4: 2818.093 | LX4: 3186.172 | LY4: 3954.916 | LZ4: 5747.295 | MA4: 5286.135523 | MB4: - | MC4: - | MD4: - | ME4: - | MF4: - | MG4: - | MH4: - | MI4: - | MJ4: - | MK4: - | ML4: -
B5: Solar fotovoltaica | C5: 0 | D5: 0 | E5: 0 | F5: 0 | G5: 0 | H5: 0 | I5: 0 | J5: 0 | K5: 0 | L5: 0 | M5: 0 | N5: 0 | O5: 0 | P5: 0 | Q5: 0 | R5: 0 | S5: 0 | T5: 0 | U5: 0 | V5: 0 | W5: 0 | X5: 0 | Y5: 0 | Z5: 0 | AA5: 1.01 | AB5: 0.772 | AC5: 0.572 | AD5: 1.289 | AE5: 1.113 | AF5: 1.164 | AG5: 1.307 | AH5: 1.155 | AI5: 1.223 | AJ5: 0.944 | AK5: 0.57 | AL5: 0.937 | AM5: 0.538 | AN5: 0.533 | AO5: 1.252 | AP5: 1.303 | AQ5: 1.05 | AR5: 1.069 | AS5: 1.273 | AT5: 1.193 | AU5: 0.88 | AV5: 0.72 | AW5: 1.263 | AX5: 0.926 | AY5: 0.978 | AZ5: 1.242 | BA5: 1.065 | BB5: 1.208 | BC5: 1.742 | BD5: 1.484 | BE5: 1.635 | BF5: 1.668 | BG5: 1.69 | BH5: 1.521 | BI5: 1.004 | BJ5: 0.0589 | BK5: 0.064 | BL5: 0.068 | BM5: 0.112 | BN5: 0.117 | BO5: 0.132 | BP5: 0.111 | BQ5: 0.105 | BR5: 0.096 | BS5: 0.091 | BT5: 0.048 | BU5: 0.091 | BV5: 0.027 | BW5: 0.024 | BX5: 0.033 | BY5: 0.047 | BZ5: 0.093 | CA5: 0.086 | CB5: 0.117 | CC5: 0.107 | CD5: 0.103 | CE5: 0.096 | CF5: 0.095 | CG5: 0.064 | CH5: 0.026 | CI5: 0.041 | CJ5: 0.088 | CK5: 0.088 | CL5: 0.119 | CM5: 0.093 | CN5: 0.107 | CO5: 0.143 | CP5: 0.087 | CQ5: 0.12 | CR5: 0.096 | CS5: 0.105 | CT5: 0.04 | CU5: 0.049635 | CV5: 0.070578 | CW5: 0.11299 | CX5: 0.11806 | CY5: 0.096177 | CZ5: 0.130517 | DA5: 0.13625 | DB5: 0.110493 | DC5: 0.09651 | DD5: 0.112811 | DE5: 0.069553 | DF5: 0.066723 | DG5: 0.053642 | DH5: 0.107873 | DI5: 0.15288 | DJ5: 0.117727 | DK5: 0.122524 | DL5: 0.14708 | DM5: 0.159277 | DN5: 0.14217 | DO5: 0.121715 | DP5: 0.088742 | DQ5: 0.079734 | DR5: 0.047817 | DS5: -0.026861 | DT5: 0.101559 | DU5: 0.124075 | DV5: 0.012024 | DW5: 0.205484 | DX5: 0.16091 | DY5: 0.019985 | DZ5: 0.298272 | EA5: 0.136951 | EB5: 0.12126 | EC5: 0.072306 | ED5: 0.043852 | EE5: 0.054685 | EF5: 0.098406 | EG5: 0.10854 | EH5: 0.170565 | EI5: 0.156555 | EJ5: 0.197492 | EK5: 0.168866 | EL5: 0.213764 | EM5: 0.128753 | EN5: 0.163998 | EO5: 0.094907 | EP5: 0.083112 | EQ5: 0.126051 | ER5: 0.229529 | ES5: 0.274106 | ET5: 0.396381 | EU5: 0.478436 | EV5: 0.479391 | EW5: 0.538064 | EX5: 0.533652 | EY5: 0.489809 | EZ5: 0.419306 | FA5: 0.317988 | FB5: 0.278739 | FC5: 0.331772 | FD5: 0.405857 | FE5: 0.562187 | FF5: 0.715348 | FG5: 0.856797 | FH5: 0.976934 | FI5: 1.140896 | FJ5: 1.017998 | FK5: 0.915326 | FL5: 0.809065 | FM5: 0.531804 | FN5: 0.666121 | FO5: 0.575979 | FP5: 0.833369 | FQ5: 1.127006 | FR5: 1.376597 | FS5: 1.638065 | FT5: 1.936569 | FU5: 2.015126 | FV5: 2.030072 | FW5: 1.850632 | FX5: 1.706128 | FY5: 1.375854 | FZ5: 1.328614 | GA5: 1.310038 | GB5: 1.59649 | GC5: 2.752105 | GD5: 2.916883 | GE5: 3.637065 | GF5: 4.270227 | GG5: 4.396409 | GH5: 4.542723 | GI5: 4.291025 | GJ5: 3.943208 | GK5: 3.248179 | GL5: 3.183997 | GM5: 2.56564 | GN5: 4.341388 | GO5: 5.163743 | GP5: 7.314716 | GQ5: 8.774512 | GR5: 10.192 | GS5: 11.021 | GT5: 13.52 | GU5: 11.63 | GV5: 9.949 | GW5: 8.077 | GX5: 9.826 | GY5: 9.686 | GZ5: 12.005 | HA5: 20.551 | HB5: 24.491 | HC5: 34.18 | HD5: 38.843 | HE5: 49.655 | HF5: 53.862 | HG5: 58.231 | HH5: 55.535 | HI5: 52.622 | HJ5: 52.916 | HK5: 57.421 | HL5: 70.549 | HM5: 104.433 | HN5: 126.235 | HO5: 131.754 | HP5: 189.707 | HQ5: 232.234 | HR5: 288.112 | HS5: 317.111 | HT5: 320.166 | HU5: 324.321 | HV5: 244.027 | HW5: 248.703 | HX5: 380.174 | HY5: 508.662 | HZ5: 546.455 | IA5: 647.317 | IB5: 618.528 | IC5: 690.862 | ID5: 637.125 | IE5: 492.289 | IF5: 482.285 | IG5: 345.4 | IH5: 231.205 | II5: 248.575 | IJ5: 289.95 | IK5: 458.217 | IL5: 565.84 | IM5: 683.248 | IN5: 656.766 | IO5: 752.89 | IP5: 691.532 | IQ5: 605.388 | IR5: 525.855 | IS5: 364.052 | IT5: 297.469 | IU5: 335.968 | IV5: 481.247 | IW5: 508.384 | IX5: 631.454 | IY5: 716.118 | IZ5: 776.898 | JA5: 821.81 | JB5: 766.368 | JC5: 702.334 | JD5: 601.935 | JE5: 344.356 | JF5: 404.816 | JG5: 482.68 | JH5: 635.514 | JI5: 736.945 | JJ5: 627.604 | JK5: 826.209 | JL5: 839.146 | JM5: 902.627 | JN5: 826.454 | JO5: 658.334 | JP5: 566.62 | JQ5: 350.382 | JR5: 377.386 | JS5: 418.753 | JT5: 500.807 | JU5: 531.456 | JV5: 725.436 | JW5: 832.56 | JX5: 886.252 | JY5: 929.537 | JZ5: 856.806 | KA5: 724.785 | KB5: 603.79 | KC5: 490.228 | KD5: 417.628 | KE5: 352.691 | KF5: 405.785 | KG5: 697.63 | KH5: 753.264 | KI5: 882.487 | KJ5: 862.847 | KK5: 910.009 | KL5: 871.503 | KM5: 655.164 | KN5: 616.974 | KO5: 362.107 | KP5: 431.963 | KQ5: 493.219 | KR5: 469.243 | KS5: 677.682 | KT5: 718.229 | KU5: 880.722 | KV5: 848.48 | KW5: 888.936 | KX5: 793.673 | KY5: 691.739 | KZ5: 510.302 | LA5: 503.195 | LB5: 369.378 | LC5: 337.689 | LD5: 452.545 | LE5: 674.598 | LF5: 686.161 | LG5: 769.207 | LH5: 881.472 | LI5: 875.513 | LJ5: 855.104 | LK5: 730.039 | LL5: 555.787 | LM5: 402.954 | LN5: 358.244 | LO5: 452.298 | LP5: 419.184 | LQ5: 679.464 | LR5: 797.587 | LS5: 832.796 | LT5: 839.172 | LU5: 871.166 | LV5: 778.114 | LW5: 741.304 | LX5: 646.923 | LY5: 512.842 | LZ5: 406.58 | MA5: 409.4009 | MB5: - | MC5: - | MD5: - | ME5: - | MF5: - | MG5: - | MH5: - | MI5: - | MJ5: - | MK5: - | ML5: -
B6: Solar térmica | C6: - | D6: - | E6: - | F6: - | G6: - | H6: - | I6: - | J6: - | K6: - | L6: - | M6: - | N6: - | O6: - | P6: - | Q6: - | R6: - | S6: - | T6: - | U6: - | V6: - | W6: - | X6: - | Y6: - | Z6: - | AA6: - | AB6: - | AC6: - | AD6: - | AE6: - | AF6: - | AG6: - | AH6: - | AI6: - | AJ6: - | AK6: - | AL6: - | AM6: - | AN6: - | AO6: - | AP6: - | AQ6: - | AR6: - | AS6: - | AT6: - | AU6: - | AV6: - | AW6: - | AX6: - | AY6: - | AZ6: - | BA6: - | BB6: - | BC6: - | BD6: - | BE6: - | BF6: - | BG6: - | BH6: - | BI6: - | BJ6: - | BK6: - | BL6: - | BM6: - | BN6: - | BO6: - | BP6: - | BQ6: - | BR6: - | BS6: - | BT6: - | BU6: - | BV6: - | BW6: - | BX6: - | BY6: - | BZ6: - | CA6: - | CB6: - | CC6: - | CD6: - | CE6: - | CF6: - | CG6: - | CH6: - | CI6: - | CJ6: - | CK6: - | CL6: - | CM6: - | CN6: - | CO6: - | CP6: - | CQ6: - | CR6: - | CS6: - | CT6: - | CU6: - | CV6: - | CW6: - | CX6: - | CY6: - | CZ6: - | DA6: - | DB6: - | DC6: - | DD6: - | DE6: - | DF6: - | DG6: - | DH6: - | DI6: - | DJ6: - | DK6: - | DL6: - | DM6: - | DN6: - | DO6: - | DP6: - | DQ6: - | DR6: - | DS6: - | DT6: - | DU6: - | DV6: - | DW6: - | DX6: - | DY6: - | DZ6: - | EA6: - | EB6: - | EC6: - | ED6: - | EE6: - | EF6: - | EG6: - | EH6: - | EI6: - | EJ6: - | EK6: - | EL6: - | EM6: - | EN6: - | EO6: - | EP6: - | EQ6: - | ER6: - | ES6: - | ET6: - | EU6: - | EV6: - | EW6: - | EX6: - | EY6: - | EZ6: - | FA6: - | FB6: - | FC6: - | FD6: - | FE6: - | FF6: - | FG6: - | FH6: - | FI6: - | FJ6: - | FK6: - | FL6: - | FM6: - | FN6: - | FO6: - | FP6: - | FQ6: - | FR6: - | FS6: - | FT6: - | FU6: - | FV6: - | FW6: - | FX6: - | FY6: - | FZ6: - | GA6: - | GB6: - | GC6: - | GD6: - | GE6: - | GF6: - | GG6: - | GH6: - | GI6: - | GJ6: - | GK6: - | GL6: - | GM6: 0 | GN6: 0 | GO6: 0 | GP6: 0 | GQ6: 0 | GR6: 0 | GS6: 0 | GT6: 0 | GU6: 0 | GV6: 0 | GW6: 0 | GX6: 0 | GY6: 0 | GZ6: 0 | HA6: 0.431 | HB6: 0.342 | HC6: 0.558 | HD6: 0.883 | HE6: 1.256 | HF6: 1.116 | HG6: 0.639 | HH6: 1.214 | HI6: 0.997 | HJ6: 0.191 | HK6: 1.084 | HL6: 0.797 | HM6: 1.461 | HN6: 0.958 | HO6: 0.942 | HP6: 1.963 | HQ6: 2.038 | HR6: 1.98 | HS6: 0.859 | HT6: 0.866 | HU6: 1.27 | HV6: 1.16 | HW6: 0.69 | HX6: 1.236 | HY6: 2.323 | HZ6: 7.204 | IA6: 7.658 | IB6: 6.752 | IC6: 12.414 | ID6: 23.868 | IE6: 17.539 | IF6: 23.446 | IG6: 16.183 | IH6: 10.51 | II6: 13.152 | IJ6: 11.682 | IK6: 23.732 | IL6: 36.92 | IM6: 69.084 | IN6: 72.532 | IO6: 104.59 | IP6: 121.9 | IQ6: 100.917 | IR6: 71.745 | IS6: 31.619 | IT6: 33.747 | IU6: 34.25 | IV6: 88.657 | IW6: 98.457 | IX6: 137.833 | IY6: 154.073 | IZ6: 232.484 | JA6: 284.208 | JB6: 235.329 | JC6: 228.558 | JD6: 172.912 | JE6: 80.437 | JF6: 85.159 | JG6: 117.342 | JH6: 200.342 | JI6: 235.113 | JJ6: 177.777 | JK6: 348.382 | JL6: 414.749 | JM6: 541.317 | JN6: 485.127 | JO6: 368.643 | JP6: 285.795 | JQ6: 133.962 | JR6: 135.585 | JS6: 113.494 | JT6: 204.009 | JU6: 125.37 | JV6: 300.894 | JW6: 499.268 | JX6: 647.33 | JY6: 758.523 | JZ6: 661.856 | KA6: 478.955 | KB6: 294.242 | KC6: 199.224 | KD6: 158.362 | KE6: 79.801 | KF6: 103.265 | KG6: 385.175 | KH6: 435.527 | KI6: 729.936 | KJ6: 687.288 | KK6: 811.153 | KL6: 833.178 | KM6: 389.596 | KN6: 289.337 | KO6: 90.187 | KP6: 124.472 | KQ6: 176.951 | KR6: 190.925 | KS6: 415.829 | KT6: 393.16 | KU6: 694.839 | KV6: 734.054 | KW6: 888.918 | KX6: 607.623 | KY6: 483.25 | KZ6: 188.169 | LA6: 226.818 | LB6: 84.699 | LC6: 59.914 | LD6: 133.01 | LE6: 387.861 | LF6: 408.323 | LG6: 498.795 | LH6: 813.991 | LI6: 825.325 | LJ6: 805.819 | LK6: 595.627 | LL6: 284.703 | LM6: 139.7 | LN6: 118.136 | LO6: 149.212 | LP6: 88.741 | LQ6: 340.845 | LR6: 535.255 | LS6: 607.898 | LT6: 761.902 | LU6: 812.88 | LV6: 692.435 | LW6: 608.14 | LX6: 398.793 | LY6: 220.652 | LZ6: 131.196 | MA6: 130.0769 | MB6: - | MC6: - | MD6: - | ME6: - | MF6: - | MG6: - | MH6: - | MI6: - | MJ6: - | MK6: - | ML6: -
B7: Térmica renovable/Otras renovables | C7: - | D7: - | E7: - | F7: - | G7: - | H7: - | I7: - | J7: - | K7: - | L7: - | M7: - | N7: - | O7: - | P7: - | Q7: - | R7: - | S7: - | T7: - | U7: - | V7: - | W7: - | X7: 0.479 | Y7: 0.195 | Z7: 0.18 | AA7: 0.226 | AB7: 0.185 | AC7: 0.209 | AD7: 0.186 | AE7: 0.219 | AF7: 2.491 | AG7: 0.855 | AH7: 1.652 | AI7: 2.195 | AJ7: 3.186 | AK7: 2.852 | AL7: 2.293 | AM7: 2.747 | AN7: 4.291 | AO7: 5.55 | AP7: 5.08 | AQ7: 5.191 | AR7: 4.069 | AS7: 4.405 | AT7: 5.055 | AU7: 4.77 | AV7: 5.999 | AW7: 6.529 | AX7: 5.136 | AY7: 6.182 | AZ7: 4.201 | BA7: 7.788 | BB7: 12.483 | BC7: 22.434 | BD7: 14.593 | BE7: 25.895 | BF7: 34.064 | BG7: 35.963 | BH7: 40.081 | BI7: 55.065 | BJ7: 63.701 | BK7: 52.516 | BL7: 54.169 | BM7: 59.649 | BN7: 59.275 | BO7: 60.63 | BP7: 38.39 | BQ7: 56.09 | BR7: 56.16 | BS7: 55.471 | BT7: 65.761 | BU7: 51.017 | BV7: 62.141 | BW7: 61.97 | BX7: 55.767 | BY7: 73.194 | BZ7: 69.39 | CA7: 67.607 | CB7: 74.481 | CC7: 76.311 | CD7: 76.089 | CE7: 74.905 | CF7: 70.728 | CG7: 57.923 | CH7: 56.715 | CI7: 56.474 | CJ7: 46.637 | CK7: 55.156 | CL7: 57.041 | CM7: 57.334 | CN7: 33.856 | CO7: 57.003 | CP7: 53.272 | CQ7: 57.104 | CR7: 61.066 | CS7: 58.17 | CT7: 55.262 | CU7: 29.002801 | CV7: 53.305843 | CW7: 61.549511 | CX7: 62.649003 | CY7: 69.878224 | CZ7: 68.57453 | DA7: 70.406914 | DB7: 67.345651 | DC7: 60.385234 | DD7: 67.235012 | DE7: 69.010129 | DF7: 69.403475 | DG7: 71.806642 | DH7: 67.740664 | DI7: 76.241169 | DJ7: 70.556648 | DK7: 71.228353 | DL7: 64.031022 | DM7: 80.270443 | DN7: 79.088938 | DO7: 85.153421 | DP7: 84.480839 | DQ7: 82.713458 | DR7: 74.942079 | DS7: 77.705164 | DT7: 72.094493 | DU7: 81.5787 | DV7: 75.639545 | DW7: 57.155141 | DX7: 64.878718 | DY7: 80.062335 | DZ7: 78.219893 | EA7: 86.225769 | EB7: 91.935601 | EC7: 96.959691 | ED7: 98.655336 | EE7: 114.03217 | EF7: 103.259727 | EG7: 115.38466 | EH7: 106.780576 | EI7: 116.226635 | EJ7: 163.253433 | EK7: 164.156034 | EL7: 142.644941 | EM7: 174.912517 | EN7: 184.368091 | EO7: 170.800963 | EP7: 182.638681 | EQ7: 102.326662 | ER7: 103.972908 | ES7: 114.937767 | ET7: 113.405046 | EU7: 116.821017 | EV7: 106.527145 | EW7: 125.927582 | EX7: 138.275534 | EY7: 128.415374 | EZ7: 130.569012 | FA7: 128.796967 | FB7: 143.040272 | FC7: 125.499869 | FD7: 125.666718 | FE7: 141.367661 | FF7: 136.225564 | FG7: 148.434649 | FH7: 135.674954 | FI7: 145.85112 | FJ7: 152.329642 | FK7: 154.938327 | FL7: 162.073384 | FM7: 144.46359 | FN7: 164.51626 | FO7: 165.781692 | FP7: 141.425287 | FQ7: 163.310002 | FR7: 158.001119 | FS7: 158.154288 | FT7: 141.570139 | FU7: 142.667679 | FV7: 139.216976 | FW7: 148.774135 | FX7: 152.856929 | FY7: 147.726873 | FZ7: 158.608513 | GA7: 174.85461 | GB7: 150.827771 | GC7: 176.756115 | GD7: 159.635672 | GE7: 172.117306 | GF7: 162.540982 | GG7: 167.519914 | GH7: 173.003408 | GI7: 160.254506 | GJ7: 152.959924 | GK7: 165.982026 | GL7: 171.405836 | GM7: 172.08672 | GN7: 164.504679 | GO7: 179.217148 | GP7: 172.157263 | GQ7: 184.666872 | GR7: 201.174 | GS7: 194.67 | GT7: 180.725 | GU7: 181.291 | GV7: 197.311 | GW7: 176.127 | GX7: 178.676 | GY7: 195.417 | GZ7: 170.868 | HA7: 196.962 | HB7: 184.118 | HC7: 197.114 | HD7: 193.247 | HE7: 203.052 | HF7: 202.649 | HG7: 191.273 | HH7: 224.429 | HI7: 204.157 | HJ7: 212.399 | HK7: 218.304 | HL7: 215.698 | HM7: 223.7 | HN7: 221.483 | HO7: 218.887 | HP7: 220.451 | HQ7: 223.504 | HR7: 218.31 | HS7: 211.555 | HT7: 229.725 | HU7: 225.656 | HV7: 224.216 | HW7: 243.686 | HX7: 231.253 | HY7: 252.346 | HZ7: 275.297 | IA7: 250.078 | IB7: 229.126 | IC7: 236.274 | ID7: 235.859 | IE7: 264.076 | IF7: 325.339 | IG7: 249.01 | IH7: 251.943 | II7: 250.94 | IJ7: 226.424 | IK7: 245.998 | IL7: 252.761 | IM7: 274.925 | IN7: 268.961 | IO7: 268.03 | IP7: 278.804 | IQ7: 262.937 | IR7: 279.287 | IS7: 269.121 | IT7: 293.611 | IU7: 357.051 | IV7: 328.661 | IW7: 349.277 | IX7: 351.055 | IY7: 328.804 | IZ7: 335.645 | JA7: 357.9 | JB7: 355.299 | JC7: 375.1 | JD7: 383.14 | JE7: 375.338 | JF7: 387.571 | JG7: 393.7 | JH7: 372.92 | JI7: 398.179 | JJ7: 371.93 | JK7: 360.835 | JL7: 406.082 | JM7: 421.354 | JN7: 400.507 | JO7: 373.05 | JP7: 413.074 | JQ7: 400.883 | JR7: 433.635 | JS7: 435.821 | JT7: 414.997 | JU7: 452.924 | JV7: 421.415 | JW7: 437.997 | JX7: 392.453 | JY7: 431.913 | JZ7: 417.438 | KA7: 398.002 | KB7: 404.689 | KC7: 413.637 | KD7: 444.28 | KE7: 423.546 | KF7: 331.354 | KG7: 365.401 | KH7: 338.696 | KI7: 410.022 | KJ7: 406.227 | KK7: 411.334 | KL7: 445.07 | KM7: 422.226 | KN7: 387.615 | KO7: 372.542 | KP7: 403.945 | KQ7: 239.402 | KR7: 205.804 | KS7: 234.044 | KT7: 179.708 | KU7: 226.202 | KV7: 276.375 | KW7: 299.334 | KX7: 311.422 | KY7: 301.429 | KZ7: 310.146 | LA7: 303.686 | LB7: 286.399 | LC7: 268.935 | LD7: 260.668 | LE7: 254.63 | LF7: 209.025 | LG7: 276.212 | LH7: 286.849 | LI7: 310.284 | LJ7: 325.988 | LK7: 306.891 | LL7: 305.479 | LM7: 303.695 | LN7: 305.258 | LO7: 326.246 | LP7: 288.83 | LQ7: 268.626 | LR7: 231.769 | LS7: 297.749 | LT7: 301.469 | LU7: 332.596 | LV7: 316.112 | LW7: 309.122 | LX7: 310.008 | LY7: 306.779 | LZ7: 312.322 | MA7: 302.567 | MB7: - | MC7: - | MD7: - | ME7: - | MF7: - | MG7: - | MH7: - | MI7: - | MJ7: - | MK7: - | ML7: -
B8: Residuos renovables | C8: - | D8: - | E8: - | F8: - | G8: - | H8: - | I8: - | J8: - | K8: - | L8: - | M8: - | N8: - | O8: - | P8: - | Q8: - | R8: - | S8: - | T8: - | U8: - | V8: - | W8: - | X8: - | Y8: - | Z8: - | AA8: - | AB8: - | AC8: - | AD8: - | AE8: - | AF8: - | AG8: - | AH8: - | AI8: - | AJ8: - | AK8: - | AL8: - | AM8: - | AN8: - | AO8: - | AP8: - | AQ8: - | AR8: - | AS8: - | AT8: - | AU8: - | AV8: - | AW8: - | AX8: - | AY8: - | AZ8: - | BA8: - | BB8: - | BC8: - | BD8: - | BE8: - | BF8: - | BG8: - | BH8: - | BI8: - | BJ8: - | BK8: - | BL8: - | BM8: - | BN8: - | BO8: - | BP8: - | BQ8: - | BR8: - | BS8: - | BT8: - | BU8: - | BV8: - | BW8: - | BX8: - | BY8: - | BZ8: - | CA8: - | CB8: - | CC8: - | CD8: - | CE8: - | CF8: - | CG8: - | CH8: - | CI8: - | CJ8: - | CK8: - | CL8: - | CM8: - | CN8: - | CO8: - | CP8: - | CQ8: - | CR8: - | CS8: - | CT8: - | CU8: - | CV8: - | CW8: - | CX8: - | CY8: - | CZ8: - | DA8: - | DB8: - | DC8: - | DD8: - | DE8: - | DF8: - | DG8: - | DH8: - | DI8: - | DJ8: - | DK8: - | DL8: - | DM8: - | DN8: - | DO8: - | DP8: - | DQ8: - | DR8: - | DS8: - | DT8: - | DU8: - | DV8: - | DW8: - | DX8: - | DY8: - | DZ8: - | EA8: - | EB8: - | EC8: - | ED8: - | EE8: - | EF8: - | EG8: - | EH8: - | EI8: - | EJ8: - | EK8: - | EL8: - | EM8: - | EN8: - | EO8: - | EP8: - | EQ8: - | ER8: - | ES8: - | ET8: - | EU8: - | EV8: - | EW8: - | EX8: - | EY8: - | EZ8: - | FA8: - | FB8: - | FC8: - | FD8: - | FE8: - | FF8: - | FG8: - | FH8: - | FI8: - | FJ8: - | FK8: - | FL8: - | FM8: - | FN8: - | FO8: - | FP8: - | FQ8: - | FR8: - | FS8: - | FT8: - | FU8: - | FV8: - | FW8: - | FX8: - | FY8: - | FZ8: - | GA8: - | GB8: - | GC8: - | GD8: - | GE8: - | GF8: - | GG8: - | GH8: - | GI8: - | GJ8: - | GK8: - | GL8: - | GM8: - | GN8: - | GO8: - | GP8: - | GQ8: - | GR8: - | GS8: - | GT8: - | GU8: - | GV8: - | GW8: - | GX8: - | GY8: - | GZ8: - | HA8: - | HB8: - | HC8: - | HD8: - | HE8: - | HF8: - | HG8: - | HH8: - | HI8: - | HJ8: - | HK8: - | HL8: - | HM8: - | HN8: - | HO8: - | HP8: - | HQ8: - | HR8: - | HS8: - | HT8: - | HU8: - | HV8: - | HW8: - | HX8: - | HY8: - | HZ8: - | IA8: - | IB8: - | IC8: - | ID8: - | IE8: - | IF8: - | IG8: - | IH8: - | II8: - | IJ8: - | IK8: - | IL8: - | IM8: - | IN8: - | IO8: - | IP8: - | IQ8: - | IR8: - | IS8: - | IT8: - | IU8: - | IV8: - | IW8: - | IX8: - | IY8: - | IZ8: - | JA8: - | JB8: - | JC8: - | JD8: - | JE8: - | JF8: - | JG8: - | JH8: - | JI8: - | JJ8: - | JK8: - | JL8: - | JM8: - | JN8: - | JO8: - | JP8: - | JQ8: - | JR8: - | JS8: - | JT8: - | JU8: - | JV8: - | JW8: - | JX8: - | JY8: - | JZ8: - | KA8: - | KB8: - | KC8: - | KD8: - | KE8: - | KF8: - | KG8: - | KH8: - | KI8: - | KJ8: - | KK8: - | KL8: - | KM8: - | KN8: - | KO8: - | KP8: - | KQ8: 54.5825 | KR8: 52.2235 | KS8: 60.214 | KT8: 33.476 | KU8: 49.7035 | KV8: 58.9705 | KW8: 60.0015 | KX8: 57.491 | KY8: 55.0675 | KZ8: 60.863 | LA8: 60.057 | LB8: 60.005 | LC8: 57.3 | LD8: 48.104 | LE8: 57.5295 | LF8: 26.7025 | LG8: 24.2785 | LH8: 55.116 | LI8: 63.6465 | LJ8: 60.3155 | LK8: 62.052 | LL8: 60.05 | LM8: 64.7395 | LN8: 69.9075 | LO8: 64.7375 | LP8: 55.999 | LQ8: 59.911 | LR8: 46.5755 | LS8: 34.262 | LT8: 66.9865 | LU8: 68.8895 | LV8: 65.701 | LW8: 62.4295 | LX8: 66.1295 | LY8: 66.5575 | LZ8: 69.972 | MA8: 68.3327 | MB8: - | MC8: - | MD8: - | ME8: - | MF8: - | MG8: - | MH8: - | MI8: - | MJ8: - | MK8: - | ML8: -
B9: Generación renovable | C9: 3918.7907 | D9: 3333.8364 | E9: 2452.7097 | F9: 1755.5105 | G9: 1837.0988 | H9: 1831.3012 | I9: 1599.7872 | J9: 1227.7164 | K9: 1212.4659 | L9: 1406.8643 | M9: 1978.4141 | N9: 1971.0844 | O9: 2646.8004 | P9: 2042.5169 | Q9: 3829.4278 | R9: 3507.3813 | S9: 2890.2247 | T9: 2118.6462 | U9: 1720.7126 | V9: 1136.057 | W9: 1129.0099 | X9: 1551.2267 | Y9: 1986.5311 | Z9: 1877.8993 | AA9: 1377.4996 | AB9: 814.6305 | AC9: 813.535 | AD9: 1584.2619 | AE9: 1482.6015 | AF9: 1592.3452 | AG9: 1674.2229 | AH9: 1142.7864 | AI9: 1225.8002 | AJ9: 1874.9681 | AK9: 2204.9297 | AL9: 2897.0255 | AM9: 2183.5173 | AN9: 1519.1827 | AO9: 1469.3152 | AP9: 1176.7242 | AQ9: 1888.1177 | AR9: 2218.3536 | AS9: 1896.7408 | AT9: 1256.9859 | AU9: 1218.2102 | AV9: 2861.9681 | AW9: 3470.8537 | AX9: 2744.3383 | AY9: 3862.9258 | AZ9: 3156.8329 | BA9: 2837.8807 | BB9: 2419.3997 | BC9: 2679.8245 | BD9: 2454.445 | BE9: 1869.3176 | BF9: 1382.3768 | BG9: 1302.6082 | BH9: 1596.1599 | BI9: 2389.0476 | BJ9: 1943.7209 | BK9: 2922.1179 | BL9: 2776.1924 | BM9: 3289.6422 | BN9: 1976.0157 | BO9: 1821.4859 | BP9: 1803.0943 | BQ9: 1691.1075 | BR9: 1146.9003 | BS9: 991.1927 | BT9: 1057.6327 | BU9: 1299.326 | BV9: 2519.4422 | BW9: 5879.2435 | BX9: 5684.1242 | BY9: 3762.2661 | BZ9: 3894.6239 | CA9: 4005.8654 | CB9: 3061.7943 | CC9: 2432.0242 | CD9: 1692.6022 | CE9: 1913.3789 | CF9: 1925.6837 | CG9: 2352.8857 | CH9: 4384.2123 | CI9: 5780.5918 | CJ9: 3659.9244 | CK9: 2832.6746 | CL9: 2479.5291 | CM9: 2405.5878 | CN9: 2512.2571 | CO9: 2231.2642 | CP9: 1872.2127 | CQ9: 1760.4463 | CR9: 1646.8458 | CS9: 3633.9683 | CT9: 5564.3426 | CU9: 6078.125034 | CV9: 4204.43611 | CW9: 2923.04284 | CX9: 3705.688163 | CY9: 4272.80767 | CZ9: 3632.437443 | DA9: 2783.499469 | DB9: 2283.173617 | DC9: 2032.411993 | DD9: 2211.350807 | DE9: 1743.617327 | DF9: 1549.991974 | DG9: 1667.153345 | DH9: 1658.163784 | DI9: 2328.719377 | DJ9: 2464.54069 | DK9: 3194.028556 | DL9: 2813.688649 | DM9: 2245.601022 | DN9: 1689.371064 | DO9: 1810.089309 | DP9: 2033.121894 | DQ9: 3242.584617 | DR9: 3274.27046 | DS9: 2971.837269 | DT9: 2005.803691 | DU9: 1970.152107 | DV9: 2731.774829 | DW9: 3642.703692 | DX9: 2799.178694 | DY9: 2187.169287 | DZ9: 2151.028982 | EA9: 2202.501512 | EB9: 2243.348919 | EC9: 3145.785128 | ED9: 5267.526876 | EE9: 7110.599734 | EF9: 6534.977675 | EG9: 7465.428192 | EH9: 5203.480372 | EI9: 3984.786567 | EJ9: 3152.708102 | EK9: 2650.270553 | EL9: 2465.953795 | EM9: 2287.616701 | EN9: 2539.638052 | EO9: 2974.599221 | EP9: 2356.287053 | EQ9: 2107.968957 | ER9: 2076.903035 | ES9: 2817.701905 | ET9: 2626.748687 | EU9: 2930.362327 | EV9: 2706.335424 | EW9: 2191.19972 | EX9: 1791.582899 | EY9: 1676.458876 | EZ9: 2218.424383 | FA9: 3184.160705 | FB9: 5614.351446 | FC9: 7179.662099 | FD9: 5539.306665 | FE9: 5584.591064 | FF9: 5197.158304 | FG9: 4775.997436 | FH9: 3208.79913 | FI9: 2857.667366 | FJ9: 2164.627814 | FK9: 2597.165953 | FL9: 3261.518597 | FM9: 4613.546633 | FN9: 6583.18416 | FO9: 5634.058063 | FP9: 4615.156318 | FQ9: 4629.158508 | FR9: 4714.943713 | FS9: 4543.007088 | FT9: 3952.117527 | FU9: 3228.053089 | FV9: 3013.908898 | FW9: 2834.714598 | FX9: 3534.926281 | FY9: 4029.303546 | FZ9: 3730.695268 | GA9: 3619.055506 | GB9: 3437.228045 | GC9: 3753.985767 | GD9: 4188.51418 | GE9: 3855.091274 | GF9: 3251.793592 | GG9: 3091.114737 | GH9: 2947.586602 | GI9: 2255.070555 | GJ9: 2916.522372 | GK9: 3527.262699 | GL9: 4290.584088 | GM9: 3372.881464 | GN9: 3284.129133 | GO9: 5983.340359 | GP9: 4862.65267 | GQ9: 3999.311509 | GR9: 3079.8683 | GS9: 2884.3448 | GT9: 3405.6242 | GU9: 2774.9459 | GV9: 4178.5939 | GW9: 5434.1306 | GX9: 7280.9637 | GY9: 4620.4468 | GZ9: 6073.3227 | HA9: 7232.5794 | HB9: 4432.7281 | HC9: 5675.1996 | HD9: 4328.6722 | HE9: 4597.2363 | HF9: 4448.2276 | HG9: 3655.0535 | HH9: 3901.2403 | HI9: 4352.0535 | HJ9: 3882.5871 | HK9: 4321.4548 | HL9: 3263.6435 | HM9: 5497.9392 | HN9: 6441.3714 | HO9: 5458.9039 | HP9: 5673.1215 | HQ9: 4763.8796 | HR9: 4020.5266 | HS9: 3972.8338 | HT9: 4127.9325 | HU9: 5606.7308 | HV9: 6616.231 | HW9: 6271.3621 | HX9: 7321.0165 | HY9: 6658.0696 | HZ9: 6094.2147 | IA9: 6188.8714 | IB9: 5314.8422 | IC9: 5124.0914 | ID9: 4582.5138 | IE9: 4233.8449 | IF9: 5215.3399 | IG9: 7430.2343 | IH9: 8643.2669 | II9: 9983.405113 | IJ9: 9217.794562 | IK9: 11091.03204 | IL9: 8210.392131 | IM9: 8509.473048 | IN9: 7129.492153 | IO9: 6820.415407 | IP9: 6023.809814 | IQ9: 4801.022344 | IR9: 6431.220029 | IS9: 7624.369068 | IT9: 9202.945477 | IU9: 9862.184963 | IV9: 7922.575908 | IW9: 9482.34471 | IX9: 8055.807634 | IY9: 7157.974059 | IZ9: 6344.346346 | JA9: 6378.476964 | JB9: 5618.029155 | JC9: 4852.158394 | JD9: 5554.980048 | JE9: 6771.981857 | JF9: 7650.14387 | JG9: 6266.895482 | JH9: 7448.052115 | JI9: 6487.533439 | JJ9: 8226.2858 | JK9: 7778.608764 | JL9: 7192.449752 | JM9: 6518.69645 | JN9: 6173.656452 | JO9: 6372.920169 | JP9: 5783.881479 | JQ9: 7475.847305 | JR9: 9057.852123 | JS9: 10273.24881 | JT9: 10012.32968 | JU9: 11479.76454 | JV9: 11233.51473 | JW9: 9513.900054 | JX9: 8954.490554 | JY9: 7683.356283 | JZ9: 7489.520574 | KA9: 6642.866471 | KB9: 7131.630532 | KC9: 10334.24339 | KD9: 8407.276945 | KE9: 11654.77332 | KF9: 12484.07191 | KG9: 11787.81522 | KH9: 10425.23611 | KI9: 8977.438887 | KJ9: 7714.08424 | KK9: 8075.124497 | KL9: 7047.405334 | KM9: 5397.611652 | KN9: 6310.573453 | KO9: 8347.048679 | KP9: 9005.422208 | KQ9: 8443.502779 | KR9: 10425.80359 | KS9: 10097.09908 | KT9: 7884.619439 | KU9: 9587.822849 | KV9: 7277.13165 | KW9: 7245.200194 | KX9: 6642.560237 | KY9: 6135.84858 | KZ9: 6603.308403 | LA9: 6681.327242 | LB9: 5767.829957 | LC9: 9769.266285 | LD9: 10934.17671 | LE9: 11147.07294 | LF9: 10976.17351 | LG9: 10555.79814 | LH9: 8202.345273 | LI9: 7804.264205 | LJ9: 7691.832122 | LK9: 6015.303303 | LL9: 5214.893552 | LM9: 6293.602442 | LN9: 5367.604934 | LO9: 7832.620053 | LP9: 7711.276452 | LQ9: 8733.506923 | LR9: 7503.058243 | LS9: 7136.405508 | LT9: 6756.630185 | LU9: 6615.359308 | LV9: 6233.914119 | LW9: 5726.61401 | LX9: 5436.348425 | LY9: 5904.121992 | LZ9: 7921.220427 | MA9: 8349.384023 | MB9: - | MC9: - | MD9: - | ME9: - | MF9: - | MG9: - | MH9: - | MI9: - | MJ9: - | MK9: - | ML9: -
B11: Generación renovable mensual Islas Baleares (MWh) | C11: 2006-01-01 | D11: 2006-02-01 | E11: 2006-03-01 | F11: 2006-04-01 | G11: 2006-05-01 | H11: 2006-06-01 | I11: 2006-07-01 | J11: 2006-08-01 | K11: 2006-09-01 | L11: 2006-10-01 | M11: 2006-11-01 | N11: 2006-12-01 | O11: 2007-01-01 | P11: 2007-02-01 | Q11: 2007-03-01 | R11: 2007-04-01 | S11: 2007-05-01 | T11: 2007-06-01 | U11: 2007-07-01 | V11: 2007-08-01 | W11: 2007-09-01 | X11: 2007-10-01 | Y11: 2007-11-01 | Z11: 2007-12-01 | AA11: 2008-01-01 | AB11: 2008-02-01 | AC11: 2008-03-01 | AD11: 2008-04-01 | AE11: 2008-05-01 | AF11: 2008-06-01 | AG11: 2008-07-01 | AH11: 2008-08-01 | AI11: 2008-09-01 | AJ11: 2008-10-01 | AK11: 2008-11-01 | AL11: 2008-12-01 | AM11: 2009-01-01 | AN11: 2009-02-01 | AO11: 2009-03-01 | AP11: 2009-04-01 | AQ11: 2009-05-01 | AR11: 2009-06-01 | AS11: 2009-07-01 | AT11: 2009-08-01 | AU11: 2009-09-01 | AV11: 2009-10-01 | AW11: 2009-11-01 | AX11: 2009-12-01 | AY11: 2010-01-01 | AZ11: 2010-02-01 | BA11: 2010-03-01 | BB11: 2010-04-01 | BC11: 2010-05-01 | BD11: 2010-06-01 | BE11: 2010-07-01 | BF11: 2010-08-01 | BG11: 2010-09-01 | BH11: 2010-10-01 | BI11: 2010-11-01 | BJ11: 2010-12-01 | BK11: 2011-01-01 | BL11: 2011-02-01 | BM11: 2011-03-01 | BN11: 2011-04-01 | BO11: 2011-05-01 | BP11: 2011-06-01 | BQ11: 2011-07-01 | BR11: 2011-08-01 | BS11: 2011-09-01 | BT11: 2011-10-01 | BU11: 2011-11-01 | BV11: 2011-12-01 | BW11: 2012-01-01 | BX11: 2012-02-01 | BY11: 2012-03-01 | BZ11: 2012-04-01 | CA11: 2012-05-01 | CB11: 2012-06-01 | CC11: 2012-07-01 | CD11: 2012-08-01 | CE11: 2012-09-01 | CF11: 2012-10-01 | CG11: 2012-11-01 | CH11: 2012-12-01 | CI11: 2013-01-01 | CJ11: 2013-02-01 | CK11: 2013-03-01 | CL11: 2013-04-01 | CM11: 2013-05-01 | CN11: 2013-06-01 | CO11: 2013-07-01 | CP11: 2013-08-01 | CQ11: 2013-09-01 | CR11: 2013-10-01 | CS11: 2013-11-01 | CT11: 2013-12-01 | CU11: 2014-01-01 | CV11: 2014-02-01 | CW11: 2014-03-01 | CX11: 2014-04-01 | CY11: 2014-05-01 | CZ11: 2014-06-01 | DA11: 2014-07-01 | DB11: 2014-08-01 | DC11: 2014-09-01 | DD11: 2014-10-01 | DE11: 2014-11-01 | DF11: 2014-12-01 | DG11: 2015-01-01 | DH11: 2015-02-01 | DI11: 2015-03-01 | DJ11: 2015-04-01 | DK11: 2015-05-01 | DL11: 2015-06-01 | DM11: 2015-07-01 | DN11: 2015-08-01 | DO11: 2015-09-01 | DP11: 2015-10-01 | DQ11: 2015-11-01 | DR11: 2015-12-01 | DS11: 2016-01-01 | DT11: 2016-02-01 | DU11: 2016-03-01 | DV11: 2016-04-01 | DW11: 2016-05-01 | DX11: 2016-06-01 | DY11: 2016-07-01 | DZ11: 2016-08-01 | EA11: 2016-09-01 | EB11: 2016-10-01 | EC11: 2016-11-01 | ED11: 2016-12-01 | EE11: 2017-01-01 | EF11: 2017-02-01 | EG11: 2017-03-01 | EH11: 2017-04-01 | EI11: 2017-05-01 | EJ11: 2017-06-01 | EK11: 2017-07-01 | EL11: 2017-08-01 | EM11: 2017-09-01 | EN11: 2017-10-01 | EO11: 2017-11-01 | EP11: 2017-12-01 | EQ11: 2018-01-01 | ER11: 2018-02-01 | ES11: 2018-03-01 | ET11: 2018-04-01 | EU11: 2018-05-01 | EV11: 2018-06-01 | EW11: 2018-07-01 | EX11: 2018-08-01 | EY11: 2018-09-01 | EZ11: 2018-10-01 | FA11: 2018-11-01 | FB11: 2018-12-01
B12: Eólica | C12: 514.35 | D12: 371.374 | E12: 548.188 | F12: 366.096 | G12: 438.988 | H12: 366.65 | I12: 202.55 | J12: 548.332 | K12: 264.468 | L12: 347.647 | M12: 407.408 | N12: 501.305 | O12: 402 | P12: 480 | Q12: 585 | R12: 246 | S12: 392 | T12: 334 | U12: 358 | V12: 444 | W12: 320 | X12: 541 | Y12: 784 | Z12: 770 | AA12: 415 | AB12: 420 | AC12: 575 | AD12: 741 | AE12: 212 | AF12: 290 | AG12: 272 | AH12: 328 | AI12: 462 | AJ12: 470 | AK12: 620 | AL12: 692 | AM12: 472 | AN12: 688 | AO12: 529 | AP12: 482 | AQ12: 477 | AR12: 383 | AS12: 126 | AT12: 147 | AU12: 346 | AV12: 531 | AW12: 538 | AX12: 824 | AY12: 599 | AZ12: 689 | BA12: 590 | BB12: 377 | BC12: 312 | BD12: 275 | BE12: 322 | BF12: 395 | BG12: 303 | BH12: 477 | BI12: 529 | BJ12: 703 | BK12: 472 | BL12: 638 | BM12: 627 | BN12: 553 | BO12: 435 | BP12: 359 | BQ12: 432 | BR12: 356 | BS12: 229 | BT12: 587 | BU12: 549 | BV12: 592 | BW12: 479 | BX12: 1092 | BY12: 557 | BZ12: 570 | CA12: 377 | CB12: 358 | CC12: 430 | CD12: 261 | CE12: 666 | CF12: 424 | CG12: 540 | CH12: 751 | CI12: 687 | CJ12: 674 | CK12: 767 | CL12: 552 | CM12: 439 | CN12: 391 | CO12: 211 | CP12: 355 | CQ12: 349 | CR12: 477 | CS12: 772 | CT12: 486 | CU12: 587 | CV12: 635 | CW12: 749 | CX12: 441 | CY12: 509 | CZ12: 342 | DA12: 354 | DB12: 302 | DC12: 236 | DD12: 371 | DE12: 552 | DF12: 761 | DG12: 600 | DH12: 696 | DI12: 580 | DJ12: 434.88 | DK12: 636 | DL12: 253 | DM12: 309 | DN12: 231 | DO12: 509 | DP12: 555.89 | DQ12: 415.25 | DR12: 97 | DS12: 530 | DT12: 661 | DU12: 708 | DV12: 665.25 | DW12: 486 | DX12: 239 | DY12: 471.2 | DZ12: 478 | EA12: 222 | EB12: 292.19 | EC12: 402 | ED12: 260 | EE12: 469 | EF12: 283 | EG12: 227 | EH12: 238 | EI12: 127 | EJ12: 130 | EK12: 176 | EL12: 172 | EM12: 183 | EN12: 195 | EO12: 343 | EP12: 382 | EQ12: 271.41 | ER12: - | ES12: - | ET12: - | EU12: - | EV12: - | EW12: - | EX12: - | EY12: - | EZ12: - | FA12: - | FB12: -
B13: Solar fotovoltaica | C13: 43.973 | D13: 50.86 | E13: 83.446 | F13: 87.707 | G13: 102.911 | H13: 110.639 | I13: 126.145 | J13: 120.868 | K13: 111.756 | L13: 105.835 | M13: 84.201 | N13: 72.454 | O13: 95 | P13: 122 | Q13: 165 | R13: 156 | S13: 211 | T13: 207 | U13: 226 | V13: 209 | W13: 180 | X13: 139 | Y13: 119 | Z13: 123 | AA13: 134 | AB13: 194 | AC13: 416 | AD13: 664 | AE13: 955 | AF13: 1807 | AG13: 2659 | AH13: 4719 | AI13: 4821 | AJ13: 4337 | AK13: 3391 | AL13: 4283 | AM13: 3838 | AN13: 5190 | AO13: 7556 | AP13: 7099 | AQ13: 8802 | AR13: 9040 | AS13: 8898 | AT13: 8709 | AU13: 6680 | AV13: 6538 | AW13: 5096 | AX13: 3487 | AY13: 3845 | AZ13: 4810 | BA13: 6958 | BB13: 8061 | BC13: 9047 | BD13: 8957 | BE13: 10437 | BF13: 10003 | BG13: 8360 | BH13: 6793 | BI13: 5600 | BJ13: 4886 | BK13: 5358 | BL13: 6378 | BM13: 8047 | BN13: 9928 | BO13: 10914 | BP13: 10324 | BQ13: 10211 | BR13: 11535 | BS13: 9702 | BT13: 8434 | BU13: 4998 | BV13: 5392 | BW13: 6183 | BX13: 6956 | BY13: 10152 | BZ13: 10230 | CA13: 12309 | CB13: 11697 | CC13: 12533 | CD13: 12420 | CE13: 10873 | CF13: 9500 | CG13: 6016 | CH13: 6725 | CI13: 7273 | CJ13: 7404 | CK13: 11494 | CL13: 11209 | CM13: 12639 | CN13: 13817 | CO13: 14316 | CP13: 12847 | CQ13: 10745 | CR13: 8781 | CS13: 5602 | CT13: 5971 | CU13: 5828 | CV13: 8461 | CW13: 11098 | CX13: 12721 | CY13: 12507 | CZ13: 13247 | DA13: 13533 | DB13: 12560 | DC13: 10352 | DD13: 10338 | DE13: 6491 | DF13: 5637 | DG13: 6880 | DH13: 7213 | DI13: 10111 | DJ13: 12577.61 | DK13: 13499 | DL13: 13458 | DM13: 13857 | DN13: 12164 | DO13: 9669.87 | DP13: 8932 | DQ13: 8008 | DR13: 6276 | DS13: 7084 | DT13: 7540 | DU13: 10664.3 | DV13: 11177.5 | DW13: 12596 | DX13: 13172 | DY13: 13850 | DZ13: 13342 | EA13: 10360 | EB13: 8448 | EC13: 6552 | ED13: 5748 | EE13: 5799 | EF13: 7159 | EG13: 12160 | EH13: 12671 | EI13: 13641 | EJ13: 13309 | EK13: 13311 | EL13: 12437 | EM13: 10174 | EN13: 9401 | EO13: 7255 | EP13: 5558 | EQ13: 6585.1 | ER13: - | ES13: - | ET13: - | EU13: - | EV13: - | EW13: - | EX13: - | EY13: - | EZ13: - | FA13: - | FB13: -
B14: Térmica renovable/Otras renovables | C14: - | D14: - | E14: - | F14: - | G14: - | H14: - | I14: - | J14: - | K14: - | L14: - | M14: - | N14: - | O14: - | P14: - | Q14: - | R14: - | S14: - | T14: - | U14: - | V14: - | W14: - | X14: - | Y14: - | Z14: - | AA14: - | AB14: - | AC14: - | AD14: - | AE14: - | AF14: - | AG14: - | AH14: - | AI14: - | AJ14: - | AK14: - | AL14: - | AM14: - | AN14: - | AO14: - | AP14: - | AQ14: - | AR14: - | AS14: - | AT14: - | AU14: - | AV14: - | AW14: - | AX14: - | AY14: - | AZ14: - | BA14: - | BB14: - | BC14: - | BD14: - | BE14: - | BF14: - | BG14: - | BH14: - | BI14: - | BJ14: - | BK14: - | BL14: - | BM14: - | BN14: - | BO14: - | BP14: - | BQ14: - | BR14: - | BS14: - | BT14: - | BU14: - | BV14: - | BW14: 45 | BX14: 23 | BY14: 79 | BZ14: 49 | CA14: 42 | CB14: 39 | CC14: 36 | CD14: 47 | CE14: 53 | CF14: 57 | CG14: 55 | CH14: 44 | CI14: 73 | CJ14: 47 | CK14: 75 | CL14: 93 | CM14: 16 | CN14: 73 | CO14: 75 | CP14: 30 | CQ14: 44 | CR14: 65 | CS14: 60 | CT14: 92 | CU14: 123 | CV14: 172 | CW14: 228 | CX14: 199 | CY14: 261 | CZ14: 167 | DA14: 89 | DB14: 121 | DC14: 92 | DD14: 132 | DE14: 185 | DF14: 175 | DG14: 229.29 | DH14: 171.29 | DI14: 164 | DJ14: 221 | DK14: 173 | DL14: 100 | DM14: 181 | DN14: 109 | DO14: 119 | DP14: 130.97 | DQ14: 148 | DR14: 226 | DS14: 176 | DT14: 164.92 | DU14: 176.14 | DV14: 153.4 | DW14: 126 | DX14: 32 | DY14: 35 | DZ14: 42.72 | EA14: 33 | EB14: 93.34 | EC14: 139 | ED14: 138 | EE14: 159 | EF14: 170 | EG14: 104 | EH14: 198 | EI14: 224 | EJ14: 164 | EK14: 76 | EL14: 73 | EM14: 87 | EN14: 106 | EO14: 127 | EP14: 137 | EQ14: 129.05 | ER14: - | ES14: - | ET14: - | EU14: - | EV14: - | EW14: - | EX14: - | EY14: - | EZ14: - | FA14: - | FB14: -
B15: Residuos renovables | C15: - | D15: - | E15: - | F15: - | G15: - | H15: - | I15: - | J15: - | K15: - | L15: - | M15: - | N15: - | O15: - | P15: - | Q15: - | R15: - | S15: - | T15: - | U15: - | V15: - | W15: - | X15: - | Y15: - | Z15: - | AA15: - | AB15: - | AC15: - | AD15: - | AE15: - | AF15: - | AG15: - | AH15: - | AI15: - | AJ15: - | AK15: - | AL15: - | AM15: - | AN15: - | AO15: - | AP15: - | AQ15: - | AR15: - | AS15: - | AT15: - | AU15: - | AV15: - | AW15: - | AX15: - | AY15: - | AZ15: - | BA15: - | BB15: - | BC15: - | BD15: - | BE15: - | BF15: - | BG15: - | BH15: - | BI15: - | BJ15: - | BK15: - | BL15: - | BM15: - | BN15: - | BO15: - | BP15: - | BQ15: - | BR15: - | BS15: - | BT15: - | BU15: - | BV15: - | BW15: - | BX15: - | BY15: - | BZ15: - | CA15: - | CB15: - | CC15: - | CD15: - | CE15: - | CF15: - | CG15: - | CH15: - | CI15: - | CJ15: - | CK15: - | CL15: - | CM15: - | CN15: - | CO15: - | CP15: - | CQ15: - | CR15: - | CS15: - | CT15: - | CU15: - | CV15: - | CW15: - | CX15: - | CY15: - | CZ15: - | DA15: - | DB15: - | DC15: - | DD15: - | DE15: - | DF15: - | DG15: 9163.5 | DH15: 6908.5 | DI15: 11394 | DJ15: 13639 | DK15: 14790 | DL15: 13704.5 | DM15: 12853 | DN15: 12487.5 | DO15: 14777 | DP15: 14664.5 | DQ15: 14318 | DR15: 12398.5 | DS15: 8564.5 | DT15: 4968 | DU15: 8612 | DV15: 12110 | DW15: 14510 | DX15: 13617 | DY15: 11266.5 | DZ15: 12685 | EA15: 12613.5 | EB15: 13662.5 | EC15: 9271 | ED15: 8925.5 | EE15: 7544 | EF15: 7222 | EG15: 10518 | EH15: 14686 | EI15: 11210 | EJ15: 14046.5 | EK15: 14056 | EL15: 14325.5 | EM15: 15026.5 | EN15: 13983 | EO15: 11279 | EP15: 9982 | EQ15: 7713.55 | ER15: - | ES15: - | ET15: - | EU15: - | EV15: - | EW15: - | EX15: - | EY15: - | EZ15: - | FA15: - | FB15: -
B16: Generación renovable | C16: 558.323 | D16: 422.234 | E16: 631.634 | F16: 453.803 | G16: 541.899 | H16: 477.289 | I16: 328.695 | J16: 669.2 | K16: 376.224 | L16: 453.482 | M16: 491.609 | N16: 573.759 | O16: 497 | P16: 602 | Q16: 750 | R16: 402 | S16: 603 | T16: 541 | U16: 584 | V16: 653 | W16: 500 | X16: 680 | Y16: 903 | Z16: 893 | AA16: 549 | AB16: 614 | AC16: 991 | AD16: 1405 | AE16: 1167 | AF16: 2097 | AG16: 2931 | AH16: 5047 | AI16: 5283 | AJ16: 4807 | AK16: 4011 | AL16: 4975 | AM16: 4310 | AN16: 5878 | AO16: 8085 | AP16: 7581 | AQ16: 9279 | AR16: 9423 | AS16: 9024 | AT16: 8856 | AU16: 7026 | AV16: 7069 | AW16: 5634 | AX16: 4311 | AY16: 4444 | AZ16: 5499 | BA16: 7548 | BB16: 8438 | BC16: 9359 | BD16: 9232 | BE16: 10759 | BF16: 10398 | BG16: 8663 | BH16: 7270 | BI16: 6129 | BJ16: 5589 | BK16: 5830 | BL16: 7016 | BM16: 8674 | BN16: 10481 | BO16: 11349 | BP16: 10683 | BQ16: 10643 | BR16: 11891 | BS16: 9931 | BT16: 9021 | BU16: 5547 | BV16: 5984 | BW16: 6707 | BX16: 8071 | BY16: 10788 | BZ16: 10849 | CA16: 12728 | CB16: 12094 | CC16: 12999 | CD16: 12728 | CE16: 11592 | CF16: 9981 | CG16: 6611 | CH16: 7520 | CI16: 8033 | CJ16: 8125 | CK16: 12336 | CL16: 11854 | CM16: 13094 | CN16: 14281 | CO16: 14602 | CP16: 13232 | CQ16: 11138 | CR16: 9323 | CS16: 6434 | CT16: 6549 | CU16: 6538 | CV16: 9268 | CW16: 12075 | CX16: 13361 | CY16: 13277 | CZ16: 13756 | DA16: 13976 | DB16: 12983 | DC16: 10680 | DD16: 10841 | DE16: 7228 | DF16: 6573 | DG16: 16872.79 | DH16: 14988.79 | DI16: 22249 | DJ16: 26872.49 | DK16: 29098 | DL16: 27515.5 | DM16: 27200 | DN16: 24991.5 | DO16: 25074.87 | DP16: 24283.36 | DQ16: 22889.25 | DR16: 18997.5 | DS16: 16354.5 | DT16: 13333.92 | DU16: 20160.44 | DV16: 24106.15 | DW16: 27718 | DX16: 27060 | DY16: 25622.7 | DZ16: 26547.72 | EA16: 23228.5 | EB16: 22496.03 | EC16: 16364 | ED16: 15071.5 | EE16: 13971 | EF16: 14834 | EG16: 23009 | EH16: 27793 | EI16: 25202 | EJ16: 27649.5 | EK16: 27619 | EL16: 27007.5 | EM16: 25470.5 | EN16: 23685 | EO16: 19004 | EP16: 16059 | EQ16: 14699.11 | ER16: - | ES16: - | ET16: - | EU16: - | EV16: - | EW16: - | EX16: - | EY16: - | EZ16: - | FA16: - | FB16: -
B18: Generación renovable mensual Islas Canarias (MWh) | C18: 2006-01-01 | D18: 2006-02-01 | E18: 2006-03-01 | F18: 2006-04-01 | G18: 2006-05-01 | H18: 2006-06-01 | I18: 2006-07-01 | J18: 2006-08-01 | K18: 2006-09-01 | L18: 2006-10-01 | M18: 2006-11-01 | N18: 2006-12-01 | O18: 2007-01-01 | P18: 2007-02-01 | Q18: 2007-03-01 | R18: 2007-04-01 | S18: 2007-05-01 | T18: 2007-06-01 | U18: 2007-07-01 | V18: 2007-08-01 | W18: 2007-09-01 | X18: 2007-10-01 | Y18: 2007-11-01 | Z18: 2007-12-01 | AA18: 2008-01-01 | AB18: 2008-02-01 | AC18: 2008-03-01 | AD18: 2008-04-01 | AE18: 2008-05-01 | AF18: 2008-06-01 | AG18: 2008-07-01 | AH18: 2008-08-01 | AI18: 2008-09-01 | AJ18: 2008-10-01 | AK18: 2008-11-01 | AL18: 2008-12-01 | AM18: 2009-01-01 | AN18: 2009-02-01 | AO18: 2009-03-01 | AP18: 2009-04-01 | AQ18: 2009-05-01 | AR18: 2009-06-01 | AS18: 2009-07-01 | AT18: 2009-08-01 | AU18: 2009-09-01 | AV18: 2009-10-01 | AW18: 2009-11-01 | AX18: 2009-12-01 | AY18: 2010-01-01 | AZ18: 2010-02-01 | BA18: 2010-03-01 | BB18: 2010-04-01 | BC18: 2010-05-01 | BD18: 2010-06-01 | BE18: 2010-07-01 | BF18: 2010-08-01 | BG18: 2010-09-01 | BH18: 2010-10-01 | BI18: 2010-11-01 | BJ18: 2010-12-01 | BK18: 2011-01-01 | BL18: 2011-02-01 | BM18: 2011-03-01 | BN18: 2011-04-01 | BO18: 2011-05-01 | BP18: 2011-06-01 | BQ18: 2011-07-01 | BR18: 2011-08-01 | BS18: 2011-09-01 | BT18: 2011-10-01 | BU18: 2011-11-01 | BV18: 2011-12-01 | BW18: 2012-01-01 | BX18: 2012-02-01 | BY18: 2012-03-01 | BZ18: 2012-04-01 | CA18: 2012-05-01 | CB18: 2012-06-01 | CC18: 2012-07-01 | CD18: 2012-08-01 | CE18: 2012-09-01 | CF18: 2012-10-01 | CG18: 2012-11-01 | CH18: 2012-12-01 | CI18: 2013-01-01 | CJ18: 2013-02-01 | CK18: 2013-03-01 | CL18: 2013-04-01 | CM18: 2013-05-01 | CN18: 2013-06-01 | CO18: 2013-07-01 | CP18: 2013-08-01 | CQ18: 2013-09-01 | CR18: 2013-10-01 | CS18: 2013-11-01 | CT18: 2013-12-01 | CU18: 2014-01-01 | CV18: 2014-02-01 | CW18: 2014-03-01 | CX18: 2014-04-01 | CY18: 2014-05-01 | CZ18: 2014-06-01 | DA18: 2014-07-01 | DB18: 2014-08-01 | DC18: 2014-09-01 | DD18: 2014-10-01 | DE18: 2014-11-01 | DF18: 2014-12-01 | DG18: 2015-01-01 | DH18: 2015-02-01 | DI18: 2015-03-01 | DJ18: 2015-04-01 | DK18: 2015-05-01 | DL18: 2015-06-01 | DM18: 2015-07-01 | DN18: 2015-08-01 | DO18: 2015-09-01 | DP18: 2015-10-01 | DQ18: 2015-11-01 | DR18: 2015-12-01 | DS18: 2016-01-01 | DT18: 2016-02-01 | DU18: 2016-03-01 | DV18: 2016-04-01 | DW18: 2016-05-01 | DX18: 2016-06-01 | DY18: 2016-07-01 | DZ18: 2016-08-01 | EA18: 2016-09-01 | EB18: 2016-10-01 | EC18: 2016-11-01 | ED18: 2016-12-01 | EE18: 2017-01-01 | EF18: 2017-02-01 | EG18: 2017-03-01 | EH18: 2017-04-01 | EI18: 2017-05-01 | EJ18: 2017-06-01 | EK18: 2017-07-01 | EL18: 2017-08-01 | EM18: 2017-09-01 | EN18: 2017-10-01 | EO18: 2017-11-01 | EP18: 2017-12-01 | EQ18: 2018-01-01 | ER18: 2018-02-01 | ES18: 2018-03-01 | ET18: 2018-04-01 | EU18: 2018-05-01 | EV18: 2018-06-01 | EW18: 2018-07-01 | EX18: 2018-08-01 | EY18: 2018-09-01 | EZ18: 2018-10-01 | FA18: 2018-11-01 | FB18: 2018-12-01
B19: Hidráulica | C19: 0 | D19: 0 | E19: 0 | F19: 0 | G19: 0 | H19: 0 | I19: 0 | J19: 0 | K19: 0 | L19: 0 | M19: 0 | N19: 0 | O19: 0 | P19: 0 | Q19: 0 | R19: 0 | S19: 0 | T19: 0 | U19: 82 | V19: 190 | W19: 247 | X19: 92 | Y19: 278 | Z19: 287 | AA19: 287 | AB19: 244 | AC19: 240 | AD19: 0 | AE19: 185 | AF19: 315 | AG19: 305 | AH19: 97 | AI19: 0 | AJ19: 0 | AK19: 0 | AL19: 0 | AM19: 9 | AN19: 164 | AO19: 175 | AP19: 50 | AQ19: 0 | AR19: 0 | AS19: 0 | AT19: 0 | AU19: 0 | AV19: 0 | AW19: 0 | AX19: 0 | AY19: 0 | AZ19: 0 | BA19: 0 | BB19: 0 | BC19: 0 | BD19: 0 | BE19: 0 | BF19: 0 | BG19: 0 | BH19: 0 | BI19: 0 | BJ19: 0 | BK19: 0 | BL19: 0 | BM19: 2 | BN19: 239 | BO19: 165 | BP19: 131 | BQ19: 245 | BR19: 179 | BS19: 201 | BT19: 238 | BU19: 164 | BV19: 111.408 | BW19: 116.439 | BX19: 0.075 | BY19: 163.001 | BZ19: 246.879 | CA19: 218.845 | CB19: 207.497 | CC19: 62.735 | CD19: 231.002 | CE19: 221.7 | CF19: 205.726 | CG19: 40.073 | CH19: 75.364 | CI19: 222.602 | CJ19: 204.523 | CK19: 136.682 | CL19: 136.99 | CM19: 292.267 | CN19: 286.388 | CO19: 286.267 | CP19: 286.374 | CQ19: 292.338 | CR19: 303.712 | CS19: 293.163 | CT19: 306 | CU19: 305 | CV19: 276 | CW19: 301 | CX19: 290 | CY19: 300 | CZ19: 283 | DA19: 308 | DB19: 310.021 | DC19: 296 | DD19: 272 | DE19: 261 | DF19: 277 | DG19: 303.6 | DH19: 270 | DI19: 304.6 | DJ19: 292 | DK19: 295 | DL19: 296 | DM19: 304 | DN19: 303 | DO19: 296 | DP19: 311 | DQ19: 301 | DR19: 309 | DS19: 309 | DT19: 282 | DU19: 311 | DV19: 299 | DW19: 308 | DX19: 301 | DY19: 313 | DZ19: 266 | EA19: 282 | EB19: 271 | EC19: 260 | ED19: 270 | EE19: 264 | EF19: 239 | EG19: 265 | EH19: 262 | EI19: 271 | EJ19: 271 | EK19: 275 | EL19: 288 | EM19: 267 | EN19: 294 | EO19: 274 | EP19: 312 | EQ19: 0 | ER19: - | ES19: - | ET19: - | EU19: - | EV19: - | EW19: - | EX19: - | EY19: - | EZ19: - | FA19: - | FB19: -
B20: Hidroeólica | C20: 0 | D20: 0 | E20: 0 | F20: 0 | G20: 0 | H20: 0 | I20: 0 | J20: 0 | K20: 0 | L20: 0 | M20: 0 | N20: 0 | O20: 0 | P20: 0 | Q20: 0 | R20: 0 | S20: 0 | T20: 0 | U20: 0 | V20: 0 | W20: 0 | X20: 0 | Y20: 0 | Z20: 0 | AA20: 0 | AB20: 0 | AC20: 0 | AD20: 0 | AE20: 0 | AF20: 0 | AG20: 0 | AH20: 0 | AI20: 0 | AJ20: 0 | AK20: 0 | AL20: 0 | AM20: 0 | AN20: 0 | AO20: 0 | AP20: 0 | AQ20: 0 | AR20: 0 | AS20: 0 | AT20: 0 | AU20: 0 | AV20: 0 | AW20: 0 | AX20: 0 | AY20: 0 | AZ20: 0 | BA20: 0 | BB20: 0 | BC20: 0 | BD20: 0 | BE20: 0 | BF20: 0 | BG20: 0 | BH20: 0 | BI20: 0 | BJ20: 0 | BK20: 0 | BL20: 0 | BM20: 0 | BN20: 0 | BO20: 0 | BP20: 0 | BQ20: 0 | BR20: 0 | BS20: 0 | BT20: 0 | BU20: 0 | BV20: 0 | BW20: 0 | BX20: 0 | BY20: 0 | BZ20: 0 | CA20: 0 | CB20: 0 | CC20: 0 | CD20: 0 | CE20: 0 | CF20: 0 | CG20: 0 | CH20: 0 | CI20: 0 | CJ20: 0 | CK20: 0 | CL20: 0 | CM20: 0 | CN20: 0 | CO20: 0 | CP20: 0 | CQ20: 0 | CR20: 0 | CS20: 0 | CT20: 0 | CU20: 0 | CV20: 0 | CW20: 0 | CX20: 0 | CY20: 0 | CZ20: 0 | DA20: 0.311 | DB20: 314.813 | DC20: 161.525 | DD20: 195.471 | DE20: 201.015 | DF20: 198.726 | DG20: 416.176 | DH20: 374.873 | DI20: 243.784 | DJ20: 125.636 | DK20: 242.058 | DL20: 362.421 | DM20: 2082.991 | DN20: 1928.824 | DO20: 742 | DP20: 484.646 | DQ20: 882.971 | DR20: 670.686 | DS20: 814.1 | DT20: 1779.526 | DU20: 1522.376 | DV20: 1303.018 | DW20: 923.463 | DX20: 2002.62 | DY20: 2580.273 | DZ20: 2223.9 | EA20: 2171.967 | EB20: 733.354 | EC20: 1012.851 | ED20: 1035.191 | EE20: 1084.578 | EF20: 1447.992 | EG20: 2129.755 | EH20: 994.516 | EI20: 1495.018 | EJ20: 2229.195 | EK20: 3114.313 | EL20: 2458.338 | EM20: 2340.878 | EN20: 990.895 | EO20: 811.37 | EP20: 1301.668 | EQ20: 2270.14 | ER20: - | ES20: - | ET20: - | EU20: - | EV20: - | EW20: - | EX20: - | EY20: - | EZ20: - | FA20: - | FB20: -
B21: Eólica | C21: 17431.845 | D21: 18906.552 | E21: 22433.485 | F21: 28613.578 | G21: 35233.5 | H21: 25590.253 | I21: 56231.544 | J21: 38386.534 | K21: 22680.768 | L21: 19552.139 | M21: 15309.171 | N21: 25694.21 | O21: 17536 | P21: 22919 | Q21: 37045 | R21: 26057 | S21: 34949 | T21: 31706 | U21: 57951 | V21: 48557 | W21: 26273 | X21: 19181 | Y21: 16085 | Z21: 18581 | AA21: 12697 | AB21: 16352 | AC21: 39237 | AD21: 36025 | AE21: 31842 | AF21: 39889 | AG21: 59648 | AH21: 61491 | AI21: 17713 | AJ21: 33991 | AK21: 22016 | AL21: 25574 | AM21: 23706 | AN21: 17290 | AO21: 24349 | AP21: 46455 | AQ21: 32116 | AR21: 20734 | AS21: 55995 | AT21: 57105 | AU21: 22914 | AV21: 12762 | AW21: 24732 | AX21: 20549 | AY21: 11740 | AZ21: 14778 | BA21: 23015 | BB21: 32147 | BC21: 36251 | BD21: 38838 | BE21: 47304 | BF21: 42622 | BG21: 35769 | BH21: 14015 | BI21: 17956 | BJ21: 16928 | BK21: 11345 | BL21: 24277 | BM21: 22847 | BN21: 23944 | BO21: 19554 | BP21: 37648 | BQ21: 55422 | BR21: 51939 | BS21: 31495 | BT21: 25599 | BU21: 15790 | BV21: 34295 | BW21: 18963.88 | BX21: 33726.285 | BY21: 33681.697 | BZ21: 30021.198 | CA21: 26774.771 | CB21: 44057.214 | CC21: 57535.39 | CD21: 54601 | CE21: 12813.212 | CF21: 17087.318 | CG21: 16904.712 | CH21: 15601.112 | CI21: 24542.069 | CJ21: 28387.059 | CK21: 13294 | CL21: 27647.999 | CM21: 38088.171 | CN21: 48342 | CO21: 41479 | CP21: 42314 | CQ21: 24540 | CR21: 24190 | CS21: 27763 | CT21: 22147 | CU21: 29456 | CV21: 32606 | CW21: 45694 | CX21: 27506 | CY21: 42525 | CZ21: 35026 | DA21: 45220 | DB21: 59362 | DC21: 12482 | DD21: 15750 | DE21: 20599 | DF21: 23738 | DG21: 41442 | DH21: 43677 | DI21: 41792.052 | DJ21: 28967 | DK21: 40094 | DL21: 30389 | DM21: 59611 | DN21: 49740 | DO21: 17421 | DP21: 10614 | DQ21: 24303 | DR21: 8611 | DS21: 19204 | DT21: 40727 | DU21: 33663 | DV21: 25978 | DW21: 30431 | DX21: 44239 | DY21: 56792 | DZ21: 48605 | EA21: 46717 | EB21: 13315 | EC21: 17702 | ED21: 15713 | EE21: 15115 | EF21: 22686 | EG21: 36312 | EH21: 18605 | EI21: 25482 | EJ21: 40128 | EK21: 50389 | EL21: 47397 | EM21: 54584 | EN21: 21312 | EO21: 24032 | EP21: 39812 | EQ21: 61174.599 | ER21: - | ES21: - | ET21: - | EU21: - | EV21: - | EW21: - | EX21: - | EY21: - | EZ21: - | FA21: - | FB21: -
B22: Solar fotovoltaica | C22: 36.402 | D22: 46.196 | E22: 66.179 | F22: 67.328 | G22: 76.62 | H22: 77.053 | I22: 98.995 | J22: 430.708 | K22: 484.04 | L22: 533.362 | M22: 462.502 | N22: 536.165 | O22: 610 | P22: 833 | Q22: 1268 | R22: 1459 | S22: 1737 | T22: 1692 | U22: 2046 | V22: 2433 | W22: 2017 | X22: 2022 | Y22: 1635 | Z22: 1621 | AA22: 2022 | AB22: 2658 | AC22: 3713 | AD22: 4145 | AE22: 4312 | AF22: 4894 | AG22: 5548 | AH22: 5693 | AI22: 6152 | AJ22: 9825 | AK22: 7689 | AL22: 6849 | AM22: 8709 | AN22: 10847 | AO22: 12492 | AP22: 16156 | AQ22: 16219 | AR22: 16256 | AS22: 17530 | AT22: 17568 | AU22: 12555 | AV22: 13377 | AW22: 11497 | AX22: 9124 | AY22: 10698 | AZ22: 10306 | BA22: 16328 | BB22: 16499 | BC22: 19138 | BD22: 19607 | BE22: 22480 | BF22: 21526 | BG22: 17621 | BH22: 15830 | BI22: 12519 | BJ22: 12614 | BK22: 15178 | BL22: 16843 | BM22: 19656 | BN22: 19729 | BO22: 20773 | BP22: 23349 | BQ22: 23817 | BR22: 24739 | BS22: 20929 | BT22: 17684 | BU22: 14494 | BV22: 14948 | BW22: 15819 | BX22: 17853 | BY22: 23039 | BZ22: 20676 | CA22: 24978 | CB22: 25023 | CC22: 26449 | CD22: 26299 | CE22: 23158 | CF22: 19232 | CG22: 16071 | CH22: 17914 | CI22: 20253 | CJ22: 19458 | CK22: 23739 | CL22: 27152 | CM22: 27710 | CN22: 30875 | CO22: 30903 | CP22: 26948 | CQ22: 24098 | CR22: 22190 | CS22: 17740 | CT22: 15636 | CU22: 18995 | CV22: 20132 | CW22: 27162 | CX22: 25919 | CY22: 29372 | CZ22: 27594 | DA22: 27933 | DB22: 29920 | DC22: 21433 | DD22: 20634 | DE22: 16824 | DF22: 16373 | DG22: 18338.863 | DH22: 17768 | DI22: 25470.298 | DJ22: 25100 | DK22: 29874 | DL22: 27309 | DM22: 30356 | DN22: 26058 | DO22: 20796 | DP22: 17895 | DQ22: 18495 | DR22: 18094 | DS22: 19687 | DT22: 20003 | DU22: 24028 | DV22: 24143 | DW22: 25216 | DX22: 29415 | DY22: 29166 | DZ22: 27400 | EA22: 25684 | EB22: 20209 | EC22: 17007 | ED22: 15716 | EE22: 18014 | EF22: 18976 | EG22: 25344 | EH22: 25782 | EI22: 25210 | EJ22: 27570 | EK22: 29076 | EL22: 26878 | EM22: 22927 | EN22: 19715 | EO22: 16473 | EP22: 17486 | EQ22: 18395.063 | ER22: - | ES22: - | ET22: - | EU22: - | EV22: - | EW22: - | EX22: - | EY22: - | EZ22: - | FA22: - | FB22: -
B23: Térmica renovable/Otras renovables | C23: 8687.566 | D23: 11201.252 | E23: 21105.336 | F23: 20726.094 | G23: 19570.88 | H23: 20816.694 | I23: 21169.461 | J23: 19156.758 | K23: 13239.192 | L23: 22026.499 | M23: 17532.327 | N23: 22967.625 | O23: 21162 | P23: 19576 | Q23: 5693 | R23: 17196 | S23: 15807 | T23: 15288 | U23: 19273 | V23: 20695 | W23: 19120 | X23: 18295 | Y23: 18031 | Z23: 23147 | AA23: 22239 | AB23: 19665 | AC23: 20200 | AD23: 19685 | AE23: 21462 | AF23: 14780 | AG23: 144 | AH23: 21585 | AI23: 13957 | AJ23: 17447 | AK23: 22889 | AL23: 23166 | AM23: 23472 | AN23: 22220 | AO23: 12230 | AP23: 24755 | AQ23: 22920 | AR23: 23920 | AS23: 24575 | AT23: 24604 | AU23: 23900 | AV23: 22497 | AW23: 23578 | AX23: 24384 | AY23: 23902 | AZ23: 18935 | BA23: 16313 | BB23: 24282 | BC23: 25112 | BD23: 19550 | BE23: 10072 | BF23: 5987 | BG23: 5025 | BH23: 5016 | BI23: 3979 | BJ23: 2388 | BK23: 3274 | BL23: 5746 | BM23: 5969 | BN23: 5585 | BO23: 6959 | BP23: 1329 | BQ23: 735 | BR23: 722 | BS23: 702 | BT23: 703 | BU23: 749 | BV23: 675.363 | BW23: 612.11 | BX23: 489.723 | BY23: 585.198 | BZ23: 682.916 | CA23: 647.635 | CB23: 645.866 | CC23: 716.723 | CD23: 723.62 | CE23: 743.061 | CF23: 760.459 | CG23: 617.475 | CH23: 825.668 | CI23: 628.674 | CJ23: 697.577 | CK23: 800.201 | CL23: 747.981 | CM23: 798.7 | CN23: 697.581 | CO23: 798.744 | CP23: 711.541 | CQ23: 628.877 | CR23: 722.197 | CS23: 511 | CT23: 644 | CU23: 787 | CV23: 707 | CW23: 778 | CX23: 663 | CY23: 669 | CZ23: 643 | DA23: 797 | DB23: 820.722 | DC23: 629 | DD23: 747 | DE23: 835 | DF23: 731 | DG23: 378 | DH23: 350 | DI23: 448 | DJ23: 494 | DK23: 606 | DL23: 795.298 | DM23: 837.918 | DN23: 841 | DO23: 865 | DP23: 810 | DQ23: 840 | DR23: 788 | DS23: 862 | DT23: 735 | DU23: 824 | DV23: 817 | DW23: 884 | DX23: 679 | DY23: 761 | DZ23: 696 | EA23: 738 | EB23: 786 | EC23: 765 | ED23: 789 | EE23: 811 | EF23: 720 | EG23: 831 | EH23: 836 | EI23: 813 | EJ23: 823 | EK23: 831 | EL23: 682 | EM23: 802 | EN23: 831 | EO23: 803 | EP23: 782 | EQ23: 0 | ER23: - | ES23: - | ET23: - | EU23: - | EV23: - | EW23: - | EX23: - | EY23: - | EZ23: - | FA23: - | FB23: -
B24: Generación renovable | C24: 26155.813 | D24: 30154 | E24: 43605 | F24: 49407 | G24: 54881 | H24: 46484 | I24: 77500 | J24: 57974 | K24: 36404 | L24: 42112 | M24: 33304 | N24: 49198 | O24: 39308 | P24: 43328 | Q24: 44006 | R24: 44712 | S24: 52493 | T24: 48686 | U24: 79352 | V24: 71875 | W24: 47657 | X24: 39590 | Y24: 36029 | Z24: 43636 | AA24: 37245 | AB24: 38919 | AC24: 63390 | AD24: 59855 | AE24: 57801 | AF24: 59878 | AG24: 65645 | AH24: 88866 | AI24: 37822 | AJ24: 61263 | AK24: 52594 | AL24: 55589 | AM24: 55896 | AN24: 50521 | AO24: 49246 | AP24: 87416 | AQ24: 71255 | AR24: 60910 | AS24: 98100 | AT24: 99277 | AU24: 59369 | AV24: 48636 | AW24: 59807 | AX24: 54057 | AY24: 46340 | AZ24: 44019 | BA24: 55656 | BB24: 72928 | BC24: 80501 | BD24: 77995 | BE24: 79856 | BF24: 70135 | BG24: 58415 | BH24: 34861 | BI24: 34454 | BJ24: 31930 | BK24: 29797 | BL24: 46866 | BM24: 48474 | BN24: 49497 | BO24: 47451 | BP24: 62457 | BQ24: 80219 | BR24: 77579 | BS24: 53327 | BT24: 44224 | BU24: 31197 | BV24: 50029.771 | BW24: 35511.429 | BX24: 52069.083 | BY24: 57468.896 | BZ24: 51626.993 | CA24: 52619.251 | CB24: 69933.577 | CC24: 84763.848 | CD24: 81854.622 | CE24: 36935.973 | CF24: 37285.503 | CG24: 33633.26 | CH24: 34416.144 | CI24: 45646.345 | CJ24: 48747.159 | CK24: 37969.883 | CL24: 55684.97 | CM24: 66889.138 | CN24: 80200.969 | CO24: 73467.011 | CP24: 70259.915 | CQ24: 49559.215 | CR24: 47405.909 | CS24: 46307.163 | CT24: 38733 | CU24: 49543 | CV24: 53721 | CW24: 73935 | CX24: 54378 | CY24: 72866 | CZ24: 63546 | DA24: 74258.311 | DB24: 90727.556 | DC24: 35001.525 | DD24: 37598.471 | DE24: 38720.015 | DF24: 41317.726 | DG24: 60878.639 | DH24: 62439.873 | DI24: 68258.734 | DJ24: 54978.636 | DK24: 71111.058 | DL24: 59151.719 | DM24: 93191.909 | DN24: 78870.824 | DO24: 40120 | DP24: 30114.646 | DQ24: 44821.971 | DR24: 28472.686 | DS24: 40876.1 | DT24: 63526.526 | DU24: 60348.376 | DV24: 52540.018 | DW24: 57762.463 | DX24: 76636.62 | DY24: 89612.273 | DZ24: 79190.9 | EA24: 75592.967 | EB24: 35314.354 | EC24: 36746.851 | ED24: 33523.191 | EE24: 35288.578 | EF24: 44068.992 | EG24: 64881.755 | EH24: 46479.516 | EI24: 53271.018 | EJ24: 71021.195 | EK24: 83685.313 | EL24: 77703.338 | EM24: 80920.878 | EN24: 43142.895 | EO24: 42393.37 | EP24: 59693.668 | EQ24: 81839.802 | ER24: - | ES24: - | ET24: - | EU24: - | EV24: - | EW24: - | EX24: - | EY24: - | EZ24: - | FA24: - | FB24: -
B26: Generación renovable mensual Melilla (MWh) | C26: 2007-01-01 | D26: 2007-02-01 | E26: 2007-03-01 | F26: 2007-04-01 | G26: 2007-05-01 | H26: 2007-06-01 | I26: 2007-07-01 | J26: 2007-08-01 | K26: 2007-09-01 | L26: 2007-10-01 | M26: 2007-11-01 | N26: 2007-12-01 | O26: 2008-01-01 | P26: 2008-02-01 | Q26: 2008-03-01 | R26: 2008-04-01 | S26: 2008-05-01 | T26: 2008-06-01 | U26: 2008-07-01 | V26: 2008-08-01 | W26: 2008-09-01 | X26: 2008-10-01 | Y26: 2008-11-01 | Z26: 2008-12-01 | AA26: 2009-01-01 | AB26: 2009-02-01 | AC26: 2009-03-01 | AD26: 2009-04-01 | AE26: 2009-05-01 | AF26: 2009-06-01 | AG26: 2009-07-01 | AH26: 2009-08-01 | AI26: 2009-09-01 | AJ26: 2009-10-01 | AK26: 2009-11-01 | AL26: 2009-12-01 | AM26: 2010-01-01 | AN26: 2010-02-01 | AO26: 2010-03-01 | AP26: 2010-04-01 | AQ26: 2010-05-01 | AR26: 2010-06-01 | AS26: 2010-07-01 | AT26: 2010-08-01 | AU26: 2010-09-01 | AV26: 2010-10-01 | AW26: 2010-11-01 | AX26: 2010-12-01 | AY26: 2011-01-01 | AZ26: 2011-02-01 | BA26: 2011-03-01 | BB26: 2011-04-01 | BC26: 2011-05-01 | BD26: 2011-06-01 | BE26: 2011-07-01 | BF26: 2011-08-01 | BG26: 2011-09-01 | BH26: 2011-10-01 | BI26: 2011-11-01 | BJ26: 2011-12-01 | BK26: 2012-01-01 | BL26: 2012-02-01 | BM26: 2012-03-01 | BN26: 2012-04-01 | BO26: 2012-05-01 | BP26: 2012-06-01 | BQ26: 2012-07-01 | BR26: 2012-08-01 | BS26: 2012-09-01 | BT26: 2012-10-01 | BU26: 2012-11-01 | BV26: 2012-12-01 | BW26: 2013-01-01 | BX26: 2013-02-01 | BY26: 2013-03-01 | BZ26: 2013-04-01 | CA26: 2013-05-01 | CB26: 2013-06-01 | CC26: 2013-07-01 | CD26: 2013-08-01 | CE26: 2013-09-01 | CF26: 2013-10-01 | CG26: 2013-11-01 | CH26: 2013-12-01 | CI26: 2014-01-01 | CJ26: 2014-02-01 | CK26: 2014-03-01 | CL26: 2014-04-01 | CM26: 2014-05-01 | CN26: 2014-06-01 | CO26: 2014-07-01 | CP26: 2014-08-01 | CQ26: 2014-09-01 | CR26: 2014-10-01 | CS26: 2014-11-01 | CT26: 2014-12-01 | CU26: 2015-01-01 | CV26: 2015-02-01 | CW26: 2015-03-01 | CX26: 2015-04-01 | CY26: 2015-05-01 | CZ26: 2015-06-01 | DA26: 2015-07-01 | DB26: 2015-08-01 | DC26: 2015-09-01 | DD26: 2015-10-01 | DE26: 2015-11-01 | DF26: 2015-12-01 | DG26: 2016-01-01 | DH26: 2016-02-01 | DI26: 2016-03-01 | DJ26: 2016-04-01 | DK26: 2016-05-01 | DL26: 2016-06-01 | DM26: 2016-07-01 | DN26: 2016-08-01 | DO26: 2016-09-01 | DP26: 2016-10-01 | DQ26: 2016-11-01 | DR26: 2016-12-01 | DS26: 2017-01-01 | DT26: 2017-02-01 | DU26: 2017-03-01 | DV26: 2017-04-01 | DW26: 2017-05-01 | DX26: 2017-06-01 | DY26: 2017-07-01 | DZ26: 2017-08-01 | EA26: 2017-09-01 | EB26: 2017-10-01 | EC26: 2017-11-01 | ED26: 2017-12-01 | EE26: 2018-01-01 | EF26: 2018-02-01 | EG26: 2018-03-01 | EH26: 2018-04-01 | EI26: 2018-05-01 | EJ26: 2018-06-01 | EK26: 2018-07-01 | EL26: 2018-08-01 | EM26: 2018-09-01 | EN26: 2018-10-01 | EO26: 2018-11-01 | EP26: 2018-12-01
B27: Solar fotovoltaica | C27: 0 | D27: 0 | E27: 0 | F27: 0 | G27: 0 | H27: 0 | I27: 0 | J27: 0 | K27: 0 | L27: 0 | M27: 0 | N27: 0 | O27: 1 | P27: 0 | Q27: 0 | R27: 0 | S27: 0 | T27: 1 | U27: 1 | V27: 1 | W27: 1 | X27: 0 | Y27: 1 | Z27: 0 | AA27: 8 | AB27: 17 | AC27: 22 | AD27: 28 | AE27: 9 | AF27: 8 | AG27: 8 | AH27: 8 | AI27: 7 | AJ27: 6 | AK27: 0 | AL27: 1 | AM27: 1 | AN27: 5 | AO27: 6 | AP27: 7 | AQ27: 9 | AR27: 1 | AS27: 8 | AT27: 9 | AU27: 7 | AV27: 6 | AW27: 5 | AX27: 3 | AY27: 4 | AZ27: 7 | BA27: 7 | BB27: 7 | BC27: 8 | BD27: 8 | BE27: 7 | BF27: 6 | BG27: 5 | BH27: 5 | BI27: 4 | BJ27: 4 | BK27: 5 | BL27: 7 | BM27: 7 | BN27: 9 | BO27: 9 | BP27: 9 | BQ27: 9 | BR27: 8 | BS27: 7 | BT27: 6 | BU27: 4 | BV27: 4 | BW27: 5 | BX27: 5 | BY27: 7 | BZ27: 7 | CA27: 9 | CB27: 9 | CC27: 8 | CD27: 8 | CE27: 7 | CF27: 7 | CG27: 5 | CH27: 4 | CI27: 4 | CJ27: 6 | CK27: 8 | CL27: 9 | CM27: 9 | CN27: 9 | CO27: 9 | CP27: 9 | CQ27: 7 | CR27: 7 | CS27: 4 | CT27: 4 | CU27: 5 | CV27: 5 | CW27: 8 | CX27: 6 | CY27: 8 | CZ27: 8 | DA27: 9 | DB27: 7 | DC27: 7 | DD27: 6 | DE27: 5 | DF27: 4 | DG27: 4 | DH27: 6 | DI27: 8 | DJ27: 9 | DK27: 9 | DL27: 8 | DM27: 7 | DN27: 8 | DO27: 7 | DP27: 5 | DQ27: 4 | DR27: 3 | DS27: 4 | DT27: 4 | DU27: 6 | DV27: 7 | DW27: 8 | DX27: 8 | DY27: 8 | DZ27: 7 | EA27: 8 | EB27: 7 | EC27: 5 | ED27: 4 | EE27: 0 | EF27: - | EG27: - | EH27: - | EI27: - | EJ27: - | EK27: - | EL27: - | EM27: - | EN27: - | EO27: - | EP27: -
B28: Residuos renovables | C28: - | D28: - | E28: - | F28: - | G28: - | H28: - | I28: - | J28: - | K28: - | L28: - | M28: - | N28: - | O28: - | P28: - | Q28: - | R28: - | S28: - | T28: - | U28: - | V28: - | W28: - | X28: - | Y28: - | Z28: - | AA28: - | AB28: - | AC28: - | AD28: - | AE28: - | AF28: - | AG28: - | AH28: - | AI28: - | AJ28: - | AK28: - | AL28: - | AM28: - | AN28: - | AO28: - | AP28: - | AQ28: - | AR28: - | AS28: - | AT28: - | AU28: - | AV28: - | AW28: - | AX28: - | AY28: - | AZ28: - | BA28: - | BB28: - | BC28: - | BD28: - | BE28: - | BF28: - | BG28: - | BH28: - | BI28: - | BJ28: - | BK28: - | BL28: - | BM28: - | BN28: - | BO28: - | BP28: - | BQ28: - | BR28: - | BS28: - | BT28: - | BU28: - | BV28: - | BW28: - | BX28: - | BY28: - | BZ28: - | CA28: - | CB28: - | CC28: - | CD28: - | CE28: - | CF28: - | CG28: - | CH28: - | CI28: - | CJ28: - | CK28: - | CL28: - | CM28: - | CN28: - | CO28: - | CP28: - | CQ28: - | CR28: - | CS28: - | CT28: - | CU28: 406 | CV28: 384.5 | CW28: 399.5 | CX28: 384.5 | CY28: 399.5 | CZ28: 362.5 | DA28: 306 | DB28: 330.5 | DC28: 349.5 | DD28: 424 | DE28: 110.5 | DF28: 438.5 | DG28: 487 | DH28: 413 | DI28: 388 | DJ28: 450 | DK28: 371.5 | DL28: 406.5 | DM28: 395 | DN28: 402.5 | DO28: 414.5 | DP28: 504.5 | DQ28: 111 | DR28: 506.5 | DS28: 452 | DT28: 426 | DU28: 438 | DV28: 421 | DW28: 450.5 | DX28: 434.5 | DY28: 425.5 | DZ28: 341 | EA28: 449 | EB28: 497.5 | EC28: 87.5 | ED28: 555 | EE28: 371.7815 | EF28: - | EG28: - | EH28: - | EI28: - | EJ28: - | EK28: - | EL28: - | EM28: - | EN28: - | EO28: - | EP28: -
B29: Generación renovable | C29: 0 | D29: 0 | E29: 0 | F29: 0 | G29: 0 | H29: 0 | I29: 0 | J29: 0 | K29: 0 | L29: 0 | M29: 0 | N29: 0 | O29: 1 | P29: 0 | Q29: 0 | R29: 0 | S29: 0 | T29: 1 | U29: 1 | V29: 1 | W29: 1 | X29: 0 | Y29: 1 | Z29: 0 | AA29: 8 | AB29: 17 | AC29: 22 | AD29: 28 | AE29: 9 | AF29: 8 | AG29: 8 | AH29: 8 | AI29: 7 | AJ29: 6 | AK29: 0 | AL29: 1 | AM29: 1 | AN29: 5 | AO29: 6 | AP29: 7 | AQ29: 9 | AR29: 1 | AS29: 8 | AT29: 9 | AU29: 7 | AV29: 6 | AW29: 5 | AX29: 3 | AY29: 4 | AZ29: 7 | BA29: 7 | BB29: 7 | BC29: 8 | BD29: 8 | BE29: 7 | BF29: 6 | BG29: 5 | BH29: 5 | BI29: 4 | BJ29: 4 | BK29: 5 | BL29: 7 | BM29: 7 | BN29: 9 | BO29: 9 | BP29: 9 | BQ29: 9 | BR29: 8 | BS29: 7 | BT29: 6 | BU29: 4 | BV29: 4 | BW29: 5 | BX29: 5 | BY29: 7 | BZ29: 7 | CA29: 9 | CB29: 9 | CC29: 8 | CD29: 8 | CE29: 7 | CF29: 7 | CG29: 5 | CH29: 4 | CI29: 4 | CJ29: 6 | CK29: 8 | CL29: 9 | CM29: 9 | CN29: 9 | CO29: 9 | CP29: 9 | CQ29: 7 | CR29: 7 | CS29: 4 | CT29: 4 | CU29: 411 | CV29: 389.5 | CW29: 407.5 | CX29: 390.5 | CY29: 407.5 | CZ29: 370.5 | DA29: 315 | DB29: 337.5 | DC29: 356.5 | DD29: 430 | DE29: 115.5 | DF29: 442.5 | DG29: 491 | DH29: 419 | DI29: 396 | DJ29: 459 | DK29: 380.5 | DL29: 414.5 | DM29: 402 | DN29: 410.5 | DO29: 421.5 | DP29: 509.5 | DQ29: 115 | DR29: 509.5 | DS29: 456 | DT29: 430 | DU29: 444 | DV29: 428 | DW29: 458.5 | DX29: 442.5 | DY29: 433.5 | DZ29: 348 | EA29: 457 | EB29: 504.5 | EC29: 92.5 | ED29: 559 | EE29: 371.7815 | EF29: - | EG29: - | EH29: - | EI29: - | EJ29: - | EK29: - | EL29: - | EM29: - | EN29: - | EO29: - | EP29: -
B31: Generación renovable mensual nacional (GWh) | C31: 2007-01-01 | D31: 2007-02-01 | E31: 2007-03-01 | F31: 2007-04-01 | G31: 2007-05-01 | H31: 2007-06-01 | I31: 2007-07-01 | J31: 2007-08-01 | K31: 2007-09-01 | L31: 2007-10-01 | M31: 2007-11-01 | N31: 2007-12-01 | O31: 2008-01-01 | P31: 2008-02-01 | Q31: 2008-03-01 | R31: 2008-04-01 | S31: 2008-05-01 | T31: 2008-06-01 | U31: 2008-07-01 | V31: 2008-08-01 | W31: 2008-09-01 | X31: 2008-10-01 | Y31: 2008-11-01 | Z31: 2008-12-01 | AA31: 2009-01-01 | AB31: 2009-02-01 | AC31: 2009-03-01 | AD31: 2009-04-01 | AE31: 2009-05-01 | AF31: 2009-06-01 | AG31: 2009-07-01 | AH31: 2009-08-01 | AI31: 2009-09-01 | AJ31: 2009-10-01 | AK31: 2009-11-01 | AL31: 2009-12-01 | AM31: 2010-01-01 | AN31: 2010-02-01 | AO31: 2010-03-01 | AP31: 2010-04-01 | AQ31: 2010-05-01 | AR31: 2010-06-01 | AS31: 2010-07-01 | AT31: 2010-08-01 | AU31: 2010-09-01 | AV31: 2010-10-01 | AW31: 2010-11-01 | AX31: 2010-12-01 | AY31: 2011-01-01 | AZ31: 2011-02-01 | BA31: 2011-03-01 | BB31: 2011-04-01 | BC31: 2011-05-01 | BD31: 2011-06-01 | BE31: 2011-07-01 | BF31: 2011-08-01 | BG31: 2011-09-01 | BH31: 2011-10-01 | BI31: 2011-11-01 | BJ31: 2011-12-01 | BK31: 2012-01-01 | BL31: 2012-02-01 | BM31: 2012-03-01 | BN31: 2012-04-01 | BO31: 2012-05-01 | BP31: 2012-06-01 | BQ31: 2012-07-01 | BR31: 2012-08-01 | BS31: 2012-09-01 | BT31: 2012-10-01 | BU31: 2012-11-01 | BV31: 2012-12-01 | BW31: 2013-01-01 | BX31: 2013-02-01 | BY31: 2013-03-01 | BZ31: 2013-04-01 | CA31: 2013-05-01 | CB31: 2013-06-01 | CC31: 2013-07-01 | CD31: 2013-08-01 | CE31: 2013-09-01 | CF31: 2013-10-01 | CG31: 2013-11-01 | CH31: 2013-12-01 | CI31: 2014-01-01 | CJ31: 2014-02-01 | CK31: 2014-03-01 | CL31: 2014-04-01 | CM31: 2014-05-01 | CN31: 2014-06-01 | CO31: 2014-07-01 | CP31: 2014-08-01 | CQ31: 2014-09-01 | CR31: 2014-10-01 | CS31: 2014-11-01 | CT31: 2014-12-01 | CU31: 2015-01-01 | CV31: 2015-02-01 | CW31: 2015-03-01 | CX31: 2015-04-01 | CY31: 2015-05-01 | CZ31: 2015-06-01 | DA31: 2015-07-01 | DB31: 2015-08-01 | DC31: 2015-09-01 | DD31: 2015-10-01 | DE31: 2015-11-01 | DF31: 2015-12-01 | DG31: 2016-01-01 | DH31: 2016-02-01 | DI31: 2016-03-01 | DJ31: 2016-04-01 | DK31: 2016-05-01 | DL31: 2016-06-01 | DM31: 2016-07-01 | DN31: 2016-08-01 | DO31: 2016-09-01 | DP31: 2016-10-01 | DQ31: 2016-11-01 | DR31: 2016-12-01 | DS31: 2017-01-01 | DT31: 2017-02-01 | DU31: 2017-03-01 | DV31: 2017-04-01 | DW31: 2017-05-01 | DX31: 2017-06-01 | DY31: 2017-07-01 | DZ31: 2017-08-01 | EA31: 2017-09-01 | EB31: 2017-10-01 | EC31: 2017-11-01 | ED31: 2017-12-01 | EE31: 2018-01-01 | EF31: 2018-02-01 | EG31: 2018-03-01 | EH31: 2018-04-01 | EI31: 2018-05-01 | EJ31: 2018-06-01 | EK31: 2018-07-01 | EL31: 2018-08-01 | EM31: 2018-09-01 | EN31: 2018-10-01 | EO31: 2018-11-01 | EP31: 2018-12-01
B32: Hidráulica | C32: 2265.5368 | D32: 3018.5307 | E32: 3928.3884 | F32: 2867.4611 | G32: 2837.4746 | H32: 2309.4112 | I32: 2454.7463 | J32: 1770.9716 | K32: 1376.3025 | L32: 1712.5293 | M32: 1342.2435 | N32: 1221.8831 | O32: 1393.4648 | P32: 957.8955 | Q32: 1076.0352 | R32: 2740.0094 | S32: 3370.3449 | T32: 3175.8065 | U32: 2182.1716 | V32: 1539.6986 | W32: 1313.4238 | X32: 1095.1625 | Y32: 1592.7958 | Z32: 2498.646 | AA32: 2274.4931 | AB32: 3482.1975 | AC32: 2794.3976 | AD32: 2205.6507 | AE32: 2585.8144 | AF32: 2128.0412 | AG32: 1758.4124 | AH32: 1449.8248 | AI32: 993.2099 | AJ32: 1258.9399 | AK32: 2027.0113 | AL32: 3228.3809 | AM32: 5178.646113 | AN32: 4067.303562 | AO32: 5816.538044 | AP32: 4720.052131 | AQ32: 3862.882048 | AR32: 3555.036153 | AS32: 2896.772407 | AT32: 2036.829814 | AU32: 1530.457344 | AV32: 1601.502029 | AW32: 2611.518068 | AX32: 3956.236477 | AY32: 5116.265963 | AZ32: 2995.764908 | BA32: 3835.23871 | BB32: 3536.295634 | BC32: 2793.522059 | BD32: 2062.253346 | BE32: 1660.098964 | BF32: 1531.727155 | BG32: 1223.390394 | BH32: 1247.726048 | BI32: 2152.127857 | BJ32: 2183.949278 | BK32: 1627.774921 | BL32: 1224.61119 | BM32: 1311.90544 | BN32: 1742.831679 | BO32: 2535.522609 | BP32: 2103.479249 | BQ32: 1671.548185 | BR32: 1334.904454 | BS32: 1035.702869 | BT32: 1388.777205 | BU32: 1985.818378 | BV32: 2661.343487 | BW32: 3013.829412 | BX32: 3551.725205 | BY32: 4621.048217 | BZ32: 5389.124722 | CA32: 3812.017321 | CB32: 3201.689942 | CC32: 2719.45655 | CD32: 2142.831948 | CE32: 1827.143809 | CF32: 1865.333244 | CG32: 2801.633556 | CH32: 2443.872945 | CI32: 4259.555318 | CJ32: 5759.658908 | CK32: 5289.579218 | CL32: 4947.821114 | CM32: 2820.452887 | CN32: 2482.40624 | CO32: 2351.334497 | CP32: 2041.123355 | CQ32: 1798.307652 | CR32: 1634.147453 | CS32: 2450.492679 | CT32: 3280.998208 | CU32: 2567.191879 | CV32: 3559.704092 | CW32: 3844.510684 | CX32: 2655.820439 | CY32: 2936.198349 | CZ32: 2486.26015 | DA32: 2054.940694 | DB32: 1635.281237 | DC32: 1601.96408 | DD32: 1646.890403 | DE32: 1887.992242 | DF32: 1439.095957 | DG32: 3440.893285 | DH32: 3971.988708 | DI32: 4363.162438 | DJ32: 5231.608009 | DK32: 5085.427637 | DL32: 2938.361273 | DM32: 2265.129705 | DN32: 2041.008622 | DO32: 1654.087303 | DP32: 1633.133552 | DQ32: 1494.023942 | DR32: 1844.638434 | DS32: 2043.425553 | DT32: 1953.222452 | DU32: 2697.100923 | DV32: 1714.806743 | DW32: 1923.638508 | DX32: 1638.098685 | DY32: 1193.323808 | DZ32: 1085.564119 | EA32: 1187.79251 | EB32: 828.6169254 | EC32: 842.6494915 | ED32: 1254.167427 | EE32: 2152.871 | EF32: - | EG32: - | EH32: - | EI32: - | EJ32: - | EK32: - | EL32: - | EM32: - | EN32: - | EO32: - | EP32: -
B33: Hidroeólica | C33: - | D33: - | E33: - | F33: - | G33: - | H33: - | I33: - | J33: - | K33: - | L33: - | M33: - | N33: - | O33: - | P33: - | Q33: - | R33: - | S33: - | T33: - | U33: - | V33: - | W33: - | X33: - | Y33: - | Z33: - | AA33: - | AB33: - | AC33: - | AD33: - | AE33: - | AF33: - | AG33: - | AH33: - | AI33: - | AJ33: - | AK33: - | AL33: - | AM33: - | AN33: - | AO33: - | AP33: - | AQ33: - | AR33: - | AS33: - | AT33: - | AU33: - | AV33: - | AW33: - | AX33: - | AY33: - | AZ33: - | BA33: - | BB33: - | BC33: - | BD33: - | BE33: - | BF33: - | BG33: - | BH33: - | BI33: - | BJ33: - | BK33: - | BL33: - | BM33: - | BN33: - | BO33: - | BP33: - | BQ33: - | BR33: - | BS33: - | BT33: - | BU33: - | BV33: - | BW33: - | BX33: - | BY33: - | BZ33: - | CA33: - | CB33: - | CC33: - | CD33: - | CE33: - | CF33: - | CG33: - | CH33: - | CI33: - | CJ33: - | CK33: - | CL33: - | CM33: - | CN33: - | CO33: - | CP33: 0.314813 | CQ33: 0.161525 | CR33: 0.195471 | CS33: 0.201015 | CT33: 0.198726 | CU33: 0.416176 | CV33: 0.374873 | CW33: 0.243784 | CX33: 0.125636 | CY33: 0.242058 | CZ33: 0.362421 | DA33: 2.082991 | DB33: 1.928824 | DC33: 0.742 | DD33: 0.484646 | DE33: 0.882971 | DF33: 0.670686 | DG33: 0.8141 | DH33: 1.779526 | DI33: 1.522376 | DJ33: 1.303018 | DK33: 0.923463 | DL33: 2.00262 | DM33: 2.580273 | DN33: 2.2239 | DO33: 2.171967 | DP33: 0.733354 | DQ33: 1.012851 | DR33: 1.035191 | DS33: 1.084578 | DT33: 1.447992 | DU33: 2.129755 | DV33: 0.994516 | DW33: 1.495018 | DX33: 2.229195 | DY33: 3.114313 | DZ33: 2.458338 | EA33: 2.340878 | EB33: 0.990895 | EC33: 0.81137 | ED33: 1.301668 | EE33: 2.27014 | EF33: - | EG33: - | EH33: - | EI33: - | EJ33: - | EK33: - | EL33: - | EM33: - | EN33: - | EO33: - | EP33: -
B34: Eólica | C34: 2167.745 | D34: 2895.318 | E34: 3123.877 | F34: 1382.619 | G34: 2641.214 | H34: 1818.328 | I34: 1946.918 | J34: 2468.82 | K34: 2055.448 | L34: 1927.347 | M34: 2769.181 | N34: 2414.836 | O34: 2664.58 | P34: 2035.72 | Q34: 4132.362 | R34: 3389.452 | S34: 1769.215 | T34: 2125.688 | U34: 2184.157 | V34: 2034.342 | W34: 2148.06 | X34: 2516.474 | Y34: 3485.324 | Z34: 3674.448 | AA34: 3527.977 | AB34: 3244.298 | AC34: 3125.394 | AD34: 3106.595 | AE34: 2730.597 | AF34: 2353.512 | AG34: 2482.25 | AH34: 2293.089 | AI34: 2489.991 | AJ34: 3138.623 | AK34: 4817.9 | AL34: 4942.601 | AM34: 4304.431 | AN34: 4637.902 | AO34: 4570.152 | AP34: 2667.343 | AQ34: 3655.897 | AR34: 2615.31 | AS34: 2845.759 | AT34: 2937.761 | AU34: 2337.395 | AV34: 3967.323 | AW34: 4366.544 | AX34: 4639.513 | AY34: 4030.467 | AZ34: 4053.161 | BA34: 4714.464 | BB34: 3423.906 | BC34: 3185.611 | BD34: 2975.204 | BE34: 3310.559 | BF34: 2781.78 | BG34: 2354.701 | BH34: 3175.691 | BI34: 3836.226 | BJ34: 4623.647 | BK34: 3664.95788 | BL34: 5049.483285 | BM34: 3839.792697 | BN34: 5336.981198 | BO34: 3735.030771 | BP34: 3473.616214 | BQ34: 3039.87839 | BR34: 3181.757 | BS34: 3950.891212 | BT34: 3147.332318 | BU34: 4622.286712 | BV34: 5466.330112 | BW34: 6316.803069 | BX34: 5370.057059 | BY34: 5763.164 | BZ34: 4424.981999 | CA34: 3970.877171 | CB34: 3875.785 | CC34: 2885.903 | CD34: 3453.544 | CE34: 3239.162 | CF34: 3988.547 | CG34: 6458.349 | CH34: 4966.073 | CI34: 6569.528 | CJ34: 5917.526 | CK34: 5096.774 | CL34: 3978.165 | CM34: 4177.875 | CN34: 3310.967 | CO34: 3637.176 | CP34: 2916.505 | CQ34: 2145.332 | CR34: 3398.893 | CS34: 5093.132 | CT34: 4788.82 | CU34: 4954.502 | CV34: 5992.547 | CW34: 4907.496052 | CX34: 3933.91988 | CY34: 4841.183 | CZ34: 2903.93 | DA34: 3113.294 | DB34: 3287.344 | DC34: 3020.625 | DD34: 3898.41889 | DE34: 3724.59825 | DF34: 3537.27 | DG34: 5624.578 | DH34: 6109.531 | DI34: 5443.974 | DJ34: 4441.29625 | DK34: 3933.103 | DL34: 3271.335 | DM34: 3521.9422 | DN34: 3652.946 | DO34: 2713.828 | DP34: 2389.61919 | DQ34: 3906.854 | DR34: 2687.664 | DS34: 4812.549 | DT34: 4928.508 | DU34: 4724.364 | DV34: 4196.17 | DW34: 3465.942 | DX34: 3189.531 | DY34: 3387.344 | DZ34: 3343.845 | EA34: 2872.86 | EB34: 3207.679 | EC34: 3979.291 | ED34: 5787.489 | EE34: 5347.581532 | EF34: - | EG34: - | EH34: - | EI34: - | EJ34: - | EK34: - | EL34: - | EM34: - | EN34: - | EO34: - | EP34: -
B35: Solar fotovoltaica | C35: 10.391 | D35: 12.96 | E35: 21.984 | F35: 26.106 | G35: 36.128 | H35: 40.742 | I35: 51.927 | J35: 56.504 | K35: 60.428 | L35: 57.696 | M35: 54.376 | N35: 54.66 | O35: 59.578 | P35: 73.401 | Q35: 108.562 | R35: 131.044 | S35: 137.021 | T35: 196.409 | U35: 240.442 | V35: 298.525 | W35: 328.085 | X35: 334.328 | Y35: 335.402 | Z35: 255.159 | AA35: 261.258 | AB35: 396.228 | AC35: 528.732 | AD35: 569.738 | AE35: 672.347 | AF35: 643.832 | AG35: 717.298 | AH35: 663.41 | AI35: 511.531 | AJ35: 502.206 | AK35: 361.993 | AL35: 243.817 | AM35: 263.119 | AN35: 305.071 | AO35: 481.509 | AP35: 590.407 | AQ35: 711.442 | AR35: 685.331 | AS35: 785.815 | AT35: 723.07 | AU35: 631.376 | AV35: 548.484 | AW35: 382.176 | AX35: 314.972 | AY35: 356.508 | AZ35: 504.475 | BA35: 536.094 | BB35: 661.118 | BC35: 747.813 | BD35: 810.579 | BE35: 855.845 | BF35: 802.648 | BG35: 732.97 | BH35: 628.058 | BI35: 363.852 | BJ35: 425.16 | BK35: 504.687 | BL35: 660.33 | BM35: 770.143 | BN35: 658.519 | BO35: 863.505 | BP35: 875.875 | BQ35: 941.618 | BR35: 865.181 | BS35: 692.372 | BT35: 595.358 | BU35: 372.473 | BV35: 402.029 | BW35: 446.284 | BX35: 527.674 | BY35: 566.696 | BZ35: 763.804 | CA35: 872.918 | CB35: 930.953 | CC35: 974.764 | CD35: 896.609 | CE35: 759.635 | CF35: 634.768 | CG35: 513.575 | CH35: 439.239 | CI35: 377.518 | CJ35: 434.384 | CK35: 735.898 | CL35: 791.913 | CM35: 924.375 | CN35: 903.697 | CO35: 951.484 | CP35: 913.992 | CQ35: 686.956 | CR35: 647.953 | CS35: 385.426 | CT35: 453.977 | CU35: 518.442863 | CV35: 494.229 | CW35: 713.271298 | CX35: 755.91261 | CY35: 924.103 | CZ35: 889.255 | DA35: 933.158 | DB35: 831.902 | DC35: 722.21187 | DD35: 537.135 | DE35: 529.703 | DF35: 393.752 | DG35: 364.464 | DH35: 480.094 | DI35: 709.2983 | DJ35: 721.4905 | DK35: 807.028 | DL35: 924.067 | DM35: 918.536 | DN35: 895.854 | DO35: 766.09 | DP35: 584.449 | DQ35: 426.517 | DR35: 379.711 | DS35: 476.115 | DT35: 445.323 | DU35: 716.974 | DV35: 836.047 | DW35: 871.655 | DX35: 880.059 | DY35: 913.561 | DZ35: 817.436 | EA35: 774.413 | EB35: 676.046 | EC35: 536.575 | ED35: 429.628 | EE35: 434.381063 | EF35: - | EG35: - | EH35: - | EI35: - | EJ35: - | EK35: - | EL35: - | EM35: - | EN35: - | EO35: - | EP35: -
B36: Solar térmica | C36: 0 | D36: 0 | E36: 0.431 | F36: 0.342 | G36: 0.558 | H36: 0.883 | I36: 1.256 | J36: 1.116 | K36: 0.639 | L36: 1.214 | M36: 0.997 | N36: 0.191 | O36: 1.084 | P36: 0.797 | Q36: 1.461 | R36: 0.958 | S36: 0.942 | T36: 1.963 | U36: 2.038 | V36: 1.98 | W36: 0.859 | X36: 0.866 | Y36: 1.27 | Z36: 1.16 | AA36: 0.69 | AB36: 1.236 | AC36: 2.323 | AD36: 7.204 | AE36: 7.658 | AF36: 6.752 | AG36: 12.414 | AH36: 23.868 | AI36: 17.539 | AJ36: 23.446 | AK36: 16.183 | AL36: 10.51 | AM36: 13.152 | AN36: 11.682 | AO36: 23.732 | AP36: 36.92 | AQ36: 69.084 | AR36: 72.532 | AS36: 104.59 | AT36: 121.9 | AU36: 100.917 | AV36: 71.745 | AW36: 31.619 | AX36: 33.747 | AY36: 34.25 | AZ36: 88.657 | BA36: 98.457 | BB36: 137.833 | BC36: 154.073 | BD36: 232.484 | BE36: 284.208 | BF36: 235.329 | BG36: 228.558 | BH36: 172.912 | BI36: 80.437 | BJ36: 85.159 | BK36: 117.342 | BL36: 200.342 | BM36: 235.113 | BN36: 177.777 | BO36: 348.382 | BP36: 414.749 | BQ36: 541.317 | BR36: 485.127 | BS36: 368.643 | BT36: 285.795 | BU36: 133.962 | BV36: 135.585 | BW36: 113.494 | BX36: 204.009 | BY36: 125.37 | BZ36: 300.894 | CA36: 499.268 | CB36: 647.33 | CC36: 758.523 | CD36: 661.856 | CE36: 478.955 | CF36: 294.242 | CG36: 199.224 | CH36: 158.362 | CI36: 79.801 | CJ36: 103.265 | CK36: 385.175 | CL36: 435.527 | CM36: 729.936 | CN36: 687.288 | CO36: 811.153 | CP36: 833.178 | CQ36: 389.596 | CR36: 289.337 | CS36: 90.187 | CT36: 124.472 | CU36: 176.951 | CV36: 190.925 | CW36: 415.829 | CX36: 393.16 | CY36: 694.839 | CZ36: 734.054 | DA36: 888.918 | DB36: 607.623 | DC36: 483.25 | DD36: 188.169 | DE36: 226.818 | DF36: 84.699 | DG36: 59.914 | DH36: 133.01 | DI36: 387.861 | DJ36: 408.323 | DK36: 498.795 | DL36: 813.991 | DM36: 825.325 | DN36: 805.819 | DO36: 595.627 | DP36: 284.703 | DQ36: 139.7 | DR36: 118.136 | DS36: 149.212 | DT36: 88.741 | DU36: 340.845 | DV36: 535.255 | DW36: 607.898 | DX36: 761.902 | DY36: 812.88 | DZ36: 692.435 | EA36: 608.14 | EB36: 398.793 | EC36: 220.652 | ED36: 131.196 | EE36: 130.0769 | EF36: - | EG36: - | EH36: - | EI36: - | EJ36: - | EK36: - | EL36: - | EM36: - | EN36: - | EO36: - | EP36: -
B37: Térmica renovable/Otras renovables | C37: 216.579 | D37: 190.444 | E37: 202.655 | F37: 201.314 | G37: 212.921 | H37: 208.535 | I37: 222.325 | J37: 223.344 | K37: 210.393 | L37: 242.724 | M37: 222.188 | N37: 235.546 | O37: 240.543 | P37: 235.363 | Q37: 243.9 | R37: 241.168 | S37: 240.349 | T37: 235.231 | U37: 223.648 | V37: 239.895 | W37: 225.512 | X37: 247.172 | Y37: 248.545 | Z37: 247.382 | AA37: 267.158 | AB37: 253.473 | AC37: 264.576 | AD37: 300.052 | AE37: 272.998 | AF37: 253.046 | AG37: 260.849 | AH37: 260.463 | AI37: 287.976 | AJ37: 347.836 | AK37: 272.588 | AL37: 276.327 | AM37: 274.842 | AN37: 245.359 | AO37: 262.311 | AP37: 277.043 | AQ37: 300.037 | AR37: 288.511 | AS37: 278.102 | AT37: 284.791 | AU37: 267.962 | AV37: 284.303 | AW37: 273.1 | AX37: 295.999 | AY37: 360.325 | AZ37: 334.407 | BA37: 355.246 | BB37: 356.64 | BC37: 335.763 | BD37: 336.974 | BE37: 358.635 | BF37: 356.021 | BG37: 375.802 | BH37: 383.843 | BI37: 376.087 | BJ37: 388.246363 | BK37: 394.35711 | BL37: 373.432723 | BM37: 398.843198 | BN37: 372.661916 | BO37: 361.524635 | BP37: 406.766866 | BQ37: 422.106723 | BR37: 401.27762 | BS37: 373.846061 | BT37: 413.891459 | BU37: 401.555475 | BV37: 434.504668 | BW37: 436.522674 | BX37: 415.741577 | BY37: 453.799201 | BZ37: 422.255981 | CA37: 438.8117 | CB37: 393.223581 | CC37: 432.786744 | CD37: 418.179541 | CE37: 398.674877 | CF37: 405.476197 | CG37: 414.208 | CH37: 445.016 | CI37: 424.456 | CJ37: 332.233 | CK37: 366.407 | CL37: 339.558 | CM37: 410.952 | CN37: 407.037 | CO37: 412.22 | CP37: 446.011722 | CQ37: 422.947 | CR37: 388.494 | CS37: 373.562 | CT37: 404.851 | CU37: 240.00929 | CV37: 206.32529 | CW37: 234.656 | CX37: 180.423 | CY37: 226.981 | CZ37: 277.270298 | DA37: 300.352918 | DB37: 312.372 | DC37: 302.413 | DD37: 311.08697 | DE37: 304.674 | DF37: 287.413 | DG37: 269.973 | DH37: 261.56792 | DI37: 255.63014 | DJ37: 209.9954 | DK37: 277.222 | DL37: 287.56 | DM37: 311.08 | DN37: 326.72672 | DO37: 307.662 | DP37: 306.35834 | DQ37: 304.599 | DR37: 306.185 | DS37: 327.216 | DT37: 289.72 | DU37: 269.561 | DV37: 232.803 | DW37: 298.786 | DX37: 302.456 | DY37: 333.503 | DZ37: 316.867 | EA37: 310.011 | EB37: 310.945 | EC37: 307.709 | ED37: 313.241 | EE37: 302.69605 | EF37: - | EG37: - | EH37: - | EI37: - | EJ37: - | EK37: - | EL37: - | EM37: - | EN37: - | EO37: - | EP37: -
B38: Residuos renovables | C38: - | D38: - | E38: - | F38: - | G38: - | H38: - | I38: - | J38: - | K38: - | L38: - | M38: - | N38: - | O38: - | P38: - | Q38: - | R38: - | S38: - | T38: - | U38: - | V38: - | W38: - | X38: - | Y38: - | Z38: - | AA38: - | AB38: - | AC38: - | AD38: - | AE38: - | AF38: - | AG38: - | AH38: - | AI38: - | AJ38: - | AK38: - | AL38: - | AM38: - | AN38: - | AO38: - | AP38: - | AQ38: - | AR38: - | AS38: - | AT38: - | AU38: - | AV38: - | AW38: - | AX38: - | AY38: - | AZ38: - | BA38: - | BB38: - | BC38: - | BD38: - | BE38: - | BF38: - | BG38: - | BH38: - | BI38: - | BJ38: - | BK38: - | BL38: - | BM38: - | BN38: - | BO38: - | BP38: - | BQ38: - | BR38: - | BS38: - | BT38: - | BU38: - | BV38: - | BW38: - | BX38: - | BY38: - | BZ38: - | CA38: - | CB38: - | CC38: - | CD38: - | CE38: - | CF38: - | CG38: - | CH38: - | CI38: - | CJ38: - | CK38: - | CL38: - | CM38: - | CN38: - | CO38: - | CP38: - | CQ38: - | CR38: - | CS38: - | CT38: - | CU38: 64.152 | CV38: 59.5165 | CW38: 72.0075 | CX38: 47.4995 | CY38: 64.893 | CZ38: 73.0375 | DA38: 73.1605 | DB38: 70.309 | DC38: 70.194 | DD38: 75.9515 | DE38: 74.4855 | DF38: 72.842 | DG38: 66.3515 | DH38: 53.485 | DI38: 66.5295 | DJ38: 39.2625 | DK38: 39.16 | DL38: 69.1395 | DM38: 75.308 | DN38: 73.403 | DO38: 75.08 | DP38: 74.217 | DQ38: 74.1215 | DR38: 79.3395 | DS38: 72.7335 | DT38: 63.647 | DU38: 70.867 | DV38: 61.6825 | DW38: 45.9225 | DX38: 81.4675 | DY38: 83.371 | DZ38: 80.3675 | EA38: 77.905 | EB38: 80.61 | EC38: 77.924 | ED38: 80.509 | EE38: 76.4180315 | EF38: - | EG38: - | EH38: - | EI38: - | EJ38: - | EK38: - | EL38: - | EM38: - | EN38: - | EO38: - | EP38: -
B39: Generación renovable | C39: 4660.2518 | D39: 6117.2527 | E39: 7277.3354 | F39: 4477.8421 | G39: 5728.2956 | H39: 4377.8992 | I39: 4677.1723 | J39: 4520.7556 | K39: 3703.2105 | L39: 3941.5103 | M39: 4388.9855 | N39: 3927.1161 | O39: 4359.2498 | P39: 3303.1765 | Q39: 5562.3202 | R39: 6502.6314 | S39: 5517.8719 | T39: 5735.0975 | U39: 4832.4566 | V39: 4114.4406 | W39: 4015.9398 | X39: 4194.0025 | Y39: 5663.3368 | Z39: 6676.795 | AA39: 6331.5761 | AB39: 7377.4325 | AC39: 6715.4226 | AD39: 6189.2397 | AE39: 6269.4144 | AF39: 5385.1832 | AG39: 5231.2234 | AH39: 4690.6548 | AI39: 4300.2469 | AJ39: 5271.0509 | AK39: 7495.6753 | AL39: 8701.6359 | AM39: 10034.19011 | AN39: 9267.317562 | AO39: 11154.24204 | AP39: 8291.765131 | AQ39: 8599.342048 | AR39: 7216.720153 | AS39: 6911.038407 | AT39: 6104.351813 | AU39: 4868.107344 | AV39: 6473.357029 | AW39: 7664.957068 | AX39: 9240.467477 | AY39: 9897.815963 | AZ39: 7976.464908 | BA39: 9539.49971 | BB39: 8115.792634 | BC39: 7216.782059 | BD39: 6417.494346 | BE39: 6469.345964 | BF39: 5707.505155 | BG39: 4915.421394 | BH39: 5608.230048 | BI39: 6808.729857 | BJ39: 7706.161641 | BK39: 6309.118911 | BL39: 7508.199198 | BM39: 6555.797335 | BN39: 8288.770793 | BO39: 7843.965015 | BP39: 7274.486329 | BQ39: 6616.468298 | BR39: 6268.247074 | BS39: 6421.455142 | BT39: 5831.153982 | BU39: 7516.095565 | BV39: 9099.792267 | BW39: 10326.93316 | BX39: 10069.20684 | BY39: 11530.07742 | BZ39: 11301.0607 | CA39: 9593.892192 | CB39: 9048.981523 | CC39: 7771.433294 | CD39: 7573.020489 | CE39: 6703.570686 | CF39: 7188.366441 | CG39: 10386.98956 | CH39: 8452.562945 | CI39: 11710.85832 | CJ39: 12547.06691 | CK39: 11873.83322 | CL39: 10492.98411 | CM39: 9063.590887 | CN39: 7791.39524 | CO39: 8163.367497 | CP39: 7151.12489 | CQ39: 5443.300177 | CR39: 6359.019924 | CS39: 8393.000694 | CT39: 9053.316934 | CU39: 8521.665208 | CV39: 10503.62175 | CW39: 10188.01432 | CX39: 7966.861065 | CY39: 9688.439407 | CZ39: 7364.169369 | DA39: 7365.907103 | DB39: 6746.760061 | DC39: 6201.39995 | DD39: 6658.136409 | DE39: 6749.153963 | DF39: 5815.742643 | DG39: 9826.987885 | DH39: 11011.45615 | DI39: 11227.97775 | DJ39: 11053.27868 | DK39: 10641.6591 | DL39: 8306.456393 | DM39: 7919.901178 | DN39: 7797.981242 | DO39: 6114.54627 | DP39: 5273.213436 | DQ39: 6346.828293 | DR39: 5416.709125 | DS39: 7882.335631 | DT39: 7770.609444 | DU39: 8821.841678 | DV39: 7577.758759 | DW39: 7215.337026 | DX39: 6855.74338 | DY39: 6727.097121 | DZ39: 6338.972957 | EA39: 5833.462388 | EB39: 5503.68082 | EC39: 5965.611862 | ED39: 7997.532095 | EE39: 8446.294716 | EF39: - | EG39: - | EH39: - | EI39: - | EJ39: - | EK39: - | EL39: - | EM39: - | EN39: - | EO39: - | EP39: -
B41: Generación renovable anual peninsular (GWh) | C41: 1990 | D41: 1991 | E41: 1992 | F41: 1993 | G41: 1994 | H41: 1995 | I41: 1996 | J41: 1997 | K41: 1998 | L41: 1999 | M41: 2000 | N41: 2001 | O41: 2002 | P41: 2003 | Q41: 2004 | R41: 2005 | S41: 2006 | T41: 2007 | U41: 2008 | V41: 2009 | W41: 2010 | X41: 2011 | Y41: 2012 | Z41: 2013 | AA41: 2014 | AB41: 2015 | AC41: 2016 | AD41: 2017 | AE41: 2018 | AF41: 2019 | AG41: 2020 | AH41: 2021
B42: Hidráulica | C42: 24523.3926 | D42: 26432.7149 | E42: 18638.6405 | F42: 23748.7177 | G42: 27483.9337 | H42: 22461.9618 | I42: 39868.6044 | J42: 35110.2577 | K42: 35434.00912 | L42: 25037.70461 | M42: 27893.93473 | N42: 40392.09983 | O42: 21225.32494 | P42: 40097.00725 | Q42: 30870.03749 | R42: 18248.19704 | S42: 25374.94878 | T42: 27104.3031 | U42: 22933.7816 | V42: 26185.9757 | W42: 41833.77419 | X42: 30336.68491 | Y42: 20622.43033 | Z42: 37386.65956 | AA42: 39112.39851 | AB42: 28312.26501 | AC42: 35959.99091 | AD42: 18359.12515 | AE42: 2152.871 | AF42: - | AG42: - | AH42: -
B43: Eólica | C43: 2.18699998 | D43: 2.865 | E43: 17.361 | F43: 84.768 | G43: 72.86 | H43: 159.857 | I43: 304.129 | J43: 619.885 | K43: 1236.656706 | L43: 2474.033298 | M43: 4462.49605 | N43: 6594.148113 | O43: 9259.296687 | P43: 11720.24613 | Q43: 15754.11777 | R43: 20857.66596 | S43: 22880.85608 | T43: 27249.155 | U43: 31757.85 | V43: 37888.577 | W43: 43208.396 | X43: 42105.433 | Y43: 48140.065 | Z43: 54344.352 | AA43: 50634.89 | AB43: 47713.15 | AC43: 47298.17 | AD43: 47496.793 | AE43: 5286.135523 | AF43: - | AG43: - | AH43: -
B44: Solar fotovoltaica | C44: - | D44: - | E44: 12.056 | F44: 12 | G44: 15.2959 | H44: 1.062 | I44: 0.891 | J44: 1.127 | K44: 1.170297 | L44: 1.341181 | M44: 1.269817 | N44: 1.639643 | O44: 4.561452 | P44: 8.930105 | Q44: 17.794011 | R44: 40.088349 | S44: 102.374999 | T44: 462.577 | U44: 2406.07 | V44: 5829.005 | W44: 6139.782 | X44: 7091.688 | Y44: 7829.901 | Z44: 7918.038 | AA44: 7802.424 | AB44: 7844.798 | AC44: 7579.313 | AD44: 7977.43 | AE44: 409.4009 | AF44: - | AG44: - | AH44: -
B45: Solar térmica | C45: - | D45: - | E45: - | F45: - | G45: - | H45: - | I45: - | J45: - | K45: - | L45: - | M45: - | N45: - | O45: - | P45: - | Q45: - | R45: - | S45: - | T45: 7.627 | U45: 15.378 | V45: 129.823 | W45: 691.62 | X45: 1832.357 | Y45: 3444.134 | Z45: 4441.527 | AA45: 4958.915 | AB45: 5085.235 | AC45: 5071.204 | AD45: 5347.949 | AE45: 130.0769 | AF45: - | AG45: - | AH45: -
B46: Térmica renovable/Otras renovables | C46: - | D46: 0.854 | E46: 16.549 | F46: 58.822 | G46: 322.45 | H46: 671.269 | I46: 815.08 | J46: 648.375 | K46: 748.746327 | L46: 908.253676 | M46: 961.110386 | N46: 1738.458428 | O46: 1453.015286 | P46: 1737.041738 | Q46: 1818.093632 | R46: 1987.85807 | S46: 2182.606682 | T46: 2375.685 | U46: 2651.489 | V46: 3044.287 | W46: 3171.799 | X46: 4284.841 | Y46: 4746.149 | Z46: 5065.566 | AA46: 4717.978 | AB46: 3173.951 | AC46: 3413.914 | AD46: 3601.628 | AE46: 302.567 | AF46: - | AG46: - | AH46: -
B47: Residuos renovables | C47: - | D47: - | E47: - | F47: - | G47: - | H47: - | I47: - | J47: - | K47: - | L47: - | M47: - | N47: - | O47: - | P47: - | Q47: - | R47: - | S47: - | T47: - | U47: - | V47: - | W47: - | X47: - | Y47: - | Z47: - | AA47: - | AB47: 662.655 | AC47: 649.7415 | AD47: 728.1505 | AE47: 68.3327 | AF47: - | AG47: - | AH47: -
B48: Generación renovable | C48: 24525.5796 | D48: 26436.4339 | E48: 18684.6065 | F48: 23904.3077 | G48: 27894.5396 | H48: 23294.1498 | I48: 40988.7044 | J48: 36379.6447 | K48: 37420.58245 | L48: 28421.33277 | M48: 33318.81099 | N48: 48726.34602 | O48: 31942.19836 | P48: 53563.22522 | Q48: 48460.0429 | R48: 41133.80942 | S48: 50540.78653 | T48: 57199.3471 | U48: 59764.5686 | V48: 73077.6677 | W48: 95045.37119 | X48: 85651.00391 | Y48: 84782.67933 | Z48: 109156.1426 | AA48: 107226.6055 | AB48: 92792.05401 | AC48: 99972.33341 | AD48: 83511.07565 | AE48: 8349.384023 | AF48: - | AG48: - | AH48: -
B50: Generación renovable anual Islas Baleares (MWh) | C50: 2006 | D50: 2007 | E50: 2008 | F50: 2009 | G50: 2010 | H50: 2011 | I50: 2012 | J50: 2013 | K50: 2014 | L50: 2015 | M50: 2016 | N50: 2017 | O50: 2018 | P50: 2019 | Q50: 2020 | R50: 2021
B51: Eólica | C51: 4877.356 | D51: 5656 | E51: 5497 | F51: 5543 | G51: 5571 | H51: 5829 | I51: 6505 | J51: 6160 | K51: 5839 | L51: 5317.02 | M51: 5414.64 | N51: 2925 | O51: 271.41 | P51: - | Q51: - | R51: -
B52: Solar fotovoltaica | C52: 1100.795 | D52: 1952 | E52: 28380 | F52: 80933 | G52: 87757 | H52: 101221 | I52: 115594 | J52: 122098 | K52: 122773 | L52: 122645.48 | M52: 120533.8 | N52: 122875 | O52: 6585.1 | P52: - | Q52: - | R52: -
B53: Térmica renovable/Otras renovables | C53: 0 | D53: 0 | E53: 0 | F53: 0 | G53: 0 | H53: 0 | I53: 569 | J53: 743 | K53: 1944 | L53: 1972.55 | M53: 1309.52 | N53: 1625 | O53: 129.05 | P53: - | Q53: - | R53: -
B54: Residuos renovables | C54: - | D54: - | E54: - | F54: - | G54: - | H54: - | I54: - | J54: - | K54: - | L54: 151098 | M54: 130805.5 | N54: 143878.5 | O54: 7713.55 | P54: - | Q54: - | R54: -
B55: Generación renovable | C55: 5978.151 | D55: 7608 | E55: 33877 | F55: 86476 | G55: 93328 | H55: 107050 | I55: 122668 | J55: 129001 | K55: 130556 | L55: 281033.05 | M55: 258063.46 | N55: 271303.5 | O55: 14699.11 | P55: - | Q55: - | R55: -
B57: Generación renovable anual Islas Canarias (MWh) | C57: 2006 | D57: 2007 | E57: 2008 | F57: 2009 | G57: 2010 | H57: 2011 | I57: 2012 | J57: 2013 | K57: 2014 | L57: 2015 | M57: 2016 | N57: 2017 | O57: 2018 | P57: 2019 | Q57: 2020 | R57: 2021
B58: Hidráulica | C58: 0 | D58: 1176 | E58: 1673 | F58: 398 | G58: 0 | H58: 1675.408 | I58: 1789.336 | J58: 3047.306 | K58: 3479.021 | L58: 3585.2 | M58: 3472 | N58: 3282 | O58: 0 | P58: - | Q58: - | R58: -
B59: Hidroeólica | C59: - | D59: - | E59: - | F59: - | G59: - | H59: - | I59: - | J59: - | K59: 1071.861 | L59: 8557.066 | M59: 18102.639 | N59: 20398.516 | O59: 2270.14 | P59: - | Q59: - | R59: -
B60: Eólica | C60: 326063.579 | D60: 356840 | E60: 396475 | F60: 358707 | G60: 331363 | H60: 354155 | I60: 361767.789 | J60: 362734.298 | K60: 389964 | L60: 396661.052 | M60: 393086 | N60: 395854 | O60: 61174.599 | P60: - | Q60: - | R60: -
B61: Solar fotovoltaica | C61: 2915.55 | D61: 19373 | E61: 63500 | F61: 162330 | G61: 195166 | H61: 232139 | I61: 256511 | J61: 286702 | K61: 282291 | L61: 275554.161 | M61: 277674 | N61: 273451 | O61: 18395.063 | P61: - | Q61: - | R61: -
B62: Térmica renovable/Otras renovables | C62: 218199.684 | D62: 213283 | E62: 217219 | F62: 273055 | G62: 160561 | H62: 33148.363 | I62: 8050.454 | J62: 8387.073 | K62: 8806.722 | L62: 8053.216 | M62: 9336 | N62: 9565 | O62: 0 | P62: - | Q62: - | R62: -
B63: Generación renovable | C63: 547178.813 | D63: 590672 | E63: 678867 | F63: 794490 | G63: 687090 | H63: 621117.771 | I63: 628118.579 | J63: 660870.677 | K63: 685612.604 | L63: 692410.695 | M63: 701670.639 | N63: 702550.516 | O63: 81839.802 | P63: - | Q63: - | R63: -
B65: Generación renovable anual Melilla (MWh) | C65: 2007 | D65: 2008 | E65: 2009 | F65: 2010 | G65: 2011 | H65: 2012 | I65: 2013 | J65: 2014 | K65: 2015 | L65: 2016 | M65: 2017 | N65: 2018 | O65: 2019 | P65: 2020 | Q65: 2021 | R65: 2022
B66: Solar fotovoltaica | C66: 0 | D66: 6 | E66: 122 | F66: 67 | G66: 72 | H66: 84 | I66: 81 | J66: 85 | K66: 78 | L66: 78 | M66: 76 | N66: 0 | O66: - | P66: - | Q66: - | R66: -
B67: Residuos renovables | C67: - | D67: - | E67: - | F67: - | G67: - | H67: - | I67: - | J67: - | K67: 4295.5 | L67: 4850 | M67: 4977.5 | N67: 371.7815 | O67: - | P67: - | Q67: - | R67: -
B68: Generación renovable | C68: 0 | D68: 6 | E68: 122 | F68: 67 | G68: 72 | H68: 84 | I68: 81 | J68: 85 | K68: 4373.5 | L68: 4928 | M68: 5053.5 | N68: 371.7815 | O68: - | P68: - | Q68: - | R68: -
B70: Generación renovable anual nacional (GWh) | C70: 2007 | D70: 2008 | E70: 2009 | F70: 2010 | G70: 2011 | H70: 2012 | I70: 2013 | J70: 2014 | K70: 2015 | L70: 2016 | M70: 2017 | N70: 2018 | O70: 2019 | P70: 2020 | Q70: 2021 | R70: 2022
B71: Hidráulica | C71: 27105.4791 | D71: 22935.4546 | E71: 26186.3737 | F71: 41833.77419 | G71: 30338.36032 | H71: 20624.21967 | I71: 37389.70687 | J71: 39115.87753 | K71: 28315.85021 | L71: 35963.46291 | M71: 18362.40715 | N71: 2152.871 | O71: - | P71: - | Q71: - | R71: -
B72: Hidroeólica | C72: - | D72: - | E72: - | F72: - | G72: - | H72: - | I72: - | J72: 1.071861 | K72: 8.557066 | L72: 18.102639 | M72: 20.398516 | N72: 2.27014 | O72: - | P72: - | Q72: - | R72: -
B73: Eólica | C73: 27611.651 | D73: 32159.822 | E73: 38252.827 | F73: 43545.33 | G73: 42465.417 | H73: 48508.33779 | I73: 54713.2463 | J73: 51030.693 | K73: 48115.12807 | L73: 47696.67064 | M73: 47895.572 | N73: 5347.581532 | O73: - | P73: - | Q73: - | R73: -
B74: Solar fotovoltaica | C74: 483.902 | D74: 2497.956 | E74: 6072.39 | F74: 6422.772 | G74: 7425.12 | H74: 8202.09 | I74: 8326.919 | J74: 8207.573 | K74: 8243.075641 | L74: 7977.5988 | M74: 8373.832 | N74: 434.381063 | O74: - | P74: - | Q74: - | R74: -
B75: Solar térmica | C75: 7.627 | D75: 15.378 | E75: 129.823 | F75: 691.62 | G75: 1832.357 | H75: 3444.134 | I75: 4441.527 | J75: 4958.915 | K75: 5085.235 | L75: 5071.204 | M75: 5347.949 | N75: 130.0769 | O75: - | P75: - | Q75: - | R75: -
B76: Térmica renovable/Otras renovables | C76: 2588.968 | D76: 2868.708 | E76: 3317.342 | F76: 3332.36 | G76: 4317.989363 | H76: 4754.768454 | I76: 5074.696073 | J76: 4728.728722 | K76: 3183.976766 | L76: 3424.55952 | M76: 3612.818 | N76: 302.69605 | O76: - | P76: - | Q76: - | R76: -
B77: Residuos renovables | C77: - | D77: - | E77: - | F77: - | G77: - | H77: - | I77: - | J77: - | K77: 818.0485 | L77: 785.397 | M77: 877.0065 | N77: 76.4180315 | O77: - | P77: - | Q77: - | R77: -
B78: Generación renovable | C78: 57797.6271 | D78: 60477.3186 | E78: 73958.7557 | F78: 95825.85619 | G78: 86379.24368 | H78: 85533.54991 | I78: 109946.0952 | J78: 108042.8591 | K78: 93769.87125 | L78: 100936.9955 | M78: 84489.98316 | N78: 8446.294716 | O78: - | P78: - | Q78: - | R78: -
B80: Estructura de generación renovable mensual peninsular (%) | C80: 1990-01-01 | D80: 1990-02-01 | E80: 1990-03-01 | F80: 1990-04-01 | G80: 1990-05-01 | H80: 1990-06-01 | I80: 1990-07-01 | J80: 1990-08-01 | K80: 1990-09-01 | L80: 1990-10-01 | M80: 1990-11-01 | N80: 1990-12-01 | O80: 1991-01-01 | P80: 1991-02-01 | Q80: 1991-03-01 | R80: 1991-04-01 | S80: 1991-05-01 | T80: 1991-06-01 | U80: 1991-07-01 | V80: 1991-08-01 | W80: 1991-09-01 | X80: 1991-10-01 | Y80: 1991-11-01 | Z80: 1991-12-01 | AA80: 1992-01-01 | AB80: 1992-02-01 | AC80: 1992-03-01 | AD80: 1992-04-01 | AE80: 1992-05-01 | AF80: 1992-06-01 | AG80: 1992-07-01 | AH80: 1992-08-01 | AI80: 1992-09-01 | AJ80: 1992-10-01 | AK80: 1992-11-01 | AL80: 1992-12-01 | AM80: 1993-01-01 | AN80: 1993-02-01 | AO80: 1993-03-01 | AP80: 1993-04-01 | AQ80: 1993-05-01 | AR80: 1993-06-01 | AS80: 1993-07-01 | AT80: 1993-08-01 | AU80: 1993-09-01 | AV80: 1993-10-01 | AW80: 1993-11-01 | AX80: 1993-12-01 | AY80: 1994-01-01 | AZ80: 1994-02-01 | BA80: 1994-03-01 | BB80: 1994-04-01 | BC80: 1994-05-01 | BD80: 1994-06-01 | BE80: 1994-07-01 | BF80: 1994-08-01 | BG80: 1994-09-01 | BH80: 1994-10-01 | BI80: 1994-11-01 | BJ80: 1994-12-01 | BK80: 1995-01-01 | BL80: 1995-02-01 | BM80: 1995-03-01 | BN80: 1995-04-01 | BO80: 1995-05-01 | BP80: 1995-06-01 | BQ80: 1995-07-01 | BR80: 1995-08-01 | BS80: 1995-09-01 | BT80: 1995-10-01 | BU80: 1995-11-01 | BV80: 1995-12-01 | BW80: 1996-01-01 | BX80: 1996-02-01 | BY80: 1996-03-01 | BZ80: 1996-04-01 | CA80: 1996-05-01 | CB80: 1996-06-01 | CC80: 1996-07-01 | CD80: 1996-08-01 | CE80: 1996-09-01 | CF80: 1996-10-01 | CG80: 1996-11-01 | CH80: 1996-12-01 | CI80: 1997-01-01 | CJ80: 1997-02-01 | CK80: 1997-03-01 | CL80: 1997-04-01 | CM80: 1997-05-01 | CN80: 1997-06-01 | CO80: 1997-07-01 | CP80: 1997-08-01 | CQ80: 1997-09-01 | CR80: 1997-10-01 | CS80: 1997-11-01 | CT80: 1997-12-01 | CU80: 1998-01-01 | CV80: 1998-02-01 | CW80: 1998-03-01 | CX80: 1998-04-01 | CY80: 1998-05-01 | CZ80: 1998-06-01 | DA80: 1998-07-01 | DB80: 1998-08-01 | DC80: 1998-09-01 | DD80: 1998-10-01 | DE80: 1998-11-01 | DF80: 1998-12-01 | DG80: 1999-01-01 | DH80: 1999-02-01 | DI80: 1999-03-01 | DJ80: 1999-04-01 | DK80: 1999-05-01 | DL80: 1999-06-01 | DM80: 1999-07-01 | DN80: 1999-08-01 | DO80: 1999-09-01 | DP80: 1999-10-01 | DQ80: 1999-11-01 | DR80: 1999-12-01 | DS80: 2000-01-01 | DT80: 2000-02-01 | DU80: 2000-03-01 | DV80: 2000-04-01 | DW80: 2000-05-01 | DX80: 2000-06-01 | DY80: 2000-07-01 | DZ80: 2000-08-01 | EA80: 2000-09-01 | EB80: 2000-10-01 | EC80: 2000-11-01 | ED80: 2000-12-01 | EE80: 2001-01-01 | EF80: 2001-02-01 | EG80: 2001-03-01 | EH80: 2001-04-01 | EI80: 2001-05-01 | EJ80: 2001-06-01 | EK80: 2001-07-01 | EL80: 2001-08-01 | EM80: 2001-09-01 | EN80: 2001-10-01 | EO80: 2001-11-01 | EP80: 2001-12-01 | EQ80: 2002-01-01 | ER80: 2002-02-01 | ES80: 2002-03-01 | ET80: 2002-04-01 | EU80: 2002-05-01 | EV80: 2002-06-01 | EW80: 2002-07-01 | EX80: 2002-08-01 | EY80: 2002-09-01 | EZ80: 2002-10-01 | FA80: 2002-11-01 | FB80: 2002-12-01 | FC80: 2003-01-01 | FD80: 2003-02-01 | FE80: 2003-03-01 | FF80: 2003-04-01 | FG80: 2003-05-01 | FH80: 2003-06-01 | FI80: 2003-07-01 | FJ80: 2003-08-01 | FK80: 2003-09-01 | FL80: 2003-10-01 | FM80: 2003-11-01 | FN80: 2003-12-01 | FO80: 2004-01-01 | FP80: 2004-02-01 | FQ80: 2004-03-01 | FR80: 2004-04-01 | FS80: 2004-05-01 | FT80: 2004-06-01 | FU80: 2004-07-01 | FV80: 2004-08-01 | FW80: 2004-09-01 | FX80: 2004-10-01 | FY80: 2004-11-01 | FZ80: 2004-12-01 | GA80: 2005-01-01 | GB80: 2005-02-01 | GC80: 2005-03-01 | GD80: 2005-04-01 | GE80: 2005-05-01 | GF80: 2005-06-01 | GG80: 2005-07-01 | GH80: 2005-08-01 | GI80: 2005-09-01 | GJ80: 2005-10-01 | GK80: 2005-11-01 | GL80: 2005-12-01 | GM80: 2006-01-01 | GN80: 2006-02-01 | GO80: 2006-03-01 | GP80: 2006-04-01 | GQ80: 2006-05-01 | GR80: 2006-06-01 | GS80: 2006-07-01 | GT80: 2006-08-01 | GU80: 2006-09-01 | GV80: 2006-10-01 | GW80: 2006-11-01 | GX80: 2006-12-01 | GY80: 2007-01-01 | GZ80: 2007-02-01 | HA80: 2007-03-01 | HB80: 2007-04-01 | HC80: 2007-05-01 | HD80: 2007-06-01 | HE80: 2007-07-01 | HF80: 2007-08-01 | HG80: 2007-09-01 | HH80: 2007-10-01 | HI80: 2007-11-01 | HJ80: 2007-12-01 | HK80: 2008-01-01 | HL80: 2008-02-01 | HM80: 2008-03-01 | HN80: 2008-04-01 | HO80: 2008-05-01 | HP80: 2008-06-01 | HQ80: 2008-07-01 | HR80: 2008-08-01 | HS80: 2008-09-01 | HT80: 2008-10-01 | HU80: 2008-11-01 | HV80: 2008-12-01 | HW80: 2009-01-01 | HX80: 2009-02-01 | HY80: 2009-03-01 | HZ80: 2009-04-01 | IA80: 2009-05-01 | IB80: 2009-06-01 | IC80: 2009-07-01 | ID80: 2009-08-01 | IE80: 2009-09-01 | IF80: 2009-10-01 | IG80: 2009-11-01 | IH80: 2009-12-01 | II80: 2010-01-01 | IJ80: 2010-02-01 | IK80: 2010-03-01 | IL80: 2010-04-01 | IM80: 2010-05-01 | IN80: 2010-06-01 | IO80: 2010-07-01 | IP80: 2010-08-01 | IQ80: 2010-09-01 | IR80: 2010-10-01 | IS80: 2010-11-01 | IT80: 2010-12-01 | IU80: 2011-01-01 | IV80: 2011-02-01 | IW80: 2011-03-01 | IX80: 2011-04-01 | IY80: 2011-05-01 | IZ80: 2011-06-01 | JA80: 2011-07-01 | JB80: 2011-08-01 | JC80: 2011-09-01 | JD80: 2011-10-01 | JE80: 2011-11-01 | JF80: 2011-12-01 | JG80: 2012-01-01 | JH80: 2012-02-01 | JI80: 2012-03-01 | JJ80: 2012-04-01 | JK80: 2012-05-01 | JL80: 2012-06-01 | JM80: 2012-07-01 | JN80: 2012-08-01 | JO80: 2012-09-01 | JP80: 2012-10-01 | JQ80: 2012-11-01 | JR80: 2012-12-01 | JS80: 2013-01-01 | JT80: 2013-02-01 | JU80: 2013-03-01 | JV80: 2013-04-01 | JW80: 2013-05-01 | JX80: 2013-06-01 | JY80: 2013-07-01 | JZ80: 2013-08-01 | KA80: 2013-09-01 | KB80: 2013-10-01 | KC80: 2013-11-01 | KD80: 2013-12-01 | KE80: 2014-01-01 | KF80: 2014-02-01 | KG80: 2014-03-01 | KH80: 2014-04-01 | KI80: 2014-05-01 | KJ80: 2014-06-01 | KK80: 2014-07-01 | KL80: 2014-08-01 | KM80: 2014-09-01 | KN80: 2014-10-01 | KO80: 2014-11-01 | KP80: 2014-12-01 | KQ80: 2015-01-01 | KR80: 2015-02-01 | KS80: 2015-03-01 | KT80: 2015-04-01 | KU80: 2015-05-01 | KV80: 2015-06-01 | KW80: 2015-07-01 | KX80: 2015-08-01 | KY80: 2015-09-01 | KZ80: 2015-10-01 | LA80: 2015-11-01 | LB80: 2015-12-01 | LC80: 2016-01-01 | LD80: 2016-02-01 | LE80: 2016-03-01 | LF80: 2016-04-01 | LG80: 2016-05-01 | LH80: 2016-06-01 | LI80: 2016-07-01 | LJ80: 2016-08-01 | LK80: 2016-09-01 | LL80: 2016-10-01 | LM80: 2016-11-01 | LN80: 2016-12-01 | LO80: 2017-01-01 | LP80: 2017-02-01 | LQ80: 2017-03-01 | LR80: 2017-04-01 | LS80: 2017-05-01 | LT80: 2017-06-01 | LU80: 2017-07-01 | LV80: 2017-08-01 | LW80: 2017-09-01 | LX80: 2017-10-01 | LY80: 2017-11-01 | LZ80: 2017-12-01 | MA80: 2018-01-01 | MB80: 2018-02-01 | MC80: 2018-03-01 | MD80: 2018-04-01 | ME80: 2018-05-01 | MF80: 2018-06-01 | MG80: 2018-07-01 | MH80: 2018-08-01 | MI80: 2018-09-01 | MJ80: 2018-10-01 | MK80: 2018-11-01 | ML80: 2018-12-01
B81: Hidráulica | C81: 30 | D81: 31.1 | E81: 21.3 | F81: 16.6 | G81: 17.4 | H81: 16.8 | I81: 13.8 | J81: 12 | K81: 11.1 | L81: 12.7 | M81: 16.8 | N81: 15.2 | O81: 19.6 | P81: 16.6 | Q81: 32.6 | R81: 31.1 | S81: 25.3 | T81: 19.2 | U81: 14.4 | V81: 10.8 | W81: 9.8 | X81: 13.1 | Y81: 16.3 | Z81: 14.9 | AA81: 9.7 | AB81: 6.3 | AC81: 6.4 | AD81: 14 | AE81: 13.3 | AF81: 14.9 | AG81: 13.7 | AH81: 10.6 | AI81: 10.7 | AJ81: 15.7 | AK81: 18.8 | AL81: 23.3 | AM81: 16.5 | AN81: 12.7 | AO81: 11.7 | AP81: 10.5 | AQ81: 17 | AR81: 19.9 | AS81: 16 | AT81: 11.4 | AU81: 10.6 | AV81: 23.9 | AW81: 27.9 | AX81: 21.3 | AY81: 28.6 | AZ81: 25.7 | BA81: 23.4 | BB81: 20.7 | BC81: 22.7 | BD81: 20.4 | BE81: 14.4 | BF81: 11.6 | BG81: 10.7 | BH81: 13.3 | BI81: 19.4 | BJ81: 14.5 | BK81: 20.7 | BL81: 22.9 | BM81: 24.7 | BN81: 16.4 | BO81: 14.4 | BP81: 14.4 | BQ81: 12.6 | BR81: 9.1 | BS81: 7.7 | BT81: 8 | BU81: 10 | BV81: 18.3 | BW81: 39.6 | BX81: 40.2 | BY81: 27.2 | BZ81: 32.2 | CA81: 31.7 | CB81: 23.6 | CC81: 17.6 | CD81: 13.4 | CE81: 14.8 | CF81: 14 | CG81: 17 | CH81: 30.6 | CI81: 36.6 | CJ81: 28.1 | CK81: 20.7 | CL81: 17.7 | CM81: 17 | CN81: 18.2 | CO81: 14.7 | CP81: 13.1 | CQ81: 11.9 | CR81: 10.9 | CS81: 24.8 | CT81: 35.2 | CU81: 39.5 | CV81: 30.2 | CW81: 19.6 | CX81: 26.2 | CY81: 30.4 | CZ81: 25 | DA81: 17.1 | DB81: 15.1 | DC81: 13 | DD81: 14.3 | DE81: 10.6 | DF81: 8.3 | DG81: 8.8 | DH81: 9.2 | DI81: 13.5 | DJ81: 16.3 | DK81: 20.7 | DL81: 17.3 | DM81: 12.5 | DN81: 10.2 | DO81: 10.3 | DP81: 11.7 | DQ81: 17.9 | DR81: 17.1 | DS81: 14.4 | DT81: 10.5 | DU81: 9.5 | DV81: 14.7 | DW81: 21.7 | DX81: 14.6 | DY81: 10.5 | DZ81: 11.2 | EA81: 11.6 | EB81: 11 | EC81: 14.9 | ED81: 25.8 | EE81: 33.9 | EF81: 34.9 | EG81: 37.8 | EH81: 29.1 | EI81: 21.1 | EJ81: 15.3 | EK81: 11.9 | EL81: 11.6 | EM81: 9.1 | EN81: 10.5 | EO81: 11.5 | EP81: 8.5 | EQ81: 6.9 | ER81: 7.1 | ES81: 11 | ET81: 11.3 | EU81: 11.4 | EV81: 11 | EW81: 7.4 | EX81: 6.2 | EY81: 6.1 | EZ81: 6.8 | FA81: 11.1 | FB81: 22.5 | FC81: 27.3 | FD81: 23.1 | FE81: 24.7 | FF81: 22.7 | FG81: 20.8 | FH81: 12.5 | FI81: 9.8 | FJ81: 7.7 | FK81: 9 | FL81: 10.6 | FM81: 17.1 | FN81: 24.2 | FO81: 18 | FP81: 16.9 | FQ81: 15 | FR81: 15.8 | FS81: 17.5 | FT81: 13.7 | FU81: 9.9 | FV81: 8.9 | FW81: 7.8 | FX81: 8.8 | FY81: 11.5 | FZ81: 8.5 | GA81: 6.9 | GB81: 7.3 | GC81: 8.4 | GD81: 10.8 | GE81: 11.1 | GF81: 8.7 | GG81: 5.9 | GH81: 5.6 | GI81: 4 | GJ81: 4.2 | GK81: 6.4 | GL81: 7.3 | GM81: 6.7 | GN81: 5.3 | GO81: 13 | GP81: 14.4 | GQ81: 10.3 | GR81: 7 | GS81: 6.3 | GT81: 4.9 | GU81: 5.2 | GV81: 7.7 | GW81: 13.9 | GX81: 20.9 | GY81: 9.3 | GZ81: 13.8 | HA81: 16.9 | HB81: 13.8 | HC81: 13 | HD81: 10.7 | HE81: 10.5 | HF81: 8.1 | HG81: 6.2 | HH81: 7.5 | HI81: 5.6 | HJ81: 4.9 | HK81: 5.5 | HL81: 4.1 | HM81: 4.5 | HN81: 11.9 | HO81: 15.4 | HP81: 14.2 | HQ81: 8.9 | HR81: 6.8 | HS81: 5.9 | HT81: 4.9 | HU81: 6.8 | HV81: 10.2 | HW81: 9 | HX81: 16 | HY81: 13.1 | HZ81: 11 | IA81: 12.7 | IB81: 9.9 | IC81: 7.4 | ID81: 6.5 | IE81: 4.6 | IF81: 5.8 | IG81: 9.2 | IH81: 13.6 | II81: 20.9 | IJ81: 17.7 | IK81: 24.3 | IL81: 22.5 | IM81: 18.2 | IN81: 16.5 | IO81: 11.9 | IP81: 9.1 | IQ81: 7 | IR81: 7.2 | IS81: 11.4 | IT81: 16.4 | IU81: 20.7 | IV81: 13.6 | IW81: 16.1 | IX81: 17.1 | IY81: 13.5 | IZ81: 9.7 | JA81: 7.3 | JB81: 7 | JC81: 5.6 | JD81: 5.9 | JE81: 10 | JF81: 9.6 | JG81: 6.8 | JH81: 4.9 | JI81: 5.8 | JJ81: 8.2 | JK81: 11.8 | JL81: 9.7 | JM81: 7.4 | JN81: 5.9 | JO81: 4.8 | JP81: 6.4 | JQ81: 9.2 | JR81: 11.5 | JS81: 12.7 | JT81: 16.3 | JU81: 20.3 | JV81: 25.8 | JW81: 18.9 | JX81: 16 | JY81: 11.8 | JZ81: 10 | KA81: 8.8 | KB81: 8.9 | KC81: 12.8 | KD81: 10.7 | KE81: 18.5 | KF81: 26.7 | KG81: 24.3 | KH81: 24.7 | KI81: 13.9 | KJ81: 12.2 | KK81: 10.7 | KL81: 9.8 | KM81: 8.6 | KN81: 8 | KO81: 12.1 | KP81: 14.8 | KQ81: 10.9 | KR81: 16 | KS81: 17.3 | KT81: 13.5 | KU81: 14.6 | KV81: 12 | KW81: 8.6 | KX81: 7.6 | KY81: 8 | KZ81: 8.3 | LA81: 9.5 | LB81: 7 | LC81: 15.9 | LD81: 19.2 | LE81: 19.8 | LF81: 25.3 | LG81: 26 | LH81: 15.1 | LI81: 10.5 | LJ81: 9.8 | LK81: 8.3 | LL81: 7.9 | LM81: 7.2 | LN81: 8.9 | LO81: 8.5 | LP81: 9.8 | LQ81: 13.4 | LR81: 9.4 | LS81: 10.1 | LT81: 7.8 | LU81: 5.6 | LV81: 5.3 | LW81: 6.2 | LX81: 4.1 | LY81: 3.9 | LZ81: 5.4 | MA81: 9.9 | MB81: - | MC81: - | MD81: - | ME81: - | MF81: - | MG81: - | MH81: - | MI81: - | MJ81: - | MK81: - | ML81: -
B82: Eólica | C82: 0 | D82: 0 | E82: 0 | F82: 0 | G82: 0 | H82: 0 | I82: 0 | J82: 0 | K82: 0 | L82: 0 | M82: 0 | N82: 0 | O82: 0 | P82: 0 | Q82: 0 | R82: 0 | S82: 0 | T82: 0 | U82: 0 | V82: 0 | W82: 0 | X82: 0 | Y82: 0 | Z82: 0 | AA82: 0 | AB82: 0 | AC82: 0 | AD82: 0 | AE82: 0 | AF82: 0 | AG82: 0 | AH82: 0 | AI82: 0 | AJ82: 0 | AK82: 0 | AL82: 0.1 | AM82: 0.1 | AN82: 0.1 | AO82: 0.1 | AP82: 0.1 | AQ82: 0 | AR82: 0.1 | AS82: 0.1 | AT82: 0.1 | AU82: 0 | AV82: 0.1 | AW82: 0.1 | AX82: 0 | AY82: 0.1 | AZ82: 0 | BA82: 0.1 | BB82: 0.1 | BC82: 0 | BD82: 0.1 | BE82: 0 | BF82: 0 | BG82: 0 | BH82: 0.1 | BI82: 0.1 | BJ82: 0 | BK82: 0.1 | BL82: 0.1 | BM82: 0.1 | BN82: 0.1 | BO82: 0.1 | BP82: 0.1 | BQ82: 0.1 | BR82: 0.1 | BS82: 0.1 | BT82: 0.2 | BU82: 0.1 | BV82: 0.1 | BW82: 0.1 | BX82: 0.2 | BY82: 0.2 | BZ82: 0.2 | CA82: 0.2 | CB82: 0.2 | CC82: 0.2 | CD82: 0.1 | CE82: 0.2 | CF82: 0.2 | CG82: 0.2 | CH82: 0.3 | CI82: 0.3 | CJ82: 0.3 | CK82: 0.3 | CL82: 0.4 | CM82: 0.3 | CN82: 0.3 | CO82: 0.4 | CP82: 0.3 | CQ82: 0.3 | CR82: 0.5 | CS82: 0.5 | CT82: 0.5 | CU82: 0.6 | CV82: 0.5 | CW82: 0.7 | CX82: 0.7 | CY82: 0.6 | CZ82: 0.5 | DA82: 0.7 | DB82: 0.9 | DC82: 0.7 | DD82: 0.7 | DE82: 0.9 | DF82: 0.9 | DG82: 1 | DH82: 1.4 | DI82: 1.4 | DJ82: 1.4 | DK82: 1.2 | DL82: 1.4 | DM82: 1.1 | DN82: 1 | DO82: 1.1 | DP82: 1.3 | DQ82: 2 | DR82: 1.9 | DS82: 1.7 | DT82: 1.9 | DU82: 2.1 | DV82: 2.7 | DW82: 1.5 | DX82: 2.3 | DY82: 2.2 | DZ82: 2 | EA82: 1.7 | EB82: 2.6 | EC82: 3.2 | ED82: 3.5 | EE82: 3.2 | EF82: 3.4 | EG82: 3.7 | EH82: 4.3 | EI82: 2.6 | EJ82: 2.4 | EK82: 2.3 | EL82: 2.2 | EM82: 3.7 | EN82: 3.4 | EO82: 4.3 | EP82: 2.9 | EQ82: 3.4 | ER82: 4.6 | ES82: 4.6 | ET82: 3.7 | EU82: 4.7 | EV82: 3.6 | EW82: 3.7 | EX82: 3.5 | EY82: 2.9 | EZ82: 4.9 | FA82: 5.9 | FB82: 6.4 | FC82: 6.7 | FD82: 5.2 | FE82: 4.5 | FF82: 6.6 | FG82: 5 | FH82: 3.7 | FI82: 3.6 | FJ82: 2.9 | FK82: 4.2 | FL82: 5.7 | FM82: 6.1 | FN82: 6.9 | FO82: 8 | FP82: 5.4 | FQ82: 6.1 | FR82: 7.9 | FS82: 5.3 | FT82: 5.2 | FU82: 4.6 | FV82: 5.6 | FW82: 5.8 | FX82: 8.2 | FY82: 7.3 | FZ82: 8.2 | GA82: 8.3 | GB82: 8.3 | GC82: 8.2 | GD82: 9.9 | GE82: 7.6 | GF82: 6 | GG82: 7.3 | GH82: 8.1 | GI82: 6.2 | GJ82: 9.3 | GK82: 9 | GL82: 10.2 | GM82: 6.4 | GN82: 8.6 | GO82: 12 | GP82: 10.3 | GQ82: 8.1 | GR82: 6.4 | GS82: 4.9 | GT82: 10.4 | GU82: 6.8 | GV82: 11 | GW82: 10.6 | GX82: 9.3 | GY82: 8.8 | GZ82: 13.2 | HA82: 13.3 | HB82: 6.5 | HC82: 12 | HD82: 8.2 | HE82: 8 | HF82: 11.1 | HG82: 9.2 | HH82: 8.4 | HI82: 11.5 | HJ82: 9.6 | HK82: 10.5 | HL82: 8.5 | HM82: 17.1 | HN82: 14.6 | HO82: 7.9 | HP82: 9.3 | HQ82: 8.7 | HR82: 8.7 | HS82: 9.6 | HT82: 11 | HU82: 14.8 | HV82: 14.9 | HW82: 13.9 | HX82: 14.8 | HY82: 14.5 | HZ82: 15.3 | IA82: 13.3 | IB82: 10.8 | IC82: 10.3 | ID82: 10.1 | IE82: 11.5 | IF82: 14.5 | IG82: 21.8 | IH82: 20.8 | II82: 17.3 | IJ82: 20.1 | IK82: 19 | IL82: 12.6 | IM82: 17 | IN82: 12 | IO82: 11.5 | IP82: 12.9 | IQ82: 10.5 | IR82: 17.9 | IS82: 19 | IT82: 19.1 | IU82: 16.3 | IV82: 18.3 | IW82: 19.7 | IX82: 16.5 | IY82: 15.3 | IZ82: 13.8 | JA82: 14.4 | JB82: 12.4 | JC82: 10.7 | JD82: 15 | JE82: 17.8 | JF82: 20.2 | JG82: 15.1 | JH82: 20.2 | JI82: 16.8 | JJ82: 24.9 | JK82: 17.2 | JL82: 15.8 | JM82: 13.2 | JN82: 13.9 | JO82: 18.4 | JP82: 14.5 | JQ82: 21.4 | JR82: 23.6 | JS82: 26.5 | JT82: 24.4 | JU82: 25.2 | JV82: 21.1 | JW82: 19.5 | JX82: 19.1 | JY82: 12.3 | JZ82: 15.9 | KA82: 15.4 | KB82: 19 | KC82: 29.5 | KD82: 21.6 | KE82: 28.5 | KF82: 27.3 | KG82: 23.2 | KH82: 19.7 | KI82: 20.4 | KJ82: 16.1 | KK82: 16.3 | KL82: 13.7 | KM82: 10.2 | KN82: 16.5 | KO82: 25.1 | KP82: 21.4 | KQ82: 20.9 | KR82: 26.8 | KS82: 22 | KT82: 19.9 | KU82: 23.8 | KV82: 13.9 | KW82: 12.7 | KX82: 15 | KY82: 14.9 | KZ82: 19.7 | LA82: 18.6 | LB82: 17.1 | LC82: 25.9 | LD82: 29.3 | LE82: 24.6 | LF82: 21.3 | LG82: 20 | LH82: 16.5 | LI82: 16 | LJ82: 17.4 | LK82: 13.4 | LL82: 11.5 | LM82: 18.8 | LN82: 12.8 | LO82: 19.8 | LP82: 24.5 | LQ82: 23.3 | LR82: 23 | LS82: 18 | LT82: 15.1 | LU82: 15.6 | LV82: 16.2 | LW82: 14.8 | LX82: 15.7 | LY82: 18.3 | LZ82: 24.8 | MA82: 24.3 | MB82: - | MC82: - | MD82: - | ME82: - | MF82: - | MG82: - | MH82: - | MI82: - | MJ82: - | MK82: - | ML82: -
B83: Solar fotovoltaica | C83: 0 | D83: 0 | E83: 0 | F83: 0 | G83: 0 | H83: 0 | I83: 0 | J83: 0 | K83: 0 | L83: 0 | M83: 0 | N83: 0 | O83: 0 | P83: 0 | Q83: 0 | R83: 0 | S83: 0 | T83: 0 | U83: 0 | V83: 0 | W83: 0 | X83: 0 | Y83: 0 | Z83: 0 | AA83: 0 | AB83: 0 | AC83: 0 | AD83: 0 | AE83: 0 | AF83: 0 | AG83: 0 | AH83: 0 | AI83: 0 | AJ83: 0 | AK83: 0 | AL83: 0 | AM83: 0 | AN83: 0 | AO83: 0 | AP83: 0 | AQ83: 0 | AR83: 0 | AS83: 0 | AT83: 0 | AU83: 0 | AV83: 0 | AW83: 0 | AX83: 0 | AY83: 0 | AZ83: 0 | BA83: 0 | BB83: 0 | BC83: 0 | BD83: 0 | BE83: 0 | BF83: 0 | BG83: 0 | BH83: 0 | BI83: 0 | BJ83: 0 | BK83: 0 | BL83: 0 | BM83: 0 | BN83: 0 | BO83: 0 | BP83: 0 | BQ83: 0 | BR83: 0 | BS83: 0 | BT83: 0 | BU83: 0 | BV83: 0 | BW83: 0 | BX83: 0 | BY83: 0 | BZ83: 0 | CA83: 0 | CB83: 0 | CC83: 0 | CD83: 0 | CE83: 0 | CF83: 0 | CG83: 0 | CH83: 0 | CI83: 0 | CJ83: 0 | CK83: 0 | CL83: 0 | CM83: 0 | CN83: 0 | CO83: 0 | CP83: 0 | CQ83: 0 | CR83: 0 | CS83: 0 | CT83: 0 | CU83: 0 | CV83: 0 | CW83: 0 | CX83: 0 | CY83: 0 | CZ83: 0 | DA83: 0 | DB83: 0 | DC83: 0 | DD83: 0 | DE83: 0 | DF83: 0 | DG83: 0 | DH83: 0 | DI83: 0 | DJ83: 0 | DK83: 0 | DL83: 0 | DM83: 0 | DN83: 0 | DO83: 0 | DP83: 0 | DQ83: 0 | DR83: 0 | DS83: 0 | DT83: 0 | DU83: 0 | DV83: 0 | DW83: 0 | DX83: 0 | DY83: 0 | DZ83: 0 | EA83: 0 | EB83: 0 | EC83: 0 | ED83: 0 | EE83: 0 | EF83: 0 | EG83: 0 | EH83: 0 | EI83: 0 | EJ83: 0 | EK83: 0 | EL83: 0 | EM83: 0 | EN83: 0 | EO83: 0 | EP83: 0 | EQ83: 0 | ER83: 0 | ES83: 0 | ET83: 0 | EU83: 0 | EV83: 0 | EW83: 0 | EX83: 0 | EY83: 0 | EZ83: 0 | FA83: 0 | FB83: 0 | FC83: 0 | FD83: 0 | FE83: 0 | FF83: 0 | FG83: 0 | FH83: 0 | FI83: 0 | FJ83: 0 | FK83: 0 | FL83: 0 | FM83: 0 | FN83: 0 | FO83: 0 | FP83: 0 | FQ83: 0 | FR83: 0 | FS83: 0 | FT83: 0 | FU83: 0 | FV83: 0 | FW83: 0 | FX83: 0 | FY83: 0 | FZ83: 0 | GA83: 0 | GB83: 0 | GC83: 0 | GD83: 0 | GE83: 0 | GF83: 0 | GG83: 0 | GH83: 0 | GI83: 0 | GJ83: 0 | GK83: 0 | GL83: 0 | GM83: 0 | GN83: 0 | GO83: 0 | GP83: 0 | GQ83: 0 | GR83: 0 | GS83: 0 | GT83: 0.1 | GU83: 0.1 | GV83: 0 | GW83: 0 | GX83: 0 | GY83: 0 | GZ83: 0.1 | HA83: 0.1 | HB83: 0.1 | HC83: 0.2 | HD83: 0.2 | HE83: 0.2 | HF83: 0.2 | HG83: 0.3 | HH83: 0.2 | HI83: 0.2 | HJ83: 0.2 | HK83: 0.2 | HL83: 0.3 | HM83: 0.4 | HN83: 0.5 | HO83: 0.6 | HP83: 0.8 | HQ83: 1 | HR83: 1.3 | HS83: 1.4 | HT83: 1.4 | HU83: 1.4 | HV83: 1 | HW83: 1 | HX83: 1.7 | HY83: 2.4 | HZ83: 2.7 | IA83: 3.2 | IB83: 2.9 | IC83: 2.9 | ID83: 2.9 | IE83: 2.3 | IF83: 2.2 | IG83: 1.6 | IH83: 1 | II83: 1 | IJ83: 1.3 | IK83: 1.9 | IL83: 2.7 | IM83: 3.2 | IN83: 3.1 | IO83: 3.1 | IP83: 3.1 | IQ83: 2.8 | IR83: 2.4 | IS83: 1.6 | IT83: 1.2 | IU83: 1.4 | IV83: 2.2 | IW83: 2.1 | IX83: 3.1 | IY83: 3.5 | IZ83: 3.6 | JA83: 3.6 | JB83: 3.5 | JC83: 3.2 | JD83: 2.9 | JE83: 1.6 | JF83: 1.8 | JG83: 2 | JH83: 2.6 | JI83: 3.3 | JJ83: 2.9 | JK83: 3.8 | JL83: 3.9 | JM83: 4 | JN83: 3.7 | JO83: 3.1 | JP83: 2.6 | JQ83: 1.6 | JR83: 1.6 | JS83: 1.8 | JT83: 2.3 | JU83: 2.3 | JV83: 3.5 | JW83: 4.1 | JX83: 4.4 | JY83: 4 | JZ83: 4 | KA83: 3.5 | KB83: 2.9 | KC83: 2.2 | KD83: 1.8 | KE83: 1.5 | KF83: 1.9 | KG83: 3.2 | KH83: 3.8 | KI83: 4.4 | KJ83: 4.2 | KK83: 4.1 | KL83: 4.2 | KM83: 3.1 | KN83: 3 | KO83: 1.8 | KP83: 1.9 | KQ83: 2.1 | KR83: 2.1 | KS83: 3.1 | KT83: 3.7 | KU83: 4.4 | KV83: 4.1 | KW83: 3.7 | KX83: 3.7 | KY83: 3.4 | KZ83: 2.6 | LA83: 2.5 | LB83: 1.8 | LC83: 1.6 | LD83: 2.2 | LE83: 3.1 | LF83: 3.3 | LG83: 3.9 | LH83: 4.5 | LI83: 4.1 | LJ83: 4.1 | LK83: 3.7 | LL83: 2.7 | LM83: 1.9 | LN83: 1.7 | LO83: 1.9 | LP83: 2.1 | LQ83: 3.4 | LR83: 4.4 | LS83: 4.4 | LT83: 4 | LU83: 4.1 | LV83: 3.8 | LW83: 3.9 | LX83: 3.2 | LY83: 2.4 | LZ83: 1.8 | MA83: 1.9 | MB83: - | MC83: - | MD83: - | ME83: - | MF83: - | MG83: - | MH83: - | MI83: - | MJ83: - | MK83: - | ML83: -
B84: Solar térmica | C84: - | D84: - | E84: - | F84: - | G84: - | H84: - | I84: - | J84: - | K84: - | L84: - | M84: - | N84: - | O84: - | P84: - | Q84: - | R84: - | S84: - | T84: - | U84: - | V84: - | W84: - | X84: - | Y84: - | Z84: - | AA84: - | AB84: - | AC84: - | AD84: - | AE84: - | AF84: - | AG84: - | AH84: - | AI84: - | AJ84: - | AK84: - | AL84: - | AM84: - | AN84: - | AO84: - | AP84: - | AQ84: - | AR84: - | AS84: - | AT84: - | AU84: - | AV84: - | AW84: - | AX84: - | AY84: - | AZ84: - | BA84: - | BB84: - | BC84: - | BD84: - | BE84: - | BF84: - | BG84: - | BH84: - | BI84: - | BJ84: - | BK84: - | BL84: - | BM84: - | BN84: - | BO84: - | BP84: - | BQ84: - | BR84: - | BS84: - | BT84: - | BU84: - | BV84: - | BW84: - | BX84: - | BY84: - | BZ84: - | CA84: - | CB84: - | CC84: - | CD84: - | CE84: - | CF84: - | CG84: - | CH84: - | CI84: - | CJ84: - | CK84: - | CL84: - | CM84: - | CN84: - | CO84: - | CP84: - | CQ84: - | CR84: - | CS84: - | CT84: - | CU84: - | CV84: - | CW84: - | CX84: - | CY84: - | CZ84: - | DA84: - | DB84: - | DC84: - | DD84: - | DE84: - | DF84: - | DG84: - | DH84: - | DI84: - | DJ84: - | DK84: - | DL84: - | DM84: - | DN84: - | DO84: - | DP84: - | DQ84: - | DR84: - | DS84: - | DT84: - | DU84: - | DV84: - | DW84: - | DX84: - | DY84: - | DZ84: - | EA84: - | EB84: - | EC84: - | ED84: - | EE84: - | EF84: - | EG84: - | EH84: - | EI84: - | EJ84: - | EK84: - | EL84: - | EM84: - | EN84: - | EO84: - | EP84: - | EQ84: - | ER84: - | ES84: - | ET84: - | EU84: - | EV84: - | EW84: - | EX84: - | EY84: - | EZ84: - | FA84: - | FB84: - | FC84: - | FD84: - | FE84: - | FF84: - | FG84: - | FH84: - | FI84: - | FJ84: - | FK84: - | FL84: - | FM84: - | FN84: - | FO84: - | FP84: - | FQ84: - | FR84: - | FS84: - | FT84: - | FU84: - | FV84: - | FW84: - | FX84: - | FY84: - | FZ84: - | GA84: - | GB84: - | GC84: - | GD84: - | GE84: - | GF84: - | GG84: - | GH84: - | GI84: - | GJ84: - | GK84: - | GL84: - | GM84: 0 | GN84: 0 | GO84: 0 | GP84: 0 | GQ84: 0 | GR84: 0 | GS84: 0 | GT84: 0 | GU84: 0 | GV84: 0 | GW84: 0 | GX84: 0 | GY84: 0 | GZ84: 0 | HA84: 0 | HB84: 0 | HC84: 0 | HD84: 0 | HE84: 0 | HF84: 0 | HG84: 0 | HH84: 0 | HI84: 0 | HJ84: 0 | HK84: 0 | HL84: 0 | HM84: 0 | HN84: 0 | HO84: 0 | HP84: 0 | HQ84: 0 | HR84: 0 | HS84: 0 | HT84: 0 | HU84: 0 | HV84: 0 | HW84: 0 | HX84: 0 | HY84: 0 | HZ84: 0 | IA84: 0 | IB84: 0 | IC84: 0.1 | ID84: 0.1 | IE84: 0.1 | IF84: 0.1 | IG84: 0.1 | IH84: 0 | II84: 0.1 | IJ84: 0.1 | IK84: 0.1 | IL84: 0.2 | IM84: 0.3 | IN84: 0.3 | IO84: 0.4 | IP84: 0.5 | IQ84: 0.5 | IR84: 0.3 | IS84: 0.1 | IT84: 0.1 | IU84: 0.1 | IV84: 0.4 | IW84: 0.4 | IX84: 0.7 | IY84: 0.7 | IZ84: 1.1 | JA84: 1.3 | JB84: 1.1 | JC84: 1.1 | JD84: 0.8 | JE84: 0.4 | JF84: 0.4 | JG84: 0.5 | JH84: 0.8 | JI84: 1 | JJ84: 0.8 | JK84: 1.6 | JL84: 1.9 | JM84: 2.4 | JN84: 2.2 | JO84: 1.7 | JP84: 1.3 | JQ84: 0.6 | JR84: 0.6 | JS84: 0.5 | JT84: 0.9 | JU84: 0.6 | JV84: 1.4 | JW84: 2.5 | JX84: 3.2 | JY84: 3.3 | JZ84: 3.1 | KA84: 2.3 | KB84: 1.4 | KC84: 0.9 | KD84: 0.7 | KE84: 0.3 | KF84: 0.5 | KG84: 1.8 | KH84: 2.2 | KI84: 3.6 | KJ84: 3.4 | KK84: 3.7 | KL84: 4 | KM84: 1.9 | KN84: 1.4 | KO84: 0.4 | KP84: 0.6 | KQ84: 0.8 | KR84: 0.9 | KS84: 1.9 | KT84: 2 | KU84: 3.5 | KV84: 3.6 | KW84: 3.7 | KX84: 2.8 | KY84: 2.4 | KZ84: 1 | LA84: 1.1 | LB84: 0.4 | LC84: 0.3 | LD84: 0.6 | LE84: 1.8 | LF84: 2 | LG84: 2.6 | LH84: 4.2 | LI84: 3.8 | LJ84: 3.9 | LK84: 3 | LL84: 1.4 | LM84: 0.7 | LN84: 0.6 | LO84: 0.6 | LP84: 0.4 | LQ84: 1.7 | LR84: 2.9 | LS84: 3.2 | LT84: 3.6 | LU84: 3.8 | LV84: 3.4 | LW84: 3.2 | LX84: 2 | LY84: 1 | LZ84: 0.6 | MA84: 0.6 | MB84: - | MC84: - | MD84: - | ME84: - | MF84: - | MG84: - | MH84: - | MI84: - | MJ84: - | MK84: - | ML84: -
B85: Térmica renovable/Otras renovables | C85: - | D85: - | E85: - | F85: - | G85: - | H85: - | I85: - | J85: - | K85: - | L85: - | M85: - | N85: - | O85: - | P85: - | Q85: - | R85: - | S85: - | T85: - | U85: - | V85: - | W85: - | X85: 0 | Y85: 0 | Z85: 0 | AA85: 0 | AB85: 0 | AC85: 0 | AD85: 0 | AE85: 0 | AF85: 0 | AG85: 0 | AH85: 0 | AI85: 0 | AJ85: 0 | AK85: 0 | AL85: 0 | AM85: 0 | AN85: 0 | AO85: 0 | AP85: 0 | AQ85: 0 | AR85: 0 | AS85: 0 | AT85: 0 | AU85: 0 | AV85: 0.1 | AW85: 0.1 | AX85: 0 | AY85: 0 | AZ85: 0 | BA85: 0.1 | BB85: 0.1 | BC85: 0.2 | BD85: 0.1 | BE85: 0.2 | BF85: 0.3 | BG85: 0.3 | BH85: 0.3 | BI85: 0.5 | BJ85: 0.5 | BK85: 0.4 | BL85: 0.5 | BM85: 0.5 | BN85: 0.5 | BO85: 0.5 | BP85: 0.3 | BQ85: 0.4 | BR85: 0.5 | BS85: 0.5 | BT85: 0.5 | BU85: 0.4 | BV85: 0.5 | BW85: 0.4 | BX85: 0.4 | BY85: 0.5 | BZ85: 0.6 | CA85: 0.5 | CB85: 0.6 | CC85: 0.6 | CD85: 0.6 | CE85: 0.6 | CF85: 0.5 | CG85: 0.4 | CH85: 0.4 | CI85: 0.4 | CJ85: 0.4 | CK85: 0.4 | CL85: 0.4 | CM85: 0.4 | CN85: 0.3 | CO85: 0.4 | CP85: 0.4 | CQ85: 0.4 | CR85: 0.4 | CS85: 0.4 | CT85: 0.4 | CU85: 0.2 | CV85: 0.4 | CW85: 0.4 | CX85: 0.5 | CY85: 0.5 | CZ85: 0.5 | DA85: 0.5 | DB85: 0.5 | DC85: 0.4 | DD85: 0.5 | DE85: 0.5 | DF85: 0.4 | DG85: 0.4 | DH85: 0.5 | DI85: 0.5 | DJ85: 0.5 | DK85: 0.5 | DL85: 0.4 | DM85: 0.5 | DN85: 0.5 | DO85: 0.6 | DP85: 0.6 | DQ85: 0.5 | DR85: 0.4 | DS85: 0.4 | DT85: 0.5 | DU85: 0.5 | DV85: 0.5 | DW85: 0.4 | DX85: 0.4 | DY85: 0.5 | DZ85: 0.5 | EA85: 0.5 | EB85: 0.6 | EC85: 0.6 | ED85: 0.6 | EE85: 0.6 | EF85: 0.6 | EG85: 0.7 | EH85: 0.7 | EI85: 0.7 | EJ85: 1 | EK85: 0.9 | EL85: 0.9 | EM85: 1.1 | EN85: 1.1 | EO85: 1 | EP85: 1 | EQ85: 0.5 | ER85: 0.6 | ES85: 0.7 | ET85: 0.7 | EU85: 0.7 | EV85: 0.6 | EW85: 0.7 | EX85: 0.8 | EY85: 0.7 | EZ85: 0.7 | FA85: 0.7 | FB85: 0.8 | FC85: 0.6 | FD85: 0.7 | FE85: 0.8 | FF85: 0.8 | FG85: 0.8 | FH85: 0.7 | FI85: 0.7 | FJ85: 0.8 | FK85: 0.8 | FL85: 0.9 | FM85: 0.8 | FN85: 0.8 | FO85: 0.8 | FP85: 0.7 | FQ85: 0.8 | FR85: 0.8 | FS85: 0.8 | FT85: 0.7 | FU85: 0.7 | FV85: 0.7 | FW85: 0.8 | FX85: 0.8 | FY85: 0.7 | FZ85: 0.7 | GA85: 0.8 | GB85: 0.7 | GC85: 0.8 | GD85: 0.8 | GE85: 0.9 | GF85: 0.8 | GG85: 0.8 | GH85: 0.9 | GI85: 0.8 | GJ85: 0.8 | GK85: 0.8 | GL85: 0.7 | GM85: 0.7 | GN85: 0.7 | GO85: 0.8 | GP85: 0.9 | GQ85: 0.9 | GR85: 0.9 | GS85: 0.8 | GT85: 0.9 | GU85: 0.8 | GV85: 0.9 | GW85: 0.8 | GX85: 0.8 | GY85: 0.8 | GZ85: 0.8 | HA85: 0.8 | HB85: 0.9 | HC85: 0.9 | HD85: 0.9 | HE85: 0.9 | HF85: 0.9 | HG85: 0.9 | HH85: 1 | HI85: 0.9 | HJ85: 0.9 | HK85: 0.9 | HL85: 0.9 | HM85: 0.9 | HN85: 1 | HO85: 1 | HP85: 1 | HQ85: 0.9 | HR85: 1 | HS85: 1 | HT85: 1 | HU85: 1 | HV85: 0.9 | HW85: 1 | HX85: 1.1 | HY85: 1.2 | HZ85: 1.4 | IA85: 1.2 | IB85: 1.1 | IC85: 1 | ID85: 1.1 | IE85: 1.2 | IF85: 1.5 | IG85: 1.1 | IH85: 1.1 | II85: 1 | IJ85: 1 | IK85: 1 | IL85: 1.2 | IM85: 1.3 | IN85: 1.3 | IO85: 1.1 | IP85: 1.2 | IQ85: 1.2 | IR85: 1.3 | IS85: 1.2 | IT85: 1.2 | IU85: 1.4 | IV85: 1.5 | IW85: 1.5 | IX85: 1.7 | IY85: 1.6 | IZ85: 1.6 | JA85: 1.6 | JB85: 1.6 | JC85: 1.7 | JD85: 1.8 | JE85: 1.7 | JF85: 1.7 | JG85: 1.6 | JH85: 1.5 | JI85: 1.8 | JJ85: 1.7 | JK85: 1.7 | JL85: 1.9 | JM85: 1.9 | JN85: 1.8 | JO85: 1.7 | JP85: 1.9 | JQ85: 1.9 | JR85: 1.9 | JS85: 1.8 | JT85: 1.9 | JU85: 2 | JV85: 2 | JW85: 2.2 | JX85: 2 | JY85: 1.9 | JZ85: 1.9 | KA85: 1.9 | KB85: 1.9 | KC85: 1.9 | KD85: 1.9 | KE85: 1.8 | KF85: 1.5 | KG85: 1.7 | KH85: 1.7 | KI85: 2 | KJ85: 2 | KK85: 1.9 | KL85: 2.1 | KM85: 2 | KN85: 1.9 | KO85: 1.8 | KP85: 1.8 | KQ85: 1 | KR85: 0.9 | KS85: 1.1 | KT85: 0.9 | KU85: 1.1 | KV85: 1.3 | KW85: 1.2 | KX85: 1.4 | KY85: 1.5 | KZ85: 1.6 | LA85: 1.5 | LB85: 1.4 | LC85: 1.2 | LD85: 1.3 | LE85: 1.2 | LF85: 1 | LG85: 1.4 | LH85: 1.5 | LI85: 1.4 | LJ85: 1.6 | LK85: 1.5 | LL85: 1.5 | LM85: 1.5 | LN85: 1.5 | LO85: 1.3 | LP85: 1.4 | LQ85: 1.3 | LR85: 1.3 | LS85: 1.6 | LT85: 1.4 | LU85: 1.6 | LV85: 1.6 | LW85: 1.6 | LX85: 1.5 | LY85: 1.4 | LZ85: 1.3 | MA85: 1.4 | MB85: - | MC85: - | MD85: - | ME85: - | MF85: - | MG85: - | MH85: - | MI85: - | MJ85: - | MK85: - | ML85: -
B86: Residuos renovables | C86: - | D86: - | E86: - | F86: - | G86: - | H86: - | I86: - | J86: - | K86: - | L86: - | M86: - | N86: - | O86: - | P86: - | Q86: - | R86: - | S86: - | T86: - | U86: - | V86: - | W86: - | X86: - | Y86: - | Z86: - | AA86: - | AB86: - | AC86: - | AD86: - | AE86: - | AF86: - | AG86: - | AH86: - | AI86: - | AJ86: - | AK86: - | AL86: - | AM86: - | AN86: - | AO86: - | AP86: - | AQ86: - | AR86: - | AS86: - | AT86: - | AU86: - | AV86: - | AW86: - | AX86: - | AY86: - | AZ86: - | BA86: - | BB86: - | BC86: - | BD86: - | BE86: - | BF86: - | BG86: - | BH86: - | BI86: - | BJ86: - | BK86: - | BL86: - | BM86: - | BN86: - | BO86: - | BP86: - | BQ86: - | BR86: - | BS86: - | BT86: - | BU86: - | BV86: - | BW86: - | BX86: - | BY86: - | BZ86: - | CA86: - | CB86: - | CC86: - | CD86: - | CE86: - | CF86: - | CG86: - | CH86: - | CI86: - | CJ86: - | CK86: - | CL86: - | CM86: - | CN86: - | CO86: - | CP86: - | CQ86: - | CR86: - | CS86: - | CT86: - | CU86: - | CV86: - | CW86: - | CX86: - | CY86: - | CZ86: - | DA86: - | DB86: - | DC86: - | DD86: - | DE86: - | DF86: - | DG86: - | DH86: - | DI86: - | DJ86: - | DK86: - | DL86: - | DM86: - | DN86: - | DO86: - | DP86: - | DQ86: - | DR86: - | DS86: - | DT86: - | DU86: - | DV86: - | DW86: - | DX86: - | DY86: - | DZ86: - | EA86: - | EB86: - | EC86: - | ED86: - | EE86: - | EF86: - | EG86: - | EH86: - | EI86: - | EJ86: - | EK86: - | EL86: - | EM86: - | EN86: - | EO86: - | EP86: - | EQ86: - | ER86: - | ES86: - | ET86: - | EU86: - | EV86: - | EW86: - | EX86: - | EY86: - | EZ86: - | FA86: - | FB86: - | FC86: - | FD86: - | FE86: - | FF86: - | FG86: - | FH86: - | FI86: - | FJ86: - | FK86: - | FL86: - | FM86: - | FN86: - | FO86: - | FP86: - | FQ86: - | FR86: - | FS86: - | FT86: - | FU86: - | FV86: - | FW86: - | FX86: - | FY86: - | FZ86: - | GA86: - | GB86: - | GC86: - | GD86: - | GE86: - | GF86: - | GG86: - | GH86: - | GI86: - | GJ86: - | GK86: - | GL86: - | GM86: - | GN86: - | GO86: - | GP86: - | GQ86: - | GR86: - | GS86: - | GT86: - | GU86: - | GV86: - | GW86: - | GX86: - | GY86: - | GZ86: - | HA86: - | HB86: - | HC86: - | HD86: - | HE86: - | HF86: - | HG86: - | HH86: - | HI86: - | HJ86: - | HK86: - | HL86: - | HM86: - | HN86: - | HO86: - | HP86: - | HQ86: - | HR86: - | HS86: - | HT86: - | HU86: - | HV86: - | HW86: - | HX86: - | HY86: - | HZ86: - | IA86: - | IB86: - | IC86: - | ID86: - | IE86: - | IF86: - | IG86: - | IH86: - | II86: - | IJ86: - | IK86: - | IL86: - | IM86: - | IN86: - | IO86: - | IP86: - | IQ86: - | IR86: - | IS86: - | IT86: - | IU86: - | IV86: - | IW86: - | IX86: - | IY86: - | IZ86: - | JA86: - | JB86: - | JC86: - | JD86: - | JE86: - | JF86: - | JG86: - | JH86: - | JI86: - | JJ86: - | JK86: - | JL86: - | JM86: - | JN86: - | JO86: - | JP86: - | JQ86: - | JR86: - | JS86: - | JT86: - | JU86: - | JV86: - | JW86: - | JX86: - | JY86: - | JZ86: - | KA86: - | KB86: - | KC86: - | KD86: - | KE86: - | KF86: - | KG86: - | KH86: - | KI86: - | KJ86: - | KK86: - | KL86: - | KM86: - | KN86: - | KO86: - | KP86: - | KQ86: 0.2 | KR86: 0.2 | KS86: 0.3 | KT86: 0.2 | KU86: 0.2 | KV86: 0.3 | KW86: 0.2 | KX86: 0.3 | KY86: 0.3 | KZ86: 0.3 | LA86: 0.3 | LB86: 0.3 | LC86: 0.3 | LD86: 0.2 | LE86: 0.3 | LF86: 0.1 | LG86: 0.1 | LH86: 0.3 | LI86: 0.3 | LJ86: 0.3 | LK86: 0.3 | LL86: 0.3 | LM86: 0.3 | LN86: 0.3 | LO86: 0.3 | LP86: 0.3 | LQ86: 0.3 | LR86: 0.3 | LS86: 0.2 | LT86: 0.3 | LU86: 0.3 | LV86: 0.3 | LW86: 0.3 | LX86: 0.3 | LY86: 0.3 | LZ86: 0.3 | MA86: 0.3 | MB86: - | MC86: - | MD86: - | ME86: - | MF86: - | MG86: - | MH86: - | MI86: - | MJ86: - | MK86: - | ML86: -
B87: Generación renovable | C87: 30 | D87: 31.1 | E87: 21.3 | F87: 16.6 | G87: 17.4 | H87: 16.8 | I87: 13.8 | J87: 12 | K87: 11.1 | L87: 12.7 | M87: 16.8 | N87: 15.2 | O87: 19.6 | P87: 16.6 | Q87: 32.6 | R87: 31.1 | S87: 25.3 | T87: 19.2 | U87: 14.4 | V87: 10.8 | W87: 9.8 | X87: 13.1 | Y87: 16.3 | Z87: 14.9 | AA87: 9.7 | AB87: 6.3 | AC87: 6.4 | AD87: 14 | AE87: 13.3 | AF87: 14.9 | AG87: 13.7 | AH87: 10.6 | AI87: 10.7 | AJ87: 15.7 | AK87: 18.8 | AL87: 23.4 | AM87: 16.6 | AN87: 12.8 | AO87: 11.8 | AP87: 10.6 | AQ87: 17 | AR87: 20 | AS87: 16.1 | AT87: 11.5 | AU87: 10.6 | AV87: 24.1 | AW87: 28.1 | AX87: 21.3 | AY87: 28.7 | AZ87: 25.7 | BA87: 23.6 | BB87: 20.9 | BC87: 22.9 | BD87: 20.6 | BE87: 14.6 | BF87: 11.9 | BG87: 11 | BH87: 13.7 | BI87: 20 | BJ87: 15 | BK87: 21.2 | BL87: 23.5 | BM87: 25.3 | BN87: 17 | BO87: 15 | BP87: 14.8 | BQ87: 13.1 | BR87: 9.7 | BS87: 8.3 | BT87: 8.7 | BU87: 10.5 | BV87: 18.9 | BW87: 40.1 | BX87: 40.8 | BY87: 27.9 | BZ87: 33 | CA87: 32.4 | CB87: 24.4 | CC87: 18.4 | CD87: 14.1 | CE87: 15.6 | CF87: 14.7 | CG87: 17.6 | CH87: 31.3 | CI87: 37.3 | CJ87: 28.8 | CK87: 21.4 | CL87: 18.5 | CM87: 17.7 | CN87: 18.8 | CO87: 15.5 | CP87: 13.8 | CQ87: 12.6 | CR87: 11.8 | CS87: 25.7 | CT87: 36.1 | CU87: 40.3 | CV87: 31.1 | CW87: 20.7 | CX87: 27.4 | CY87: 31.5 | CZ87: 26 | DA87: 18.3 | DB87: 16.5 | DC87: 14.1 | DD87: 15.5 | DE87: 12 | DF87: 9.6 | DG87: 10.2 | DH87: 11.1 | DI87: 15.4 | DJ87: 18.2 | DK87: 22.4 | DL87: 19.1 | DM87: 14.1 | DN87: 11.7 | DO87: 12 | DP87: 13.6 | DQ87: 20.4 | DR87: 19.4 | DS87: 16.5 | DT87: 12.9 | DU87: 12.1 | DV87: 17.9 | DW87: 23.6 | DX87: 17.3 | DY87: 13.2 | DZ87: 13.7 | EA87: 13.8 | EB87: 14.2 | EC87: 18.7 | ED87: 29.9 | EE87: 37.7 | EF87: 38.9 | EG87: 42.2 | EH87: 34.1 | EI87: 24.4 | EJ87: 18.7 | EK87: 15.1 | EL87: 14.7 | EM87: 13.9 | EN87: 15 | EO87: 16.8 | EP87: 12.4 | EQ87: 10.8 | ER87: 12.3 | ES87: 16.3 | ET87: 15.7 | EU87: 16.8 | EV87: 15.2 | EW87: 11.8 | EX87: 10.5 | EY87: 9.7 | EZ87: 12.4 | FA87: 17.7 | FB87: 29.7 | FC87: 34.6 | FD87: 29 | FE87: 30 | FF87: 30.1 | FG87: 26.6 | FH87: 16.9 | FI87: 14.1 | FJ87: 11.4 | FK87: 14 | FL87: 17.2 | FM87: 24 | FN87: 31.9 | FO87: 26.8 | FP87: 23 | FQ87: 21.9 | FR87: 24.5 | FS87: 23.6 | FT87: 19.6 | FU87: 15.2 | FV87: 15.2 | FW87: 14.4 | FX87: 17.8 | FY87: 19.5 | FZ87: 17.4 | GA87: 16 | GB87: 16.3 | GC87: 17.4 | GD87: 21.5 | GE87: 19.6 | GF87: 15.5 | GG87: 14 | GH87: 14.6 | GI87: 11 | GJ87: 14.3 | GK87: 16.2 | GL87: 18.2 | GM87: 13.8 | GN87: 14.6 | GO87: 25.8 | GP87: 25.6 | GQ87: 19.3 | GR87: 14.3 | GS87: 12 | GT87: 16.3 | GU87: 12.9 | GV87: 19.6 | GW87: 25.3 | GX87: 31 | GY87: 18.9 | GZ87: 27.9 | HA87: 31.1 | HB87: 21.3 | HC87: 26.1 | HD87: 20 | HE87: 19.6 | HF87: 20.3 | HG87: 16.6 | HH87: 17.1 | HI87: 18.2 | HJ87: 15.6 | HK87: 17.1 | HL87: 13.8 | HM87: 22.9 | HN87: 28 | HO87: 24.9 | HP87: 25.3 | HQ87: 19.5 | HR87: 17.8 | HS87: 17.9 | HT87: 18.3 | HU87: 24 | HV87: 27 | HW87: 24.9 | HX87: 33.6 | HY87: 31.2 | HZ87: 30.4 | IA87: 30.4 | IB87: 24.7 | IC87: 21.7 | ID87: 20.7 | IE87: 19.7 | IF87: 24.1 | IG87: 33.8 | IH87: 36.5 | II87: 40.3 | IJ87: 40.2 | IK87: 46.3 | IL87: 39.2 | IM87: 40 | IN87: 33.2 | IO87: 28 | IP87: 26.8 | IQ87: 22 | IR87: 29.1 | IS87: 33.3 | IT87: 38 | IU87: 39.9 | IV87: 36 | IW87: 39.8 | IX87: 39.1 | IY87: 34.6 | IZ87: 29.8 | JA87: 28.2 | JB87: 25.6 | JC87: 22.3 | JD87: 26.4 | JE87: 31.5 | JF87: 33.7 | JG87: 26 | JH87: 30 | JI87: 28.7 | JJ87: 38.5 | JK87: 36.1 | JL87: 33.2 | JM87: 28.9 | JN87: 27.5 | JO87: 29.7 | JP87: 26.7 | JQ87: 34.7 | JR87: 39.2 | JS87: 43.3 | JT87: 45.8 | JU87: 50.4 | JV87: 53.8 | JW87: 47.2 | JX87: 44.7 | JY87: 33.3 | JZ87: 34.9 | KA87: 31.9 | KB87: 34.1 | KC87: 47.3 | KD87: 36.7 | KE87: 50.6 | KF87: 57.9 | KG87: 54.2 | KH87: 52.1 | KI87: 44.3 | KJ87: 37.9 | KK87: 36.7 | KL87: 33.8 | KM87: 25.8 | KN87: 30.8 | KO87: 41.2 | KP87: 40.5 | KQ87: 35.9 | KR87: 46.9 | KS87: 45.7 | KT87: 40.2 | KU87: 47.6 | KV87: 35.2 | KW87: 30.1 | KX87: 30.8 | KY87: 30.5 | KZ87: 33.5 | LA87: 33.5 | LB87: 28 | LC87: 45.2 | LD87: 52.8 | LE87: 50.8 | LF87: 53 | LG87: 54 | LH87: 42.1 | LI87: 36.1 | LJ87: 37.1 | LK87: 30.2 | LL87: 25.3 | LM87: 30.4 | LN87: 25.8 | LO87: 32.4 | LP87: 38.5 | LQ87: 43.4 | LR87: 41.3 | LS87: 37.5 | LT87: 32.2 | LU87: 31 | LV87: 30.6 | LW87: 30 | LX87: 26.8 | LY87: 27.3 | LZ87: 34.2 | MA87: 38.4 | MB87: - | MC87: - | MD87: - | ME87: - | MF87: - | MG87: - | MH87: - | MI87: - | MJ87: - | MK87: - | ML87: -
B89: Estructura de generación renovable mensual Islas Baleares (%) | C89: 2006-01-01 | D89: 2006-02-01 | E89: 2006-03-01 | F89: 2006-04-01 | G89: 2006-05-01 | H89: 2006-06-01 | I89: 2006-07-01 | J89: 2006-08-01 | K89: 2006-09-01 | L89: 2006-10-01 | M89: 2006-11-01 | N89: 2006-12-01 | O89: 2007-01-01 | P89: 2007-02-01 | Q89: 2007-03-01 | R89: 2007-04-01 | S89: 2007-05-01 | T89: 2007-06-01 | U89: 2007-07-01 | V89: 2007-08-01 | W89: 2007-09-01 | X89: 2007-10-01 | Y89: 2007-11-01 | Z89: 2007-12-01 | AA89: 2008-01-01 | AB89: 2008-02-01 | AC89: 2008-03-01 | AD89: 2008-04-01 | AE89: 2008-05-01 | AF89: 2008-06-01 | AG89: 2008-07-01 | AH89: 2008-08-01 | AI89: 2008-09-01 | AJ89: 2008-10-01 | AK89: 2008-11-01 | AL89: 2008-12-01 | AM89: 2009-01-01 | AN89: 2009-02-01 | AO89: 2009-03-01 | AP89: 2009-04-01 | AQ89: 2009-05-01 | AR89: 2009-06-01 | AS89: 2009-07-01 | AT89: 2009-08-01 | AU89: 2009-09-01 | AV89: 2009-10-01 | AW89: 2009-11-01 | AX89: 2009-12-01 | AY89: 2010-01-01 | AZ89: 2010-02-01 | BA89: 2010-03-01 | BB89: 2010-04-01 | BC89: 2010-05-01 | BD89: 2010-06-01 | BE89: 2010-07-01 | BF89: 2010-08-01 | BG89: 2010-09-01 | BH89: 2010-10-01 | BI89: 2010-11-01 | BJ89: 2010-12-01 | BK89: 2011-01-01 | BL89: 2011-02-01 | BM89: 2011-03-01 | BN89: 2011-04-01 | BO89: 2011-05-01 | BP89: 2011-06-01 | BQ89: 2011-07-01 | BR89: 2011-08-01 | BS89: 2011-09-01 | BT89: 2011-10-01 | BU89: 2011-11-01 | BV89: 2011-12-01 | BW89: 2012-01-01 | BX89: 2012-02-01 | BY89: 2012-03-01 | BZ89: 2012-04-01 | CA89: 2012-05-01 | CB89: 2012-06-01 | CC89: 2012-07-01 | CD89: 2012-08-01 | CE89: 2012-09-01 | CF89: 2012-10-01 | CG89: 2012-11-01 | CH89: 2012-12-01 | CI89: 2013-01-01 | CJ89: 2013-02-01 | CK89: 2013-03-01 | CL89: 2013-04-01 | CM89: 2013-05-01 | CN89: 2013-06-01 | CO89: 2013-07-01 | CP89: 2013-08-01 | CQ89: 2013-09-01 | CR89: 2013-10-01 | CS89: 2013-11-01 | CT89: 2013-12-01 | CU89: 2014-01-01 | CV89: 2014-02-01 | CW89: 2014-03-01 | CX89: 2014-04-01 | CY89: 2014-05-01 | CZ89: 2014-06-01 | DA89: 2014-07-01 | DB89: 2014-08-01 | DC89: 2014-09-01 | DD89: 2014-10-01 | DE89: 2014-11-01 | DF89: 2014-12-01 | DG89: 2015-01-01 | DH89: 2015-02-01 | DI89: 2015-03-01 | DJ89: 2015-04-01 | DK89: 2015-05-01 | DL89: 2015-06-01 | DM89: 2015-07-01 | DN89: 2015-08-01 | DO89: 2015-09-01 | DP89: 2015-10-01 | DQ89: 2015-11-01 | DR89: 2015-12-01 | DS89: 2016-01-01 | DT89: 2016-02-01 | DU89: 2016-03-01 | DV89: 2016-04-01 | DW89: 2016-05-01 | DX89: 2016-06-01 | DY89: 2016-07-01 | DZ89: 2016-08-01 | EA89: 2016-09-01 | EB89: 2016-10-01 | EC89: 2016-11-01 | ED89: 2016-12-01 | EE89: 2017-01-01 | EF89: 2017-02-01 | EG89: 2017-03-01 | EH89: 2017-04-01 | EI89: 2017-05-01 | EJ89: 2017-06-01 | EK89: 2017-07-01 | EL89: 2017-08-01 | EM89: 2017-09-01 | EN89: 2017-10-01 | EO89: 2017-11-01 | EP89: 2017-12-01 | EQ89: 2018-01-01 | ER89: 2018-02-01 | ES89: 2018-03-01 | ET89: 2018-04-01 | EU89: 2018-05-01 | EV89: 2018-06-01 | EW89: 2018-07-01 | EX89: 2018-08-01 | EY89: 2018-09-01 | EZ89: 2018-10-01 | FA89: 2018-11-01 | FB89: 2018-12-01
B90: Eólica | C90: 0.1 | D90: 0.1 | E90: 0.1 | F90: 0.1 | G90: 0.1 | H90: 0.1 | I90: 0 | J90: 0.1 | K90: 0.1 | L90: 0.1 | M90: 0.1 | N90: 0.1 | O90: 0.1 | P90: 0.1 | Q90: 0.1 | R90: 0.1 | S90: 0.1 | T90: 0.1 | U90: 0.1 | V90: 0.1 | W90: 0.1 | X90: 0.1 | Y90: 0.2 | Z90: 0.2 | AA90: 0.1 | AB90: 0.1 | AC90: 0.1 | AD90: 0.2 | AE90: 0 | AF90: 0.1 | AG90: 0 | AH90: 0.1 | AI90: 0.1 | AJ90: 0.1 | AK90: 0.1 | AL90: 0.1 | AM90: 0.1 | AN90: 0.2 | AO90: 0.1 | AP90: 0.1 | AQ90: 0.1 | AR90: 0.1 | AS90: 0 | AT90: 0 | AU90: 0.1 | AV90: 0.1 | AW90: 0.1 | AX90: 0.2 | AY90: 0.1 | AZ90: 0.2 | BA90: 0.1 | BB90: 0.1 | BC90: 0.1 | BD90: 0.1 | BE90: 0.1 | BF90: 0.1 | BG90: 0.1 | BH90: 0.1 | BI90: 0.1 | BJ90: 0.1 | BK90: 0.1 | BL90: 0.1 | BM90: 0.1 | BN90: 0.1 | BO90: 0.1 | BP90: 0.1 | BQ90: 0.1 | BR90: 0.1 | BS90: 0 | BT90: 0.1 | BU90: 0.1 | BV90: 0.1 | BW90: 0.1 | BX90: 0.2 | BY90: 0.1 | BZ90: 0.2 | CA90: 0.1 | CB90: 0.1 | CC90: 0.1 | CD90: 0 | CE90: 0.2 | CF90: 0.1 | CG90: 0.2 | CH90: 0.2 | CI90: 0.2 | CJ90: 0.2 | CK90: 0.2 | CL90: 0.2 | CM90: 0.1 | CN90: 0.1 | CO90: 0 | CP90: 0.1 | CQ90: 0.1 | CR90: 0.1 | CS90: 0.3 | CT90: 0.1 | CU90: 0.2 | CV90: 0.2 | CW90: 0.2 | CX90: 0.1 | CY90: 0.1 | CZ90: 0.1 | DA90: 0.1 | DB90: 0.1 | DC90: 0.1 | DD90: 0.1 | DE90: 0.2 | DF90: 0.2 | DG90: 0.2 | DH90: 0.2 | DI90: 0.2 | DJ90: 0.1 | DK90: 0.2 | DL90: 0.1 | DM90: 0.1 | DN90: 0 | DO90: 0.1 | DP90: 0.2 | DQ90: 0.1 | DR90: 0 | DS90: 0.2 | DT90: 0.2 | DU90: 0.2 | DV90: 0.2 | DW90: 0.1 | DX90: 0.1 | DY90: 0.1 | DZ90: 0.1 | EA90: 0 | EB90: 0.1 | EC90: 0.1 | ED90: 0.1 | EE90: 0.1 | EF90: 0.1 | EG90: 0.1 | EH90: 0.1 | EI90: 0 | EJ90: 0 | EK90: 0 | EL90: 0 | EM90: 0 | EN90: 0.1 | EO90: 0.1 | EP90: 0.1 | EQ90: 0.1 | ER90: - | ES90: - | ET90: - | EU90: - | EV90: - | EW90: - | EX90: - | EY90: - | EZ90: - | FA90: - | FB90: -
B91: Solar fotovoltaica | C91: 0 | D91: 0 | E91: 0 | F91: 0 | G91: 0 | H91: 0 | I91: 0 | J91: 0 | K91: 0 | L91: 0 | M91: 0 | N91: 0 | O91: 0 | P91: 0 | Q91: 0 | R91: 0 | S91: 0 | T91: 0 | U91: 0 | V91: 0 | W91: 0 | X91: 0 | Y91: 0 | Z91: 0 | AA91: 0 | AB91: 0 | AC91: 0.1 | AD91: 0.2 | AE91: 0.2 | AF91: 0.3 | AG91: 0.4 | AH91: 0.7 | AI91: 0.9 | AJ91: 0.9 | AK91: 0.8 | AL91: 0.8 | AM91: 0.7 | AN91: 1.1 | AO91: 1.6 | AP91: 1.6 | AQ91: 1.9 | AR91: 1.7 | AS91: 1.4 | AT91: 1.3 | AU91: 1.3 | AV91: 1.4 | AW91: 1.3 | AX91: 0.8 | AY91: 0.8 | AZ91: 1.1 | BA91: 1.5 | BB91: 2 | BC91: 2.1 | BD91: 1.9 | BE91: 1.7 | BF91: 1.6 | BG91: 1.6 | BH91: 1.5 | BI91: 1.4 | BJ91: 1 | BK91: 1.1 | BL91: 1.5 | BM91: 1.8 | BN91: 2.5 | BO91: 2.4 | BP91: 2.1 | BQ91: 1.7 | BR91: 1.8 | BS91: 1.7 | BT91: 1.9 | BU91: 1.3 | BV91: 1.3 | BW91: 1.4 | BX91: 1.5 | BY91: 2.5 | BZ91: 2.8 | CA91: 2.9 | CB91: 2.3 | CC91: 2.2 | CD91: 2 | CE91: 2.5 | CF91: 2.5 | CG91: 2 | CH91: 2 | CI91: 2.2 | CJ91: 2.2 | CK91: 3.4 | CL91: 3.6 | CM91: 3.5 | CN91: 3.8 | CO91: 3 | CP91: 2.7 | CQ91: 2.7 | CR91: 2.5 | CS91: 1.8 | CT91: 1.7 | CU91: 1.8 | CV91: 2.8 | CW91: 3.4 | CX91: 4.1 | CY91: 3.6 | CZ91: 3.5 | DA91: 3 | DB91: 2.7 | DC91: 2.4 | DD91: 2.9 | DE91: 2.4 | DF91: 1.7 | DG91: 2 | DH91: 2.2 | DI91: 3 | DJ91: 4.1 | DK91: 3.5 | DL91: 3.4 | DM91: 2.7 | DN91: 2.5 | DO91: 2.4 | DP91: 2.6 | DQ91: 2.7 | DR91: 2 | DS91: 2.2 | DT91: 2.4 | DU91: 3.2 | DV91: 3.4 | DW91: 3.4 | DX91: 3.2 | DY91: 2.8 | DZ91: 2.7 | EA91: 2.2 | EB91: 2.2 | EC91: 2 | ED91: 1.7 | EE91: 1.5 | EF91: 2.2 | EG91: 3.7 | EH91: 3.5 | EI91: 3.3 | EJ91: 2.9 | EK91: 2.5 | EL91: 2.3 | EM91: 2.4 | EN91: 2.5 | EO91: 2.2 | EP91: 1.5 | EQ91: 1.9 | ER91: - | ES91: - | ET91: - | EU91: - | EV91: - | EW91: - | EX91: - | EY91: - | EZ91: - | FA91: - | FB91: -
B92: Térmica renovable/Otras renovables | C92: - | D92: - | E92: - | F92: - | G92: - | H92: - | I92: - | J92: - | K92: - | L92: - | M92: - | N92: - | O92: - | P92: - | Q92: - | R92: - | S92: - | T92: - | U92: - | V92: - | W92: - | X92: - | Y92: - | Z92: - | AA92: - | AB92: - | AC92: - | AD92: - | AE92: - | AF92: - | AG92: - | AH92: - | AI92: - | AJ92: - | AK92: - | AL92: - | AM92: - | AN92: - | AO92: - | AP92: - | AQ92: - | AR92: - | AS92: - | AT92: - | AU92: - | AV92: - | AW92: - | AX92: - | AY92: - | AZ92: - | BA92: - | BB92: - | BC92: - | BD92: - | BE92: - | BF92: - | BG92: - | BH92: - | BI92: - | BJ92: - | BK92: - | BL92: - | BM92: - | BN92: - | BO92: - | BP92: - | BQ92: - | BR92: - | BS92: - | BT92: - | BU92: - | BV92: - | BW92: 0 | BX92: 0 | BY92: 0 | BZ92: 0 | CA92: 0 | CB92: 0 | CC92: 0 | CD92: 0 | CE92: 0 | CF92: 0 | CG92: 0 | CH92: 0 | CI92: 0 | CJ92: 0 | CK92: 0 | CL92: 0 | CM92: 0 | CN92: 0 | CO92: 0 | CP92: 0 | CQ92: 0 | CR92: 0 | CS92: 0 | CT92: 0 | CU92: 0 | CV92: 0.1 | CW92: 0.1 | CX92: 0.1 | CY92: 0.1 | CZ92: 0 | DA92: 0 | DB92: 0 | DC92: 0 | DD92: 0 | DE92: 0.1 | DF92: 0.1 | DG92: 0.1 | DH92: 0.1 | DI92: 0 | DJ92: 0.1 | DK92: 0 | DL92: 0 | DM92: 0 | DN92: 0 | DO92: 0 | DP92: 0 | DQ92: 0 | DR92: 0.1 | DS92: 0.1 | DT92: 0.1 | DU92: 0.1 | DV92: 0 | DW92: 0 | DX92: 0 | DY92: 0 | DZ92: 0 | EA92: 0 | EB92: 0 | EC92: 0 | ED92: 0 | EE92: 0 | EF92: 0.1 | EG92: 0 | EH92: 0.1 | EI92: 0.1 | EJ92: 0 | EK92: 0 | EL92: 0 | EM92: 0 | EN92: 0 | EO92: 0 | EP92: 0 | EQ92: 0 | ER92: - | ES92: - | ET92: - | EU92: - | EV92: - | EW92: - | EX92: - | EY92: - | EZ92: - | FA92: - | FB92: -
B93: Residuos renovables | C93: - | D93: - | E93: - | F93: - | G93: - | H93: - | I93: - | J93: - | K93: - | L93: - | M93: - | N93: - | O93: - | P93: - | Q93: - | R93: - | S93: - | T93: - | U93: - | V93: - | W93: - | X93: - | Y93: - | Z93: - | AA93: - | AB93: - | AC93: - | AD93: - | AE93: - | AF93: - | AG93: - | AH93: - | AI93: - | AJ93: - | AK93: - | AL93: - | AM93: - | AN93: - | AO93: - | AP93: - | AQ93: - | AR93: - | AS93: - | AT93: - | AU93: - | AV93: - | AW93: - | AX93: - | AY93: - | AZ93: - | BA93: - | BB93: - | BC93: - | BD93: - | BE93: - | BF93: - | BG93: - | BH93: - | BI93: - | BJ93: - | BK93: - | BL93: - | BM93: - | BN93: - | BO93: - | BP93: - | BQ93: - | BR93: - | BS93: - | BT93: - | BU93: - | BV93: - | BW93: - | BX93: - | BY93: - | BZ93: - | CA93: - | CB93: - | CC93: - | CD93: - | CE93: - | CF93: - | CG93: - | CH93: - | CI93: - | CJ93: - | CK93: - | CL93: - | CM93: - | CN93: - | CO93: - | CP93: - | CQ93: - | CR93: - | CS93: - | CT93: - | CU93: - | CV93: - | CW93: - | CX93: - | CY93: - | CZ93: - | DA93: - | DB93: - | DC93: - | DD93: - | DE93: - | DF93: - | DG93: 2.7 | DH93: 2.2 | DI93: 3.4 | DJ93: 4.4 | DK93: 3.8 | DL93: 3.4 | DM93: 2.5 | DN93: 2.6 | DO93: 3.6 | DP93: 4.2 | DQ93: 4.8 | DR93: 3.9 | DS93: 2.7 | DT93: 1.6 | DU93: 2.6 | DV93: 3.7 | DW93: 4 | DX93: 3.3 | DY93: 2.3 | DZ93: 2.5 | EA93: 2.7 | EB93: 3.5 | EC93: 2.8 | ED93: 2.7 | EE93: 2 | EF93: 2.2 | EG93: 3.2 | EH93: 4.1 | EI93: 2.7 | EJ93: 3 | EK93: 2.7 | EL93: 2.6 | EM93: 3.6 | EN93: 3.7 | EO93: 3.4 | EP93: 2.7 | EQ93: 2.2 | ER93: - | ES93: - | ET93: - | EU93: - | EV93: - | EW93: - | EX93: - | EY93: - | EZ93: - | FA93: - | FB93: -
B94: Generación renovable | C94: 0.1 | D94: 0.1 | E94: 0.1 | F94: 0.1 | G94: 0.1 | H94: 0.1 | I94: 0 | J94: 0.1 | K94: 0.1 | L94: 0.1 | M94: 0.1 | N94: 0.1 | O94: 0.1 | P94: 0.1 | Q94: 0.1 | R94: 0.1 | S94: 0.1 | T94: 0.1 | U94: 0.1 | V94: 0.1 | W94: 0.1 | X94: 0.1 | Y94: 0.2 | Z94: 0.2 | AA94: 0.1 | AB94: 0.1 | AC94: 0.2 | AD94: 0.4 | AE94: 0.2 | AF94: 0.4 | AG94: 0.4 | AH94: 0.8 | AI94: 1 | AJ94: 1 | AK94: 0.9 | AL94: 0.9 | AM94: 0.8 | AN94: 1.3 | AO94: 1.7 | AP94: 1.7 | AQ94: 2 | AR94: 1.8 | AS94: 1.4 | AT94: 1.3 | AU94: 1.4 | AV94: 1.5 | AW94: 1.4 | AX94: 1 | AY94: 0.9 | AZ94: 1.3 | BA94: 1.6 | BB94: 2.1 | BC94: 2.2 | BD94: 2 | BE94: 1.8 | BF94: 1.7 | BG94: 1.7 | BH94: 1.6 | BI94: 1.5 | BJ94: 1.1 | BK94: 1.2 | BL94: 1.6 | BM94: 1.9 | BN94: 2.6 | BO94: 2.5 | BP94: 2.2 | BQ94: 1.8 | BR94: 1.9 | BS94: 1.7 | BT94: 2 | BU94: 1.4 | BV94: 1.4 | BW94: 1.5 | BX94: 1.7 | BY94: 2.6 | BZ94: 3 | CA94: 3 | CB94: 2.4 | CC94: 2.3 | CD94: 2 | CE94: 2.7 | CF94: 2.6 | CG94: 2.2 | CH94: 2.2 | CI94: 2.4 | CJ94: 2.4 | CK94: 3.6 | CL94: 3.8 | CM94: 3.6 | CN94: 3.9 | CO94: 3 | CP94: 2.8 | CQ94: 2.8 | CR94: 2.6 | CS94: 2.1 | CT94: 1.8 | CU94: 2 | CV94: 3.1 | CW94: 3.7 | CX94: 4.3 | CY94: 3.8 | CZ94: 3.6 | DA94: 3.1 | DB94: 2.8 | DC94: 2.5 | DD94: 3 | DE94: 2.7 | DF94: 2 | DG94: 5 | DH94: 4.7 | DI94: 6.6 | DJ94: 8.7 | DK94: 7.5 | DL94: 6.9 | DM94: 5.3 | DN94: 5.1 | DO94: 6.1 | DP94: 7 | DQ94: 7.6 | DR94: 6 | DS94: 5.2 | DT94: 4.3 | DU94: 6.1 | DV94: 7.3 | DW94: 7.5 | DX94: 6.6 | DY94: 5.2 | DZ94: 5.3 | EA94: 4.9 | EB94: 5.8 | EC94: 4.9 | ED94: 4.5 | EE94: 3.6 | EF94: 4.6 | EG94: 7 | EH94: 7.8 | EI94: 6.1 | EJ94: 5.9 | EK94: 5.2 | EL94: 4.9 | EM94: 6 | EN94: 6.3 | EO94: 5.7 | EP94: 4.3 | EQ94: 4.2 | ER94: - | ES94: - | ET94: - | EU94: - | EV94: - | EW94: - | EX94: - | EY94: - | EZ94: - | FA94: - | FB94: -
B96: Estructura de generación renovable mensual Islas Canarias (%) | C96: 2006-01-01 | D96: 2006-02-01 | E96: 2006-03-01 | F96: 2006-04-01 | G96: 2006-05-01 | H96: 2006-06-01 | I96: 2006-07-01 | J96: 2006-08-01 | K96: 2006-09-01 | L96: 2006-10-01 | M96: 2006-11-01 | N96: 2006-12-01 | O96: 2007-01-01 | P96: 2007-02-01 | Q96: 2007-03-01 | R96: 2007-04-01 | S96: 2007-05-01 | T96: 2007-06-01 | U96: 2007-07-01 | V96: 2007-08-01 | W96: 2007-09-01 | X96: 2007-10-01 | Y96: 2007-11-01 | Z96: 2007-12-01 | AA96: 2008-01-01 | AB96: 2008-02-01 | AC96: 2008-03-01 | AD96: 2008-04-01 | AE96: 2008-05-01 | AF96: 2008-06-01 | AG96: 2008-07-01 | AH96: 2008-08-01 | AI96: 2008-09-01 | AJ96: 2008-10-01 | AK96: 2008-11-01 | AL96: 2008-12-01 | AM96: 2009-01-01 | AN96: 2009-02-01 | AO96: 2009-03-01 | AP96: 2009-04-01 | AQ96: 2009-05-01 | AR96: 2009-06-01 | AS96: 2009-07-01 | AT96: 2009-08-01 | AU96: 2009-09-01 | AV96: 2009-10-01 | AW96: 2009-11-01 | AX96: 2009-12-01 | AY96: 2010-01-01 | AZ96: 2010-02-01 | BA96: 2010-03-01 | BB96: 2010-04-01 | BC96: 2010-05-01 | BD96: 2010-06-01 | BE96: 2010-07-01 | BF96: 2010-08-01 | BG96: 2010-09-01 | BH96: 2010-10-01 | BI96: 2010-11-01 | BJ96: 2010-12-01 | BK96: 2011-01-01 | BL96: 2011-02-01 | BM96: 2011-03-01 | BN96: 2011-04-01 | BO96: 2011-05-01 | BP96: 2011-06-01 | BQ96: 2011-07-01 | BR96: 2011-08-01 | BS96: 2011-09-01 | BT96: 2011-10-01 | BU96: 2011-11-01 | BV96: 2011-12-01 | BW96: 2012-01-01 | BX96: 2012-02-01 | BY96: 2012-03-01 | BZ96: 2012-04-01 | CA96: 2012-05-01 | CB96: 2012-06-01 | CC96: 2012-07-01 | CD96: 2012-08-01 | CE96: 2012-09-01 | CF96: 2012-10-01 | CG96: 2012-11-01 | CH96: 2012-12-01 | CI96: 2013-01-01 | CJ96: 2013-02-01 | CK96: 2013-03-01 | CL96: 2013-04-01 | CM96: 2013-05-01 | CN96: 2013-06-01 | CO96: 2013-07-01 | CP96: 2013-08-01 | CQ96: 2013-09-01 | CR96: 2013-10-01 | CS96: 2013-11-01 | CT96: 2013-12-01 | CU96: 2014-01-01 | CV96: 2014-02-01 | CW96: 2014-03-01 | CX96: 2014-04-01 | CY96: 2014-05-01 | CZ96: 2014-06-01 | DA96: 2014-07-01 | DB96: 2014-08-01 | DC96: 2014-09-01 | DD96: 2014-10-01 | DE96: 2014-11-01 | DF96: 2014-12-01 | DG96: 2015-01-01 | DH96: 2015-02-01 | DI96: 2015-03-01 | DJ96: 2015-04-01 | DK96: 2015-05-01 | DL96: 2015-06-01 | DM96: 2015-07-01 | DN96: 2015-08-01 | DO96: 2015-09-01 | DP96: 2015-10-01 | DQ96: 2015-11-01 | DR96: 2015-12-01 | DS96: 2016-01-01 | DT96: 2016-02-01 | DU96: 2016-03-01 | DV96: 2016-04-01 | DW96: 2016-05-01 | DX96: 2016-06-01 | DY96: 2016-07-01 | DZ96: 2016-08-01 | EA96: 2016-09-01 | EB96: 2016-10-01 | EC96: 2016-11-01 | ED96: 2016-12-01 | EE96: 2017-01-01 | EF96: 2017-02-01 | EG96: 2017-03-01 | EH96: 2017-04-01 | EI96: 2017-05-01 | EJ96: 2017-06-01 | EK96: 2017-07-01 | EL96: 2017-08-01 | EM96: 2017-09-01 | EN96: 2017-10-01 | EO96: 2017-11-01 | EP96: 2017-12-01 | EQ96: 2018-01-01 | ER96: 2018-02-01 | ES96: 2018-03-01 | ET96: 2018-04-01 | EU96: 2018-05-01 | EV96: 2018-06-01 | EW96: 2018-07-01 | EX96: 2018-08-01 | EY96: 2018-09-01 | EZ96: 2018-10-01 | FA96: 2018-11-01 | FB96: 2018-12-01
B97: Hidráulica | C97: - | D97: - | E97: - | F97: - | G97: - | H97: - | I97: - | J97: - | K97: - | L97: - | M97: - | N97: - | O97: - | P97: - | Q97: - | R97: - | S97: - | T97: - | U97: 0 | V97: 0 | W97: 0 | X97: 0 | Y97: 0 | Z97: 0 | AA97: 0 | AB97: 0 | AC97: 0 | AD97: - | AE97: 0 | AF97: 0 | AG97: 0 | AH97: 0 | AI97: - | AJ97: - | AK97: - | AL97: - | AM97: 0 | AN97: 0 | AO97: 0 | AP97: 0 | AQ97: - | AR97: - | AS97: - | AT97: - | AU97: - | AV97: - | AW97: - | AX97: - | AY97: - | AZ97: - | BA97: - | BB97: - | BC97: - | BD97: - | BE97: - | BF97: - | BG97: - | BH97: - | BI97: - | BJ97: - | BK97: - | BL97: - | BM97: 0 | BN97: 0 | BO97: 0 | BP97: 0 | BQ97: 0 | BR97: 0 | BS97: 0 | BT97: 0 | BU97: 0 | BV97: 0 | BW97: 0 | BX97: 0 | BY97: 0 | BZ97: 0 | CA97: 0 | CB97: 0 | CC97: 0 | CD97: 0 | CE97: 0 | CF97: 0 | CG97: 0 | CH97: 0 | CI97: 0 | CJ97: 0 | CK97: 0 | CL97: 0 | CM97: 0 | CN97: 0 | CO97: 0 | CP97: 0 | CQ97: 0 | CR97: 0 | CS97: 0 | CT97: 0 | CU97: 0 | CV97: 0 | CW97: 0 | CX97: 0 | CY97: 0 | CZ97: 0 | DA97: 0 | DB97: 0 | DC97: 0 | DD97: 0 | DE97: 0 | DF97: 0 | DG97: 0 | DH97: 0 | DI97: 0 | DJ97: 0 | DK97: 0 | DL97: 0 | DM97: 0 | DN97: 0 | DO97: 0 | DP97: 0 | DQ97: 0 | DR97: 0 | DS97: 0 | DT97: 0 | DU97: 0 | DV97: 0 | DW97: 0 | DX97: 0 | DY97: 0 | DZ97: 0 | EA97: 0 | EB97: 0 | EC97: 0 | ED97: 0 | EE97: 0 | EF97: 0 | EG97: 0 | EH97: 0 | EI97: 0 | EJ97: 0 | EK97: 0 | EL97: 0 | EM97: 0 | EN97: 0 | EO97: 0 | EP97: 0 | EQ97: - | ER97: - | ES97: - | ET97: - | EU97: - | EV97: - | EW97: - | EX97: - | EY97: - | EZ97: - | FA97: - | FB97: -
B98: Hidroeólica | C98: 0 | D98: 0 | E98: 0 | F98: 0 | G98: 0 | H98: 0 | I98: 0 | J98: 0 | K98: 0 | L98: 0 | M98: 0 | N98: 0 | O98: 0 | P98: 0 | Q98: 0 | R98: 0 | S98: 0 | T98: 0 | U98: 0 | V98: 0 | W98: 0 | X98: 0 | Y98: 0 | Z98: 0 | AA98: 0 | AB98: 0 | AC98: 0 | AD98: 0 | AE98: 0 | AF98: 0 | AG98: 0 | AH98: 0 | AI98: 0 | AJ98: 0 | AK98: 0 | AL98: 0 | AM98: 0 | AN98: 0 | AO98: 0 | AP98: 0 | AQ98: 0 | AR98: 0 | AS98: 0 | AT98: 0 | AU98: 0 | AV98: 0 | AW98: 0 | AX98: 0 | AY98: 0 | AZ98: 0 | BA98: 0 | BB98: 0 | BC98: 0 | BD98: 0 | BE98: 0 | BF98: 0 | BG98: 0 | BH98: 0 | BI98: 0 | BJ98: 0 | BK98: 0 | BL98: 0 | BM98: 0 | BN98: 0 | BO98: 0 | BP98: 0 | BQ98: 0 | BR98: 0 | BS98: 0 | BT98: 0 | BU98: 0 | BV98: 0 | BW98: 0 | BX98: 0 | BY98: 0 | BZ98: 0 | CA98: 0 | CB98: 0 | CC98: 0 | CD98: 0 | CE98: 0 | CF98: 0 | CG98: 0 | CH98: 0 | CI98: 0 | CJ98: 0 | CK98: 0 | CL98: 0 | CM98: 0 | CN98: 0 | CO98: 0 | CP98: 0 | CQ98: 0 | CR98: 0 | CS98: 0 | CT98: 0 | CU98: 0 | CV98: 0 | CW98: 0 | CX98: 0 | CY98: 0 | CZ98: 0 | DA98: 0 | DB98: 0 | DC98: 0 | DD98: 0 | DE98: 0 | DF98: 0 | DG98: 0.1 | DH98: 0.1 | DI98: 0 | DJ98: 0 | DK98: 0 | DL98: 0.1 | DM98: 0.3 | DN98: 0.3 | DO98: 0.1 | DP98: 0.1 | DQ98: 0.1 | DR98: 0.1 | DS98: 0.1 | DT98: 0.3 | DU98: 0.2 | DV98: 0.2 | DW98: 0.1 | DX98: 0.3 | DY98: 0.3 | DZ98: 0.3 | EA98: 0.3 | EB98: 0.1 | EC98: 0.1 | ED98: 0.1 | EE98: 0.1 | EF98: 0.2 | EG98: 0.3 | EH98: 0.1 | EI98: 0.2 | EJ98: 0.3 | EK98: 0.4 | EL98: 0.3 | EM98: 0.3 | EN98: 0.1 | EO98: 0.1 | EP98: 0.2 | EQ98: 0.3 | ER98: - | ES98: - | ET98: - | EU98: - | EV98: - | EW98: - | EX98: - | EY98: - | EZ98: - | FA98: - | FB98: -
B99: Eólica | C99: 2.4 | D99: 2.9 | E99: 3.1 | F99: 4.1 | G99: 4.9 | H99: 3.6 | I99: 7.4 | J99: 4.9 | K99: 2.9 | L99: 2.5 | M99: 2.1 | N99: 3.4 | O99: 2.3 | P99: 3.3 | Q99: 4.8 | R99: 3.6 | S99: 4.6 | T99: 4.3 | U99: 7.2 | V99: 6 | W99: 3.4 | X99: 2.4 | Y99: 2.1 | Z99: 2.4 | AA99: 1.6 | AB99: 2.2 | AC99: 5.1 | AD99: 4.7 | AE99: 4.1 | AF99: 5.3 | AG99: 7.5 | AH99: 7.5 | AI99: 2.2 | AJ99: 4.3 | AK99: 2.9 | AL99: 3.2 | AM99: 3.1 | AN99: 2.5 | AO99: 3.2 | AP99: 6.5 | AQ99: 4.4 | AR99: 2.8 | AS99: 6.9 | AT99: 7.1 | AU99: 3 | AV99: 1.6 | AW99: 3.3 | AX99: 2.7 | AY99: 1.6 | AZ99: 2.2 | BA99: 3.1 | BB99: 4.5 | BC99: 5 | BD99: 5.4 | BE99: 6.3 | BF99: 5.4 | BG99: 4.7 | BH99: 1.8 | BI99: 2.4 | BJ99: 2.2 | BK99: 1.5 | BL99: 3.6 | BM99: 3.1 | BN99: 3.4 | BO99: 2.7 | BP99: 5.2 | BQ99: 7.3 | BR99: 6.7 | BS99: 4.1 | BT99: 3.3 | BU99: 2.1 | BV99: 4.5 | BW99: 2.5 | BX99: 4.8 | BY99: 4.5 | BZ99: 4.3 | CA99: 3.7 | CB99: 6.1 | CC99: 7.5 | CD99: 6.9 | CE99: 1.7 | CF99: 2.2 | CG99: 2.3 | CH99: 2.1 | CI99: 3.4 | CJ99: 4.3 | CK99: 1.9 | CL99: 4 | CM99: 5.4 | CN99: 7.1 | CO99: 5.5 | CP99: 5.5 | CQ99: 3.4 | CR99: 3.2 | CS99: 3.9 | CT99: 3.1 | CU99: 4.1 | CV99: 5 | CW99: 6.5 | CX99: 4.1 | CY99: 6.1 | CZ99: 5.1 | DA99: 6.2 | DB99: 7.9 | DC99: 1.7 | DD99: 2.1 | DE99: 2.9 | DF99: 3.3 | DG99: 5.7 | DH99: 6.6 | DI99: 5.8 | DJ99: 4.3 | DK99: 5.7 | DL99: 4.4 | DM99: 7.8 | DN99: 6.5 | DO99: 2.3 | DP99: 1.4 | DQ99: 3.4 | DR99: 1.2 | DS99: 2.6 | DT99: 6 | DU99: 4.7 | DV99: 3.8 | DW99: 4.3 | DX99: 6.2 | DY99: 7.4 | DZ99: 6.1 | EA99: 6.2 | EB99: 1.7 | EC99: 2.4 | ED99: 2.1 | EE99: 2 | EF99: 3.4 | EG99: 4.9 | EH99: 2.6 | EI99: 3.5 | EJ99: 5.5 | EK99: 6.5 | EL99: 5.9 | EM99: 7.2 | EN99: 2.7 | EO99: 3.2 | EP99: 5.3 | EQ99: 8 | ER99: - | ES99: - | ET99: - | EU99: - | EV99: - | EW99: - | EX99: - | EY99: - | EZ99: - | FA99: - | FB99: -
B100: Solar fotovoltaica | C100: 0 | D100: 0 | E100: 0 | F100: 0 | G100: 0 | H100: 0 | I100: 0 | J100: 0.1 | K100: 0.1 | L100: 0.1 | M100: 0.1 | N100: 0.1 | O100: 0.1 | P100: 0.1 | Q100: 0.2 | R100: 0.2 | S100: 0.2 | T100: 0.2 | U100: 0.3 | V100: 0.3 | W100: 0.3 | X100: 0.2 | Y100: 0.2 | Z100: 0.2 | AA100: 0.3 | AB100: 0.4 | AC100: 0.5 | AD100: 0.5 | AE100: 0.6 | AF100: 0.7 | AG100: 0.7 | AH100: 0.7 | AI100: 0.8 | AJ100: 1.2 | AK100: 1 | AL100: 0.9 | AM100: 1.1 | AN100: 1.6 | AO100: 1.7 | AP100: 2.3 | AQ100: 2.2 | AR100: 2.2 | AS100: 2.2 | AT100: 2.2 | AU100: 1.6 | AV100: 1.7 | AW100: 1.5 | AX100: 1.2 | AY100: 1.4 | AZ100: 1.5 | BA100: 2.2 | BB100: 2.3 | BC100: 2.7 | BD100: 2.7 | BE100: 3 | BF100: 2.8 | BG100: 2.3 | BH100: 2.1 | BI100: 1.7 | BJ100: 1.7 | BK100: 2 | BL100: 2.5 | BM100: 2.7 | BN100: 2.8 | BO100: 2.9 | BP100: 3.2 | BQ100: 3.1 | BR100: 3.2 | BS100: 2.7 | BT100: 2.3 | BU100: 2 | BV100: 2 | BW100: 2.1 | BX100: 2.5 | BY100: 3.1 | BZ100: 3 | CA100: 3.5 | CB100: 3.4 | CC100: 3.4 | CD100: 3.3 | CE100: 3 | CF100: 2.5 | CG100: 2.2 | CH100: 2.5 | CI100: 2.8 | CJ100: 2.9 | CK100: 3.3 | CL100: 3.9 | CM100: 3.9 | CN100: 4.5 | CO100: 4.1 | CP100: 3.5 | CQ100: 3.3 | CR100: 3 | CS100: 2.5 | CT100: 2.2 | CU100: 2.6 | CV100: 3.1 | CW100: 3.8 | CX100: 3.8 | CY100: 4.2 | CZ100: 4 | DA100: 3.8 | DB100: 4 | DC100: 2.9 | DD100: 2.7 | DE100: 2.4 | DF100: 2.3 | DG100: 2.5 | DH100: 2.7 | DI100: 3.6 | DJ100: 3.7 | DK100: 4.2 | DL100: 4 | DM100: 4 | DN100: 3.4 | DO100: 2.8 | DP100: 2.4 | DQ100: 2.6 | DR100: 2.5 | DS100: 2.7 | DT100: 2.9 | DU100: 3.3 | DV100: 3.5 | DW100: 3.6 | DX100: 4.1 | DY100: 3.8 | DZ100: 3.5 | EA100: 3.4 | EB100: 2.6 | EC100: 2.3 | ED100: 2.1 | EE100: 2.4 | EF100: 2.8 | EG100: 3.4 | EH100: 3.6 | EI100: 3.4 | EJ100: 3.8 | EK100: 3.8 | EL100: 3.3 | EM100: 3 | EN100: 2.5 | EO100: 2.2 | EP100: 2.3 | EQ100: 2.4 | ER100: - | ES100: - | ET100: - | EU100: - | EV100: - | EW100: - | EX100: - | EY100: - | EZ100: - | FA100: - | FB100: -
B101: Térmica renovable/Otras renovables | C101: 1.2 | D101: 1.7 | E101: 2.9 | F101: 3 | G101: 2.7 | H101: 2.9 | I101: 2.8 | J101: 2.5 | K101: 1.7 | L101: 2.8 | M101: 2.4 | N101: 3 | O101: 2.7 | P101: 2.9 | Q101: 0.7 | R101: 2.4 | S101: 2.1 | T101: 2.1 | U101: 2.4 | V101: 2.6 | W101: 2.5 | X101: 2.3 | Y101: 2.3 | Z101: 2.9 | AA101: 2.8 | AB101: 2.7 | AC101: 2.6 | AD101: 2.6 | AE101: 2.8 | AF101: 2 | AG101: 0 | AH101: 2.6 | AI101: 1.8 | AJ101: 2.2 | AK101: 3 | AL101: 2.9 | AM101: 3 | AN101: 3.2 | AO101: 1.6 | AP101: 3.5 | AQ101: 3.2 | AR101: 3.3 | AS101: 3 | AT101: 3 | AU101: 3.1 | AV101: 2.8 | AW101: 3.1 | AX101: 3.2 | AY101: 3.2 | AZ101: 2.8 | BA101: 2.2 | BB101: 3.4 | BC101: 3.5 | BD101: 2.7 | BE101: 1.3 | BF101: 0.8 | BG101: 0.7 | BH101: 0.7 | BI101: 0.5 | BJ101: 0.3 | BK101: 0.4 | BL101: 0.9 | BM101: 0.8 | BN101: 0.8 | BO101: 1 | BP101: 0.2 | BQ101: 0.1 | BR101: 0.1 | BS101: 0.1 | BT101: 0.1 | BU101: 0.1 | BV101: 0.1 | BW101: 0.1 | BX101: 0.1 | BY101: 0.1 | BZ101: 0.1 | CA101: 0.1 | CB101: 0.1 | CC101: 0.1 | CD101: 0.1 | CE101: 0.1 | CF101: 0.1 | CG101: 0.1 | CH101: 0.1 | CI101: 0.1 | CJ101: 0.1 | CK101: 0.1 | CL101: 0.1 | CM101: 0.1 | CN101: 0.1 | CO101: 0.1 | CP101: 0.1 | CQ101: 0.1 | CR101: 0.1 | CS101: 0.1 | CT101: 0.1 | CU101: 0.1 | CV101: 0.1 | CW101: 0.1 | CX101: 0.1 | CY101: 0.1 | CZ101: 0.1 | DA101: 0.1 | DB101: 0.1 | DC101: 0.1 | DD101: 0.1 | DE101: 0.1 | DF101: 0.1 | DG101: 0.1 | DH101: 0.1 | DI101: 0.1 | DJ101: 0.1 | DK101: 0.1 | DL101: 0.1 | DM101: 0.1 | DN101: 0.1 | DO101: 0.1 | DP101: 0.1 | DQ101: 0.1 | DR101: 0.1 | DS101: 0.1 | DT101: 0.1 | DU101: 0.1 | DV101: 0.1 | DW101: 0.1 | DX101: 0.1 | DY101: 0.1 | DZ101: 0.1 | EA101: 0.1 | EB101: 0.1 | EC101: 0.1 | ED101: 0.1 | EE101: 0.1 | EF101: 0.1 | EG101: 0.1 | EH101: 0.1 | EI101: 0.1 | EJ101: 0.1 | EK101: 0.1 | EL101: 0.1 | EM101: 0.1 | EN101: 0.1 | EO101: 0.1 | EP101: 0.1 | EQ101: - | ER101: - | ES101: - | ET101: - | EU101: - | EV101: - | EW101: - | EX101: - | EY101: - | EZ101: - | FA101: - | FB101: -
B102: Generación renovable | C102: 3.6 | D102: 4.6 | E102: 6 | F102: 7.1 | G102: 7.6 | H102: 6.5 | I102: 10.2 | J102: 7.5 | K102: 4.7 | L102: 5.4 | M102: 4.6 | N102: 6.5 | O102: 5.1 | P102: 6.3 | Q102: 5.7 | R102: 6.2 | S102: 6.9 | T102: 6.6 | U102: 9.9 | V102: 8.9 | W102: 6.2 | X102: 4.9 | Y102: 4.6 | Z102: 5.5 | AA102: 4.7 | AB102: 5.3 | AC102: 8.2 | AD102: 7.8 | AE102: 7.5 | AF102: 8 | AG102: 8.2 | AH102: 10.8 | AI102: 4.8 | AJ102: 7.7 | AK102: 6.9 | AL102: 7 | AM102: 7.2 | AN102: 7.3 | AO102: 6.5 | AP102: 12.3 | AQ102: 9.8 | AR102: 8.3 | AS102: 12.1 | AT102: 12.3 | AU102: 7.7 | AV102: 6.1 | AW102: 7.9 | AX102: 7.1 | AY102: 6.2 | AZ102: 6.5 | BA102: 7.5 | BB102: 10.2 | BC102: 11.2 | BD102: 10.8 | BE102: 10.6 | BF102: 9 | BG102: 7.7 | BH102: 4.6 | BI102: 4.6 | BJ102: 4.2 | BK102: 3.9 | BL102: 7 | BM102: 6.6 | BN102: 7 | BO102: 6.6 | BP102: 8.6 | BQ102: 10.5 | BR102: 10 | BS102: 6.9 | BT102: 5.7 | BU102: 4.2 | BV102: 6.6 | BW102: 4.7 | BX102: 7.4 | BY102: 7.7 | BZ102: 7.4 | CA102: 7.3 | CB102: 9.6 | CC102: 11 | CD102: 10.3 | CE102: 4.8 | CF102: 4.8 | CG102: 4.6 | CH102: 4.7 | CI102: 6.3 | CJ102: 7.3 | CK102: 5.3 | CL102: 8 | CM102: 9.4 | CN102: 11.7 | CO102: 9.7 | CP102: 9.1 | CQ102: 6.8 | CR102: 6.3 | CS102: 6.5 | CT102: 5.4 | CU102: 6.8 | CV102: 8.2 | CW102: 10.4 | CX102: 8 | CY102: 10.4 | CZ102: 9.2 | DA102: 10.1 | DB102: 12 | DC102: 4.7 | DD102: 4.9 | DE102: 5.4 | DF102: 5.7 | DG102: 8.4 | DH102: 9.5 | DI102: 9.5 | DJ102: 8.1 | DK102: 10 | DL102: 8.6 | DM102: 12.2 | DN102: 10.3 | DO102: 5.3 | DP102: 4 | DQ102: 6.2 | DR102: 3.9 | DS102: 5.5 | DT102: 9.3 | DU102: 8.3 | DV102: 7.6 | DW102: 8.1 | DX102: 10.7 | DY102: 11.6 | DZ102: 10 | EA102: 10 | EB102: 4.5 | EC102: 4.9 | ED102: 4.4 | EE102: 4.6 | EF102: 6.5 | EG102: 8.7 | EH102: 6.4 | EI102: 7.2 | EJ102: 9.7 | EK102: 10.8 | EL102: 9.6 | EM102: 10.6 | EN102: 5.4 | EO102: 5.6 | EP102: 7.9 | EQ102: 10.7 | ER102: - | ES102: - | ET102: - | EU102: - | EV102: - | EW102: - | EX102: - | EY102: - | EZ102: - | FA102: - | FB102: -
B104: Estructura de generación renovable mensual Melilla (%) | C104: 2007-01-01 | D104: 2007-02-01 | E104: 2007-03-01 | F104: 2007-04-01 | G104: 2007-05-01 | H104: 2007-06-01 | I104: 2007-07-01 | J104: 2007-08-01 | K104: 2007-09-01 | L104: 2007-10-01 | M104: 2007-11-01 | N104: 2007-12-01 | O104: 2008-01-01 | P104: 2008-02-01 | Q104: 2008-03-01 | R104: 2008-04-01 | S104: 2008-05-01 | T104: 2008-06-01 | U104: 2008-07-01 | V104: 2008-08-01 | W104: 2008-09-01 | X104: 2008-10-01 | Y104: 2008-11-01 | Z104: 2008-12-01 | AA104: 2009-01-01 | AB104: 2009-02-01 | AC104: 2009-03-01 | AD104: 2009-04-01 | AE104: 2009-05-01 | AF104: 2009-06-01 | AG104: 2009-07-01 | AH104: 2009-08-01 | AI104: 2009-09-01 | AJ104: 2009-10-01 | AK104: 2009-11-01 | AL104: 2009-12-01 | AM104: 2010-01-01 | AN104: 2010-02-01 | AO104: 2010-03-01 | AP104: 2010-04-01 | AQ104: 2010-05-01 | AR104: 2010-06-01 | AS104: 2010-07-01 | AT104: 2010-08-01 | AU104: 2010-09-01 | AV104: 2010-10-01 | AW104: 2010-11-01 | AX104: 2010-12-01 | AY104: 2011-01-01 | AZ104: 2011-02-01 | BA104: 2011-03-01 | BB104: 2011-04-01 | BC104: 2011-05-01 | BD104: 2011-06-01 | BE104: 2011-07-01 | BF104: 2011-08-01 | BG104: 2011-09-01 | BH104: 2011-10-01 | BI104: 2011-11-01 | BJ104: 2011-12-01 | BK104: 2012-01-01 | BL104: 2012-02-01 | BM104: 2012-03-01 | BN104: 2012-04-01 | BO104: 2012-05-01 | BP104: 2012-06-01 | BQ104: 2012-07-01 | BR104: 2012-08-01 | BS104: 2012-09-01 | BT104: 2012-10-01 | BU104: 2012-11-01 | BV104: 2012-12-01 | BW104: 2013-01-01 | BX104: 2013-02-01 | BY104: 2013-03-01 | BZ104: 2013-04-01 | CA104: 2013-05-01 | CB104: 2013-06-01 | CC104: 2013-07-01 | CD104: 2013-08-01 | CE104: 2013-09-01 | CF104: 2013-10-01 | CG104: 2013-11-01 | CH104: 2013-12-01 | CI104: 2014-01-01 | CJ104: 2014-02-01 | CK104: 2014-03-01 | CL104: 2014-04-01 | CM104: 2014-05-01 | CN104: 2014-06-01 | CO104: 2014-07-01 | CP104: 2014-08-01 | CQ104: 2014-09-01 | CR104: 2014-10-01 | CS104: 2014-11-01 | CT104: 2014-12-01 | CU104: 2015-01-01 | CV104: 2015-02-01 | CW104: 2015-03-01 | CX104: 2015-04-01 | CY104: 2015-05-01 | CZ104: 2015-06-01 | DA104: 2015-07-01 | DB104: 2015-08-01 | DC104: 2015-09-01 | DD104: 2015-10-01 | DE104: 2015-11-01 | DF104: 2015-12-01 | DG104: 2016-01-01 | DH104: 2016-02-01 | DI104: 2016-03-01 | DJ104: 2016-04-01 | DK104: 2016-05-01 | DL104: 2016-06-01 | DM104: 2016-07-01 | DN104: 2016-08-01 | DO104: 2016-09-01 | DP104: 2016-10-01 | DQ104: 2016-11-01 | DR104: 2016-12-01 | DS104: 2017-01-01 | DT104: 2017-02-01 | DU104: 2017-03-01 | DV104: 2017-04-01 | DW104: 2017-05-01 | DX104: 2017-06-01 | DY104: 2017-07-01 | DZ104: 2017-08-01 | EA104: 2017-09-01 | EB104: 2017-10-01 | EC104: 2017-11-01 | ED104: 2017-12-01 | EE104: 2018-01-01 | EF104: 2018-02-01 | EG104: 2018-03-01 | EH104: 2018-04-01 | EI104: 2018-05-01 | EJ104: 2018-06-01 | EK104: 2018-07-01 | EL104: 2018-08-01 | EM104: 2018-09-01 | EN104: 2018-10-01 | EO104: 2018-11-01 | EP104: 2018-12-01
B105: Solar fotovoltaica | C105: - | D105: - | E105: - | F105: - | G105: - | H105: - | I105: - | J105: - | K105: - | L105: - | M105: - | N105: - | O105: 0.01 | P105: - | Q105: - | R105: - | S105: - | T105: 0.01 | U105: 0.01 | V105: 0.01 | W105: 0.01 | X105: - | Y105: 0.01 | Z105: - | AA105: 0.04 | AB105: 0.11 | AC105: 0.13 | AD105: 0.18 | AE105: 0.06 | AF105: 0.05 | AG105: 0.04 | AH105: 0.04 | AI105: 0.04 | AJ105: 0.03 | AK105: - | AL105: 0.01 | AM105: 0.01 | AN105: 0.03 | AO105: 0.03 | AP105: 0.04 | AQ105: 0.05 | AR105: 0.01 | AS105: 0.04 | AT105: 0.04 | AU105: 0.04 | AV105: 0.03 | AW105: 0.03 | AX105: 0.02 | AY105: 0.02 | AZ105: 0.04 | BA105: 0.04 | BB105: 0.04 | BC105: 0.05 | BD105: 0.04 | BE105: 0.04 | BF105: 0.03 | BG105: 0.03 | BH105: 0.03 | BI105: 0.02 | BJ105: 0.02 | BK105: 0.03 | BL105: 0.04 | BM105: 0.04 | BN105: 0.06 | BO105: 0.05 | BP105: 0.05 | BQ105: 0.04 | BR105: 0.04 | BS105: 0.04 | BT105: 0.03 | BU105: 0.02 | BV105: 0.02 | BW105: 0.03 | BX105: 0.03 | BY105: 0.04 | BZ105: 0.04 | CA105: 0.05 | CB105: 0.05 | CC105: 0.04 | CD105: 0.04 | CE105: 0.04 | CF105: 0.04 | CG105: 0.03 | CH105: 0.02 | CI105: 0.02 | CJ105: 0.04 | CK105: 0.05 | CL105: 0.06 | CM105: 0.05 | CN105: 0.05 | CO105: 0.05 | CP105: 0.05 | CQ105: 0.04 | CR105: 0.04 | CS105: 0.02 | CT105: 0.02 | CU105: 0.03 | CV105: 0.03 | CW105: 0.05 | CX105: 0.04 | CY105: 0.05 | CZ105: 0.05 | DA105: 0.04 | DB105: 0.03 | DC105: 0.04 | DD105: 0.03 | DE105: 0.03 | DF105: 0.02 | DG105: 0.02 | DH105: 0.04 | DI105: 0.05 | DJ105: 0.06 | DK105: 0.05 | DL105: 0.05 | DM105: 0.04 | DN105: 0.04 | DO105: 0.04 | DP105: 0.03 | DQ105: 0.02 | DR105: 0.02 | DS105: 0.02 | DT105: 0.03 | DU105: 0.04 | DV105: 0.04 | DW105: 0.05 | DX105: 0.04 | DY105: 0.04 | DZ105: 0.03 | EA105: 0.04 | EB105: 0.04 | EC105: 0.03 | ED105: 0.02 | EE105: - | EF105: - | EG105: - | EH105: - | EI105: - | EJ105: - | EK105: - | EL105: - | EM105: - | EN105: - | EO105: - | EP105: -
B106: Residuos renovables | C106: - | D106: - | E106: - | F106: - | G106: - | H106: - | I106: - | J106: - | K106: - | L106: - | M106: - | N106: - | O106: - | P106: - | Q106: - | R106: - | S106: - | T106: - | U106: - | V106: - | W106: - | X106: - | Y106: - | Z106: - | AA106: - | AB106: - | AC106: - | AD106: - | AE106: - | AF106: - | AG106: - | AH106: - | AI106: - | AJ106: - | AK106: - | AL106: - | AM106: - | AN106: - | AO106: - | AP106: - | AQ106: - | AR106: - | AS106: - | AT106: - | AU106: - | AV106: - | AW106: - | AX106: - | AY106: - | AZ106: - | BA106: - | BB106: - | BC106: - | BD106: - | BE106: - | BF106: - | BG106: - | BH106: - | BI106: - | BJ106: - | BK106: - | BL106: - | BM106: - | BN106: - | BO106: - | BP106: - | BQ106: - | BR106: - | BS106: - | BT106: - | BU106: - | BV106: - | BW106: - | BX106: - | BY106: - | BZ106: - | CA106: - | CB106: - | CC106: - | CD106: - | CE106: - | CF106: - | CG106: - | CH106: - | CI106: - | CJ106: - | CK106: - | CL106: - | CM106: - | CN106: - | CO106: - | CP106: - | CQ106: - | CR106: - | CS106: - | CT106: - | CU106: 2.2 | CV106: 2.28 | CW106: 2.39 | CX106: 2.43 | CY106: 2.39 | CZ106: 2.11 | DA106: 1.41 | DB106: 1.56 | DC106: 1.97 | DD106: 2.44 | DE106: 0.67 | DF106: 2.54 | DG106: 2.85 | DH106: 2.56 | DI106: 2.44 | DJ106: 2.78 | DK106: 2.26 | DL106: 2.35 | DM106: 2.1 | DN106: 1.96 | DO106: 2.21 | DP106: 2.86 | DQ106: 0.67 | DR106: 2.95 | DS106: 2.43 | DT106: 2.73 | DU106: 2.74 | DV106: 2.7 | DW106: 2.74 | DX106: 2.41 | DY106: 2.16 | DZ106: 1.64 | EA106: 2.52 | EB106: 2.83 | EC106: 0.53 | ED106: 3.07 | EE106: 1.95 | EF106: - | EG106: - | EH106: - | EI106: - | EJ106: - | EK106: - | EL106: - | EM106: - | EN106: - | EO106: - | EP106: -
B107: Generación renovable | C107: - | D107: - | E107: - | F107: - | G107: - | H107: - | I107: - | J107: - | K107: - | L107: - | M107: - | N107: - | O107: 0.01 | P107: 0 | Q107: 0 | R107: 0 | S107: 0 | T107: 0.01 | U107: 0.01 | V107: 0.01 | W107: 0.01 | X107: 0 | Y107: 0.01 | Z107: 0 | AA107: 0.04 | AB107: 0.11 | AC107: 0.13 | AD107: 0.18 | AE107: 0.06 | AF107: 0.05 | AG107: 0.04 | AH107: 0.04 | AI107: 0.04 | AJ107: 0.03 | AK107: 0 | AL107: 0.01 | AM107: 0.01 | AN107: 0.03 | AO107: 0.03 | AP107: 0.04 | AQ107: 0.05 | AR107: 0.01 | AS107: 0.04 | AT107: 0.04 | AU107: 0.04 | AV107: 0.03 | AW107: 0.03 | AX107: 0.02 | AY107: 0.02 | AZ107: 0.04 | BA107: 0.04 | BB107: 0.04 | BC107: 0.05 | BD107: 0.04 | BE107: 0.04 | BF107: 0.03 | BG107: 0.03 | BH107: 0.03 | BI107: 0.02 | BJ107: 0.02 | BK107: 0.03 | BL107: 0.04 | BM107: 0.04 | BN107: 0.06 | BO107: 0.05 | BP107: 0.05 | BQ107: 0.04 | BR107: 0.04 | BS107: 0.04 | BT107: 0.03 | BU107: 0.02 | BV107: 0.02 | BW107: 0.03 | BX107: 0.03 | BY107: 0.04 | BZ107: 0.04 | CA107: 0.05 | CB107: 0.05 | CC107: 0.04 | CD107: 0.04 | CE107: 0.04 | CF107: 0.04 | CG107: 0.03 | CH107: 0.02 | CI107: 0.02 | CJ107: 0.04 | CK107: 0.05 | CL107: 0.06 | CM107: 0.05 | CN107: 0.05 | CO107: 0.05 | CP107: 0.05 | CQ107: 0.04 | CR107: 0.04 | CS107: 0.02 | CT107: 0.02 | CU107: 2.23 | CV107: 2.31 | CW107: 2.44 | CX107: 2.47 | CY107: 2.44 | CZ107: 2.16 | DA107: 1.45 | DB107: 1.59 | DC107: 2.01 | DD107: 2.47 | DE107: 0.7 | DF107: 2.56 | DG107: 2.87 | DH107: 2.6 | DI107: 2.49 | DJ107: 2.84 | DK107: 2.31 | DL107: 2.4 | DM107: 2.14 | DN107: 2 | DO107: 2.25 | DP107: 2.89 | DQ107: 0.69 | DR107: 2.97 | DS107: 2.45 | DT107: 2.76 | DU107: 2.78 | DV107: 2.74 | DW107: 2.79 | DX107: 2.45 | DY107: 2.2 | DZ107: 1.67 | EA107: 2.56 | EB107: 2.87 | EC107: 0.56 | ED107: 3.09 | EE107: 1.95 | EF107: - | EG107: - | EH107: - | EI107: - | EJ107: - | EK107: - | EL107: - | EM107: - | EN107: - | EO107: - | EP107: -
B109: Estructura de generación renovable mensual nacional (%) | C109: 2007-01-01 | D109: 2007-02-01 | E109: 2007-03-01 | F109: 2007-04-01 | G109: 2007-05-01 | H109: 2007-06-01 | I109: 2007-07-01 | J109: 2007-08-01 | K109: 2007-09-01 | L109: 2007-10-01 | M109: 2007-11-01 | N109: 2007-12-01 | O109: 2008-01-01 | P109: 2008-02-01 | Q109: 2008-03-01 | R109: 2008-04-01 | S109: 2008-05-01 | T109: 2008-06-01 | U109: 2008-07-01 | V109: 2008-08-01 | W109: 2008-09-01 | X109: 2008-10-01 | Y109: 2008-11-01 | Z109: 2008-12-01 | AA109: 2009-01-01 | AB109: 2009-02-01 | AC109: 2009-03-01 | AD109: 2009-04-01 | AE109: 2009-05-01 | AF109: 2009-06-01 | AG109: 2009-07-01 | AH109: 2009-08-01 | AI109: 2009-09-01 | AJ109: 2009-10-01 | AK109: 2009-11-01 | AL109: 2009-12-01 | AM109: 2010-01-01 | AN109: 2010-02-01 | AO109: 2010-03-01 | AP109: 2010-04-01 | AQ109: 2010-05-01 | AR109: 2010-06-01 | AS109: 2010-07-01 | AT109: 2010-08-01 | AU109: 2010-09-01 | AV109: 2010-10-01 | AW109: 2010-11-01 | AX109: 2010-12-01 | AY109: 2011-01-01 | AZ109: 2011-02-01 | BA109: 2011-03-01 | BB109: 2011-04-01 | BC109: 2011-05-01 | BD109: 2011-06-01 | BE109: 2011-07-01 | BF109: 2011-08-01 | BG109: 2011-09-01 | BH109: 2011-10-01 | BI109: 2011-11-01 | BJ109: 2011-12-01 | BK109: 2012-01-01 | BL109: 2012-02-01 | BM109: 2012-03-01 | BN109: 2012-04-01 | BO109: 2012-05-01 | BP109: 2012-06-01 | BQ109: 2012-07-01 | BR109: 2012-08-01 | BS109: 2012-09-01 | BT109: 2012-10-01 | BU109: 2012-11-01 | BV109: 2012-12-01 | BW109: 2013-01-01 | BX109: 2013-02-01 | BY109: 2013-03-01 | BZ109: 2013-04-01 | CA109: 2013-05-01 | CB109: 2013-06-01 | CC109: 2013-07-01 | CD109: 2013-08-01 | CE109: 2013-09-01 | CF109: 2013-10-01 | CG109: 2013-11-01 | CH109: 2013-12-01 | CI109: 2014-01-01 | CJ109: 2014-02-01 | CK109: 2014-03-01 | CL109: 2014-04-01 | CM109: 2014-05-01 | CN109: 2014-06-01 | CO109: 2014-07-01 | CP109: 2014-08-01 | CQ109: 2014-09-01 | CR109: 2014-10-01 | CS109: 2014-11-01 | CT109: 2014-12-01 | CU109: 2015-01-01 | CV109: 2015-02-01 | CW109: 2015-03-01 | CX109: 2015-04-01 | CY109: 2015-05-01 | CZ109: 2015-06-01 | DA109: 2015-07-01 | DB109: 2015-08-01 | DC109: 2015-09-01 | DD109: 2015-10-01 | DE109: 2015-11-01 | DF109: 2015-12-01 | DG109: 2016-01-01 | DH109: 2016-02-01 | DI109: 2016-03-01 | DJ109: 2016-04-01 | DK109: 2016-05-01 | DL109: 2016-06-01 | DM109: 2016-07-01 | DN109: 2016-08-01 | DO109: 2016-09-01 | DP109: 2016-10-01 | DQ109: 2016-11-01 | DR109: 2016-12-01 | DS109: 2017-01-01 | DT109: 2017-02-01 | DU109: 2017-03-01 | DV109: 2017-04-01 | DW109: 2017-05-01 | DX109: 2017-06-01 | DY109: 2017-07-01 | DZ109: 2017-08-01 | EA109: 2017-09-01 | EB109: 2017-10-01 | EC109: 2017-11-01 | ED109: 2017-12-01 | EE109: 2018-01-01 | EF109: 2018-02-01 | EG109: 2018-03-01 | EH109: 2018-04-01 | EI109: 2018-05-01 | EJ109: 2018-06-01 | EK109: 2018-07-01 | EL109: 2018-08-01 | EM109: 2018-09-01 | EN109: 2018-10-01 | EO109: 2018-11-01 | EP109: 2018-12-01
B110: Hidráulica | C110: 8.8 | D110: 13.2 | E110: 16.1 | F110: 13 | G110: 12.3 | H110: 10.1 | I110: 9.8 | J110: 7.6 | K110: 5.9 | L110: 7.1 | M110: 5.3 | N110: 4.7 | O110: 5.2 | P110: 3.9 | Q110: 4.3 | R110: 11.3 | S110: 14.5 | T110: 13.4 | U110: 8.4 | V110: 6.4 | W110: 5.6 | X110: 4.6 | Y110: 6.5 | Z110: 9.7 | AA110: 8.6 | AB110: 15.2 | AC110: 12.3 | AD110: 10.4 | AE110: 12 | AF110: 9.3 | AG110: 7 | AH110: 6.1 | AI110: 4.4 | AJ110: 5.5 | AK110: 8.8 | AL110: 13 | AM110: 19.8 | AN110: 16.9 | AO110: 23.1 | AP110: 21.3 | AQ110: 17.2 | AR110: 15.6 | AS110: 11.2 | AT110: 8.5 | AU110: 6.6 | AV110: 6.8 | AW110: 10.8 | AX110: 15.6 | AY110: 19.7 | AZ110: 12.9 | BA110: 15.3 | BB110: 16.3 | BC110: 12.7 | BD110: 9.1 | BE110: 6.9 | BF110: 6.5 | BG110: 5.3 | BH110: 5.6 | BI110: 9.5 | BJ110: 9.1 | BK110: 6.4 | BL110: 4.7 | BM110: 5.5 | BN110: 7.8 | BO110: 11.2 | BP110: 9.1 | BQ110: 7 | BR110: 5.6 | BS110: 4.6 | BT110: 6.1 | BU110: 8.8 | BV110: 11 | BW110: 12.1 | BX110: 15.5 | BY110: 19.4 | BZ110: 24.6 | CA110: 18 | CB110: 15.2 | CC110: 11.2 | CD110: 9.4 | CE110: 8.3 | CF110: 8.5 | CG110: 12.3 | CH110: 10.2 | CI110: 17.7 | CJ110: 25.5 | CK110: 23.2 | CL110: 23.5 | CM110: 13.2 | CN110: 11.6 | CO110: 10.1 | CP110: 9.3 | CQ110: 8.1 | CR110: 7.5 | CS110: 11.6 | CT110: 14.1 | CU110: 10.4 | CV110: 15.3 | CW110: 16.5 | CX110: 12.9 | CY110: 13.8 | CZ110: 11.4 | DA110: 8.1 | DB110: 7.1 | DC110: 7.5 | DD110: 7.9 | DE110: 9 | DF110: 6.6 | DG110: 15.2 | DH110: 18.3 | DI110: 18.9 | DJ110: 24 | DK110: 24.6 | DL110: 14.2 | DM110: 9.9 | DN110: 9.2 | DO110: 7.8 | DP110: 7.5 | DQ110: 6.9 | DR110: 8.4 | DS110: 8.1 | DT110: 9.3 | DU110: 12.7 | DV110: 8.9 | DW110: 9.5 | DX110: 7.4 | DY110: 5.2 | DZ110: 5 | EA110: 5.8 | EB110: 3.9 | EC110: 3.7 | ED110: 5.2 | EE110: 9.4 | EF110: - | EG110: - | EH110: - | EI110: - | EJ110: - | EK110: - | EL110: - | EM110: - | EN110: - | EO110: - | EP110: -
B111: Hidroeólica | C111: - | D111: - | E111: - | F111: - | G111: - | H111: - | I111: - | J111: - | K111: - | L111: - | M111: - | N111: - | O111: - | P111: - | Q111: - | R111: - | S111: - | T111: - | U111: - | V111: - | W111: - | X111: - | Y111: - | Z111: - | AA111: - | AB111: - | AC111: - | AD111: - | AE111: - | AF111: - | AG111: - | AH111: - | AI111: - | AJ111: - | AK111: - | AL111: - | AM111: - | AN111: - | AO111: - | AP111: - | AQ111: - | AR111: - | AS111: - | AT111: - | AU111: - | AV111: - | AW111: - | AX111: - | AY111: - | AZ111: - | BA111: - | BB111: - | BC111: - | BD111: - | BE111: - | BF111: - | BG111: - | BH111: - | BI111: - | BJ111: - | BK111: - | BL111: - | BM111: - | BN111: - | BO111: - | BP111: - | BQ111: - | BR111: - | BS111: - | BT111: - | BU111: - | BV111: - | BW111: - | BX111: - | BY111: - | BZ111: - | CA111: - | CB111: - | CC111: - | CD111: - | CE111: - | CF111: - | CG111: - | CH111: - | CI111: - | CJ111: - | CK111: - | CL111: - | CM111: - | CN111: - | CO111: - | CP111: 0 | CQ111: 0 | CR111: 0 | CS111: 0 | CT111: 0 | CU111: 0 | CV111: 0 | CW111: 0 | CX111: 0 | CY111: 0 | CZ111: 0 | DA111: 0 | DB111: 0 | DC111: 0 | DD111: 0 | DE111: 0 | DF111: 0 | DG111: 0 | DH111: 0 | DI111: 0 | DJ111: 0 | DK111: 0 | DL111: 0 | DM111: 0 | DN111: 0 | DO111: 0 | DP111: 0 | DQ111: 0 | DR111: 0 | DS111: 0 | DT111: 0 | DU111: 0 | DV111: 0 | DW111: 0 | DX111: 0 | DY111: 0 | DZ111: 0 | EA111: 0 | EB111: 0 | EC111: 0 | ED111: 0 | EE111: 0 | EF111: - | EG111: - | EH111: - | EI111: - | EJ111: - | EK111: - | EL111: - | EM111: - | EN111: - | EO111: - | EP111: -
B112: Eólica | C112: 8.4 | D112: 12.6 | E112: 12.8 | F112: 6.3 | G112: 11.5 | H112: 7.9 | I112: 7.8 | J112: 10.6 | K112: 8.8 | L112: 8 | M112: 11 | N112: 9.2 | O112: 10 | P112: 8.2 | Q112: 16.4 | R112: 14 | S112: 7.6 | T112: 9 | U112: 8.4 | V112: 8.4 | W112: 9.1 | X112: 10.6 | Y112: 14.1 | Z112: 14.2 | AA112: 13.3 | AB112: 14.2 | AC112: 13.8 | AD112: 14.6 | AE112: 12.7 | AF112: 10.3 | AG112: 9.9 | AH112: 9.7 | AI112: 11 | AJ112: 13.7 | AK112: 20.8 | AL112: 19.8 | AM112: 16.5 | AN112: 19.2 | AO112: 18.2 | AP112: 12.1 | AQ112: 16.3 | AR112: 11.5 | AS112: 11 | AT112: 12.3 | AU112: 10.1 | AV112: 17 | AW112: 18.1 | AX112: 18.3 | AY112: 15.5 | AZ112: 17.5 | BA112: 18.8 | BB112: 15.7 | BC112: 14.5 | BD112: 13.2 | BE112: 13.8 | BF112: 11.9 | BG112: 10.2 | BH112: 14.2 | BI112: 16.9 | BJ112: 19.3 | BK112: 14.5 | BL112: 19.4 | BM112: 16.1 | BN112: 23.8 | BO112: 16.5 | BP112: 15.1 | BQ112: 12.7 | BR112: 13.3 | BS112: 17.5 | BT112: 13.8 | BU112: 20.5 | BV112: 22.6 | BW112: 25.4 | BX112: 23.5 | BY112: 24.1 | BZ112: 20.2 | CA112: 18.7 | CB112: 18.4 | CC112: 11.8 | CD112: 15.1 | CE112: 14.7 | CF112: 18.1 | CG112: 28.2 | CH112: 20.7 | CI112: 27.3 | CJ112: 26.2 | CK112: 22.3 | CL112: 18.9 | CM112: 19.6 | CN112: 15.4 | CO112: 15.7 | CP112: 13.2 | CQ112: 9.7 | CR112: 15.7 | CS112: 24 | CT112: 20.5 | CU112: 20.1 | CV112: 25.8 | CW112: 21.1 | CX112: 19 | CY112: 22.8 | CZ112: 13.3 | DA112: 12.3 | DB112: 14.4 | DC112: 14.2 | DD112: 18.6 | DE112: 17.7 | DF112: 16.3 | DG112: 24.8 | DH112: 28.1 | DI112: 23.6 | DJ112: 20.4 | DK112: 19 | DL112: 15.8 | DM112: 15.4 | DN112: 16.6 | DO112: 12.8 | DP112: 11 | DQ112: 17.9 | DR112: 12.2 | DS112: 19 | DT112: 23.4 | DU112: 22.3 | DV112: 21.8 | DW112: 17.1 | DX112: 14.4 | DY112: 14.9 | DZ112: 15.4 | EA112: 14.1 | EB112: 14.9 | EC112: 17.5 | ED112: 23.8 | EE112: 23.3 | EF112: - | EG112: - | EH112: - | EI112: - | EJ112: - | EK112: - | EL112: - | EM112: - | EN112: - | EO112: - | EP112: -
B113: Solar fotovoltaica | C113: 0 | D113: 0.1 | E113: 0.1 | F113: 0.1 | G113: 0.2 | H113: 0.2 | I113: 0.2 | J113: 0.2 | K113: 0.3 | L113: 0.2 | M113: 0.2 | N113: 0.2 | O113: 0.2 | P113: 0.3 | Q113: 0.4 | R113: 0.5 | S113: 0.6 | T113: 0.8 | U113: 0.9 | V113: 1.2 | W113: 1.4 | X113: 1.4 | Y113: 1.4 | Z113: 1 | AA113: 1 | AB113: 1.7 | AC113: 2.3 | AD113: 2.7 | AE113: 3.1 | AF113: 2.8 | AG113: 2.9 | AH113: 2.8 | AI113: 2.3 | AJ113: 2.2 | AK113: 1.6 | AL113: 1 | AM113: 1 | AN113: 1.3 | AO113: 1.9 | AP113: 2.7 | AQ113: 3.2 | AR113: 3 | AS113: 3 | AT113: 3 | AU113: 2.7 | AV113: 2.3 | AW113: 1.6 | AX113: 1.2 | AY113: 1.4 | AZ113: 2.2 | BA113: 2.1 | BB113: 3 | BC113: 3.4 | BD113: 3.6 | BE113: 3.6 | BF113: 3.4 | BG113: 3.2 | BH113: 2.8 | BI113: 1.6 | BJ113: 1.8 | BK113: 2 | BL113: 2.5 | BM113: 3.2 | BN113: 2.9 | BO113: 3.8 | BP113: 3.8 | BQ113: 3.9 | BR113: 3.6 | BS113: 3.1 | BT113: 2.6 | BU113: 1.6 | BV113: 1.7 | BW113: 1.8 | BX113: 2.3 | BY113: 2.4 | BZ113: 3.5 | CA113: 4.1 | CB113: 4.4 | CC113: 4 | CD113: 3.9 | CE113: 3.5 | CF113: 2.9 | CG113: 2.2 | CH113: 1.8 | CI113: 1.6 | CJ113: 1.9 | CK113: 3.2 | CL113: 3.8 | CM113: 4.3 | CN113: 4.2 | CO113: 4.1 | CP113: 4.1 | CQ113: 3.1 | CR113: 3 | CS113: 1.8 | CT113: 1.9 | CU113: 2.1 | CV113: 2.1 | CW113: 3.1 | CX113: 3.7 | CY113: 4.3 | CZ113: 4.1 | DA113: 3.7 | DB113: 3.6 | DC113: 3.4 | DD113: 2.6 | DE113: 2.5 | DF113: 1.8 | DG113: 1.6 | DH113: 2.2 | DI113: 3.1 | DJ113: 3.3 | DK113: 3.9 | DL113: 4.5 | DM113: 4 | DN113: 4.1 | DO113: 3.6 | DP113: 2.7 | DQ113: 2 | DR113: 1.7 | DS113: 1.9 | DT113: 2.1 | DU113: 3.4 | DV113: 4.3 | DW113: 4.3 | DX113: 4 | DY113: 4 | DZ113: 3.8 | EA113: 3.8 | EB113: 3.1 | EC113: 2.4 | ED113: 1.8 | EE113: 1.9 | EF113: - | EG113: - | EH113: - | EI113: - | EJ113: - | EK113: - | EL113: - | EM113: - | EN113: - | EO113: - | EP113: -
B114: Solar térmica | C114: - | D114: - | E114: 0 | F114: 0 | G114: 0 | H114: 0 | I114: 0 | J114: 0 | K114: 0 | L114: 0 | M114: 0 | N114: 0 | O114: 0 | P114: 0 | Q114: 0 | R114: 0 | S114: 0 | T114: 0 | U114: 0 | V114: 0 | W114: 0 | X114: 0 | Y114: 0 | Z114: 0 | AA114: 0 | AB114: 0 | AC114: 0 | AD114: 0 | AE114: 0 | AF114: 0 | AG114: 0 | AH114: 0.1 | AI114: 0.1 | AJ114: 0.1 | AK114: 0.1 | AL114: 0 | AM114: 0.1 | AN114: 0 | AO114: 0.1 | AP114: 0.2 | AQ114: 0.3 | AR114: 0.3 | AS114: 0.4 | AT114: 0.5 | AU114: 0.4 | AV114: 0.3 | AW114: 0.1 | AX114: 0.1 | AY114: 0.1 | AZ114: 0.4 | BA114: 0.4 | BB114: 0.6 | BC114: 0.7 | BD114: 1 | BE114: 1.2 | BF114: 1 | BG114: 1 | BH114: 0.8 | BI114: 0.4 | BJ114: 0.4 | BK114: 0.5 | BL114: 0.8 | BM114: 1 | BN114: 0.8 | BO114: 1.5 | BP114: 1.8 | BQ114: 2.3 | BR114: 2 | BS114: 1.6 | BT114: 1.3 | BU114: 0.6 | BV114: 0.6 | BW114: 0.5 | BX114: 0.9 | BY114: 0.5 | BZ114: 1.4 | CA114: 2.4 | CB114: 3.1 | CC114: 3.1 | CD114: 2.9 | CE114: 2.2 | CF114: 1.3 | CG114: 0.9 | CH114: 0.7 | CI114: 0.3 | CJ114: 0.5 | CK114: 1.7 | CL114: 2.1 | CM114: 3.4 | CN114: 3.2 | CO114: 3.5 | CP114: 3.8 | CQ114: 1.8 | CR114: 1.3 | CS114: 0.4 | CT114: 0.5 | CU114: 0.7 | CV114: 0.8 | CW114: 1.8 | CX114: 1.9 | CY114: 3.3 | CZ114: 3.4 | DA114: 3.5 | DB114: 2.7 | DC114: 2.3 | DD114: 0.9 | DE114: 1.1 | DF114: 0.4 | DG114: 0.3 | DH114: 0.6 | DI114: 1.7 | DJ114: 1.9 | DK114: 2.4 | DL114: 3.9 | DM114: 3.6 | DN114: 3.7 | DO114: 2.8 | DP114: 1.3 | DQ114: 0.6 | DR114: 0.5 | DS114: 0.6 | DT114: 0.4 | DU114: 1.6 | DV114: 2.8 | DW114: 3 | DX114: 3.4 | DY114: 3.6 | DZ114: 3.2 | EA114: 3 | EB114: 1.9 | EC114: 1 | ED114: 0.5 | EE114: 0.6 | EF114: - | EG114: - | EH114: - | EI114: - | EJ114: - | EK114: - | EL114: - | EM114: - | EN114: - | EO114: - | EP114: -
B115: Térmica renovable/Otras renovables | C115: 0.8 | D115: 0.8 | E115: 0.8 | F115: 0.9 | G115: 0.9 | H115: 0.9 | I115: 0.9 | J115: 1 | K115: 0.9 | L115: 1 | M115: 0.9 | N115: 0.9 | O115: 0.9 | P115: 0.9 | Q115: 1 | R115: 1 | S115: 1 | T115: 1 | U115: 0.9 | V115: 1 | W115: 1 | X115: 1 | Y115: 1 | Z115: 1 | AA115: 1 | AB115: 1.1 | AC115: 1.2 | AD115: 1.4 | AE115: 1.3 | AF115: 1.1 | AG115: 1 | AH115: 1.1 | AI115: 1.3 | AJ115: 1.5 | AK115: 1.2 | AL115: 1.1 | AM115: 1.1 | AN115: 1 | AO115: 1 | AP115: 1.3 | AQ115: 1.3 | AR115: 1.3 | AS115: 1.1 | AT115: 1.2 | AU115: 1.2 | AV115: 1.2 | AW115: 1.1 | AX115: 1.2 | AY115: 1.4 | AZ115: 1.4 | BA115: 1.4 | BB115: 1.6 | BC115: 1.5 | BD115: 1.5 | BE115: 1.5 | BF115: 1.5 | BG115: 1.6 | BH115: 1.7 | BI115: 1.7 | BJ115: 1.6 | BK115: 1.6 | BL115: 1.4 | BM115: 1.7 | BN115: 1.7 | BO115: 1.6 | BP115: 1.8 | BQ115: 1.8 | BR115: 1.7 | BS115: 1.7 | BT115: 1.8 | BU115: 1.8 | BV115: 1.8 | BW115: 1.8 | BX115: 1.8 | BY115: 1.9 | BZ115: 1.9 | CA115: 2.1 | CB115: 1.9 | CC115: 1.8 | CD115: 1.8 | CE115: 1.8 | CF115: 1.8 | CG115: 1.8 | CH115: 1.9 | CI115: 1.8 | CJ115: 1.5 | CK115: 1.6 | CL115: 1.6 | CM115: 1.9 | CN115: 1.9 | CO115: 1.8 | CP115: 2 | CQ115: 1.9 | CR115: 1.8 | CS115: 1.8 | CT115: 1.7 | CU115: 1 | CV115: 0.9 | CW115: 1 | CX115: 0.9 | CY115: 1.1 | CZ115: 1.3 | DA115: 1.2 | DB115: 1.4 | DC115: 1.4 | DD115: 1.5 | DE115: 1.5 | DF115: 1.3 | DG115: 1.2 | DH115: 1.2 | DI115: 1.1 | DJ115: 1 | DK115: 1.3 | DL115: 1.4 | DM115: 1.4 | DN115: 1.5 | DO115: 1.5 | DP115: 1.4 | DQ115: 1.4 | DR115: 1.4 | DS115: 1.3 | DT115: 1.4 | DU115: 1.3 | DV115: 1.2 | DW115: 1.5 | DX115: 1.4 | DY115: 1.5 | DZ115: 1.5 | EA115: 1.5 | EB115: 1.4 | EC115: 1.4 | ED115: 1.3 | EE115: 1.3 | EF115: - | EG115: - | EH115: - | EI115: - | EJ115: - | EK115: - | EL115: - | EM115: - | EN115: - | EO115: - | EP115: -
B116: Residuos renovables | C116: - | D116: - | E116: - | F116: - | G116: - | H116: - | I116: - | J116: - | K116: - | L116: - | M116: - | N116: - | O116: - | P116: - | Q116: - | R116: - | S116: - | T116: - | U116: - | V116: - | W116: - | X116: - | Y116: - | Z116: - | AA116: - | AB116: - | AC116: - | AD116: - | AE116: - | AF116: - | AG116: - | AH116: - | AI116: - | AJ116: - | AK116: - | AL116: - | AM116: - | AN116: - | AO116: - | AP116: - | AQ116: - | AR116: - | AS116: - | AT116: - | AU116: - | AV116: - | AW116: - | AX116: - | AY116: - | AZ116: - | BA116: - | BB116: - | BC116: - | BD116: - | BE116: - | BF116: - | BG116: - | BH116: - | BI116: - | BJ116: - | BK116: - | BL116: - | BM116: - | BN116: - | BO116: - | BP116: - | BQ116: - | BR116: - | BS116: - | BT116: - | BU116: - | BV116: - | BW116: - | BX116: - | BY116: - | BZ116: - | CA116: - | CB116: - | CC116: - | CD116: - | CE116: - | CF116: - | CG116: - | CH116: - | CI116: - | CJ116: - | CK116: - | CL116: - | CM116: - | CN116: - | CO116: - | CP116: - | CQ116: - | CR116: - | CS116: - | CT116: - | CU116: 0.3 | CV116: 0.3 | CW116: 0.3 | CX116: 0.2 | CY116: 0.3 | CZ116: 0.3 | DA116: 0.3 | DB116: 0.3 | DC116: 0.3 | DD116: 0.4 | DE116: 0.4 | DF116: 0.3 | DG116: 0.3 | DH116: 0.2 | DI116: 0.3 | DJ116: 0.2 | DK116: 0.2 | DL116: 0.3 | DM116: 0.3 | DN116: 0.3 | DO116: 0.4 | DP116: 0.3 | DQ116: 0.3 | DR116: 0.4 | DS116: 0.3 | DT116: 0.3 | DU116: 0.3 | DV116: 0.3 | DW116: 0.2 | DX116: 0.4 | DY116: 0.4 | DZ116: 0.4 | EA116: 0.4 | EB116: 0.4 | EC116: 0.3 | ED116: 0.3 | EE116: 0.3 | EF116: - | EG116: - | EH116: - | EI116: - | EJ116: - | EK116: - | EL116: - | EM116: - | EN116: - | EO116: - | EP116: -
